Workbook

Sheet info-DE
G1: Version: 2015 (9.12.2015)
A2: Exceldatei zur Abgabe der Resultate an die DUS - Wichtige Bemerkungen
A4: Die ausgefüllte Datei und die anderen verlangten ARA-Betriebsdaten sind an daniel.obrist@admin.vs.ch zu übermitteln.
A6: Bei Fragen:
A7: Pierre Mange | D7: pierre.mange@admin.vs.ch | F7: Tel. 027 606 31 74
A8: Daniel Obrist | D8: daniel.obrist@admin.vs.ch | F8: Tel. 027 606 31 38

Sheet info-FR
G1: ='info-DE'!G1 -> Version: 2015 (9.12.2015)
A2: Feuille Excel pour transmission des données au SPE - Remarques importantes
A4: Le fichier rempli, et autres données d’exploitation sont à transmettre à pierre.mange@admin.vs.ch
A6: En cas de questions:
A7: Pierre Mange | D7: pierre.mange@admin.vs.ch | F7: Tel. 027 606 31 74
A8: Daniel Obrist | D8: daniel.obrist@admin.vs.ch | F8: Tel. 027 606 31 38

Sheet basis
A1: =bi("STEP ", "ARA ")&liste!A105&IF(Langue=1," N° "," Nr. ")&liste!B105 -> STEP Ausserbinn N° 6051/00 | O1: 1 | S1: 1 | T1: =(Langue=1) -> TRUE
O2: =bi("oui","ja") -> oui | S2: FR
A3: =bi("STEP","ARA") -> STEP | C3: Langue/Sprache | F3: =bi("Année","Jahr") -> Année | G3: 2015 | H3: =bi("échantillonage proportionel au débit d'entrée?","Probeentnahme proportional zum Durchfluss?") -> échantillonage proportionel au débit d'entrée? | O3: =bi("non","nein") -> non | S3: DE
A5: =bi("Exploitant","Betriebsleiter") -> Exploitant | B5: =BD!B4 ->  | E5: =bi("Population","Bevölkerung") -> Population | G5: =bi("hab. total","Tot. Einw.") -> hab. total | H5: =bi("hab. raccordés","angeschl. Einw.") -> hab. raccordés | I5: =bi("EH","EW") -> EH
F6: =bi(" résidente"," ständige Einwohner") -> résidente | G6: =SUM(general!B5:C18) -> 0 | H6: =SUM(general!B5:B18) -> 0 | I6: =H6 -> 0
A7: =bi("Coordonnées","Koordinaten") -> Coordonnées | B7: =bi("STEP","ARA") -> STEP | C7: =bi("Rejet","Einleitung") -> Rejet | F7: =bi(" saisonière (*)"," Fremdbetten (*)") -> saisonière (*) | G7: =SUM(general!D5:E18) -> 0 | H7: =SUM(general!D5:D18) -> 0 | I7: =H7/3 -> 0
A8: X | B8: =liste!H105 -> 654560 | C8: =liste!M105 -> 654430 | F8: =bi("Industries raccordées","Angeschlossene Industrien") -> Industries raccordées | G8: =SUM(general!F5:F18) -> 0 | H8: =G8 -> 0 | I8: =H8 -> 0
A9: Y | B9: =liste!I105 -> 136900 | C9: =liste!N105 -> 136820 | F9: =bi("Somme","Total") -> Somme | G9: =SUM(G6:G8) -> 0 | H9: =SUM(H6:H8) -> 0 | I9: =SUM(I6:I8) -> 0
A10: =bi("Altitude","Höhe") -> Altitude | B10: =liste!J105 -> 1260 | C10: =liste!O105 -> 1140 | I10: =bi("(*) 3 lits=1 EH","(*) 3 Betten = 1 EW") -> (*) 3 lits=1 EH
A11: =bi("Milieu récepteur","Vorfluter") -> Milieu récepteur | B11: =liste!K105 -> Binna
A12: =bi("Récepteur final","End-Vorfluter") -> Récepteur final | B12: =IF(liste!L105="","",liste!L105) -> Rhône | E12: =IF(analyses!AT379>1,IF(Langue=1,"Charge polluante DBO5 corrigée","Korrigierte BSB5-Fracht"),IF(Langue=1,"Charge polluante DBO5","BSB5-Fracht")) -> Charge polluante DBO5 | G12: =IF(G13="","",G13*365) ->  | H12: =bi("kg O2/an","kg/Jahr") -> kg O2/an
A13: =bi("Année constr./réhabilit.","Baujahr/Umbau") -> Année constr./réhabilit. | B13: =liste!F105&" / "&liste!G105 -> 2001 / 0 | G13: =integr!I386 ->  | H13: =bi("kg/jour (moy. annuelle)","kg/d (jährliches Mittel)") -> kg/jour (moy. annuelle)
G14: =IF(G13="","",G13*1000/DBO5_specifique_parEH) ->  | H14: =bi("EH (60 g DBO5/EH.j)","EWG (60 g BSB5/EW.d)") -> EH (60 g DBO5/EH.j)
A15: =bi("Capacité STEP","Dimensionierung ARA") -> Capacité STEP
A16: =bi("Biologique (EH)","Biologisch (EW)") -> Biologique (EH) | B16: =liste!$E105 -> 100 | E16: =bi("Charge hydraulique", "Hydraulische Belastung") -> Charge hydraulique | G16: =G17*365 -> 0 | H16: =bi("m3/an","m3/Jahr") -> m3/an
A17: =bi("kg DBO5/d","kg BSB5/d") -> kg DBO5/d | B17: =capacité_biologique*60/1000 -> 6 | G17: =analyses!BJ380 -> 0 | H17: =bi("m3/jour (moy. annuelle)","m3/d (jährliches Mittel)") -> m3/jour (moy. annuelle)
A18: =bi("Hydraulique","Hydraulisch")&" (m3/d)" -> Hydraulique (m3/d) | B18: =liste!P105 -> 17 | G18: =G17/0.35 -> 0 | H18: =bi("EH (à 350 l/EH.j)","EWG (à 350 l/EW.d)") -> EH (à 350 l/EH.j)
A19: =bi("Vol. bassin bio.","Vol. Belüftungsb.")&" (m3)" -> Vol. bassin bio. (m3) | B19: =liste!Q105 ->  | G19: =G17/0.25 -> 0 | H19: =bi("EH (à 250 l/EH.j)","EWG (à 250 l/EW.d)") -> EH (à 250 l/EH.j)
G20: =IF(G14="","",G17*1000/G14) ->  | H20: =bi("l/EH.j","l/EW.d") -> l/EH.j
A21: =bi("Remarque","Bemerkung") -> Remarque | F21: =bi("QTS","QTW") -> QTS | G21: =QTS -> 0 | H21: m3/d
A22: =liste!BC105 -> 
A23: =bi("Charges spécifiques admises par EH","Spezifische Frachten pro EW und Tag") -> Charges spécifiques admises par EH | D23: =bi("Adaptation charges spécif. par EH propres à la STEP","Anpassung der ARA Spez. Frachten pro EW") -> Adaptation charges spécif. par EH propres à la STEP | F23: =bi("Normes de rejet","Grenzwerte") -> Normes de rejet | H23: =bi("charges","Frachten") -> charges
J24: =bi("Entrée","Zulauf") -> Entrée | K24: =bi("Sortie","Ablauf") -> Sortie | L24: =bi("Rendt %","Wirk. %") -> Rendt %
A25: =bi("Paramètres (*)","Parameter (*)") -> Paramètres (*) | B25: =bi("Entrée STEP","ARA Zulauf") -> Entrée STEP | C25: =bi("Sortie DP","Ablauf VK") -> Sortie DP | D25: =B25 -> Entrée STEP | E25: =bi("Différence","Unterschied") -> Différence | F25: =bi("Concen-tration mg/l","Konzen-tration mg/l") -> Concen-tration mg/l | G25: =bi("Rende-ment %","Wirkungs-grad %") -> Rende-ment % | I25: =bi("DBO5 [kg/j]","BSB5 [kg/d]") -> DBO5 [kg/j] | J25: =graph1!CD7 ->  | K25: =graph1!CE7 ->  | L25: =IF(J25="","",(J25-K25)/J25*100) -> 
A26: =bi("Débit","Durchfluss") -> Débit | B26: 170 | C26: 170 | D26: =B26 -> 170 | I26: =bi("NTK/NH4 [kg/j]","NTK/NH4 [kg/d]") -> NTK/NH4 [kg/j] | J26: =graph1!CD9 ->  | K26: =graph1!CE11 ->  | L26: =IF(J26="","",(J26-K26)/J26*100) -> 
A27: =bi("DBO5","BSB5") -> DBO5 | B27: 60 | C27: =B27*(1-33%) -> 40.2 | D27: =B27 -> 60 | E27: =ABS(B27-D27)/B27 -> 0 | F27: =liste!R105 -> 20 | G27: =liste!S105 -> 0 | I27: =bi("Ptot[kg/j]","Pges [kg/d]") -> Ptot[kg/j] | J27: =graph1!CD14 ->  | K27: =graph1!CE14 ->  | L27: =IF(J27="","",(J27-K27)/J27*100) -> 
A28: =bi("DCO","CSB") -> DCO | B28: 120 | C28: =DCO_specifique_parEH*(1-33%) -> 80.4 | D28: =DCO_specifique_parEH -> 120 | E28: =ABS(DCO_specifique_parEH-D28)/DCO_specifique_parEH -> 0
A29: =bi("COT/COD","TOC/DOC") -> COT/COD | B29: =B27/1.6 -> 37.5 | C29: =B29*(1-33%) -> 25.125 | D29: 37.5 | E29: =ABS(B29-D29)/B29 -> 0 | F29: =liste!T105 ->  | G29: =liste!U105 ->  | H29: =bi("boues","Schlamm") -> boues
A30: =bi("Ntot","Nges") -> Ntot | B30: 10 à 15 | D30: 12 | K30: =bi("Boues produites (t MS/a)","Schlamm aus Entwässerung (t TS/a)") -> Boues produites (t MS/a) | L30: =general!L15 -> 0
A31: N-Kjel | B31: 11 | C31: =B31*(1-9%) -> 10.01 | D31: 11 | E31: =ABS(B31-D31)/B31 -> 0 | K31: =bi("Production spécif. (g MS/EH.j)","Spez. Schlammprod. (g TS/EW.d)") -> Production spécif. (g MS/EH.j) | L31: =IF(G14="","",L30/365/$G$14*1000000) -> 
A32: NH4-N | B32: 7 | C32: =B32 -> 7 | D32: 7 | E32: =ABS(B32-D32)/B32 -> 0 | F32: =liste!X105 ->  | G32: =liste!Y105 ->  | K32: =bi("Plage recommandée (g MS/EH.j)","Empfohlene Werte (g TS/EW.d)") -> Plage recommandée (g MS/EH.j) | L32: 55 à 85
A33: NO2 | F33: =liste!Z105 -> 0.3
A34: NO3 | H34: =bi("energie","Energie") -> energie
A35: =bi("Ptot","Pges") -> Ptot | B35: 1.9 | C35: =B35*(1-11%) -> 1.691 | D35: =B35 -> 1.9 | E35: =ABS(B35-D35)/B35 -> 0 | F35: =liste!V105 ->  | G35: =liste!W105 ->  | K35: =bi("utilisée (kWh/an)","verbraucht (kWh/a)") -> utilisée (kWh/an) | L35: =SUM(analyses!AK9:AK375) + SUM(analyses!AN9:AN375) - SUM(analyses!AO9:AO375) -> 0
A36: =bi("MES","GUS") -> MES | B36: 70 | F36: =liste!AA105 -> 20 | K36: =bi(" (conso. + prod. - vente)"," (bezog. + erzeugt. - Verkauf)") -> (conso. + prod. - vente)
A37: =bi("Biogaz","Biogas") -> Biogaz | B37: 26 | C37: 26 | D37: =B37 -> 26 | E37: =ABS(B37-D37)/B37 -> 0 | K37: =bi("Energie par EH traité (Wh/WH.j)","Energie/behandelte EW (Wh/EW.d)") -> Energie par EH traité (Wh/WH.j) | L37: =IF(G14="","",L35/365/G14*1000) -> 
A38: =bi("Boues fraîches","Frischschlamm") -> Boues fraîches | B38: 85 | C38: 85 | D38: =B38 -> 85 | E38: =ABS(B38-D38)/B38 -> 0 | K38: =bi("Plage recommandée (Wh/EH.j)","Empfohlene Werte (Wh/EW.d)") -> Plage recommandée (Wh/EH.j) | L38: 50 à 70
A39: =bi("Boues digérées","Faulschlamm") -> Boues digérées | B39: 58 | C39: 58 | D39: =B39 -> 58 | K39: =bi("Part aération biologie","Anteil Gebläse Biologie") -> Part aération biologie | L39: =IF(L35<=0,"",SUM(analyses!AL9:AL375)/L35) -> 
A40: =bi("Température bio","Temperatur Bio") -> Température bio
A41: =bi("(*) en g/jour.EH sauf pour débit et biogaz: en litres/j.EH","(*) in g/d.EW ausser für Durchfluss und Biogas in L/d.EW") -> (*) en g/jour.EH sauf pour débit et biogaz: en litres/j.EH | Q41: =IF(AND(ROUND(analyses!AT378>1,2),ROUND(analyses!AT379>1,2)),IF(Langue=1,"(DBO5 corrigé, f=","(BSB5 korrigiert, f = max. ")&ROUND(analyses!AT379,1)&")","") ->  | R41: =bi("min EH","min EW") -> min EH | S41: =I6 -> 0 | T41: =S41 -> 0 | U41: 0 | V41: 1
O42: =bi("Charges entrée+Bypass(EH)","Zulauffrachten+Bypässe(EW)")&IF(constanten_bypass!N28,bi(" (limité par 2 QTS)."," (begrenzt durch 2 QTW)."),IF(Langue=1," limité par cap. hydr. STEP"," begrenzt durch Nennkap. ARA")) -> Charges entrée+Bypass(EH) limité par cap. hydr. STEP | R42: =bi("max EH","max EW") -> max EH | S42: =I9 -> 0 | T42: =S42 -> 0
O43: =bi("Charges entrée (sans Bypass, non corrigé) (EH) ","Zulauffrachten (ohne Bypässe, nicht korrigiert) (EW)") -> Charges entrée (sans Bypass, non corrigé) (EH)
O54: =bi("Charges en entrée (EH), non limité","Zulauffracht (EW), nicht begrenzt") -> Charges en entrée (EH), non limité
J138: 44
N163: =bi("concentrations en entrée (mg/l)","Konzentrationen im Zulauf (mg/l)") -> concentrations en entrée (mg/l)

Sheet general
A1: =basis!A1 -> STEP Ausserbinn N° 6051/00 | E1: =bi("remplir les cases vertes","grüne Felder sind auszufüllen") -> remplir les cases vertes | H1: =bi("Arrêts de la STEP en ","Ausserbetriebnahme der ARA im ") & Jahr -> Arrêts de la STEP en 2015
A2: =bi("Population du bassin versant (habitants)","Bevölkerung des Einzugsgebietes (Einwohner)") -> Population du bassin versant (habitants) | F2: =bi("(EH)","(EW)") -> (EH) | H2: =bi("début","Anfang") -> début | I2: =bi("fin","Ende") -> fin | J2: =bi("cause","Grund") -> cause
B3: =bi("Population résidente","Wohnbevölkerung") -> Population résidente | D3: =bi("Population saisonnière","Fremdbetten") -> Population saisonnière | F3: =bi("Industries","Industrien") -> Industries
A4: =bi("Communes","Gemeinden") -> Communes | B4: =bi("raccordée","angeschlossen") -> raccordée | C4: =bi("assain. indiv.","Individ. San.") -> assain. indiv. | D4: =bi("raccordée","angeschlossen") -> raccordée | E4: =bi("assain. indiv.","Individ. San.") -> assain. indiv. | F4: =bi("raccordées","angeschlossen") -> raccordées
H10: =bi("Production et destination des déchets en " & Jahr,"Abfallproduktion und Entsorgungswege im " & Jahr) -> Production et destination des déchets en 2015
H11: =bi("Type de déchet","Abfallart :") -> Type de déchet | J11: =bi("Sables","Sandfanggut") -> Sables | K11: =bi("Refus de dégrilleur et tamiseur","Rechen- bzw. Siebgutanfall") -> Refus de dégrilleur et tamiseur | L11: =bi("Boues","Klärschlamm") -> Boues | M11: =bi("autres","Anderes") -> autres
H14: =bi("Quantité annuelle (t brut)","Jährliche Menge (t bruto)") -> Quantité annuelle (t brut) | L14: =analyses!CT382 -> 0
H15: =bi("Quantité annuelle (t MS)","Jährliche Menge (t TS)") -> Quantité annuelle (t MS) | L15: =analyses!CV382-C73 -> 0
H16: =bi("Teneur en MO % (sables)","Glühverlust %GV (Sand)") -> Teneur en MO % (sables)
H17: =bi("Sables lavés ? (Oui/Non)","Sand gewaschen ? (Ja/Nein)") -> Sables lavés ? (Oui/Non)
H18: =bi("Type de destination : (mettre une croix en face de la destination)","Entsorgungsweg : (betreffendes Feld ankreuzen)") -> Type de destination : (mettre une croix en face de la destination)
A19: =bi("Principales entreprises raccordées","Wichtigste angeschlossenen Industrien") -> Principales entreprises raccordées | H19: =bi("Incinération","Verbrennung") -> Incinération
A20: =bi("Nom","Name") -> Nom | C20: =bi("Activité","Aktivität") -> Activité | F20: =bi("(EH)","(EW)") -> (EH) | H20: =bi("compostage","Kompostierung") -> compostage
H21: =bi("décharge bioactive","Reaktordeponie") -> décharge bioactive
H22: =bi("décharge inerte","Inertstoffdeponie") -> décharge inerte
H23: =bi("agriculture","Landwirtschaft") -> agriculture
H24: =bi("autre (à spécifier)","Anderw. (bezeichnen)") -> autre (à spécifier)
H25: =bi("Lieu d'élimination (nom)","Entsorgungsort (Name)") -> Lieu d'élimination (nom)
H28: =bi("Evaluation des déversement (m3) d'eaux usées au milieu naturel en " & Jahr,"Bewertung der Entlastungen (m3) in den Vorfluter im " & Jahr) -> Evaluation des déversement (m3) d'eaux usées au milieu naturel en 2015
I29: =bi("DO","Regenüb.") -> DO | J29: =bi("BEP","Regenkl.b.") -> BEP | K29: =analyses!E4 -> Q dévié entrée STEP | L29: =analyses!G4 -> Q dévié sortie primaire
A30: =bi("Travaux effectués sur le réseau en " & Jahr,"Ausgeführte Arbeiten auf dem Netz im " &basis!$G$3) -> Travaux effectués sur le réseau en 2015 | H30: =bi("janv","Jan") -> janv | K30: =SUMIF(analyses!$B9:$B375,1,analyses!E9:E375) -> 0 | L30: =SUMIF(analyses!$B9:$B375,1,analyses!G9:G375) -> 0
A31: =bi("Descriptions :","Beschreibung :") -> Descriptions : | H31: =bi("fév","Feb") -> fév | K31: =SUMIF(analyses!$B9:$B375,2,analyses!E9:E375) -> 0 | L31: =SUMIF(analyses!$B9:$B375,2,analyses!G9:G375) -> 0
H32: =bi("mars","März") -> mars | K32: =SUMIF(analyses!$B9:$B375,3,analyses!E9:E375) -> 0 | L32: =SUMIF(analyses!$B9:$B375,3,analyses!G9:G375) -> 0
H33: =bi("avril","Apr") -> avril | K33: =SUMIF(analyses!$B9:$B375,4,analyses!E9:E375) -> 0 | L33: =SUMIF(analyses!$B9:$B375,4,analyses!G9:G375) -> 0
H34: =bi("mai","Mai") -> mai | K34: =SUMIF(analyses!$B9:$B375,5,analyses!E9:E375) -> 0 | L34: =SUMIF(analyses!$B9:$B375,5,analyses!G9:G375) -> 0
H35: =bi("juin","Juni") -> juin | K35: =SUMIF(analyses!$B9:$B375,6,analyses!E9:E375) -> 0 | L35: =SUMIF(analyses!$B9:$B375,6,analyses!G9:G375) -> 0
H36: =bi("juil","Juli") -> juil | K36: =SUMIF(analyses!$B9:$B375,7,analyses!E9:E375) -> 0 | L36: =SUMIF(analyses!$B9:$B375,7,analyses!G9:G375) -> 0
H37: =bi("août","Aug") -> août | K37: =SUMIF(analyses!$B9:$B375,8,analyses!E9:E375) -> 0 | L37: =SUMIF(analyses!$B9:$B375,8,analyses!G9:G375) -> 0
H38: =bi("sept","Sept") -> sept | K38: =SUMIF(analyses!$B9:$B375,9,analyses!E9:E375) -> 0 | L38: =SUMIF(analyses!$B9:$B375,9,analyses!G9:G375) -> 0
H39: =bi("oct","Okt") -> oct | K39: =SUMIF(analyses!$B9:$B375,10,analyses!E9:E375) -> 0 | L39: =SUMIF(analyses!$B9:$B375,10,analyses!G9:G375) -> 0
H40: =bi("nov","Nov") -> nov | K40: =SUMIF(analyses!$B9:$B375,11,analyses!E9:E375) -> 0 | L40: =SUMIF(analyses!$B9:$B375,11,analyses!G9:G375) -> 0
H41: =bi("déc","Dez") -> déc | K41: =SUMIF(analyses!$B9:$B375,12,analyses!E9:E375) -> 0 | L41: =SUMIF(analyses!$B9:$B375,12,analyses!G9:G375) -> 0
A42: =bi("Travaux programmés sur le réseau en " & Jahr+1,"Vorgesehene Arbeiten auf dem Netz im " & basis!$G$3+1) -> Travaux programmés sur le réseau en 2016 | H42: =bi("Total année","Total Jahr") -> Total année | I42: =SUM(I30:I41) -> 0 | J42: =SUM(J30:J41) -> 0 | K42: =SUM(K30:K41) -> 0 | L42: =SUM(L30:L41) -> 0
A43: =bi("Descriptions :","Beschreibung :") -> Descriptions :
A57: =bi("Boues recues d'autres STEP:","Schlammannahme anderer ARA:") -> Boues recues d'autres STEP: | H57: =bi("Quantité de cosubstrats admis à la STEP:","Menge cosubstrat:") -> Quantité de cosubstrats admis à la STEP:
A58: =bi("Nom STEP","ARA-Name") -> Nom STEP | C58: =bi("quantité (t MS)","Menge (t TS)") -> quantité (t MS) | D58: =bi("A déduire des calculs (mettre une croix)?","Muss in den Berechnungen abgezogen werden (ankreuzen)?") -> A déduire des calculs (mettre une croix)? | H58: =bi("Provenance","Herkunft") -> Provenance | J58: =bi("quantité (t MS)","Menge (t rs)") -> quantité (t MS)
H73: Total | J73: =SUMPRODUCT((K60:M72="x")*J60:J72) -> 0

Sheet Energie+CHF
A1: =basis!A1 -> STEP Ausserbinn N° 6051/00 | E1: =bi("remplir les cases vertes","grüne Felder sind auszufüllen") -> remplir les cases vertes
A3: Energie | D3: =bi("Unité","Einheit") -> Unité | E3: =bi("Valeur","Wert") -> Valeur
B4: =bi("Courant consommé","Stromverbrauch total") -> Courant consommé | D4: kWh/a | E4: =analyses!AK382 -> 0 | F4: =bi("voir feuille 'analyses'","sh. Tabelle 'analyses'") -> voir feuille 'analyses'
B5: =bi("Courant consommé pour le traitement biologique (hormis les filtres, les ouvrages de relèvement des eaux, etc.)","Stromverbrauch der biologischen Stufe, ohne Filter, Hebewerke etc.") -> Courant consommé pour le traitement biologique (hormis les filtres, les ouvrages de relèvement des eaux, etc.) | D5: kWh/a | E5: =analyses!AL382 -> 0 | F5: =bi("voir feuille 'analyses'","sh. Tabelle 'analyses'") -> voir feuille 'analyses'
B6: =bi("Courant produit","Produzierte Strommenge") -> Courant produit | D6: kWh/a | E6: =analyses!AN382 -> 0 | F6: =bi("voir feuille 'analyses'","sh. Tabelle 'analyses'") -> voir feuille 'analyses'
B7: =bi("Mazout consommé pour produire de la chaleur","Heizölverbrauch für Wärmegewinnung") -> Mazout consommé pour produire de la chaleur | D7: l/a | E7: =analyses!AJ382 -> 0 | F7: voir feuille 'analyses'
B8: =bi("Gaz naturel consommé pour produire de la chaleur","Gasverbrauch für Wärmegewinnung") -> Gaz naturel consommé pour produire de la chaleur | D8: Nm³/a | E8: =analyses!AI382 -> 0 | F8: voir feuille 'analyses'
B9: =bi("Biogaz produit dans le digesteur","In der Faulung produzierte Gasmenge") -> Biogaz produit dans le digesteur | D9: Nm³/a | E9: =analyses!AM382 -> 0 | F9: voir feuille 'analyses'
B11: =bi("Quantité de biogaz consommé par installation consommatrice (couplage chaleur-force, chaudière, torchère, système d’injection dans le réseau, etc.); quantité estimée si nécessaire.","Gasmenge pro Verbraucher (z. B. BHKW, Heizkessel, Fackel, Einspeisung), wenn nötig geschätzt.") -> Quantité de biogaz consommé par installation consommatrice (couplage chaleur-force, chaudière, torchère, système d’injection dans le réseau, etc.); quantité estimée si nécessaire.
B12: =bi("Indiquer l'installation consommatrice: ↓","Verbraucher angeben: ↓") -> Indiquer l'installation consommatrice: ↓ | F12: =bi("Somme (contrôle)","Summe (Kontrol)") -> Somme (contrôle)
D13: Nm³/a | F13: =SUM(E13:E16) -> 0
D14: Nm³/a
D15: Nm³/a
D16: Nm³/a
B17: =bi("Chaleur produite","Produzierte Wärmemenge") -> Chaleur produite | D17: kWh/a
B18: =bi("Distribution de chaleur résiduelle","Abgabe von Überschusswärme") -> Distribution de chaleur résiduelle | D18: kWh/a
A20: =bi("Coagulant","Fällmittel") -> Coagulant | D20: =bi("Unité","Einheit") -> Unité | E20: =bi("Valeur","Wert") -> Valeur
B21: =bi("Type (liquide,poudre)","Art (flüssig, Pulver)") -> Type (liquide,poudre) | D21: -
B22: =bi("Substance (p. ex. FeCl3 40%, etc.)","Substanz (z. B. FeCl3 40%, usw.)") -> Substance (p. ex. FeCl3 40%, etc.) | D22: - | F22: =bi("Dosage","Dosierung") -> Dosage
B23: =bi("Quantité annuelle","Jahresmenge") -> Quantité annuelle | D23: t/a | F23: =E23*137.72/basis!G16*1000 ->  | G23: mg Fe/l
B24: =bi("Endroit précis du dosage (au besoin indiquer plusieurs endroits)","Wo wird dosiert (Wenn nötig mehrere Orte angeben)?") -> Endroit précis du dosage (au besoin indiquer plusieurs endroits) | D24: -
A26: =bi("Floculant N°1","Flockungsmittel Nr. 1") -> Floculant N°1 | D26: =bi("Unité","Einheit") -> Unité | E26: =bi("Valeur","Wert") -> Valeur
B27: =bi("Type (liquide,poudre)","Art (flüssig, Pulver)") -> Type (liquide,poudre) | D27: - | F27: 0.48 | G27: teneur en matière active
B28: =bi("Substance","Substanz") -> Substance | D28: -
B29: =bi("Quantité annuelle","Jahresmenge") -> Quantité annuelle | D29: t/a | F29: =E29*F27*1000/basis!L30 ->  | G29: kg/t MS (usuel 4 à 7 pour déhydratation)
B30: =bi("Endroit précis du dosage","Wo wird dosiert (Ort angeben)?") -> Endroit précis du dosage | D30: -
A32: =bi("Floculant N° 2","Flockungsmittel Nr. 2") -> Floculant N° 2 | D32: =bi("Unité","Einheit") -> Unité | E32: =bi("Valeur","Wert") -> Valeur
B33: =bi("Type (liquide,poudre)","Art (flüssig, Pulver)") -> Type (liquide,poudre) | D33: -
B34: =bi("Substance","Substanz") -> Substance | D34: -
B35: =bi("Quantité annuelle","Jahresmenge") -> Quantité annuelle | D35: t/a
B36: =bi("Endroit précis du dosage","Wo wird dosiert (Ort angeben)?") -> Endroit précis du dosage | D36: -
A38: =bi("Coûts d'exploitation et du capital STEP","Betriebs- und Kapitalkosten ARA") -> Coûts d'exploitation et du capital STEP | D38: =bi("Unité","Einheit") -> Unité
B39: =bi("frais de personnel","Personalkosten") -> frais de personnel | D39: CHF/a
B40: =bi("frais de matériel","Sachkosten") -> frais de matériel | D40: CHF/a | F40: =120*general!L14 -> 0 | G40: Contrôle: évaluation frais d'élimination des boues (CHF)
B41: =bi("intérêts","Zinskosten") -> intérêts | D41: CHF/a
B42: =bi("amortissement","Abschreibungskosten") -> amortissement | D42: CHF/a
B43: =bi("investissements bruts à la STEP","Brutto-Investitionen") -> investissements bruts à la STEP | D43: CHF/a
B44: =bi("valeur de remplacement de la STEP","Wiederbeschaffungswert ARA") -> valeur de remplacement de la STEP | D44: CHF

Sheet analyses
A1: =basis!A1 -> STEP Ausserbinn N° 6051/00 | AB1: =bi("Volume à modifier en cas de besoin (travail sur une seule file, etc.)","Volumen anpassen wenn nötig (Strasse ausserbetrieb, usw.)") -> Volume à modifier en cas de besoin (travail sur une seule file, etc.) | AH1: =bi("Calcul automatique","Automat. Berech.") -> Calcul automatique | AS1: =bi("Ne pas remplir depuis la colonne AR →","Nichts einfüllen ab Kolonne AR →") -> Ne pas remplir depuis la colonne AR → | BH1: =bi("calculs","Berechnungen") -> calculs | BI1: =bi("débits","Durchflüsse") -> débits | BP1: =bi("Mise de l'erreur pour graphiques (na())","Fehler für Graphiken (na())") -> Mise de l'erreur pour graphiques (na()) | DR1: $enlever N/A | DU1: =bi("débits","Durchflüsse") -> débits
BI2: =bi("Correction des débits selon choix du débimetre valide. Choix actuel: " & IF(debimetre_entreeSTEP,"Entrée STEP","Sortie STEP"),"Korrektur Durchfluss je nach Wahl gültige Durchflussmessung. Aktuelle Wahl: "& IF(debimetre_entreeSTEP,"ARA Zulauf","ARA Ablauf")) -> Correction des débits selon choix du débimetre valide. Choix actuel: Entrée STEP
E3: =bi("débits","Durchflüsse") -> débits | AS3: provenance_SPE | BH3: =AS3 -> provenance_SPE | BI3: =BH3 -> provenance_SPE | BJ3: provenance_SPE | BK3: provenance_SPE | BL3: provenance_SPE | BM3: provenance_SPE | BN3: provenance_SPE | BW3: si correction SPE: corriger la colonne "AS" | BX3: provenance_SPE | BY3: provenance_SPE | BZ3: provenance_SPE | CA3: provenance_SPE | CB3: provenance_SPE | CC3: provenance_SPE | CD3: provenance_SPE | CE3: provenance_SPE | CF3: si correction SPE: corriger la colonne "DG" ou "DH" | CG3: provenance_SPE | CH3: provenance_SPE | CI3: provenance_SPE | CJ3: provenance_SPE | CK3: provenance_SPE | CL3: provenance_SPE | CM3: provenance_SPE | CN3: provenance_SPE | CO3: provenance_SPE | CP3: provenance_SPE | CQ3: provenance_SPE | CR3: provenance_SPE | CS3: provenance_SPE | CT3: provenance_SPE | CU3: provenance_SPE | CV3: provenance_SPE | CW3: provenance_SPE | CX3: provenance_SPE | CY3: provenance_SPE | CZ3: provenance_SPE | DA3: provenance_SPE | DB3: provenance_SPE | DC3: provenance_SPE | DD3: provenance_SPE | DE3: provenance_SPE | DF3: si correction SPE: corriger la colonne "AS"
A4: Date | D4: =bi("Temp. eaux usées","Temp. Abwasser") -> Temp. eaux usées | E4: =bi("Q dévié entrée STEP","Q Bypass Zulauf ARA") -> Q dévié entrée STEP | F4: =bi("Q entrée STEP","Q Zulauf ARA") -> Q entrée STEP | G4: =bi("Q dévié sortie primaire","Q Bypass Ablauf Vorklärung") -> Q dévié sortie primaire | H4: =bi("Q sortie STEP (traité)","Q Ablauf ARA (behandelt)") -> Q sortie STEP (traité) | I4: =bi("Q min (entrée ou sortie STEP)","Q Min (Zu- oder Ablauf ARA)") -> Q min (entrée ou sortie STEP) | J4: =bi("Q max (entrée ou sortie STEP)","Q Max (Zu- oder Ablauf ARA)") -> Q max (entrée ou sortie STEP) | K4: =bi("Analyses eaux brutes (entrée STEP)","Analysen Rohabwasser (ARA Zulauf)") -> Analyses eaux brutes (entrée STEP) | Q4: =bi("Analyses eaux traitée (sortie STEP)","Analysen behandeltes Abwasser (ARA Ablauf)") -> Analyses eaux traitée (sortie STEP) | Z4: =bi("Production boues","Frischschlamm") -> Production boues | AB4: =bi("Age des boues biologiques","Belebtschlammalter") -> Age des boues biologiques | AF4: =bi("Elimination boues","Entwässerter Schlamm") -> Elimination boues | AI4: =bi("Energie achetée","bezogene Energie") -> Energie achetée | AK4: =bi("Electricité","Strom") -> Electricité | AM4: =bi("Energie produite","Erzeugte Energie") -> Energie produite | AO4: =bi("Energie vendue","Verkaufte Energie") -> Energie vendue | AP4: =bi("Pluviométrie","Niederschlag") -> Pluviométrie | AS4: =bi("Valeur corrigée = labo STEP / k","Korrektur =labo ARA / k") -> Valeur corrigée = labo STEP / k | BH4: =D4 -> Temp. eaux usées | BI4: =E4 -> Q dévié entrée STEP | BJ4: Q entrée STEP | BK4: Q dévié sortie primaire | BL4: Q sortie STEP (traité) | BM4: Q min (entrée ou sortie STEP) | BN4: Q max (entrée ou sortie STEP) | BP4: =D4 -> Temp. eaux usées | BQ4: =bi("Q dévié entrée STEP","Q Bypass Zulauf ARA") -> Q dévié entrée STEP | BR4: =bi("Q entrée STEP","Q Zulauf ARA") -> Q entrée STEP | BS4: =bi("Q dévié sortie primaire","Q Bypass Ablauf Vorklärung") -> Q dévié sortie primaire | BT4: =bi("Q sortie STEP","Q Ablauf ARA") -> Q sortie STEP | BU4: =bi("Q minimum (sortie STEP)","Q Minimum (Ablauf ARA)") -> Q minimum (sortie STEP) | BV4: =bi("Q maximum (sortie STEP)","Q Maximum (Ablauf ARA)") -> Q maximum (sortie STEP) | BW4: =bi("Entrée STEP","ARA Zulauf") -> Entrée STEP | CC4: =bi("Sortie STEP","ARA Ablauf") -> Sortie STEP | CL4: =bi("Production boues","Frischschlamm") -> Production boues | CO4: =bi("Age des boues biologiques","Belebtschlammalter") -> Age des boues biologiques | CT4: =bi("Elimination boues","Entwässerter Schlamm") -> Elimination boues | CW4: =bi("Energie achetée","bezogene Energie") -> Energie achetée | CY4: =bi("Electricité","Strom") -> Electricité | DA4: =bi("Energie produite","Erzeugte Energie") -> Energie produite | DC4: =bi("Energie vendue","Verkaufte Energie") -> Energie vendue | DD4: =bi("Pluviométrie","Niederschlag") -> Pluviométrie | DF4: =bi("DBO5 corrigé","BSB5 korrigiert") -> DBO5 corrigé | DG4: =bi("NH4","NH4") -> NH4 | DH4: NH4 | DI4: =bi("Charges en entrée STEP en EH, sans Bypass","Zulauffrachten ARA in EW, ohne Bypässe") -> Charges en entrée STEP en EH, sans Bypass | DS4: =BQ4 -> Q dévié entrée STEP | DT4: =BR4 -> Q entrée STEP | DU4: Q Bypass Ablauf Vorklärung | DV4: Q Ablauf ARA | DW4: Q Minimum (Ablauf ARA) | DX4: Q Maximum (Ablauf ARA) | DY4: =BW4 -> Entrée STEP | EE4: =CC4 -> Sortie STEP | EN4: =bi("Production boues","Frischschlamm") -> Production boues | EQ4: =bi("Age des boues biologiques","Belebtschlammalter") -> Age des boues biologiques | EV4: =bi("Elimination boues","Entwässerter Schlamm") -> Elimination boues | EY4: =bi("Energie achetée","bezogene Energie") -> Energie achetée | FA4: =bi("Electricité","Strom") -> Electricité | FC4: =bi("Energie produite","Erzeugte Energie") -> Energie produite | FE4: =bi("Energie vendue","Verkaufte Energie") -> Energie vendue | FF4: =bi("Pluviométrie","Niederschlag") -> Pluviométrie | FH4: =bi("DBO5 corrigé","BSB5 korrigiert") -> DBO5 corrigé
Z5: =bi("fraîches (déc. prim.)","Anfall (VKB)") -> fraîches (déc. prim.) | AB5: =bi("Volume","Volumen") -> Volume | AC5: =bi("Concentration","Konzentration") -> Concentration | AD5: =bi("Extraction boues bio","Überschussschlamm") -> Extraction boues bio | AF5: =bi("déshydratées","Menge") -> déshydratées | AI5: =bi("Gaz naturel","Erdgaz") -> Gaz naturel | AJ5: =bi("Mazout","Heizöl") -> Mazout | AK5: =bi("Electricité externe achetée (global)","Extern bezogener Strom (total)") -> Electricité externe achetée (global) | AL5: =bi("Electricité consommé par soufflantes","Verbrauchter Strom für Gebläse") -> Electricité consommé par soufflantes | AP5: =bi("l/m2.j","l/m2.d") -> l/m2.j | AQ5: =bi("Heures de","Arbeit") -> Heures de | AS5: =bi("DBO5 corrigé","BSB5 korrigiert") -> DBO5 corrigé | AT5: =bi("facteur de correction","Korrekturfaktor") -> facteur de correction | AV5: =bi("Champs pour transformer","Umrechnung") -> Champs pour transformer | AZ5: =bi("Norme de rejet","Grenzwert") -> Norme de rejet | BI5: =BI4&" "&BI6&" "&BI8 -> Q dévié entrée STEP m3/j | BJ5: =BJ4&" "&BJ6&" "&BJ8 -> Q entrée STEP m3/j | BK5: Q dévié sortie primaire m3/j | BL5: Q sortie STEP (traité) m3/j | BM5: Q min (entrée ou sortie STEP) l/s | BN5: Q max (entrée ou sortie STEP) l/s | BQ5: =BQ4&" "&BQ6&" "&BQ8 -> Q dévié entrée STEP m3/j | BR5: Q entrée STEP m3/j | BS5: Q dévié sortie primaire m3/j | BT5: Q sortie STEP m3/j | BU5: Q minimum (sortie STEP) l/s | BV5: Q maximum (sortie STEP) l/s | BW5: =$BW$4&" "&BW6&" "&BW8 -> Entrée STEP DBO5 mg/l | BX5: Entrée STEP DCOE mg/l | BY5: Entrée STEP COTE mg/l | BZ5: Entrée STEP NH4 mg/l | CA5: Entrée STEP Ntot mg/l | CB5: Entrée STEP Ptot mg/l | CC5: =$CC$4&" "&CC6&" "&CC8 -> Sortie STEP DBO5 mg/l | CD5: Sortie STEP DCO mg/l | CE5: Sortie STEP COD mg/l | CF5: =$CC$4&" "&CF6&" "&CF8 -> Sortie STEP NH4 mg/l | CG5: Sortie STEP NO2 mg/l | CH5: Sortie STEP NO3 mg/l | CI5: Sortie STEP PO4 mg/l | CJ5: Sortie STEP Ptot mg/l | CK5: Sortie STEP MES mg/l | CL5: =bi("fraîches (déc. prim.)","Anfall (VKB)") -> fraîches (déc. prim.) | CO5: =bi("Volume","Volumen") -> Volume | CP5: =bi("Concentration","TS-Konz.") -> Concentration | CQ5: =bi("Extraction boues bio","Überschussschlamm") -> Extraction boues bio | CT5: =bi("déshydratées","Menge") -> déshydratées | CW5: =bi("Gaz naturel","Erdgaz") -> Gaz naturel | CX5: =bi("Mazout","Heizöl") -> Mazout | CY5: =bi("Electricité externe achetée (global)","Extern bezogener Strom (total)") -> Electricité externe achetée (global) | CZ5: =bi("Electricité consommé par soufflantes","Verbrauchter Strom für Gebläse") -> Electricité consommé par soufflantes | DA5: =bi("Biogaz produit","Erzeugtes Biogas") -> Biogaz produit | DB5: =bi("Electricité produite","Erzeugter Strom aus Biogas") -> Electricité produite | DD5: =DD4&" "&DD8 -> Pluviométrie mm/j | DE5: =bi("Heures de","Arbeit") -> Heures de | DG5: (Graphik zeigt nur Werte bei Temp <=10°C und Falls der NH4 analysiert wurde) | DH5: (Graphik zeigt nur Werte bei Temp >10°C oder Falls nicht gemessen) | DI5: =bi("DBO5","BSB5") -> DBO5 | DJ5: =bi("COTE","TOC") -> COTE | DK5: NH4-N | DL5: =bi("Ptot","Pges") -> Ptot | DS5: =DS4&" "&DS6&" "&DS8 -> Q dévié entrée STEP m3/j | DT5: =DT4&" "&DT6&" "&DT8 -> Q entrée STEP m3/j | DU5: Q Bypass Ablauf Vorklärung m3/Tag | DV5: Q Ablauf ARA m3/Tag | DW5: Q Minimum (Ablauf ARA) l/s | DX5: Q Maximum (Ablauf ARA) l/s | DY5: =$BW$4&" "&DY6&" "&DY8 -> Entrée STEP DBO5 mg/l | DZ5: Entrée STEP DCOE mg/l | EA5: Entrée STEP COTE mg/l | EB5: Entrée STEP NH4 mg/l | EC5: Entrée STEP Ntot mg/l | ED5: Entrée STEP Ptot mg/l | EE5: =$CC$4&" "&EE6&" "&EE8 -> Sortie STEP DBO5 mg/l | EF5: =$CC$4&" "&EF6&" "&EF8 -> Sortie STEP DCO mg/l | EG5: =$CC$4&" "&EG6&" "&EG8 -> Sortie STEP COD mg/l | EH5: =$CC$4&" "&EH6&" "&EH8&" >10°C" -> Sortie STEP NH4 mg/l >10°C | EI5: =$CC$4&" "&EI6&" "&EI8 -> Sortie STEP NO2 mg/l | EJ5: =$CC$4&" "&EJ6&" "&EJ8 -> Sortie STEP NO3 mg/l | EK5: =$CC$4&" "&EK6&" "&EK8 -> Sortie STEP PO4 mg/l | EL5: =$CC$4&" "&EL6&" "&EL8 -> Sortie STEP Ptot mg/l | EM5: =$CC$4&" "&EM6&" "&EM8 -> Sortie STEP MES mg/l | EN5: =bi("fraîches (déc. prim.)","Anfall (VKB)") -> fraîches (déc. prim.) | EQ5: =bi("Volume","Volumen") -> Volume | ER5: =bi("Concentration","Konzentration") -> Concentration | ES5: =bi("Extraction boues bio","Überschussschlamm") -> Extraction boues bio | EV5: =bi("déshydratées","Menge") -> déshydratées | EY5: =bi("Gaz naturel","Erdgaz") -> Gaz naturel | EZ5: =bi("Mazout","Heizöl") -> Mazout | FA5: =bi("Electricité externe achetée (global)","Extern bezogener Strom (total)") -> Electricité externe achetée (global) | FB5: =bi("Electricité consommé par soufflantes","Verbrauchter Strom für Gebläse") -> Electricité consommé par soufflantes | FC5: =bi("Biogaz produit","Erzeugtes Biogas") -> Biogaz produit | FD5: =bi("Electricité produite","Erzeugter Strom aus Biogas") -> Electricité produite | FF5: =FF4&" "&FF8 -> Pluviométrie mm/j | FG5: =bi("Heures de","Arbeit") -> Heures de
K6: =bi("DBO5","BSB5") -> DBO5 | L6: =bi("DCO","CSB") -> DCO | M6: =bi("COT","TOC") -> COT | N6: NH4 | O6: =bi("Ntot","Ntot") -> Ntot | P6: =bi("Ptot","Pges") -> Ptot | Q6: =bi("DBO5","BSB5") -> DBO5 | R6: =bi("DCO","CSB") -> DCO | S6: =bi("COD","DOC") -> COD | T6: =bi("NH4","NH4") -> NH4 | U6: =bi("NO2","NO2") -> NO2 | V6: =bi("NO3","NO3") -> NO3 | W6: =bi("PO4","PO4") -> PO4 | X6: =bi("Ptot","Pges") -> Ptot | Y6: =bi("MES","GUS") -> MES | Z6: =bi("Volume","Volumen") -> Volume | AA6: =bi("concentration","Konzentration") -> concentration | AB6: =bi("Bassin-bio","bio-Becken") -> Bassin-bio | AC6: =bi("Bassin-bio","bio-Becken") -> Bassin-bio | AD6: =bi("Volume","Volumen") -> Volume | AE6: =bi("concentration","Konzentration") -> concentration | AF6: =bi("quantité brut","Menge Brutto") -> quantité brut | AG6: =bi("siccité","TS Gehalt") -> siccité | AH6: =bi("quantité MS","Menge TS") -> quantité MS | AM6: Biogaz | AN6: =bi("Electricité","Strom") -> Electricité | AO6: =bi("Electricité","Strom") -> Electricité | AP6: =bi("ou","oder") -> ou | AQ6: =bi("travail","Stunden") -> travail | AV6: =bi("les débits mensuels","Monat-->Tag") -> les débits mensuels | AX6: =bi("en journaliers","") -> en journaliers | AZ6: =basis!A27 -> DBO5 | BA6: =basis!A28 -> DCO | BB6: COT/DOC | BC6: NTK/NH4S | BD6: =basis!A33 -> NO2 | BE6: =basis!A35 -> Ptot | BF6: =basis!A36 -> MES | BW6: =bi("DBO5","BSB5") -> DBO5 | BX6: =bi("DCOE","CSB") -> DCOE | BY6: =bi("COTE","TOC") -> COTE | BZ6: NH4 | CA6: =bi("Ntot","Ntot") -> Ntot | CB6: =bi("Ptot","Pges") -> Ptot | CC6: =bi("DBO5","BSB5") -> DBO5 | CD6: =bi("DCO","CSB") -> DCO | CE6: =bi("COD","DOC") -> COD | CF6: =bi("NH4","NH4") -> NH4 | CG6: =bi("NO2","NO2") -> NO2 | CH6: =bi("NO3","NO3") -> NO3 | CI6: =bi("PO4","PO4") -> PO4 | CJ6: =bi("Ptot","Pges") -> Ptot | CK6: =bi("MES","GUS") -> MES | CL6: =bi("Volume","Volumen") -> Volume | CM6: =bi("concentration","Konzentration") -> concentration | CN6: =CL4&" "&CL5&" "&CN8 -> Production boues fraîches (déc. prim.) kg MS/d | CO6: =bi("Bassin-bio","Belebungsbecken") -> Bassin-bio | CP6: =bi("Bassin-bio","Belebungsbecken") -> Bassin-bio | CQ6: =bi("Volume","Volumen") -> Volume | CR6: =bi("concentration","Konzentration") -> concentration | CS6: =bi("Age de boues (d)","Schlammalter (d)") -> Age de boues (d) | CT6: =bi("tonnes","Tonnen") -> tonnes | CU6: =bi("siccité","TS Gehalt") -> siccité | CV6: =bi("Quantité MS","Menge TS") -> Quantité MS | DC6: =bi("Electricité","Strom") -> Electricité | DD6: =bi("l/m2.j ou","l/m2.d oder") -> l/m2.j ou | DE6: =bi("travail","Stunden") -> travail | DY6: =bi("DBO5","BSB5") -> DBO5 | DZ6: =bi("DCOE","CSB") -> DCOE | EA6: =bi("COTE","TOC") -> COTE | EB6: NH4 | EC6: =bi("Ntot","Ntot") -> Ntot | ED6: =bi("Ptot","Pges") -> Ptot | EE6: =bi("DBO5","BSB5") -> DBO5 | EF6: =bi("DCO","CSB") -> DCO | EG6: =bi("COD","DOC") -> COD | EH6: =bi("NH4","NH4") -> NH4 | EI6: =bi("NO2","NO2") -> NO2 | EJ6: =bi("NO3","NO3") -> NO3 | EK6: =bi("PO4","PO4") -> PO4 | EL6: =bi("Ptot","Pges") -> Ptot | EM6: =bi("MES","GUS") -> MES | EN6: =bi("Volume","Volumen") -> Volume | EO6: =bi("concentration","Konzentration") -> concentration | EP6: =EN4&" "&EN5&" "&EP8 -> Production boues fraîches (déc. prim.) kg MS/d | EQ6: =bi("Bassin-bio","bio-Becken") -> Bassin-bio | ER6: =bi("Bassin-bio","bio-Becken") -> Bassin-bio | ES6: =bi("Volume","Volumen") -> Volume | ET6: =bi("concentration","Konzentration") -> concentration | EU6: =bi("Age de boues (d)","Schlammalter (d)") -> Age de boues (d) | EV6: =bi("tonnes","Tonnen") -> tonnes | EW6: =bi("siccité","TS Gehalt") -> siccité | EX6: =bi("Quantité MS","Menge TS") -> Quantité MS | FE6: =bi("Electricité","Strom") -> Electricité | FF6: =bi("l/m2.j ou","l/m2.d oder") -> l/m2.j ou | FG6: =bi("travail","Stunden") -> travail
D7: D_TP | E7: D_QDEVE | F7: D_QTRAI | G7: D_QDEVDP | H7: D_QTRAI | I7: D_QMIN | J7: D_QMAX | K7: E_DBO5 | L7: E_DCO | M7: E_COT | N7: E_NH4 | O7: E_NTOT | P7: E_PTOT | Q7: E_DBO5 | R7: E_DCO | S7: E_COD | T7: E_NH4 | U7: E_NO2 | V7: E_NO3 | W7: E_PORTH | X7: E_PTOT | Y7: E_MES | Z7: X_BF_Q | AA7: X_BFCONC | AB7: X_BA_VOL | AC7: X_BACONC | AD7: X_BX_Q | AE7: X_BXCONC | AF7: X_BDESBR | AG7: X_BDESCO | AH7: X_BDESMS | AI7: X_GAZ_Q | AJ7: X_FUEL_Q | AK7: X_ELTOTQ | AL7: X_ELBIOQ | AM7: X_BIOGAS | AN7: X_ELPRD | AO7: X_ELVEND | AP7: D_PLUIE | AQ7: X_HRES | BH7: D_TP | BI7: D_QDEVE | BJ7: D_QTRAI | BK7: D_QDEVDP | BL7: D_QTRAI | BM7: D_QMIN | BN7: D_QMAX | BP7: D_TP | BQ7: D_QDEVE | BR7: D_QTRAI | BS7: D_QDEVDP | BT7: D_QTRAI | BU7: D_QMIN | BV7: D_QMAX | BW7: E_DBO5 | BX7: E_DCO | BY7: E_COT | BZ7: E_NH4 | CA7: E_NTOT | CB7: E_PTOT | CC7: E_DBO5 | CD7: E_DCO | CE7: E_COD | CF7: E_NH4 | CG7: E_NO2 | CH7: E_NO3 | CI7: E_PORTH | CJ7: E_PTOT | CK7: E_MES | CL7: X_BF_Q | CM7: X_BFCONC | CO7: X_BA_VOL | CP7: X_BACONC | CQ7: X_BX_Q | CR7: X_BXCONC | CT7: X_BDESBR | CU7: X_BDESCO | CV7: X_BDESMS | CW7: X_GAZ_Q | CX7: X_FUEL_Q | CY7: X_ELTOTQ | CZ7: X_ELBIOQ | DA7: X_BIOGAS | DB7: X_ELPRD | DC7: X_ELVEND | DD7: D_PLUIE | DE7: X_HRES | DF7: mg/l | DS7: D_QDEVE | DT7: D_QTRAI | DU7: D_QDEVDP | DV7: D_QTRAI | DW7: D_QMIN | DX7: D_QMAX | DY7: E_DBO5 | DZ7: E_DCO | EA7: E_COT | EB7: E_NH4 | EC7: E_NTOT | ED7: E_PTOT | EE7: E_DBO5 | EF7: E_DCO | EG7: E_COD | EH7: E_NH4 | EI7: E_NO2 | EJ7: E_NO3 | EK7: E_PORTH | EL7: E_PTOT | EM7: E_MES | EN7: X_BF_Q | EO7: X_BFCONC | EQ7: X_BA_VOL | ER7: X_BACONC | ES7: X_BX_Q | ET7: X_BXCONC | EV7: X_BDESBR | EW7: X_BDESCO | EX7: X_BDESMS | EY7: X_GAZ_Q | EZ7: X_FUEL_Q | FA7: X_ELTOTQ | FB7: X_ELBIOQ | FC7: X_BIOGAS | FD7: X_ELPRD | FE7: X_ELVEND | FF7: D_PLUIE | FG7: X_HRES | FH7: mg/l
A8: Date | D8: °C | E8: =bi("m3/j","m3/Tag") -> m3/j | F8: =bi("m3/j","m3/Tag") -> m3/j | G8: =bi("m3/j","m3/Tag") -> m3/j | H8: =bi("m3/j","m3/Tag") -> m3/j | I8: l/s | J8: l/s | K8: mg/l | L8: mg/l | M8: mg/l | N8: mg/l | O8: mg/l | P8: mg/l | Q8: mg/l | R8: mg/l | S8: mg/l | T8: mg/l | U8: mg/l | V8: mg/l | W8: mg/l | X8: mg/l | Y8: mg/l | Z8: =bi("m3/j","m3/Tag") -> m3/j | AA8: =bi("g MS/l","g TS/l") -> g MS/l | AB8: m3 | AC8: =bi("g MS/l","g TS/l") -> g MS/l | AD8: =bi("m3/j","m3/Tag") -> m3/j | AE8: =bi("g MS/l","g TS/l") -> g MS/l | AF8: =bi("t brut","t Brutto") -> t brut | AG8: =bi("% MS","% TS") -> % MS | AH8: =bi("t MS","t TS") -> t MS | AI8: =bi("m3/jour","m3/Tag") -> m3/jour | AJ8: =bi("l/jour","l/Tag") -> l/jour | AK8: =bi("kWh/j","kWh/Tag") -> kWh/j | AL8: =bi("kWh/j","kWh/Tag") -> kWh/j | AM8: =bi("m3/jour","m3/Tag") -> m3/jour | AN8: =bi("kWh/j","kWh/Tag") -> kWh/j | AO8: =bi("kWh/j","kWh/Tag") -> kWh/j | AP8: =bi("mm/j","mm/d") -> mm/j | AQ8: h | AS8: mg/l | AT8: k (-) | AW8: =bi("Copie valeur","Kopie") -> Copie valeur | BH8: oC | BI8: =bi("m3/j","m3/Tag") -> m3/j | BJ8: =bi("m3/j","m3/Tag") -> m3/j | BK8: =bi("m3/j","m3/Tag") -> m3/j | BL8: =bi("m3/j","m3/Tag") -> m3/j | BM8: l/s | BN8: l/s | BP8: =D8 -> °C | BQ8: =bi("m3/j","m3/Tag") -> m3/j | BR8: =bi("m3/j","m3/Tag") -> m3/j | BS8: =bi("m3/j","m3/Tag") -> m3/j | BT8: =bi("m3/j","m3/Tag") -> m3/j | BU8: l/s | BV8: l/s | BW8: mg/l | BX8: mg/l | BY8: mg/l | BZ8: mg/l | CA8: mg/l | CB8: mg/l | CC8: mg/l | CD8: mg/l | CE8: mg/l | CF8: mg/l | CG8: mg/l | CH8: mg/l | CI8: mg/l | CJ8: mg/l | CK8: mg/l | CL8: =bi("m3/j","m3/Tag") -> m3/j | CM8: =bi("g MS/l","g TS/l") -> g MS/l | CN8: =bi("kg MS/d","kg TS/d") -> kg MS/d | CO8: m3 | CP8: =bi("g MS/l","g TS/l") -> g MS/l | CQ8: =bi("m3/j","m3/Tag") -> m3/j | CR8: =bi("g MS/l","g TS/l") -> g MS/l | CT8: =bi("brut","brutto") -> brut | CU8: =bi("% MS","% TS") -> % MS | CV8: =bi("t MS","t TS") -> t MS | CW8: =bi("m3/jour","m3/Tag") -> m3/jour | CX8: =bi("l/jour","l/Tag") -> l/jour | CY8: =bi("kWh/j","kWh/Tag") -> kWh/j | CZ8: =bi("kWh/j","kWh/Tag") -> kWh/j | DA8: =bi("m3/jour","m3/Tag") -> m3/jour | DB8: =bi("kWh/j","kWh/Tag") -> kWh/j | DC8: =bi("kWh/j","kWh/Tag") -> kWh/j | DD8: =bi("mm/j","mm/d") -> mm/j | DE8: h | DS8: =bi("m3/j","m3/Tag") -> m3/j | DT8: =bi("m3/j","m3/Tag") -> m3/j | DU8: m3/Tag | DV8: m3/Tag | DW8: l/s | DX8: l/s | DY8: mg/l | DZ8: mg/l | EA8: mg/l | EB8: mg/l | EC8: mg/l | ED8: mg/l | EE8: mg/l | EF8: mg/l | EG8: mg/l | EH8: mg/l | EI8: mg/l | EJ8: mg/l | EK8: mg/l | EL8: mg/l | EM8: mg/l | EN8: =bi("m3/j","m3/Tag") -> m3/j | EO8: =bi("g MS/l","g TS/l") -> g MS/l | EP8: =bi("kg MS/d","kg TS/d") -> kg MS/d | EQ8: m3 | ER8: =bi("g MS/l","g TS/l") -> g MS/l | ES8: =bi("m3/j","m3/Tag") -> m3/j | ET8: =bi("g MS/l","g TS/l") -> g MS/l | EV8: =bi("brut","brutto") -> brut | EW8: =bi("% MS","% TS") -> % MS | EX8: =bi("t MS","t TS") -> t MS | EY8: =bi("m3/jour","m3/Tag") -> m3/jour | EZ8: =bi("l/jour","l/Tag") -> l/jour | FA8: =bi("kWh/j","kWh/Tag") -> kWh/j | FB8: =bi("kWh/j","kWh/Tag") -> kWh/j | FC8: =bi("m3/jour","m3/Tag") -> m3/jour | FD8: =bi("kWh/j","kWh/Tag") -> kWh/j | FE8: =bi("kWh/j","kWh/Tag") -> kWh/j | FF8: =bi("mm/j","mm/d") -> mm/j | FG8: h
A9: =DATE(Jahr,1,1) -> 2015-01-01 | B9: =MONTH(A9) -> 1 | C9: =WEEKDAY(A9) -> 1900-01-05 | AB9: =Volume_bassin_biologique ->  | AH9: =IF(OR(AF9="",AG9=""),"",AF9*AG9) ->  | AS9: =IF(K9="","",IF(ISNA(nonespace(K9)),"",IF(K9="","",correction_DBO5(select_Methode_BSB5,K9)))) ->  | AT9: =IF(ISERROR(K9/AS9),"",K9/AS9) ->  | AX9: =AX10 -> 231.9677419 | AZ9: =IF(basis!$F27="",NA(),basis!$F27) -> 20 | BA9: =IF(basis!$F28="",NA(),basis!$F28) ->  | BB9: =IF(basis!$F29="",NA(),basis!$F29) ->  | BC9: =IF(basis!$F32="",NA(),basis!$F32) ->  | BD9: =IF(basis!$F33="",NA(),basis!$F33) -> 0.3 | BE9: =IF(basis!$F35="",NA(),basis!$F35) ->  | BF9: =IF(basis!$F36="",NA(),basis!$F36) -> 20 | BH9: =nonespace_nonNA(D9) ->  | BI9: =IF(E9="",0,E9) -> 0 | BJ9: =calcul_debit_entree(debimetre_entreeSTEP,F9,G9,H9) -> 0 | BK9: =IF(G9="",0,G9) -> 0 | BL9: =calcul_debit_sortie(debimetre_entreeSTEP,F9,G9,H9) -> 0 | BM9: =IF(I9="","",I9) ->  | BP9: =nonespace(BH9) ->  | BQ9: =IF(BI9="",NA(),BI9) -> 0 | BR9: =IF(BJ9="",NA(),BJ9) -> 0 | BS9: =IF(BK9="",NA(),BK9) -> 0 | BT9: =IF(BL9="",NA(),BL9) -> 0 | BU9: =IF(BM9="",NA(),BM9) ->  | BV9: =IF(BN9="",NA(),BN9) ->  | BW9: =nonespace(AS9) ->  | BX9: =nonespace(L9) ->  | BY9: =nonespace(M9) ->  | BZ9: =calcul_NH4(N9,O9) ->  | CA9: =calcul_Ntot(N9,O9) ->  | CB9: =nonespace(P9) ->  | CC9: =nonespace(Q9) ->  | CD9: =nonespace(R9) ->  | CE9: =nonespace(S9) ->  | CF9: =nonespace(T9) ->  | CG9: =nonespace(U9) ->  | CH9: =nonespace(V9) ->  | CI9: =nonespace(W9) ->  | CJ9: =nonespace(X9) ->  | CK9: =nonespace(Y9) ->  | CL9: =nonespace(Z9) ->  | CM9: =nonespace(AA9) ->  | CN9: =CL9*CM9 ->  | CO9: =nonespace(AB9) ->  | CP9: =nonespace(AC9) ->  | CQ9: =nonespace(AD9) ->  | CR9: =nonespace(AE9) ->  | CS9: =(CO9*analyses!CP9)/((analyses!BL9*analyses!CK9/1000)+(analyses!CQ9*analyses!CR9)) ->  | CT9: =nonespace(AF9) ->  | CU9: =nonespace(AG9) ->  | CV9: =nonespace(AH9) ->  | CW9: =nonespace(AI9) ->  | CX9: =nonespace(AJ9) ->  | CY9: =nonespace(AK9) ->  | CZ9: =nonespace(AL9) ->  | DA9: =nonespace(AM9) ->  | DB9: =nonespace(AN9) ->  | DC9: =nonespace(AO9) ->  | DD9: =nonespace(AP9) ->  | DE9: =nonespace(AQ9) ->  | DF9: =IF(OR(AS9="",AS9=0),NA(),AS9) ->  | DG9: =Ammonium_zeigen_unter_10_Grad(CF9,BH9) ->  | DH9: =Ammonium_zeigen_ueber_10_Grad(CF9,BH9) ->  | DI9: =K9*F9/basis!$D$27 -> 0 | DJ9: =M9*F9/basis!$D$29 -> 0 | DK9: =N9*F9/basis!$D$32 -> 0 | DL9: =F9*P9/basis!$D$35 -> 0 | DS9: =IF(ISNA(BQ9),"",BQ9) -> 0 | DT9: =IF(ISNA(BR9),"",BR9) -> 0 | DU9: =IF(ISNA(BS9),"",BS9) -> 0 | DV9: =IF(ISNA(BT9),"",BT9) -> 0 | DW9: =IF(ISNA(BU9),"",BU9) ->  | DX9: =IF(ISNA(BV9),"",BV9) ->  | DY9: =IF(ISNA(BW9),"",BW9) ->  | DZ9: =IF(ISNA(BX9),"",BX9) ->  | EA9: =IF(ISNA(BY9),"",BY9) ->  | EB9: =IF(ISNA(BZ9),"",BZ9) ->  | EC9: =IF(ISNA(CA9),"",CA9) ->  | ED9: =IF(ISNA(CB9),"",CB9) ->  | EE9: =IF(ISNA(CC9),"",CC9) ->  | EF9: =IF(ISNA(CD9),"",CD9) ->  | EG9: =IF(ISNA(CE9),"",CE9) ->  | EH9: =IF(ISNA(CF9),"",CF9) ->  | EI9: =IF(ISNA(CG9),"",CG9) ->  | EJ9: =IF(ISNA(CH9),"",CH9) ->  | EK9: =IF(ISNA(CI9),"",CI9) ->  | EL9: =IF(ISNA(CJ9),"",CJ9) ->  | EM9: =IF(ISNA(CK9),"",CK9) ->  | EN9: =IF(ISNA(CL9),"",CL9) ->  | EO9: =IF(ISNA(CM9),"",CM9) ->  | EP9: =IF(ISNA(CN9),"",CN9) ->  | EQ9: =IF(ISNA(CO9),"",CO9) ->  | ER9: =IF(ISNA(CP9),"",CP9) ->  | ES9: =IF(ISNA(CQ9),"",CQ9) ->  | ET9: =IF(ISNA(CR9),"",CR9) ->  | EU9: =IF(ISNA(CS9),"",CS9) ->  | EV9: =IF(ISNA(CT9),"",CT9) ->  | EW9: =IF(ISNA(CU9),"",CU9) ->  | EX9: =IF(ISNA(CV9),"",CV9) ->  | EY9: =IF(ISNA(CW9),"",CW9) ->  | EZ9: =IF(ISNA(CX9),"",CX9) ->  | FA9: =IF(ISNA(CY9),"",CY9) ->  | FB9: =IF(ISNA(CZ9),"",CZ9) ->  | FC9: =IF(ISNA(DA9),"",DA9) ->  | FD9: =IF(ISNA(DB9),"",DB9) ->  | FE9: =IF(ISNA(DC9),"",DC9) ->  | FF9: =IF(ISNA(DD9),"",DD9) ->  | FG9: =IF(ISNA(DE9),"",DE9) ->  | FH9: =IF(ISNA(DF9),"",DF9) -> 
A10: =A9+1 -> 2015-01-02 | B10: =MONTH(A10) -> 1 | C10: 1900-01-06 | AH10: =IF(OR(AF10="",AG10=""),"",AF10*AG10) ->  | AS10: =IF(K10="","",IF(ISNA(nonespace(K10)),"",IF(K10="","",correction_DBO5(select_Methode_BSB5,K10)))) ->  | AT10: =IF(ISERROR(K10/AS10),"",K10/AS10) ->  | AX10: =AX11 -> 231.9677419 | AZ10: =AZ9 -> 20 | BD10: 0.3 | BF10: 20 | BH10: =nonespace_nonNA(D10) ->  | BI10: =IF(E10="",0,E10) -> 0 | BJ10: 0 | BK10: =IF(G10="",0,G10) -> 0 | BL10: =calcul_debit_sortie(debimetre_entreeSTEP,F10,G10,H10) -> 0 | BP10: =nonespace(BH10) ->  | BQ10: 0 | BR10: 0 | BS10: 0 | BT10: 0 | BX10: =nonespace(L10) ->  | BY10: =nonespace(M10) ->  | BZ10: =calcul_NH4(N10,O10) ->  | CA10: =calcul_Ntot(N10,O10) ->  | CB10: =nonespace(P10) ->  | CC10: =nonespace(Q10) ->  | CD10: =nonespace(R10) ->  | CE10: =nonespace(S10) ->  | CF10: =nonespace(T10) ->  | CG10: =nonespace(U10) ->  | CH10: =nonespace(V10) ->  | CI10: =nonespace(W10) ->  | CJ10: =nonespace(X10) ->  | CK10: =nonespace(Y10) ->  | CL10: =nonespace(Z10) ->  | CM10: =nonespace(AA10) ->  | CN10: =CL10*CM10 ->  | CO10: =nonespace(AB10) ->  | CP10: =nonespace(AC10) ->  | CQ10: =nonespace(AD10) ->  | CR10: =nonespace(AE10) ->  | CS10: =(CO10*analyses!CP10)/((analyses!BL10*analyses!CK10/1000)+(analyses!CQ10*analyses!CR10)) ->  | CT10: =nonespace(AF10) ->  | CU10: =nonespace(AG10) ->  | CV10: =nonespace(AH10) ->  | CW10: =nonespace(AI10) ->  | CX10: =nonespace(AJ10) ->  | CY10: =nonespace(AK10) ->  | CZ10: =nonespace(AL10) ->  | DA10: =nonespace(AM10) ->  | DB10: =nonespace(AN10) ->  | DC10: =nonespace(AO10) ->  | DD10: =nonespace(AP10) ->  | DE10: =nonespace(AQ10) ->  | DG10: =Ammonium_zeigen_unter_10_Grad(CF10,BH10) ->  | DI10: =K10*F10/basis!$D$27 -> 0 | DJ10: =M10*F10/basis!$D$29 -> 0 | DK10: =N10*F10/basis!$D$32 -> 0 | DL10: =F10*P10/basis!$D$35 -> 0 | DS10: 0 | DT10: 0 | DU10: 0 | DV10: 0
A11: 2015-01-03 | B11: 1 | C11: 1900-01-07 | AS11: =IF(K11="","",IF(ISNA(nonespace(K11)),"",IF(K11="","",correction_DBO5(select_Methode_BSB5,K11)))) ->  | AX11: 231.9677419 | AZ11: =AZ10 -> 20 | BA11: =BA10 ->  | BB11: =BB10 ->  | BC11: =BC10 ->  | BD11: =BD10 -> 0.3 | BE11: =BE10 ->  | BF11: =BF10 -> 20 | BI11: 0 | BJ11: 0 | BK11: =IF(G11="",0,G11) -> 0 | BL11: 0 | BQ11: 0 | BR11: 0 | BS11: 0 | BT11: 0 | CA11: =calcul_Ntot(N11,O11) ->  | CF11: =nonespace(T11) ->  | CS11: =(CO11*analyses!CP11)/((analyses!BL11*analyses!CK11/1000)+(analyses!CQ11*analyses!CR11)) ->  | DI11: =K11*F11/basis!$D$27 -> 0 | DJ11: =M11*F11/basis!$D$29 -> 0 | DK11: =N11*F11/basis!$D$32 -> 0 | DL11: =F11*P11/basis!$D$35 -> 0 | DS11: 0 | DT11: 0 | DU11: 0 | DV11: 0
A12: 2015-01-04 | B12: 1 | C12: 1900-01-01 | AS12: =IF(K12="","",IF(ISNA(nonespace(K12)),"",IF(K12="","",correction_DBO5(select_Methode_BSB5,K12)))) ->  | AX12: 231.9677419 | AZ12: =AZ11 -> 20 | BD12: 0.3 | BF12: 20 | BI12: 0 | BJ12: 0 | BK12: 0 | BL12: 0 | BQ12: 0 | BR12: 0 | BS12: 0 | BT12: 0 | CF12: =nonespace(T12) ->  | CS12: =(CO12*analyses!CP12)/((analyses!BL12*analyses!CK12/1000)+(analyses!CQ12*analyses!CR12)) ->  | DI12: =K12*F12/basis!$D$27 -> 0 | DJ12: =M12*F12/basis!$D$29 -> 0 | DK12: =N12*F12/basis!$D$32 -> 0 | DL12: =F12*P12/basis!$D$35 -> 0 | DS12: 0 | DT12: 0 | DU12: 0 | DV12: 0
A13: 2015-01-05 | B13: 1 | C13: 1900-01-02 | AS13: =IF(K13="","",IF(ISNA(nonespace(K13)),"",IF(K13="","",correction_DBO5(select_Methode_BSB5,K13)))) ->  | AX13: 231.9677419 | AZ13: =AZ12 -> 20 | BD13: 0.3 | BF13: 20 | BI13: 0 | BJ13: 0 | BK13: 0 | BL13: 0 | BM13: =IF(I13="","",I13) ->  | BN13: =IF(J13="","",J13) ->  | BQ13: 0 | BR13: 0 | BS13: 0 | BT13: 0 | CF13: =nonespace(T13) ->  | CS13: =(CO13*analyses!CP13)/((analyses!BL13*analyses!CK13/1000)+(analyses!CQ13*analyses!CR13)) ->  | DG13: =Ammonium_zeigen_unter_10_Grad(CF13,BH13) ->  | DI13: =K13*F13/basis!$D$27 -> 0 | DJ13: =M13*F13/basis!$D$29 -> 0 | DK13: =N13*F13/basis!$D$32 -> 0 | DL13: =F13*P13/basis!$D$35 -> 0 | DS13: 0 | DT13: 0 | DU13: 0 | DV13: 0
A14: 2015-01-06 | B14: 1 | C14: 1900-01-03 | AS14: =IF(K14="","",IF(ISNA(nonespace(K14)),"",IF(K14="","",correction_DBO5(select_Methode_BSB5,K14)))) ->  | AX14: 231.9677419 | AZ14: =AZ13 -> 20 | BD14: 0.3 | BF14: 20 | BI14: 0 | BJ14: 0 | BK14: 0 | BL14: 0 | BQ14: 0 | BR14: 0 | BS14: 0 | BT14: 0 | CF14: =nonespace(T14) ->  | CS14: =(CO14*analyses!CP14)/((analyses!BL14*analyses!CK14/1000)+(analyses!CQ14*analyses!CR14)) ->  | DI14: =K14*F14/basis!$D$27 -> 0 | DJ14: =M14*F14/basis!$D$29 -> 0 | DK14: =N14*F14/basis!$D$32 -> 0 | DL14: =F14*P14/basis!$D$35 -> 0 | DS14: 0 | DT14: 0 | DU14: 0 | DV14: 0
A15: 2015-01-07 | B15: 1 | C15: 1900-01-04 | AS15: =IF(K15="","",IF(ISNA(nonespace(K15)),"",IF(K15="","",correction_DBO5(select_Methode_BSB5,K15)))) ->  | AX15: 231.9677419 | AZ15: =AZ14 -> 20 | BD15: 0.3 | BF15: 20 | BI15: 0 | BJ15: 0 | BK15: 0 | BL15: 0 | BQ15: 0 | BR15: 0 | BS15: 0 | BT15: 0 | CF15: =nonespace(T15) ->  | CS15: =(CO15*analyses!CP15)/((analyses!BL15*analyses!CK15/1000)+(analyses!CQ15*analyses!CR15)) ->  | DI15: =K15*F15/basis!$D$27 -> 0 | DJ15: =M15*F15/basis!$D$29 -> 0 | DK15: =N15*F15/basis!$D$32 -> 0 | DL15: =F15*P15/basis!$D$35 -> 0 | DS15: 0 | DT15: 0 | DU15: 0 | DV15: 0
A16: 2015-01-08 | B16: 1 | C16: 1900-01-05 | AS16: =IF(K16="","",IF(ISNA(nonespace(K16)),"",IF(K16="","",correction_DBO5(select_Methode_BSB5,K16)))) ->  | AX16: 231.9677419 | AZ16: =AZ15 -> 20 | BD16: 0.3 | BF16: 20 | BI16: 0 | BJ16: 0 | BK16: 0 | BL16: 0 | BQ16: 0 | BR16: 0 | BS16: 0 | BT16: 0 | CF16: =nonespace(T16) ->  | CS16: =(CO16*analyses!CP16)/((analyses!BL16*analyses!CK16/1000)+(analyses!CQ16*analyses!CR16)) ->  | DI16: =K16*F16/basis!$D$27 -> 0 | DJ16: =M16*F16/basis!$D$29 -> 0 | DK16: =N16*F16/basis!$D$32 -> 0 | DL16: =F16*P16/basis!$D$35 -> 0 | DS16: 0 | DT16: 0 | DU16: 0 | DV16: 0
A17: 2015-01-09 | B17: 1 | C17: 1900-01-06 | AS17: =IF(K17="","",IF(ISNA(nonespace(K17)),"",IF(K17="","",correction_DBO5(select_Methode_BSB5,K17)))) ->  | AX17: 231.9677419 | AZ17: =AZ16 -> 20 | BD17: 0.3 | BF17: 20 | BI17: 0 | BJ17: 0 | BK17: 0 | BL17: 0 | BQ17: 0 | BR17: 0 | BS17: 0 | BT17: 0 | CF17: =nonespace(T17) ->  | CS17: =(CO17*analyses!CP17)/((analyses!BL17*analyses!CK17/1000)+(analyses!CQ17*analyses!CR17)) ->  | DI17: =K17*F17/basis!$D$27 -> 0 | DJ17: =M17*F17/basis!$D$29 -> 0 | DK17: =N17*F17/basis!$D$32 -> 0 | DL17: =F17*P17/basis!$D$35 -> 0 | DS17: 0 | DT17: 0 | DU17: 0 | DV17: 0
A18: 2015-01-10 | B18: 1 | C18: 1900-01-07 | AS18: =IF(K18="","",IF(ISNA(nonespace(K18)),"",IF(K18="","",correction_DBO5(select_Methode_BSB5,K18)))) ->  | AX18: 231.9677419 | AZ18: =AZ17 -> 20 | BD18: 0.3 | BF18: 20 | BI18: 0 | BJ18: 0 | BK18: 0 | BL18: 0 | BQ18: 0 | BR18: 0 | BS18: 0 | BT18: 0 | CF18: =nonespace(T18) ->  | CS18: =(CO18*analyses!CP18)/((analyses!BL18*analyses!CK18/1000)+(analyses!CQ18*analyses!CR18)) ->  | DI18: =K18*F18/basis!$D$27 -> 0 | DJ18: =M18*F18/basis!$D$29 -> 0 | DK18: =N18*F18/basis!$D$32 -> 0 | DL18: =F18*P18/basis!$D$35 -> 0 | DS18: 0 | DT18: 0 | DU18: 0 | DV18: 0
A19: 2015-01-11 | B19: 1 | C19: 1900-01-01 | AS19: =IF(K19="","",IF(ISNA(nonespace(K19)),"",IF(K19="","",correction_DBO5(select_Methode_BSB5,K19)))) ->  | AX19: 231.9677419 | AZ19: =AZ18 -> 20 | BD19: 0.3 | BF19: 20 | BI19: 0 | BJ19: 0 | BK19: 0 | BL19: 0 | BQ19: 0 | BR19: 0 | BS19: 0 | BT19: 0 | CF19: =nonespace(T19) ->  | CS19: =(CO19*analyses!CP19)/((analyses!BL19*analyses!CK19/1000)+(analyses!CQ19*analyses!CR19)) ->  | DI19: =K19*F19/basis!$D$27 -> 0 | DJ19: =M19*F19/basis!$D$29 -> 0 | DK19: =N19*F19/basis!$D$32 -> 0 | DL19: =F19*P19/basis!$D$35 -> 0 | DS19: 0 | DT19: 0 | DU19: 0 | DV19: 0
A20: 2015-01-12 | B20: 1 | C20: 1900-01-02 | AS20: =IF(K20="","",IF(ISNA(nonespace(K20)),"",IF(K20="","",correction_DBO5(select_Methode_BSB5,K20)))) ->  | AX20: 231.9677419 | AZ20: =AZ19 -> 20 | BD20: 0.3 | BF20: 20 | BI20: 0 | BJ20: 0 | BK20: 0 | BL20: 0 | BQ20: 0 | BR20: 0 | BS20: 0 | BT20: 0 | CF20: =nonespace(T20) ->  | CS20: =(CO20*analyses!CP20)/((analyses!BL20*analyses!CK20/1000)+(analyses!CQ20*analyses!CR20)) ->  | DI20: =K20*F20/basis!$D$27 -> 0 | DJ20: =M20*F20/basis!$D$29 -> 0 | DK20: =N20*F20/basis!$D$32 -> 0 | DL20: =F20*P20/basis!$D$35 -> 0 | DS20: 0 | DT20: 0 | DU20: 0 | DV20: 0
A21: 2015-01-13 | B21: 1 | C21: 1900-01-03 | AS21: =IF(K21="","",IF(ISNA(nonespace(K21)),"",IF(K21="","",correction_DBO5(select_Methode_BSB5,K21)))) ->  | AX21: 231.9677419 | AZ21: =AZ20 -> 20 | BD21: 0.3 | BF21: 20 | BI21: 0 | BJ21: 0 | BK21: 0 | BL21: =calcul_debit_sortie(debimetre_entreeSTEP,F21,G21,H21) -> 0 | BQ21: 0 | BR21: 0 | BS21: 0 | BT21: 0 | CF21: =nonespace(T21) ->  | CS21: =(CO21*analyses!CP21)/((analyses!BL21*analyses!CK21/1000)+(analyses!CQ21*analyses!CR21)) ->  | DI21: =K21*F21/basis!$D$27 -> 0 | DJ21: =M21*F21/basis!$D$29 -> 0 | DK21: =N21*F21/basis!$D$32 -> 0 | DL21: =F21*P21/basis!$D$35 -> 0 | DS21: 0 | DT21: 0 | DU21: 0 | DV21: 0
A22: 2015-01-14 | B22: 1 | C22: 1900-01-04 | AS22: =IF(K22="","",IF(ISNA(nonespace(K22)),"",IF(K22="","",correction_DBO5(select_Methode_BSB5,K22)))) ->  | AX22: 231.9677419 | AZ22: =AZ21 -> 20 | BD22: 0.3 | BF22: 20 | BI22: 0 | BJ22: 0 | BK22: 0 | BL22: 0 | BQ22: 0 | BR22: 0 | BS22: 0 | BT22: 0 | CF22: =nonespace(T22) ->  | CS22: =(CO22*analyses!CP22)/((analyses!BL22*analyses!CK22/1000)+(analyses!CQ22*analyses!CR22)) ->  | DI22: =K22*F22/basis!$D$27 -> 0 | DJ22: =M22*F22/basis!$D$29 -> 0 | DK22: =N22*F22/basis!$D$32 -> 0 | DL22: =F22*P22/basis!$D$35 -> 0 | DS22: 0 | DT22: 0 | DU22: 0 | DV22: 0
A23: 2015-01-15 | B23: 1 | C23: 1900-01-05 | AS23: =IF(K23="","",IF(ISNA(nonespace(K23)),"",IF(K23="","",correction_DBO5(select_Methode_BSB5,K23)))) ->  | AX23: 231.9677419 | AZ23: =AZ22 -> 20 | BD23: 0.3 | BF23: 20 | BI23: 0 | BJ23: 0 | BK23: 0 | BL23: 0 | BQ23: 0 | BR23: 0 | BS23: 0 | BT23: 0 | CF23: =nonespace(T23) ->  | CS23: =(CO23*analyses!CP23)/((analyses!BL23*analyses!CK23/1000)+(analyses!CQ23*analyses!CR23)) ->  | DI23: =K23*F23/basis!$D$27 -> 0 | DJ23: =M23*F23/basis!$D$29 -> 0 | DK23: =N23*F23/basis!$D$32 -> 0 | DL23: =F23*P23/basis!$D$35 -> 0 | DS23: 0 | DT23: 0 | DU23: 0 | DV23: 0
A24: 2015-01-16 | B24: 1 | C24: 1900-01-06 | AS24: =IF(K24="","",IF(ISNA(nonespace(K24)),"",IF(K24="","",correction_DBO5(select_Methode_BSB5,K24)))) ->  | AX24: 231.9677419 | AZ24: =AZ23 -> 20 | BD24: 0.3 | BF24: 20 | BI24: 0 | BJ24: 0 | BK24: 0 | BL24: 0 | BQ24: 0 | BR24: 0 | BS24: 0 | BT24: 0 | CF24: =nonespace(T24) ->  | CS24: =(CO24*analyses!CP24)/((analyses!BL24*analyses!CK24/1000)+(analyses!CQ24*analyses!CR24)) ->  | DI24: =K24*F24/basis!$D$27 -> 0 | DJ24: =M24*F24/basis!$D$29 -> 0 | DK24: =N24*F24/basis!$D$32 -> 0 | DL24: =F24*P24/basis!$D$35 -> 0 | DS24: 0 | DT24: 0 | DU24: 0 | DV24: 0
A25: 2015-01-17 | B25: 1 | C25: 1900-01-07 | AS25: =IF(K25="","",IF(ISNA(nonespace(K25)),"",IF(K25="","",correction_DBO5(select_Methode_BSB5,K25)))) ->  | AX25: 231.9677419 | AZ25: =AZ24 -> 20 | BD25: 0.3 | BF25: 20 | BI25: 0 | BJ25: 0 | BK25: 0 | BL25: 0 | BQ25: 0 | BR25: 0 | BS25: 0 | BT25: 0 | CF25: =nonespace(T25) ->  | CS25: =(CO25*analyses!CP25)/((analyses!BL25*analyses!CK25/1000)+(analyses!CQ25*analyses!CR25)) ->  | DI25: =K25*F25/basis!$D$27 -> 0 | DJ25: =M25*F25/basis!$D$29 -> 0 | DK25: =N25*F25/basis!$D$32 -> 0 | DL25: =F25*P25/basis!$D$35 -> 0 | DS25: 0 | DT25: 0 | DU25: 0 | DV25: 0
A26: 2015-01-18 | B26: 1 | C26: 1900-01-01 | AS26: =IF(K26="","",IF(ISNA(nonespace(K26)),"",IF(K26="","",correction_DBO5(select_Methode_BSB5,K26)))) ->  | AX26: 231.9677419 | AZ26: =AZ25 -> 20 | BD26: 0.3 | BF26: 20 | BI26: 0 | BJ26: 0 | BK26: 0 | BL26: 0 | BQ26: 0 | BR26: 0 | BS26: 0 | BT26: 0 | CF26: =nonespace(T26) ->  | CS26: =(CO26*analyses!CP26)/((analyses!BL26*analyses!CK26/1000)+(analyses!CQ26*analyses!CR26)) ->  | DI26: =K26*F26/basis!$D$27 -> 0 | DJ26: =M26*F26/basis!$D$29 -> 0 | DK26: =N26*F26/basis!$D$32 -> 0 | DL26: =F26*P26/basis!$D$35 -> 0 | DS26: 0 | DT26: 0 | DU26: 0 | DV26: 0
A27: 2015-01-19 | B27: 1 | C27: 1900-01-02 | AS27: =IF(K27="","",IF(ISNA(nonespace(K27)),"",IF(K27="","",correction_DBO5(select_Methode_BSB5,K27)))) ->  | AX27: 231.9677419 | AZ27: =AZ26 -> 20 | BD27: 0.3 | BF27: 20 | BI27: 0 | BJ27: 0 | BK27: 0 | BL27: 0 | BQ27: 0 | BR27: 0 | BS27: 0 | BT27: 0 | CF27: =nonespace(T27) ->  | CS27: =(CO27*analyses!CP27)/((analyses!BL27*analyses!CK27/1000)+(analyses!CQ27*analyses!CR27)) ->  | DI27: =K27*F27/basis!$D$27 -> 0 | DJ27: =M27*F27/basis!$D$29 -> 0 | DK27: =N27*F27/basis!$D$32 -> 0 | DL27: =F27*P27/basis!$D$35 -> 0 | DS27: 0 | DT27: 0 | DU27: 0 | DV27: 0
A28: 2015-01-20 | B28: 1 | C28: 1900-01-03 | AS28: =IF(K28="","",IF(ISNA(nonespace(K28)),"",IF(K28="","",correction_DBO5(select_Methode_BSB5,K28)))) ->  | AX28: 231.9677419 | AZ28: =AZ27 -> 20 | BD28: 0.3 | BF28: 20 | BI28: 0 | BJ28: 0 | BK28: 0 | BL28: 0 | BQ28: 0 | BR28: 0 | BS28: 0 | BT28: 0 | CF28: =nonespace(T28) ->  | CS28: =(CO28*analyses!CP28)/((analyses!BL28*analyses!CK28/1000)+(analyses!CQ28*analyses!CR28)) ->  | DI28: =K28*F28/basis!$D$27 -> 0 | DJ28: =M28*F28/basis!$D$29 -> 0 | DK28: =N28*F28/basis!$D$32 -> 0 | DL28: =F28*P28/basis!$D$35 -> 0 | DS28: 0 | DT28: 0 | DU28: 0 | DV28: 0
A29: 2015-01-21 | B29: 1 | C29: 1900-01-04 | AS29: =IF(K29="","",IF(ISNA(nonespace(K29)),"",IF(K29="","",correction_DBO5(select_Methode_BSB5,K29)))) ->  | AX29: 231.9677419 | AZ29: =AZ28 -> 20 | BD29: 0.3 | BF29: 20 | BI29: 0 | BJ29: 0 | BK29: 0 | BL29: 0 | BQ29: 0 | BR29: 0 | BS29: 0 | BT29: 0 | CF29: =nonespace(T29) ->  | CS29: =(CO29*analyses!CP29)/((analyses!BL29*analyses!CK29/1000)+(analyses!CQ29*analyses!CR29)) ->  | DI29: =K29*F29/basis!$D$27 -> 0 | DJ29: =M29*F29/basis!$D$29 -> 0 | DK29: =N29*F29/basis!$D$32 -> 0 | DL29: =F29*P29/basis!$D$35 -> 0 | DS29: 0 | DT29: 0 | DU29: 0 | DV29: 0
A30: 2015-01-22 | B30: 1 | C30: 1900-01-05 | AS30: =IF(K30="","",IF(ISNA(nonespace(K30)),"",IF(K30="","",correction_DBO5(select_Methode_BSB5,K30)))) ->  | AX30: 231.9677419 | AZ30: =AZ29 -> 20 | BD30: 0.3 | BF30: 20 | BI30: 0 | BJ30: 0 | BK30: 0 | BL30: 0 | BQ30: 0 | BR30: 0 | BS30: 0 | BT30: 0 | CF30: =nonespace(T30) ->  | CS30: =(CO30*analyses!CP30)/((analyses!BL30*analyses!CK30/1000)+(analyses!CQ30*analyses!CR30)) ->  | DI30: =K30*F30/basis!$D$27 -> 0 | DJ30: =M30*F30/basis!$D$29 -> 0 | DK30: =N30*F30/basis!$D$32 -> 0 | DL30: =F30*P30/basis!$D$35 -> 0 | DS30: 0 | DT30: 0 | DU30: 0 | DV30: 0
A31: 2015-01-23 | B31: 1 | C31: 1900-01-06 | AS31: =IF(K31="","",IF(ISNA(nonespace(K31)),"",IF(K31="","",correction_DBO5(select_Methode_BSB5,K31)))) ->  | AX31: 231.9677419 | AZ31: =AZ30 -> 20 | BD31: 0.3 | BF31: 20 | BI31: 0 | BJ31: 0 | BK31: 0 | BL31: 0 | BQ31: 0 | BR31: 0 | BS31: 0 | BT31: 0 | CF31: =nonespace(T31) ->  | CS31: =(CO31*analyses!CP31)/((analyses!BL31*analyses!CK31/1000)+(analyses!CQ31*analyses!CR31)) ->  | DI31: =K31*F31/basis!$D$27 -> 0 | DJ31: =M31*F31/basis!$D$29 -> 0 | DK31: =N31*F31/basis!$D$32 -> 0 | DL31: =F31*P31/basis!$D$35 -> 0 | DS31: 0 | DT31: 0 | DU31: 0 | DV31: 0
A32: 2015-01-24 | B32: 1 | C32: 1900-01-07 | AS32: =IF(K32="","",IF(ISNA(nonespace(K32)),"",IF(K32="","",correction_DBO5(select_Methode_BSB5,K32)))) ->  | AX32: 231.9677419 | AZ32: =AZ31 -> 20 | BD32: 0.3 | BF32: 20 | BI32: 0 | BJ32: 0 | BK32: 0 | BL32: 0 | BQ32: 0 | BR32: 0 | BS32: 0 | BT32: 0 | CF32: =nonespace(T32) ->  | CS32: =(CO32*analyses!CP32)/((analyses!BL32*analyses!CK32/1000)+(analyses!CQ32*analyses!CR32)) ->  | DI32: =K32*F32/basis!$D$27 -> 0 | DJ32: =M32*F32/basis!$D$29 -> 0 | DK32: =N32*F32/basis!$D$32 -> 0 | DL32: =F32*P32/basis!$D$35 -> 0 | DS32: 0 | DT32: 0 | DU32: 0 | DV32: 0
A33: 2015-01-25 | B33: 1 | C33: 1900-01-01 | AS33: =IF(K33="","",IF(ISNA(nonespace(K33)),"",IF(K33="","",correction_DBO5(select_Methode_BSB5,K33)))) ->  | AX33: 231.9677419 | AZ33: =AZ32 -> 20 | BD33: 0.3 | BF33: 20 | BI33: 0 | BJ33: 0 | BK33: 0 | BL33: 0 | BQ33: 0 | BR33: 0 | BS33: 0 | BT33: 0 | CA33: =calcul_Ntot(N33,O33) ->  | CF33: =nonespace(T33) ->  | CS33: =(CO33*analyses!CP33)/((analyses!BL33*analyses!CK33/1000)+(analyses!CQ33*analyses!CR33)) ->  | DI33: =K33*F33/basis!$D$27 -> 0 | DJ33: =M33*F33/basis!$D$29 -> 0 | DK33: =N33*F33/basis!$D$32 -> 0 | DL33: =F33*P33/basis!$D$35 -> 0 | DS33: 0 | DT33: 0 | DU33: 0 | DV33: 0
A34: 2015-01-26 | B34: 1 | C34: 1900-01-02 | AS34: =IF(K34="","",IF(ISNA(nonespace(K34)),"",IF(K34="","",correction_DBO5(select_Methode_BSB5,K34)))) ->  | AX34: 231.9677419 | AZ34: =AZ33 -> 20 | BD34: 0.3 | BF34: 20 | BI34: 0 | BJ34: 0 | BK34: 0 | BL34: 0 | BQ34: 0 | BR34: 0 | BS34: 0 | BT34: 0 | CA34: =calcul_Ntot(N34,O34) ->  | CF34: =nonespace(T34) ->  | CS34: =(CO34*analyses!CP34)/((analyses!BL34*analyses!CK34/1000)+(analyses!CQ34*analyses!CR34)) ->  | DI34: =K34*F34/basis!$D$27 -> 0 | DJ34: =M34*F34/basis!$D$29 -> 0 | DK34: =N34*F34/basis!$D$32 -> 0 | DL34: =F34*P34/basis!$D$35 -> 0 | DS34: 0 | DT34: 0 | DU34: 0 | DV34: 0
A35: 2015-01-27 | B35: 1 | C35: 1900-01-03 | AS35: =IF(K35="","",IF(ISNA(nonespace(K35)),"",IF(K35="","",correction_DBO5(select_Methode_BSB5,K35)))) ->  | AX35: 231.9677419 | AZ35: =AZ34 -> 20 | BD35: 0.3 | BF35: 20 | BI35: 0 | BJ35: 0 | BK35: 0 | BL35: 0 | BQ35: 0 | BR35: 0 | BS35: 0 | BT35: 0 | CF35: =nonespace(T35) ->  | CS35: =(CO35*analyses!CP35)/((analyses!BL35*analyses!CK35/1000)+(analyses!CQ35*analyses!CR35)) ->  | DI35: =K35*F35/basis!$D$27 -> 0 | DJ35: =M35*F35/basis!$D$29 -> 0 | DK35: =N35*F35/basis!$D$32 -> 0 | DL35: =F35*P35/basis!$D$35 -> 0 | DS35: 0 | DT35: 0 | DU35: 0 | DV35: 0
A36: 2015-01-28 | B36: 1 | C36: 1900-01-04 | AS36: =IF(K36="","",IF(ISNA(nonespace(K36)),"",IF(K36="","",correction_DBO5(select_Methode_BSB5,K36)))) ->  | AX36: 231.9677419 | AZ36: =AZ35 -> 20 | BD36: 0.3 | BF36: 20 | BI36: 0 | BJ36: 0 | BK36: 0 | BL36: 0 | BQ36: 0 | BR36: 0 | BS36: 0 | BT36: 0 | CF36: =nonespace(T36) ->  | CS36: =(CO36*analyses!CP36)/((analyses!BL36*analyses!CK36/1000)+(analyses!CQ36*analyses!CR36)) ->  | DI36: =K36*F36/basis!$D$27 -> 0 | DJ36: =M36*F36/basis!$D$29 -> 0 | DK36: =N36*F36/basis!$D$32 -> 0 | DL36: =F36*P36/basis!$D$35 -> 0 | DS36: 0 | DT36: 0 | DU36: 0 | DV36: 0
A37: 2015-01-29 | B37: 1 | C37: 1900-01-05 | AS37: =IF(K37="","",IF(ISNA(nonespace(K37)),"",IF(K37="","",correction_DBO5(select_Methode_BSB5,K37)))) ->  | AX37: 231.9677419 | AZ37: =AZ36 -> 20 | BD37: 0.3 | BF37: 20 | BI37: 0 | BJ37: 0 | BK37: 0 | BL37: 0 | BQ37: 0 | BR37: 0 | BS37: 0 | BT37: 0 | CF37: =nonespace(T37) ->  | CS37: =(CO37*analyses!CP37)/((analyses!BL37*analyses!CK37/1000)+(analyses!CQ37*analyses!CR37)) ->  | DI37: =K37*F37/basis!$D$27 -> 0 | DJ37: =M37*F37/basis!$D$29 -> 0 | DK37: =N37*F37/basis!$D$32 -> 0 | DL37: =F37*P37/basis!$D$35 -> 0 | DS37: 0 | DT37: 0 | DU37: 0 | DV37: 0
A38: 2015-01-30 | B38: 1 | C38: 1900-01-06 | AS38: =IF(K38="","",IF(ISNA(nonespace(K38)),"",IF(K38="","",correction_DBO5(select_Methode_BSB5,K38)))) ->  | AX38: =AX39 -> 231.9677419 | AZ38: =AZ37 -> 20 | BD38: 0.3 | BF38: 20 | BI38: 0 | BJ38: 0 | BK38: 0 | BL38: 0 | BQ38: 0 | BR38: 0 | BS38: 0 | BT38: 0 | BX38: =nonespace(L38) ->  | BY38: =nonespace(M38) ->  | CB38: =nonespace(P38) ->  | CC38: =nonespace(Q38) ->  | CD38: =nonespace(R38) ->  | CE38: =nonespace(S38) ->  | CF38: =nonespace(T38) ->  | CG38: =nonespace(U38) ->  | CH38: =nonespace(V38) ->  | CI38: =nonespace(W38) ->  | CJ38: =nonespace(X38) ->  | CK38: =nonespace(Y38) ->  | CL38: =nonespace(Z38) ->  | CM38: =nonespace(AA38) ->  | CN38: =CL38*CM38 ->  | CO38: =nonespace(AB38) ->  | CP38: =nonespace(AC38) ->  | CQ38: =nonespace(AD38) ->  | CR38: =nonespace(AE38) ->  | CS38: =(CO38*analyses!CP38)/((analyses!BL38*analyses!CK38/1000)+(analyses!CQ38*analyses!CR38)) ->  | CT38: =nonespace(AF38) ->  | CU38: =nonespace(AG38) ->  | CV38: =nonespace(AH38) ->  | CW38: =nonespace(AI38) ->  | CX38: =nonespace(AJ38) ->  | CY38: =nonespace(AK38) ->  | CZ38: =nonespace(AL38) ->  | DA38: =nonespace(AM38) ->  | DB38: =nonespace(AN38) ->  | DC38: =nonespace(AO38) ->  | DD38: =nonespace(AP38) ->  | DE38: =nonespace(AQ38) ->  | DI38: =K38*F38/basis!$D$27 -> 0 | DJ38: =M38*F38/basis!$D$29 -> 0 | DK38: =N38*F38/basis!$D$32 -> 0 | DL38: =F38*P38/basis!$D$35 -> 0 | DS38: 0 | DT38: 0 | DU38: 0 | DV38: 0
A39: 2015-01-31 | B39: 1 | C39: 1900-01-07 | AS39: =IF(K39="","",IF(ISNA(nonespace(K39)),"",IF(K39="","",correction_DBO5(select_Methode_BSB5,K39)))) ->  | AV39: =H39 -> 0 | AW39: 7191 | AX39: =AW39/31 -> 231.9677419 | AZ39: =AZ38 -> 20 | BD39: 0.3 | BF39: 20 | BI39: 0 | BJ39: 0 | BK39: 0 | BL39: 0 | BQ39: 0 | BR39: 0 | BS39: 0 | BT39: 0 | CF39: =nonespace(T39) ->  | CS39: =(CO39*analyses!CP39)/((analyses!BL39*analyses!CK39/1000)+(analyses!CQ39*analyses!CR39)) ->  | DI39: =K39*F39/basis!$D$27 -> 0 | DJ39: =M39*F39/basis!$D$29 -> 0 | DK39: =N39*F39/basis!$D$32 -> 0 | DL39: =F39*P39/basis!$D$35 -> 0 | DS39: 0 | DT39: 0 | DU39: 0 | DV39: 0
A40: 2015-02-01 | B40: 2 | C40: 1900-01-01 | AS40: =IF(K40="","",IF(ISNA(nonespace(K40)),"",IF(K40="","",correction_DBO5(select_Methode_BSB5,K40)))) ->  | AX40: =AX41 -> 323.6071429 | AZ40: =AZ39 -> 20 | BD40: 0.3 | BF40: 20 | BI40: 0 | BJ40: 0 | BK40: 0 | BL40: 0 | BQ40: 0 | BR40: 0 | BS40: 0 | BT40: 0 | CF40: =nonespace(T40) ->  | CS40: =(CO40*analyses!CP40)/((analyses!BL40*analyses!CK40/1000)+(analyses!CQ40*analyses!CR40)) ->  | DI40: =K40*F40/basis!$D$27 -> 0 | DJ40: =M40*F40/basis!$D$29 -> 0 | DK40: =N40*F40/basis!$D$32 -> 0 | DL40: =F40*P40/basis!$D$35 -> 0 | DS40: 0 | DT40: 0 | DU40: 0 | DV40: 0
A41: 2015-02-02 | B41: 2 | C41: 1900-01-02 | AS41: =IF(K41="","",IF(ISNA(nonespace(K41)),"",IF(K41="","",correction_DBO5(select_Methode_BSB5,K41)))) ->  | AX41: 323.6071429 | AZ41: =AZ40 -> 20 | BD41: 0.3 | BF41: 20 | BI41: 0 | BJ41: 0 | BK41: 0 | BL41: 0 | BQ41: 0 | BR41: 0 | BS41: 0 | BT41: 0 | CF41: =nonespace(T41) ->  | CS41: =(CO41*analyses!CP41)/((analyses!BL41*analyses!CK41/1000)+(analyses!CQ41*analyses!CR41)) ->  | DI41: =K41*F41/basis!$D$27 -> 0 | DJ41: =M41*F41/basis!$D$29 -> 0 | DK41: =N41*F41/basis!$D$32 -> 0 | DL41: =F41*P41/basis!$D$35 -> 0 | DS41: 0 | DT41: 0 | DU41: 0 | DV41: 0
A42: 2015-02-03 | B42: 2 | C42: 1900-01-03 | AS42: =IF(K42="","",IF(ISNA(nonespace(K42)),"",IF(K42="","",correction_DBO5(select_Methode_BSB5,K42)))) ->  | AX42: 323.6071429 | AZ42: =AZ41 -> 20 | BD42: 0.3 | BF42: 20 | BI42: 0 | BJ42: 0 | BK42: 0 | BL42: 0 | BQ42: 0 | BR42: 0 | BS42: 0 | BT42: 0 | CF42: =nonespace(T42) ->  | CS42: =(CO42*analyses!CP42)/((analyses!BL42*analyses!CK42/1000)+(analyses!CQ42*analyses!CR42)) ->  | DI42: =K42*F42/basis!$D$27 -> 0 | DJ42: =M42*F42/basis!$D$29 -> 0 | DK42: =N42*F42/basis!$D$32 -> 0 | DL42: =F42*P42/basis!$D$35 -> 0 | DS42: 0 | DT42: 0 | DU42: 0 | DV42: 0
A43: 2015-02-04 | B43: 2 | C43: 1900-01-04 | AS43: =IF(K43="","",IF(ISNA(nonespace(K43)),"",IF(K43="","",correction_DBO5(select_Methode_BSB5,K43)))) ->  | AX43: 323.6071429 | AZ43: =AZ42 -> 20 | BD43: 0.3 | BF43: 20 | BI43: 0 | BJ43: 0 | BK43: 0 | BL43: 0 | BQ43: 0 | BR43: 0 | BS43: 0 | BT43: 0 | CF43: =nonespace(T43) ->  | CS43: =(CO43*analyses!CP43)/((analyses!BL43*analyses!CK43/1000)+(analyses!CQ43*analyses!CR43)) ->  | DI43: =K43*F43/basis!$D$27 -> 0 | DJ43: =M43*F43/basis!$D$29 -> 0 | DK43: =N43*F43/basis!$D$32 -> 0 | DL43: =F43*P43/basis!$D$35 -> 0 | DS43: 0 | DT43: 0 | DU43: 0 | DV43: 0
A44: 2015-02-05 | B44: 2 | C44: 1900-01-05 | AS44: =IF(K44="","",IF(ISNA(nonespace(K44)),"",IF(K44="","",correction_DBO5(select_Methode_BSB5,K44)))) ->  | AX44: 323.6071429 | AZ44: =AZ43 -> 20 | BD44: 0.3 | BF44: 20 | BI44: 0 | BJ44: 0 | BK44: 0 | BL44: 0 | BQ44: 0 | BR44: 0 | BS44: 0 | BT44: 0 | CF44: =nonespace(T44) ->  | CS44: =(CO44*analyses!CP44)/((analyses!BL44*analyses!CK44/1000)+(analyses!CQ44*analyses!CR44)) ->  | DI44: =K44*F44/basis!$D$27 -> 0 | DJ44: =M44*F44/basis!$D$29 -> 0 | DK44: =N44*F44/basis!$D$32 -> 0 | DL44: =F44*P44/basis!$D$35 -> 0 | DS44: 0 | DT44: 0 | DU44: 0 | DV44: 0
A45: 2015-02-06 | B45: 2 | C45: 1900-01-06 | AS45: =IF(K45="","",IF(ISNA(nonespace(K45)),"",IF(K45="","",correction_DBO5(select_Methode_BSB5,K45)))) ->  | AX45: 323.6071429 | AZ45: =AZ44 -> 20 | BD45: 0.3 | BF45: 20 | BI45: 0 | BJ45: 0 | BK45: 0 | BL45: 0 | BQ45: 0 | BR45: 0 | BS45: 0 | BT45: 0 | CF45: =nonespace(T45) ->  | CS45: =(CO45*analyses!CP45)/((analyses!BL45*analyses!CK45/1000)+(analyses!CQ45*analyses!CR45)) ->  | DI45: =K45*F45/basis!$D$27 -> 0 | DJ45: =M45*F45/basis!$D$29 -> 0 | DK45: =N45*F45/basis!$D$32 -> 0 | DL45: =F45*P45/basis!$D$35 -> 0 | DS45: 0 | DT45: 0 | DU45: 0 | DV45: 0
A46: 2015-02-07 | B46: 2 | C46: 1900-01-07 | AS46: =IF(K46="","",IF(ISNA(nonespace(K46)),"",IF(K46="","",correction_DBO5(select_Methode_BSB5,K46)))) ->  | AX46: 323.6071429 | AZ46: =AZ45 -> 20 | BD46: 0.3 | BF46: 20 | BI46: 0 | BJ46: 0 | BK46: 0 | BL46: 0 | BQ46: 0 | BR46: 0 | BS46: 0 | BT46: 0 | CF46: =nonespace(T46) ->  | CS46: =(CO46*analyses!CP46)/((analyses!BL46*analyses!CK46/1000)+(analyses!CQ46*analyses!CR46)) ->  | DI46: =K46*F46/basis!$D$27 -> 0 | DJ46: =M46*F46/basis!$D$29 -> 0 | DK46: =N46*F46/basis!$D$32 -> 0 | DL46: =F46*P46/basis!$D$35 -> 0 | DS46: 0 | DT46: 0 | DU46: 0 | DV46: 0
A47: 2015-02-08 | B47: 2 | C47: 1900-01-01 | AS47: =IF(K47="","",IF(ISNA(nonespace(K47)),"",IF(K47="","",correction_DBO5(select_Methode_BSB5,K47)))) ->  | AX47: 323.6071429 | AZ47: =AZ46 -> 20 | BD47: 0.3 | BF47: 20 | BI47: 0 | BJ47: 0 | BK47: 0 | BL47: 0 | BQ47: 0 | BR47: 0 | BS47: 0 | BT47: 0 | CF47: =nonespace(T47) ->  | CS47: =(CO47*analyses!CP47)/((analyses!BL47*analyses!CK47/1000)+(analyses!CQ47*analyses!CR47)) ->  | DI47: =K47*F47/basis!$D$27 -> 0 | DJ47: =M47*F47/basis!$D$29 -> 0 | DK47: =N47*F47/basis!$D$32 -> 0 | DL47: =F47*P47/basis!$D$35 -> 0 | DS47: 0 | DT47: 0 | DU47: 0 | DV47: 0
A48: 2015-02-09 | B48: 2 | C48: 1900-01-02 | AS48: =IF(K48="","",IF(ISNA(nonespace(K48)),"",IF(K48="","",correction_DBO5(select_Methode_BSB5,K48)))) ->  | AX48: 323.6071429 | AZ48: =AZ47 -> 20 | BD48: 0.3 | BF48: 20 | BI48: 0 | BJ48: 0 | BK48: 0 | BL48: 0 | BQ48: 0 | BR48: 0 | BS48: 0 | BT48: 0 | CF48: =nonespace(T48) ->  | CS48: =(CO48*analyses!CP48)/((analyses!BL48*analyses!CK48/1000)+(analyses!CQ48*analyses!CR48)) ->  | DI48: =K48*F48/basis!$D$27 -> 0 | DJ48: =M48*F48/basis!$D$29 -> 0 | DK48: =N48*F48/basis!$D$32 -> 0 | DL48: =F48*P48/basis!$D$35 -> 0 | DS48: 0 | DT48: 0 | DU48: 0 | DV48: 0
A49: 2015-02-10 | B49: 2 | C49: 1900-01-03 | AS49: =IF(K49="","",IF(ISNA(nonespace(K49)),"",IF(K49="","",correction_DBO5(select_Methode_BSB5,K49)))) ->  | AX49: 323.6071429 | AZ49: =AZ48 -> 20 | BD49: 0.3 | BF49: 20 | BI49: 0 | BJ49: 0 | BK49: 0 | BL49: 0 | BQ49: 0 | BR49: 0 | BS49: 0 | BT49: 0 | CF49: =nonespace(T49) ->  | CS49: =(CO49*analyses!CP49)/((analyses!BL49*analyses!CK49/1000)+(analyses!CQ49*analyses!CR49)) ->  | DI49: =K49*F49/basis!$D$27 -> 0 | DJ49: =M49*F49/basis!$D$29 -> 0 | DK49: =N49*F49/basis!$D$32 -> 0 | DL49: =F49*P49/basis!$D$35 -> 0 | DS49: 0 | DT49: 0 | DU49: 0 | DV49: 0
A50: 2015-02-11 | B50: 2 | C50: 1900-01-04 | AS50: =IF(K50="","",IF(ISNA(nonespace(K50)),"",IF(K50="","",correction_DBO5(select_Methode_BSB5,K50)))) ->  | AX50: 323.6071429 | AZ50: =AZ49 -> 20 | BD50: 0.3 | BF50: 20 | BI50: 0 | BJ50: 0 | BK50: 0 | BL50: 0 | BQ50: 0 | BR50: 0 | BS50: 0 | BT50: 0 | CF50: =nonespace(T50) ->  | CS50: =(CO50*analyses!CP50)/((analyses!BL50*analyses!CK50/1000)+(analyses!CQ50*analyses!CR50)) ->  | DI50: =K50*F50/basis!$D$27 -> 0 | DJ50: =M50*F50/basis!$D$29 -> 0 | DK50: =N50*F50/basis!$D$32 -> 0 | DL50: =F50*P50/basis!$D$35 -> 0 | DS50: 0 | DT50: 0 | DU50: 0 | DV50: 0
A51: 2015-02-12 | B51: 2 | C51: 1900-01-05 | AS51: =IF(K51="","",IF(ISNA(nonespace(K51)),"",IF(K51="","",correction_DBO5(select_Methode_BSB5,K51)))) ->  | AX51: 323.6071429 | AZ51: =AZ50 -> 20 | BD51: 0.3 | BF51: 20 | BI51: 0 | BJ51: 0 | BK51: 0 | BL51: 0 | BQ51: 0 | BR51: 0 | BS51: 0 | BT51: 0 | CF51: =nonespace(T51) ->  | CS51: =(CO51*analyses!CP51)/((analyses!BL51*analyses!CK51/1000)+(analyses!CQ51*analyses!CR51)) ->  | DI51: =K51*F51/basis!$D$27 -> 0 | DJ51: =M51*F51/basis!$D$29 -> 0 | DK51: =N51*F51/basis!$D$32 -> 0 | DL51: =F51*P51/basis!$D$35 -> 0 | DS51: 0 | DT51: 0 | DU51: 0 | DV51: 0
A52: 2015-02-13 | B52: 2 | C52: 1900-01-06 | AS52: =IF(K52="","",IF(ISNA(nonespace(K52)),"",IF(K52="","",correction_DBO5(select_Methode_BSB5,K52)))) ->  | AX52: 323.6071429 | AZ52: =AZ51 -> 20 | BD52: 0.3 | BF52: 20 | BH52: 7 | BI52: 0 | BJ52: 0 | BK52: 0 | BL52: 0 | BP52: 7 | BQ52: 0 | BR52: 0 | BS52: 0 | BT52: 0 | CF52: =nonespace(T52) ->  | CS52: =(CO52*analyses!CP52)/((analyses!BL52*analyses!CK52/1000)+(analyses!CQ52*analyses!CR52)) ->  | DI52: =K52*F52/basis!$D$27 -> 0 | DJ52: =M52*F52/basis!$D$29 -> 0 | DK52: =N52*F52/basis!$D$32 -> 0 | DL52: =F52*P52/basis!$D$35 -> 0 | DS52: 0 | DT52: 0 | DU52: 0 | DV52: 0
A53: 2015-02-14 | B53: 2 | C53: 1900-01-07 | AS53: =IF(K53="","",IF(ISNA(nonespace(K53)),"",IF(K53="","",correction_DBO5(select_Methode_BSB5,K53)))) ->  | AX53: 323.6071429 | AZ53: =AZ52 -> 20 | BD53: 0.3 | BF53: 20 | BH53: 7 | BI53: 0 | BJ53: 0 | BK53: 0 | BL53: 0 | BP53: 7 | BQ53: 0 | BR53: 0 | BS53: 0 | BT53: 0 | CF53: =nonespace(T53) ->  | CS53: =(CO53*analyses!CP53)/((analyses!BL53*analyses!CK53/1000)+(analyses!CQ53*analyses!CR53)) ->  | DI53: =K53*F53/basis!$D$27 -> 0 | DJ53: =M53*F53/basis!$D$29 -> 0 | DK53: =N53*F53/basis!$D$32 -> 0 | DL53: =F53*P53/basis!$D$35 -> 0 | DS53: 0 | DT53: 0 | DU53: 0 | DV53: 0
A54: 2015-02-15 | B54: 2 | C54: 1900-01-01 | AS54: =IF(K54="","",IF(ISNA(nonespace(K54)),"",IF(K54="","",correction_DBO5(select_Methode_BSB5,K54)))) ->  | AX54: 323.6071429 | AZ54: =AZ53 -> 20 | BD54: 0.3 | BF54: 20 | BI54: 0 | BJ54: 0 | BK54: 0 | BL54: 0 | BQ54: 0 | BR54: 0 | BS54: 0 | BT54: 0 | CF54: =nonespace(T54) ->  | CS54: =(CO54*analyses!CP54)/((analyses!BL54*analyses!CK54/1000)+(analyses!CQ54*analyses!CR54)) ->  | DI54: =K54*F54/basis!$D$27 -> 0 | DJ54: =M54*F54/basis!$D$29 -> 0 | DK54: =N54*F54/basis!$D$32 -> 0 | DL54: =F54*P54/basis!$D$35 -> 0 | DS54: 0 | DT54: 0 | DU54: 0 | DV54: 0
A55: 2015-02-16 | B55: 2 | C55: 1900-01-02 | AS55: =IF(K55="","",IF(ISNA(nonespace(K55)),"",IF(K55="","",correction_DBO5(select_Methode_BSB5,K55)))) ->  | AX55: 323.6071429 | AZ55: =AZ54 -> 20 | BD55: 0.3 | BF55: 20 | BI55: 0 | BJ55: 0 | BK55: 0 | BL55: 0 | BQ55: 0 | BR55: 0 | BS55: 0 | BT55: 0 | CF55: =nonespace(T55) ->  | CS55: =(CO55*analyses!CP55)/((analyses!BL55*analyses!CK55/1000)+(analyses!CQ55*analyses!CR55)) ->  | DI55: =K55*F55/basis!$D$27 -> 0 | DJ55: =M55*F55/basis!$D$29 -> 0 | DK55: =N55*F55/basis!$D$32 -> 0 | DL55: =F55*P55/basis!$D$35 -> 0 | DS55: 0 | DT55: 0 | DU55: 0 | DV55: 0
A56: 2015-02-17 | B56: 2 | C56: 1900-01-03 | AS56: =IF(K56="","",IF(ISNA(nonespace(K56)),"",IF(K56="","",correction_DBO5(select_Methode_BSB5,K56)))) ->  | AX56: 323.6071429 | AZ56: =AZ55 -> 20 | BD56: 0.3 | BF56: 20 | BI56: 0 | BJ56: 0 | BK56: 0 | BL56: 0 | BQ56: 0 | BR56: 0 | BS56: 0 | BT56: 0 | CF56: =nonespace(T56) ->  | CS56: =(CO56*analyses!CP56)/((analyses!BL56*analyses!CK56/1000)+(analyses!CQ56*analyses!CR56)) ->  | DI56: =K56*F56/basis!$D$27 -> 0 | DJ56: =M56*F56/basis!$D$29 -> 0 | DK56: =N56*F56/basis!$D$32 -> 0 | DL56: =F56*P56/basis!$D$35 -> 0 | DS56: 0 | DT56: 0 | DU56: 0 | DV56: 0
A57: 2015-02-18 | B57: 2 | C57: 1900-01-04 | AS57: =IF(K57="","",IF(ISNA(nonespace(K57)),"",IF(K57="","",correction_DBO5(select_Methode_BSB5,K57)))) ->  | AX57: 323.6071429 | AZ57: =AZ56 -> 20 | BD57: 0.3 | BF57: 20 | BI57: 0 | BJ57: 0 | BK57: 0 | BL57: 0 | BQ57: 0 | BR57: 0 | BS57: 0 | BT57: 0 | CF57: =nonespace(T57) ->  | CS57: =(CO57*analyses!CP57)/((analyses!BL57*analyses!CK57/1000)+(analyses!CQ57*analyses!CR57)) ->  | DI57: =K57*F57/basis!$D$27 -> 0 | DJ57: =M57*F57/basis!$D$29 -> 0 | DK57: =N57*F57/basis!$D$32 -> 0 | DL57: =F57*P57/basis!$D$35 -> 0 | DS57: 0 | DT57: 0 | DU57: 0 | DV57: 0
A58: 2015-02-19 | B58: 2 | C58: 1900-01-05 | AS58: =IF(K58="","",IF(ISNA(nonespace(K58)),"",IF(K58="","",correction_DBO5(select_Methode_BSB5,K58)))) ->  | AX58: 323.6071429 | AZ58: =AZ57 -> 20 | BD58: 0.3 | BF58: 20 | BI58: 0 | BJ58: 0 | BK58: 0 | BL58: 0 | BQ58: 0 | BR58: 0 | BS58: 0 | BT58: 0 | CF58: =nonespace(T58) ->  | CS58: =(CO58*analyses!CP58)/((analyses!BL58*analyses!CK58/1000)+(analyses!CQ58*analyses!CR58)) ->  | DI58: =K58*F58/basis!$D$27 -> 0 | DJ58: =M58*F58/basis!$D$29 -> 0 | DK58: =N58*F58/basis!$D$32 -> 0 | DL58: =F58*P58/basis!$D$35 -> 0 | DS58: 0 | DT58: 0 | DU58: 0 | DV58: 0
A59: 2015-02-20 | B59: 2 | C59: 1900-01-06 | AS59: =IF(K59="","",IF(ISNA(nonespace(K59)),"",IF(K59="","",correction_DBO5(select_Methode_BSB5,K59)))) ->  | AX59: 323.6071429 | AZ59: =AZ58 -> 20 | BD59: 0.3 | BF59: 20 | BI59: 0 | BJ59: 0 | BK59: 0 | BL59: 0 | BQ59: 0 | BR59: 0 | BS59: 0 | BT59: 0 | CF59: =nonespace(T59) ->  | CS59: =(CO59*analyses!CP59)/((analyses!BL59*analyses!CK59/1000)+(analyses!CQ59*analyses!CR59)) ->  | DI59: =K59*F59/basis!$D$27 -> 0 | DJ59: =M59*F59/basis!$D$29 -> 0 | DK59: =N59*F59/basis!$D$32 -> 0 | DL59: =F59*P59/basis!$D$35 -> 0 | DS59: 0 | DT59: 0 | DU59: 0 | DV59: 0
A60: 2015-02-21 | B60: 2 | C60: 1900-01-07 | AS60: =IF(K60="","",IF(ISNA(nonespace(K60)),"",IF(K60="","",correction_DBO5(select_Methode_BSB5,K60)))) ->  | AX60: 323.6071429 | AZ60: =AZ59 -> 20 | BD60: 0.3 | BF60: 20 | BI60: 0 | BJ60: 0 | BK60: 0 | BL60: 0 | BQ60: 0 | BR60: 0 | BS60: 0 | BT60: 0 | CF60: =nonespace(T60) ->  | CS60: =(CO60*analyses!CP60)/((analyses!BL60*analyses!CK60/1000)+(analyses!CQ60*analyses!CR60)) ->  | DI60: =K60*F60/basis!$D$27 -> 0 | DJ60: =M60*F60/basis!$D$29 -> 0 | DK60: =N60*F60/basis!$D$32 -> 0 | DL60: =F60*P60/basis!$D$35 -> 0 | DS60: 0 | DT60: 0 | DU60: 0 | DV60: 0
A61: 2015-02-22 | B61: 2 | C61: 1900-01-01 | AS61: =IF(K61="","",IF(ISNA(nonespace(K61)),"",IF(K61="","",correction_DBO5(select_Methode_BSB5,K61)))) ->  | AX61: 323.6071429 | AZ61: =AZ60 -> 20 | BD61: 0.3 | BF61: 20 | BI61: 0 | BJ61: 0 | BK61: 0 | BL61: 0 | BQ61: 0 | BR61: 0 | BS61: 0 | BT61: 0 | CA61: =calcul_Ntot(N61,O61) ->  | CF61: =nonespace(T61) ->  | CS61: =(CO61*analyses!CP61)/((analyses!BL61*analyses!CK61/1000)+(analyses!CQ61*analyses!CR61)) ->  | DI61: =K61*F61/basis!$D$27 -> 0 | DJ61: =M61*F61/basis!$D$29 -> 0 | DK61: =N61*F61/basis!$D$32 -> 0 | DL61: =F61*P61/basis!$D$35 -> 0 | DS61: 0 | DT61: 0 | DU61: 0 | DV61: 0
A62: 2015-02-23 | B62: 2 | C62: 1900-01-02 | AS62: =IF(K62="","",IF(ISNA(nonespace(K62)),"",IF(K62="","",correction_DBO5(select_Methode_BSB5,K62)))) ->  | AX62: 323.6071429 | AZ62: =AZ61 -> 20 | BD62: 0.3 | BF62: 20 | BI62: 0 | BJ62: 0 | BK62: 0 | BL62: 0 | BQ62: 0 | BR62: 0 | BS62: 0 | BT62: 0 | CF62: =nonespace(T62) ->  | CS62: =(CO62*analyses!CP62)/((analyses!BL62*analyses!CK62/1000)+(analyses!CQ62*analyses!CR62)) ->  | DI62: =K62*F62/basis!$D$27 -> 0 | DJ62: =M62*F62/basis!$D$29 -> 0 | DK62: =N62*F62/basis!$D$32 -> 0 | DL62: =F62*P62/basis!$D$35 -> 0 | DS62: 0 | DT62: 0 | DU62: 0 | DV62: 0
A63: 2015-02-24 | B63: 2 | C63: 1900-01-03 | AS63: =IF(K63="","",IF(ISNA(nonespace(K63)),"",IF(K63="","",correction_DBO5(select_Methode_BSB5,K63)))) ->  | AX63: 323.6071429 | AZ63: =AZ62 -> 20 | BD63: 0.3 | BF63: 20 | BI63: 0 | BJ63: 0 | BK63: 0 | BL63: 0 | BQ63: 0 | BR63: 0 | BS63: 0 | BT63: 0 | CF63: =nonespace(T63) ->  | CS63: =(CO63*analyses!CP63)/((analyses!BL63*analyses!CK63/1000)+(analyses!CQ63*analyses!CR63)) ->  | DI63: =K63*F63/basis!$D$27 -> 0 | DJ63: =M63*F63/basis!$D$29 -> 0 | DK63: =N63*F63/basis!$D$32 -> 0 | DL63: =F63*P63/basis!$D$35 -> 0 | DS63: 0 | DT63: 0 | DU63: 0 | DV63: 0
A64: 2015-02-25 | B64: 2 | C64: 1900-01-04 | AS64: =IF(K64="","",IF(ISNA(nonespace(K64)),"",IF(K64="","",correction_DBO5(select_Methode_BSB5,K64)))) ->  | AX64: 323.6071429 | AZ64: =AZ63 -> 20 | BD64: 0.3 | BF64: 20 | BI64: 0 | BJ64: 0 | BK64: 0 | BL64: 0 | BQ64: 0 | BR64: 0 | BS64: 0 | BT64: 0 | CF64: =nonespace(T64) ->  | CS64: =(CO64*analyses!CP64)/((analyses!BL64*analyses!CK64/1000)+(analyses!CQ64*analyses!CR64)) ->  | DI64: =K64*F64/basis!$D$27 -> 0 | DJ64: =M64*F64/basis!$D$29 -> 0 | DK64: =N64*F64/basis!$D$32 -> 0 | DL64: =F64*P64/basis!$D$35 -> 0 | DS64: 0 | DT64: 0 | DU64: 0 | DV64: 0
A65: 2015-02-26 | B65: 2 | C65: 1900-01-05 | AS65: =IF(K65="","",IF(ISNA(nonespace(K65)),"",IF(K65="","",correction_DBO5(select_Methode_BSB5,K65)))) ->  | AX65: 323.6071429 | AZ65: =AZ64 -> 20 | BD65: 0.3 | BF65: 20 | BI65: 0 | BJ65: 0 | BK65: 0 | BL65: 0 | BQ65: 0 | BR65: 0 | BS65: 0 | BT65: 0 | CF65: =nonespace(T65) ->  | CS65: =(CO65*analyses!CP65)/((analyses!BL65*analyses!CK65/1000)+(analyses!CQ65*analyses!CR65)) ->  | DI65: =K65*F65/basis!$D$27 -> 0 | DJ65: =M65*F65/basis!$D$29 -> 0 | DK65: =N65*F65/basis!$D$32 -> 0 | DL65: =F65*P65/basis!$D$35 -> 0 | DS65: 0 | DT65: 0 | DU65: 0 | DV65: 0
A66: 2015-02-27 | B66: 2 | C66: 1900-01-06 | AS66: =IF(K66="","",IF(ISNA(nonespace(K66)),"",IF(K66="","",correction_DBO5(select_Methode_BSB5,K66)))) ->  | AX66: 323.6071429 | AZ66: =AZ65 -> 20 | BD66: 0.3 | BF66: 20 | BI66: 0 | BJ66: 0 | BK66: 0 | BL66: 0 | BQ66: 0 | BR66: 0 | BS66: 0 | BT66: 0 | CF66: =nonespace(T66) ->  | CS66: =(CO66*analyses!CP66)/((analyses!BL66*analyses!CK66/1000)+(analyses!CQ66*analyses!CR66)) ->  | DI66: =K66*F66/basis!$D$27 -> 0 | DJ66: =M66*F66/basis!$D$29 -> 0 | DK66: =N66*F66/basis!$D$32 -> 0 | DL66: =F66*P66/basis!$D$35 -> 0 | DS66: 0 | DT66: 0 | DU66: 0 | DV66: 0
A67: 2015-02-28 | B67: 2 | C67: 1900-01-07 | AS67: =IF(K67="","",IF(ISNA(nonespace(K67)),"",IF(K67="","",correction_DBO5(select_Methode_BSB5,K67)))) ->  | AV67: =H67 -> 0 | AW67: 9061 | AX67: =AW67/28 -> 323.6071429 | AZ67: =AZ66 -> 20 | BD67: 0.3 | BF67: 20 | BI67: 0 | BJ67: 0 | BK67: 0 | BL67: 0 | BQ67: 0 | BR67: 0 | BS67: 0 | BT67: 0 | CF67: =nonespace(T67) ->  | CS67: =(CO67*analyses!CP67)/((analyses!BL67*analyses!CK67/1000)+(analyses!CQ67*analyses!CR67)) ->  | DI67: =K67*F67/basis!$D$27 -> 0 | DJ67: =M67*F67/basis!$D$29 -> 0 | DK67: =N67*F67/basis!$D$32 -> 0 | DL67: =F67*P67/basis!$D$35 -> 0 | DS67: 0 | DT67: 0 | DU67: 0 | DV67: 0
A68: 2015-03-01 | B68: 3 | C68: 1900-01-01 | AS68: =IF(K68="","",IF(ISNA(nonespace(K68)),"",IF(K68="","",correction_DBO5(select_Methode_BSB5,K68)))) ->  | AX68: =AX69 -> 418.1935484 | AZ68: =AZ67 -> 20 | BD68: 0.3 | BF68: 20 | BI68: 0 | BJ68: 0 | BK68: 0 | BL68: 0 | BQ68: 0 | BR68: 0 | BS68: 0 | BT68: 0 | CF68: =nonespace(T68) ->  | CS68: =(CO68*analyses!CP68)/((analyses!BL68*analyses!CK68/1000)+(analyses!CQ68*analyses!CR68)) ->  | DI68: =K68*F68/basis!$D$27 -> 0 | DJ68: =M68*F68/basis!$D$29 -> 0 | DK68: =N68*F68/basis!$D$32 -> 0 | DL68: =F68*P68/basis!$D$35 -> 0 | DS68: 0 | DT68: 0 | DU68: 0 | DV68: 0
A69: 2015-03-02 | B69: 3 | C69: 1900-01-02 | AS69: =IF(K69="","",IF(ISNA(nonespace(K69)),"",IF(K69="","",correction_DBO5(select_Methode_BSB5,K69)))) ->  | AX69: 418.1935484 | AZ69: =AZ68 -> 20 | BD69: 0.3 | BF69: 20 | BI69: 0 | BJ69: 0 | BK69: 0 | BL69: 0 | BQ69: 0 | BR69: 0 | BS69: 0 | BT69: 0 | CF69: =nonespace(T69) ->  | CS69: =(CO69*analyses!CP69)/((analyses!BL69*analyses!CK69/1000)+(analyses!CQ69*analyses!CR69)) ->  | DI69: =K69*F69/basis!$D$27 -> 0 | DJ69: =M69*F69/basis!$D$29 -> 0 | DK69: =N69*F69/basis!$D$32 -> 0 | DL69: =F69*P69/basis!$D$35 -> 0 | DS69: 0 | DT69: 0 | DU69: 0 | DV69: 0
A70: 2015-03-03 | B70: 3 | C70: 1900-01-03 | AS70: =IF(K70="","",IF(ISNA(nonespace(K70)),"",IF(K70="","",correction_DBO5(select_Methode_BSB5,K70)))) ->  | AX70: 418.1935484 | AZ70: =AZ69 -> 20 | BD70: 0.3 | BF70: 20 | BI70: 0 | BJ70: 0 | BK70: 0 | BL70: 0 | BQ70: 0 | BR70: 0 | BS70: 0 | BT70: 0 | CF70: =nonespace(T70) ->  | CS70: =(CO70*analyses!CP70)/((analyses!BL70*analyses!CK70/1000)+(analyses!CQ70*analyses!CR70)) ->  | DI70: =K70*F70/basis!$D$27 -> 0 | DJ70: =M70*F70/basis!$D$29 -> 0 | DK70: =N70*F70/basis!$D$32 -> 0 | DL70: =F70*P70/basis!$D$35 -> 0 | DS70: 0 | DT70: 0 | DU70: 0 | DV70: 0
A71: 2015-03-04 | B71: 3 | C71: 1900-01-04 | AS71: =IF(K71="","",IF(ISNA(nonespace(K71)),"",IF(K71="","",correction_DBO5(select_Methode_BSB5,K71)))) ->  | AX71: 418.1935484 | AZ71: =AZ70 -> 20 | BD71: 0.3 | BF71: 20 | BI71: 0 | BJ71: 0 | BK71: 0 | BL71: 0 | BQ71: 0 | BR71: 0 | BS71: 0 | BT71: 0 | CF71: =nonespace(T71) ->  | CS71: =(CO71*analyses!CP71)/((analyses!BL71*analyses!CK71/1000)+(analyses!CQ71*analyses!CR71)) ->  | DI71: =K71*F71/basis!$D$27 -> 0 | DJ71: =M71*F71/basis!$D$29 -> 0 | DK71: =N71*F71/basis!$D$32 -> 0 | DL71: =F71*P71/basis!$D$35 -> 0 | DS71: 0 | DT71: 0 | DU71: 0 | DV71: 0
A72: 2015-03-05 | B72: 3 | C72: 1900-01-05 | AS72: =IF(K72="","",IF(ISNA(nonespace(K72)),"",IF(K72="","",correction_DBO5(select_Methode_BSB5,K72)))) ->  | AX72: 418.1935484 | AZ72: =AZ71 -> 20 | BD72: 0.3 | BF72: 20 | BI72: 0 | BJ72: 0 | BK72: 0 | BL72: 0 | BQ72: 0 | BR72: 0 | BS72: 0 | BT72: 0 | CF72: =nonespace(T72) ->  | CS72: =(CO72*analyses!CP72)/((analyses!BL72*analyses!CK72/1000)+(analyses!CQ72*analyses!CR72)) ->  | DI72: =K72*F72/basis!$D$27 -> 0 | DJ72: =M72*F72/basis!$D$29 -> 0 | DK72: =N72*F72/basis!$D$32 -> 0 | DL72: =F72*P72/basis!$D$35 -> 0 | DS72: 0 | DT72: 0 | DU72: 0 | DV72: 0
A73: 2015-03-06 | B73: 3 | C73: =WEEKDAY(A73) -> 1900-01-06 | AB73: =Volume_bassin_biologique ->  | AS73: =IF(K73="","",IF(ISNA(nonespace(K73)),"",IF(K73="","",correction_DBO5(select_Methode_BSB5,K73)))) ->  | AX73: 418.1935484 | AZ73: =AZ72 -> 20 | BD73: 0.3 | BF73: 20 | BI73: 0 | BJ73: =calcul_debit_entree(debimetre_entreeSTEP,F73,G73,H73) -> 0 | BK73: 0 | BL73: =calcul_debit_sortie(debimetre_entreeSTEP,F73,G73,H73) -> 0 | BQ73: =IF(BI73="",NA(),BI73) -> 0 | BR73: =IF(BJ73="",NA(),BJ73) -> 0 | BS73: =IF(BK73="",NA(),BK73) -> 0 | BT73: =IF(BL73="",NA(),BL73) -> 0 | BU73: =IF(BM73="",NA(),BM73) ->  | BV73: =IF(BN73="",NA(),BN73) ->  | BW73: =nonespace(AS73) ->  | CF73: =nonespace(T73) ->  | CS73: =(CO73*analyses!CP73)/((analyses!BL73*analyses!CK73/1000)+(analyses!CQ73*analyses!CR73)) ->  | DF73: =IF(OR(AS73="",AS73=0),NA(),AS73) ->  | DH73: =Ammonium_zeigen_ueber_10_Grad(CF73,BH73) ->  | DI73: =K73*F73/basis!$D$27 -> 0 | DJ73: =M73*F73/basis!$D$29 -> 0 | DK73: =N73*F73/basis!$D$32 -> 0 | DL73: =F73*P73/basis!$D$35 -> 0 | DS73: =IF(ISNA(BQ73),"",BQ73) -> 0 | DT73: =IF(ISNA(BR73),"",BR73) -> 0 | DU73: =IF(ISNA(BS73),"",BS73) -> 0 | DV73: =IF(ISNA(BT73),"",BT73) -> 0 | DW73: =IF(ISNA(BU73),"",BU73) ->  | DX73: =IF(ISNA(BV73),"",BV73) ->  | DY73: =IF(ISNA(BW73),"",BW73) ->  | DZ73: =IF(ISNA(BX73),"",BX73) ->  | EA73: =IF(ISNA(BY73),"",BY73) ->  | EB73: =IF(ISNA(BZ73),"",BZ73) ->  | EC73: =IF(ISNA(CA73),"",CA73) ->  | ED73: =IF(ISNA(CB73),"",CB73) ->  | EE73: =IF(ISNA(CC73),"",CC73) ->  | EF73: =IF(ISNA(CD73),"",CD73) ->  | EG73: =IF(ISNA(CE73),"",CE73) ->  | EH73: =IF(ISNA(CF73),"",CF73) ->  | EI73: =IF(ISNA(CG73),"",CG73) ->  | EJ73: =IF(ISNA(CH73),"",CH73) ->  | EK73: =IF(ISNA(CI73),"",CI73) ->  | EL73: =IF(ISNA(CJ73),"",CJ73) ->  | EM73: =IF(ISNA(CK73),"",CK73) ->  | EN73: =IF(ISNA(CL73),"",CL73) ->  | EO73: =IF(ISNA(CM73),"",CM73) ->  | EP73: =IF(ISNA(CN73),"",CN73) ->  | EQ73: =IF(ISNA(CO73),"",CO73) ->  | ER73: =IF(ISNA(CP73),"",CP73) ->  | ES73: =IF(ISNA(CQ73),"",CQ73) ->  | ET73: =IF(ISNA(CR73),"",CR73) ->  | EU73: =IF(ISNA(CS73),"",CS73) ->  | EV73: =IF(ISNA(CT73),"",CT73) ->  | EW73: =IF(ISNA(CU73),"",CU73) ->  | EX73: =IF(ISNA(CV73),"",CV73) ->  | EY73: =IF(ISNA(CW73),"",CW73) ->  | EZ73: =IF(ISNA(CX73),"",CX73) ->  | FA73: =IF(ISNA(CY73),"",CY73) ->  | FB73: =IF(ISNA(CZ73),"",CZ73) ->  | FC73: =IF(ISNA(DA73),"",DA73) ->  | FD73: =IF(ISNA(DB73),"",DB73) ->  | FE73: =IF(ISNA(DC73),"",DC73) ->  | FF73: =IF(ISNA(DD73),"",DD73) ->  | FG73: =IF(ISNA(DE73),"",DE73) ->  | FH73: =IF(ISNA(DF73),"",DF73) -> 
A74: =A73+1 -> 2015-03-07 | B74: =MONTH(A74) -> 3 | C74: 1900-01-07 | AH74: =IF(OR(AF74="",AG74=""),"",AF74*AG74) ->  | AS74: =IF(K74="","",IF(ISNA(nonespace(K74)),"",IF(K74="","",correction_DBO5(select_Methode_BSB5,K74)))) ->  | AT74: =IF(ISERROR(K74/AS74),"",K74/AS74) ->  | AX74: 418.1935484 | AZ74: =AZ73 -> 20 | BD74: 0.3 | BF74: 20 | BH74: =nonespace_nonNA(D74) ->  | BI74: =IF(E74="",0,E74) -> 0 | BJ74: 0 | BK74: =IF(G74="",0,G74) -> 0 | BL74: 0 | BM74: =IF(I74="","",I74) ->  | BN74: =IF(J74="","",J74) ->  | BP74: =nonespace(BH74) ->  | BQ74: 0 | BR74: 0 | BS74: 0 | BT74: 0 | BZ74: =calcul_NH4(N74,O74) ->  | CF74: =nonespace(T74) ->  | CS74: =(CO74*analyses!CP74)/((analyses!BL74*analyses!CK74/1000)+(analyses!CQ74*analyses!CR74)) ->  | DG74: =Ammonium_zeigen_unter_10_Grad(CF74,BH74) ->  | DI74: =K74*F74/basis!$D$27 -> 0 | DJ74: =M74*F74/basis!$D$29 -> 0 | DK74: =N74*F74/basis!$D$32 -> 0 | DL74: =F74*P74/basis!$D$35 -> 0 | DS74: 0 | DT74: 0 | DU74: 0 | DV74: 0
A75: 2015-03-08 | B75: 3 | C75: 1900-01-01 | AS75: =IF(K75="","",IF(ISNA(nonespace(K75)),"",IF(K75="","",correction_DBO5(select_Methode_BSB5,K75)))) ->  | AX75: 418.1935484 | AZ75: =AZ74 -> 20 | BA75: =BA74 ->  | BB75: =BB74 ->  | BC75: =BC74 ->  | BD75: =BD74 -> 0.3 | BE75: =BE74 ->  | BF75: =BF74 -> 20 | BI75: 0 | BJ75: 0 | BK75: 0 | BL75: 0 | BQ75: 0 | BR75: 0 | BS75: 0 | BT75: 0 | CF75: =nonespace(T75) ->  | CS75: =(CO75*analyses!CP75)/((analyses!BL75*analyses!CK75/1000)+(analyses!CQ75*analyses!CR75)) ->  | DI75: =K75*F75/basis!$D$27 -> 0 | DJ75: =M75*F75/basis!$D$29 -> 0 | DK75: =N75*F75/basis!$D$32 -> 0 | DL75: =F75*P75/basis!$D$35 -> 0 | DS75: 0 | DT75: 0 | DU75: 0 | DV75: 0
A76: 2015-03-09 | B76: 3 | C76: 1900-01-02 | AS76: =IF(K76="","",IF(ISNA(nonespace(K76)),"",IF(K76="","",correction_DBO5(select_Methode_BSB5,K76)))) ->  | AX76: 418.1935484 | AZ76: =AZ75 -> 20 | BD76: 0.3 | BF76: 20 | BI76: 0 | BJ76: 0 | BK76: 0 | BL76: 0 | BQ76: 0 | BR76: 0 | BS76: 0 | BT76: 0 | CF76: =nonespace(T76) ->  | CS76: =(CO76*analyses!CP76)/((analyses!BL76*analyses!CK76/1000)+(analyses!CQ76*analyses!CR76)) ->  | DI76: =K76*F76/basis!$D$27 -> 0 | DJ76: =M76*F76/basis!$D$29 -> 0 | DK76: =N76*F76/basis!$D$32 -> 0 | DL76: =F76*P76/basis!$D$35 -> 0 | DS76: 0 | DT76: 0 | DU76: 0 | DV76: 0
A77: 2015-03-10 | B77: 3 | C77: 1900-01-03 | AS77: =IF(K77="","",IF(ISNA(nonespace(K77)),"",IF(K77="","",correction_DBO5(select_Methode_BSB5,K77)))) ->  | AX77: 418.1935484 | AZ77: =AZ76 -> 20 | BD77: 0.3 | BF77: 20 | BI77: 0 | BJ77: 0 | BK77: 0 | BL77: 0 | BQ77: 0 | BR77: 0 | BS77: 0 | BT77: 0 | CF77: =nonespace(T77) ->  | CS77: =(CO77*analyses!CP77)/((analyses!BL77*analyses!CK77/1000)+(analyses!CQ77*analyses!CR77)) ->  | DI77: =K77*F77/basis!$D$27 -> 0 | DJ77: =M77*F77/basis!$D$29 -> 0 | DK77: =N77*F77/basis!$D$32 -> 0 | DL77: =F77*P77/basis!$D$35 -> 0 | DS77: 0 | DT77: 0 | DU77: 0 | DV77: 0
A78: 2015-03-11 | B78: 3 | C78: 1900-01-04 | AS78: =IF(K78="","",IF(ISNA(nonespace(K78)),"",IF(K78="","",correction_DBO5(select_Methode_BSB5,K78)))) ->  | AX78: 418.1935484 | AZ78: =AZ77 -> 20 | BD78: 0.3 | BF78: 20 | BI78: 0 | BJ78: 0 | BK78: 0 | BL78: 0 | BQ78: 0 | BR78: 0 | BS78: 0 | BT78: 0 | CF78: =nonespace(T78) ->  | CS78: =(CO78*analyses!CP78)/((analyses!BL78*analyses!CK78/1000)+(analyses!CQ78*analyses!CR78)) ->  | DI78: =K78*F78/basis!$D$27 -> 0 | DJ78: =M78*F78/basis!$D$29 -> 0 | DK78: =N78*F78/basis!$D$32 -> 0 | DL78: =F78*P78/basis!$D$35 -> 0 | DS78: 0 | DT78: 0 | DU78: 0 | DV78: 0
A79: 2015-03-12 | B79: 3 | C79: 1900-01-05 | AS79: =IF(K79="","",IF(ISNA(nonespace(K79)),"",IF(K79="","",correction_DBO5(select_Methode_BSB5,K79)))) ->  | AX79: 418.1935484 | AZ79: =AZ78 -> 20 | BD79: 0.3 | BF79: 20 | BI79: 0 | BJ79: 0 | BK79: 0 | BL79: 0 | BQ79: 0 | BR79: 0 | BS79: 0 | BT79: 0 | CF79: =nonespace(T79) ->  | CS79: =(CO79*analyses!CP79)/((analyses!BL79*analyses!CK79/1000)+(analyses!CQ79*analyses!CR79)) ->  | DI79: =K79*F79/basis!$D$27 -> 0 | DJ79: =M79*F79/basis!$D$29 -> 0 | DK79: =N79*F79/basis!$D$32 -> 0 | DL79: =F79*P79/basis!$D$35 -> 0 | DS79: 0 | DT79: 0 | DU79: 0 | DV79: 0
A80: 2015-03-13 | B80: 3 | C80: 1900-01-06 | AS80: =IF(K80="","",IF(ISNA(nonespace(K80)),"",IF(K80="","",correction_DBO5(select_Methode_BSB5,K80)))) ->  | AX80: 418.1935484 | AZ80: =AZ79 -> 20 | BD80: 0.3 | BF80: 20 | BI80: 0 | BJ80: 0 | BK80: 0 | BL80: 0 | BQ80: 0 | BR80: 0 | BS80: 0 | BT80: 0 | CF80: =nonespace(T80) ->  | CS80: =(CO80*analyses!CP80)/((analyses!BL80*analyses!CK80/1000)+(analyses!CQ80*analyses!CR80)) ->  | DI80: =K80*F80/basis!$D$27 -> 0 | DJ80: =M80*F80/basis!$D$29 -> 0 | DK80: =N80*F80/basis!$D$32 -> 0 | DL80: =F80*P80/basis!$D$35 -> 0 | DS80: 0 | DT80: 0 | DU80: 0 | DV80: 0
A81: 2015-03-14 | B81: 3 | C81: 1900-01-07 | AS81: =IF(K81="","",IF(ISNA(nonespace(K81)),"",IF(K81="","",correction_DBO5(select_Methode_BSB5,K81)))) ->  | AX81: 418.1935484 | AZ81: =AZ80 -> 20 | BD81: 0.3 | BF81: 20 | BI81: 0 | BJ81: 0 | BK81: 0 | BL81: 0 | BQ81: 0 | BR81: 0 | BS81: 0 | BT81: 0 | CF81: =nonespace(T81) ->  | CS81: =(CO81*analyses!CP81)/((analyses!BL81*analyses!CK81/1000)+(analyses!CQ81*analyses!CR81)) ->  | DI81: =K81*F81/basis!$D$27 -> 0 | DJ81: =M81*F81/basis!$D$29 -> 0 | DK81: =N81*F81/basis!$D$32 -> 0 | DL81: =F81*P81/basis!$D$35 -> 0 | DS81: 0 | DT81: 0 | DU81: 0 | DV81: 0
A82: 2015-03-15 | B82: 3 | C82: 1900-01-01 | AS82: =IF(K82="","",IF(ISNA(nonespace(K82)),"",IF(K82="","",correction_DBO5(select_Methode_BSB5,K82)))) ->  | AX82: 418.1935484 | AZ82: =AZ81 -> 20 | BD82: 0.3 | BF82: 20 | BI82: 0 | BJ82: 0 | BK82: 0 | BL82: 0 | BQ82: 0 | BR82: 0 | BS82: 0 | BT82: 0 | CF82: =nonespace(T82) ->  | CS82: =(CO82*analyses!CP82)/((analyses!BL82*analyses!CK82/1000)+(analyses!CQ82*analyses!CR82)) ->  | DI82: =K82*F82/basis!$D$27 -> 0 | DJ82: =M82*F82/basis!$D$29 -> 0 | DK82: =N82*F82/basis!$D$32 -> 0 | DL82: =F82*P82/basis!$D$35 -> 0 | DS82: 0 | DT82: 0 | DU82: 0 | DV82: 0
A83: 2015-03-16 | B83: 3 | C83: 1900-01-02 | AS83: =IF(K83="","",IF(ISNA(nonespace(K83)),"",IF(K83="","",correction_DBO5(select_Methode_BSB5,K83)))) ->  | AX83: 418.1935484 | AZ83: =AZ82 -> 20 | BD83: 0.3 | BF83: 20 | BI83: 0 | BJ83: 0 | BK83: 0 | BL83: 0 | BQ83: 0 | BR83: 0 | BS83: 0 | BT83: 0 | CF83: =nonespace(T83) ->  | CS83: =(CO83*analyses!CP83)/((analyses!BL83*analyses!CK83/1000)+(analyses!CQ83*analyses!CR83)) ->  | DI83: =K83*F83/basis!$D$27 -> 0 | DJ83: =M83*F83/basis!$D$29 -> 0 | DK83: =N83*F83/basis!$D$32 -> 0 | DL83: =F83*P83/basis!$D$35 -> 0 | DS83: 0 | DT83: 0 | DU83: 0 | DV83: 0
A84: 2015-03-17 | B84: 3 | C84: 1900-01-03 | AS84: =IF(K84="","",IF(ISNA(nonespace(K84)),"",IF(K84="","",correction_DBO5(select_Methode_BSB5,K84)))) ->  | AX84: 418.1935484 | AZ84: =AZ83 -> 20 | BD84: 0.3 | BF84: 20 | BI84: 0 | BJ84: 0 | BK84: 0 | BL84: 0 | BQ84: 0 | BR84: 0 | BS84: 0 | BT84: 0 | CF84: =nonespace(T84) ->  | CS84: =(CO84*analyses!CP84)/((analyses!BL84*analyses!CK84/1000)+(analyses!CQ84*analyses!CR84)) ->  | DI84: =K84*F84/basis!$D$27 -> 0 | DJ84: =M84*F84/basis!$D$29 -> 0 | DK84: =N84*F84/basis!$D$32 -> 0 | DL84: =F84*P84/basis!$D$35 -> 0 | DS84: 0 | DT84: 0 | DU84: 0 | DV84: 0
A85: 2015-03-18 | B85: 3 | C85: 1900-01-04 | AS85: =IF(K85="","",IF(ISNA(nonespace(K85)),"",IF(K85="","",correction_DBO5(select_Methode_BSB5,K85)))) ->  | AX85: 418.1935484 | AZ85: =AZ84 -> 20 | BD85: 0.3 | BF85: 20 | BI85: 0 | BJ85: 0 | BK85: 0 | BL85: 0 | BQ85: 0 | BR85: 0 | BS85: 0 | BT85: 0 | CF85: =nonespace(T85) ->  | CS85: =(CO85*analyses!CP85)/((analyses!BL85*analyses!CK85/1000)+(analyses!CQ85*analyses!CR85)) ->  | DI85: =K85*F85/basis!$D$27 -> 0 | DJ85: =M85*F85/basis!$D$29 -> 0 | DK85: =N85*F85/basis!$D$32 -> 0 | DL85: =F85*P85/basis!$D$35 -> 0 | DS85: 0 | DT85: 0 | DU85: 0 | DV85: 0
A86: 2015-03-19 | B86: 3 | C86: 1900-01-05 | AS86: =IF(K86="","",IF(ISNA(nonespace(K86)),"",IF(K86="","",correction_DBO5(select_Methode_BSB5,K86)))) ->  | AX86: 418.1935484 | AZ86: =AZ85 -> 20 | BD86: 0.3 | BF86: 20 | BI86: 0 | BJ86: 0 | BK86: 0 | BL86: 0 | BQ86: 0 | BR86: 0 | BS86: 0 | BT86: 0 | CF86: =nonespace(T86) ->  | CS86: =(CO86*analyses!CP86)/((analyses!BL86*analyses!CK86/1000)+(analyses!CQ86*analyses!CR86)) ->  | DI86: =K86*F86/basis!$D$27 -> 0 | DJ86: =M86*F86/basis!$D$29 -> 0 | DK86: =N86*F86/basis!$D$32 -> 0 | DL86: =F86*P86/basis!$D$35 -> 0 | DS86: 0 | DT86: 0 | DU86: 0 | DV86: 0
A87: 2015-03-20 | B87: 3 | C87: 1900-01-06 | AS87: =IF(K87="","",IF(ISNA(nonespace(K87)),"",IF(K87="","",correction_DBO5(select_Methode_BSB5,K87)))) ->  | AX87: 418.1935484 | AZ87: =AZ86 -> 20 | BD87: 0.3 | BF87: 20 | BI87: 0 | BJ87: 0 | BK87: 0 | BL87: 0 | BQ87: 0 | BR87: 0 | BS87: 0 | BT87: 0 | CF87: =nonespace(T87) ->  | CS87: =(CO87*analyses!CP87)/((analyses!BL87*analyses!CK87/1000)+(analyses!CQ87*analyses!CR87)) ->  | DI87: =K87*F87/basis!$D$27 -> 0 | DJ87: =M87*F87/basis!$D$29 -> 0 | DK87: =N87*F87/basis!$D$32 -> 0 | DL87: =F87*P87/basis!$D$35 -> 0 | DS87: 0 | DT87: 0 | DU87: 0 | DV87: 0
A88: 2015-03-21 | B88: 3 | C88: 1900-01-07 | AS88: =IF(K88="","",IF(ISNA(nonespace(K88)),"",IF(K88="","",correction_DBO5(select_Methode_BSB5,K88)))) ->  | AX88: 418.1935484 | AZ88: =AZ87 -> 20 | BD88: 0.3 | BF88: 20 | BI88: 0 | BJ88: 0 | BK88: 0 | BL88: 0 | BQ88: 0 | BR88: 0 | BS88: 0 | BT88: 0 | CF88: =nonespace(T88) ->  | CS88: =(CO88*analyses!CP88)/((analyses!BL88*analyses!CK88/1000)+(analyses!CQ88*analyses!CR88)) ->  | DI88: =K88*F88/basis!$D$27 -> 0 | DJ88: =M88*F88/basis!$D$29 -> 0 | DK88: =N88*F88/basis!$D$32 -> 0 | DL88: =F88*P88/basis!$D$35 -> 0 | DS88: 0 | DT88: 0 | DU88: 0 | DV88: 0
A89: 2015-03-22 | B89: 3 | C89: 1900-01-01 | AS89: =IF(K89="","",IF(ISNA(nonespace(K89)),"",IF(K89="","",correction_DBO5(select_Methode_BSB5,K89)))) ->  | AX89: 418.1935484 | AZ89: =AZ88 -> 20 | BD89: 0.3 | BF89: 20 | BI89: 0 | BJ89: 0 | BK89: 0 | BL89: 0 | BQ89: 0 | BR89: 0 | BS89: 0 | BT89: 0 | CF89: =nonespace(T89) ->  | CS89: =(CO89*analyses!CP89)/((analyses!BL89*analyses!CK89/1000)+(analyses!CQ89*analyses!CR89)) ->  | DI89: =K89*F89/basis!$D$27 -> 0 | DJ89: =M89*F89/basis!$D$29 -> 0 | DK89: =N89*F89/basis!$D$32 -> 0 | DL89: =F89*P89/basis!$D$35 -> 0 | DS89: 0 | DT89: 0 | DU89: 0 | DV89: 0
A90: 2015-03-23 | B90: 3 | C90: 1900-01-02 | AS90: =IF(K90="","",IF(ISNA(nonespace(K90)),"",IF(K90="","",correction_DBO5(select_Methode_BSB5,K90)))) ->  | AX90: 418.1935484 | AZ90: =AZ89 -> 20 | BD90: 0.3 | BF90: 20 | BI90: 0 | BJ90: 0 | BK90: 0 | BL90: 0 | BQ90: 0 | BR90: 0 | BS90: 0 | BT90: 0 | CF90: =nonespace(T90) ->  | CS90: =(CO90*analyses!CP90)/((analyses!BL90*analyses!CK90/1000)+(analyses!CQ90*analyses!CR90)) ->  | DI90: =K90*F90/basis!$D$27 -> 0 | DJ90: =M90*F90/basis!$D$29 -> 0 | DK90: =N90*F90/basis!$D$32 -> 0 | DL90: =F90*P90/basis!$D$35 -> 0 | DS90: 0 | DT90: 0 | DU90: 0 | DV90: 0
A91: 2015-03-24 | B91: 3 | C91: 1900-01-03 | AS91: =IF(K91="","",IF(ISNA(nonespace(K91)),"",IF(K91="","",correction_DBO5(select_Methode_BSB5,K91)))) ->  | AX91: 418.1935484 | AZ91: =AZ90 -> 20 | BD91: 0.3 | BF91: 20 | BI91: 0 | BJ91: 0 | BK91: 0 | BL91: 0 | BQ91: 0 | BR91: 0 | BS91: 0 | BT91: 0 | CF91: =nonespace(T91) ->  | CS91: =(CO91*analyses!CP91)/((analyses!BL91*analyses!CK91/1000)+(analyses!CQ91*analyses!CR91)) ->  | DI91: =K91*F91/basis!$D$27 -> 0 | DJ91: =M91*F91/basis!$D$29 -> 0 | DK91: =N91*F91/basis!$D$32 -> 0 | DL91: =F91*P91/basis!$D$35 -> 0 | DS91: 0 | DT91: 0 | DU91: 0 | DV91: 0
A92: 2015-03-25 | B92: 3 | C92: 1900-01-04 | AS92: =IF(K92="","",IF(ISNA(nonespace(K92)),"",IF(K92="","",correction_DBO5(select_Methode_BSB5,K92)))) ->  | AX92: 418.1935484 | AZ92: =AZ91 -> 20 | BD92: 0.3 | BF92: 20 | BI92: 0 | BJ92: 0 | BK92: 0 | BL92: 0 | BQ92: 0 | BR92: 0 | BS92: 0 | BT92: 0 | CF92: =nonespace(T92) ->  | CS92: =(CO92*analyses!CP92)/((analyses!BL92*analyses!CK92/1000)+(analyses!CQ92*analyses!CR92)) ->  | DI92: =K92*F92/basis!$D$27 -> 0 | DJ92: =M92*F92/basis!$D$29 -> 0 | DK92: =N92*F92/basis!$D$32 -> 0 | DL92: =F92*P92/basis!$D$35 -> 0 | DS92: 0 | DT92: 0 | DU92: 0 | DV92: 0
A93: 2015-03-26 | B93: 3 | C93: 1900-01-05 | AS93: =IF(K93="","",IF(ISNA(nonespace(K93)),"",IF(K93="","",correction_DBO5(select_Methode_BSB5,K93)))) ->  | AX93: 418.1935484 | AZ93: =AZ92 -> 20 | BD93: 0.3 | BF93: 20 | BI93: 0 | BJ93: 0 | BK93: 0 | BL93: 0 | BQ93: 0 | BR93: 0 | BS93: 0 | BT93: 0 | CF93: =nonespace(T93) ->  | CS93: =(CO93*analyses!CP93)/((analyses!BL93*analyses!CK93/1000)+(analyses!CQ93*analyses!CR93)) ->  | DI93: =K93*F93/basis!$D$27 -> 0 | DJ93: =M93*F93/basis!$D$29 -> 0 | DK93: =N93*F93/basis!$D$32 -> 0 | DL93: =F93*P93/basis!$D$35 -> 0 | DS93: 0 | DT93: 0 | DU93: 0 | DV93: 0
A94: 2015-03-27 | B94: 3 | C94: 1900-01-06 | AS94: =IF(K94="","",IF(ISNA(nonespace(K94)),"",IF(K94="","",correction_DBO5(select_Methode_BSB5,K94)))) ->  | AX94: 418.1935484 | AZ94: =AZ93 -> 20 | BD94: 0.3 | BF94: 20 | BI94: 0 | BJ94: 0 | BK94: 0 | BL94: 0 | BQ94: 0 | BR94: 0 | BS94: 0 | BT94: 0 | CF94: =nonespace(T94) ->  | CS94: =(CO94*analyses!CP94)/((analyses!BL94*analyses!CK94/1000)+(analyses!CQ94*analyses!CR94)) ->  | DI94: =K94*F94/basis!$D$27 -> 0 | DJ94: =M94*F94/basis!$D$29 -> 0 | DK94: =N94*F94/basis!$D$32 -> 0 | DL94: =F94*P94/basis!$D$35 -> 0 | DS94: 0 | DT94: 0 | DU94: 0 | DV94: 0
A95: 2015-03-28 | B95: 3 | C95: 1900-01-07 | AS95: =IF(K95="","",IF(ISNA(nonespace(K95)),"",IF(K95="","",correction_DBO5(select_Methode_BSB5,K95)))) ->  | AX95: 418.1935484 | AZ95: =AZ94 -> 20 | BD95: 0.3 | BF95: 20 | BI95: 0 | BJ95: 0 | BK95: 0 | BL95: 0 | BQ95: 0 | BR95: 0 | BS95: 0 | BT95: 0 | CF95: =nonespace(T95) ->  | CS95: =(CO95*analyses!CP95)/((analyses!BL95*analyses!CK95/1000)+(analyses!CQ95*analyses!CR95)) ->  | DI95: =K95*F95/basis!$D$27 -> 0 | DJ95: =M95*F95/basis!$D$29 -> 0 | DK95: =N95*F95/basis!$D$32 -> 0 | DL95: =F95*P95/basis!$D$35 -> 0 | DS95: 0 | DT95: 0 | DU95: 0 | DV95: 0
A96: 2015-03-29 | B96: 3 | C96: 1900-01-01 | AS96: =IF(K96="","",IF(ISNA(nonespace(K96)),"",IF(K96="","",correction_DBO5(select_Methode_BSB5,K96)))) ->  | AX96: 418.1935484 | AZ96: =AZ95 -> 20 | BD96: 0.3 | BF96: 20 | BI96: 0 | BJ96: 0 | BK96: 0 | BL96: 0 | BQ96: 0 | BR96: 0 | BS96: 0 | BT96: 0 | CF96: =nonespace(T96) ->  | CS96: =(CO96*analyses!CP96)/((analyses!BL96*analyses!CK96/1000)+(analyses!CQ96*analyses!CR96)) ->  | DI96: =K96*F96/basis!$D$27 -> 0 | DJ96: =M96*F96/basis!$D$29 -> 0 | DK96: =N96*F96/basis!$D$32 -> 0 | DL96: =F96*P96/basis!$D$35 -> 0 | DS96: 0 | DT96: 0 | DU96: 0 | DV96: 0
A97: 2015-03-30 | B97: 3 | C97: 1900-01-02 | AS97: =IF(K97="","",IF(ISNA(nonespace(K97)),"",IF(K97="","",correction_DBO5(select_Methode_BSB5,K97)))) ->  | AX97: 418.1935484 | AZ97: =AZ96 -> 20 | BD97: 0.3 | BF97: 20 | BI97: 0 | BJ97: 0 | BK97: 0 | BL97: 0 | BQ97: 0 | BR97: 0 | BS97: 0 | BT97: 0 | CF97: =nonespace(T97) ->  | CS97: =(CO97*analyses!CP97)/((analyses!BL97*analyses!CK97/1000)+(analyses!CQ97*analyses!CR97)) ->  | DI97: =K97*F97/basis!$D$27 -> 0 | DJ97: =M97*F97/basis!$D$29 -> 0 | DK97: =N97*F97/basis!$D$32 -> 0 | DL97: =F97*P97/basis!$D$35 -> 0 | DS97: 0 | DT97: 0 | DU97: 0 | DV97: 0
A98: 2015-03-31 | B98: 3 | C98: 1900-01-03 | AS98: =IF(K98="","",IF(ISNA(nonespace(K98)),"",IF(K98="","",correction_DBO5(select_Methode_BSB5,K98)))) ->  | AV98: =H98 -> 0 | AW98: 12964 | AX98: =AW98/31 -> 418.1935484 | AZ98: =AZ97 -> 20 | BD98: 0.3 | BF98: 20 | BI98: 0 | BJ98: 0 | BK98: 0 | BL98: 0 | BQ98: 0 | BR98: 0 | BS98: 0 | BT98: 0 | CF98: =nonespace(T98) ->  | CS98: =(CO98*analyses!CP98)/((analyses!BL98*analyses!CK98/1000)+(analyses!CQ98*analyses!CR98)) ->  | DI98: =K98*F98/basis!$D$27 -> 0 | DJ98: =M98*F98/basis!$D$29 -> 0 | DK98: =N98*F98/basis!$D$32 -> 0 | DL98: =F98*P98/basis!$D$35 -> 0 | DS98: 0 | DT98: 0 | DU98: 0 | DV98: 0
A99: 2015-04-01 | B99: 4 | C99: 1900-01-04 | AS99: =IF(K99="","",IF(ISNA(nonespace(K99)),"",IF(K99="","",correction_DBO5(select_Methode_BSB5,K99)))) ->  | AX99: =AX100 -> 363.7 | AZ99: =AZ98 -> 20 | BD99: 0.3 | BF99: 20 | BI99: 0 | BJ99: 0 | BK99: 0 | BL99: 0 | BQ99: 0 | BR99: 0 | BS99: 0 | BT99: 0 | CF99: =nonespace(T99) ->  | CS99: =(CO99*analyses!CP99)/((analyses!BL99*analyses!CK99/1000)+(analyses!CQ99*analyses!CR99)) ->  | DI99: =K99*F99/basis!$D$27 -> 0 | DJ99: =M99*F99/basis!$D$29 -> 0 | DK99: =N99*F99/basis!$D$32 -> 0 | DL99: =F99*P99/basis!$D$35 -> 0 | DS99: 0 | DT99: 0 | DU99: 0 | DV99: 0
A100: 2015-04-02 | B100: 4 | C100: 1900-01-05 | AS100: =IF(K100="","",IF(ISNA(nonespace(K100)),"",IF(K100="","",correction_DBO5(select_Methode_BSB5,K100)))) ->  | AX100: 363.7 | AZ100: =AZ99 -> 20 | BD100: 0.3 | BF100: 20 | BI100: 0 | BJ100: 0 | BK100: 0 | BL100: 0 | BQ100: 0 | BR100: 0 | BS100: 0 | BT100: 0 | CF100: =nonespace(T100) ->  | CS100: =(CO100*analyses!CP100)/((analyses!BL100*analyses!CK100/1000)+(analyses!CQ100*analyses!CR100)) ->  | DI100: =K100*F100/basis!$D$27 -> 0 | DJ100: =M100*F100/basis!$D$29 -> 0 | DK100: =N100*F100/basis!$D$32 -> 0 | DL100: =F100*P100/basis!$D$35 -> 0 | DS100: 0 | DT100: 0 | DU100: 0 | DV100: 0
A101: 2015-04-03 | B101: 4 | C101: 1900-01-06 | AS101: =IF(K101="","",IF(ISNA(nonespace(K101)),"",IF(K101="","",correction_DBO5(select_Methode_BSB5,K101)))) ->  | AX101: 363.7 | AZ101: =AZ100 -> 20 | BD101: 0.3 | BF101: 20 | BI101: 0 | BJ101: 0 | BK101: 0 | BL101: 0 | BQ101: 0 | BR101: 0 | BS101: 0 | BT101: 0 | CF101: =nonespace(T101) ->  | CS101: =(CO101*analyses!CP101)/((analyses!BL101*analyses!CK101/1000)+(analyses!CQ101*analyses!CR101)) ->  | DI101: =K101*F101/basis!$D$27 -> 0 | DJ101: =M101*F101/basis!$D$29 -> 0 | DK101: =N101*F101/basis!$D$32 -> 0 | DL101: =F101*P101/basis!$D$35 -> 0 | DS101: 0 | DT101: 0 | DU101: 0 | DV101: 0
A102: 2015-04-04 | B102: 4 | C102: 1900-01-07 | AS102: =IF(K102="","",IF(ISNA(nonespace(K102)),"",IF(K102="","",correction_DBO5(select_Methode_BSB5,K102)))) ->  | AX102: 363.7 | AZ102: =AZ101 -> 20 | BD102: 0.3 | BF102: 20 | BI102: 0 | BJ102: 0 | BK102: 0 | BL102: 0 | BQ102: 0 | BR102: 0 | BS102: 0 | BT102: 0 | BX102: =nonespace(L102) ->  | BY102: =nonespace(M102) ->  | CB102: =nonespace(P102) ->  | CC102: =nonespace(Q102) ->  | CD102: =nonespace(R102) ->  | CE102: =nonespace(S102) ->  | CF102: =nonespace(T102) ->  | CG102: =nonespace(U102) ->  | CH102: =nonespace(V102) ->  | CI102: =nonespace(W102) ->  | CJ102: =nonespace(X102) ->  | CK102: =nonespace(Y102) ->  | CL102: =nonespace(Z102) ->  | CM102: =nonespace(AA102) ->  | CN102: =CL102*CM102 ->  | CO102: =nonespace(AB102) ->  | CP102: =nonespace(AC102) ->  | CQ102: =nonespace(AD102) ->  | CR102: =nonespace(AE102) ->  | CS102: =(CO102*analyses!CP102)/((analyses!BL102*analyses!CK102/1000)+(analyses!CQ102*analyses!CR102)) ->  | CT102: =nonespace(AF102) ->  | CU102: =nonespace(AG102) ->  | CV102: =nonespace(AH102) ->  | CW102: =nonespace(AI102) ->  | CX102: =nonespace(AJ102) ->  | CY102: =nonespace(AK102) ->  | CZ102: =nonespace(AL102) ->  | DA102: =nonespace(AM102) ->  | DB102: =nonespace(AN102) ->  | DC102: =nonespace(AO102) ->  | DD102: =nonespace(AP102) ->  | DE102: =nonespace(AQ102) ->  | DI102: =K102*F102/basis!$D$27 -> 0 | DJ102: =M102*F102/basis!$D$29 -> 0 | DK102: =N102*F102/basis!$D$32 -> 0 | DL102: =F102*P102/basis!$D$35 -> 0 | DS102: 0 | DT102: 0 | DU102: 0 | DV102: 0
A103: 2015-04-05 | B103: 4 | C103: 1900-01-01 | AS103: =IF(K103="","",IF(ISNA(nonespace(K103)),"",IF(K103="","",correction_DBO5(select_Methode_BSB5,K103)))) ->  | AX103: 363.7 | AZ103: =AZ102 -> 20 | BD103: 0.3 | BF103: 20 | BI103: 0 | BJ103: 0 | BK103: 0 | BL103: 0 | BQ103: 0 | BR103: 0 | BS103: 0 | BT103: 0 | CF103: =nonespace(T103) ->  | CS103: =(CO103*analyses!CP103)/((analyses!BL103*analyses!CK103/1000)+(analyses!CQ103*analyses!CR103)) ->  | DI103: =K103*F103/basis!$D$27 -> 0 | DJ103: =M103*F103/basis!$D$29 -> 0 | DK103: =N103*F103/basis!$D$32 -> 0 | DL103: =F103*P103/basis!$D$35 -> 0 | DS103: 0 | DT103: 0 | DU103: 0 | DV103: 0
A104: 2015-04-06 | B104: 4 | C104: 1900-01-02 | AS104: =IF(K104="","",IF(ISNA(nonespace(K104)),"",IF(K104="","",correction_DBO5(select_Methode_BSB5,K104)))) ->  | AX104: 363.7 | AZ104: =AZ103 -> 20 | BD104: 0.3 | BF104: 20 | BI104: 0 | BJ104: 0 | BK104: 0 | BL104: 0 | BQ104: 0 | BR104: 0 | BS104: 0 | BT104: 0 | CF104: =nonespace(T104) ->  | CS104: =(CO104*analyses!CP104)/((analyses!BL104*analyses!CK104/1000)+(analyses!CQ104*analyses!CR104)) ->  | DI104: =K104*F104/basis!$D$27 -> 0 | DJ104: =M104*F104/basis!$D$29 -> 0 | DK104: =N104*F104/basis!$D$32 -> 0 | DL104: =F104*P104/basis!$D$35 -> 0 | DS104: 0 | DT104: 0 | DU104: 0 | DV104: 0
A105: 2015-04-07 | B105: 4 | C105: 1900-01-03 | AS105: =IF(K105="","",IF(ISNA(nonespace(K105)),"",IF(K105="","",correction_DBO5(select_Methode_BSB5,K105)))) ->  | AX105: 363.7 | AZ105: =AZ104 -> 20 | BD105: 0.3 | BF105: 20 | BI105: 0 | BJ105: 0 | BK105: 0 | BL105: 0 | BQ105: 0 | BR105: 0 | BS105: 0 | BT105: 0 | CF105: =nonespace(T105) ->  | CS105: =(CO105*analyses!CP105)/((analyses!BL105*analyses!CK105/1000)+(analyses!CQ105*analyses!CR105)) ->  | DI105: =K105*F105/basis!$D$27 -> 0 | DJ105: =M105*F105/basis!$D$29 -> 0 | DK105: =N105*F105/basis!$D$32 -> 0 | DL105: =F105*P105/basis!$D$35 -> 0 | DS105: 0 | DT105: 0 | DU105: 0 | DV105: 0
A106: 2015-04-08 | B106: 4 | C106: 1900-01-04 | AS106: =IF(K106="","",IF(ISNA(nonespace(K106)),"",IF(K106="","",correction_DBO5(select_Methode_BSB5,K106)))) ->  | AX106: 363.7 | AZ106: =AZ105 -> 20 | BD106: 0.3 | BF106: 20 | BI106: 0 | BJ106: 0 | BK106: 0 | BL106: 0 | BQ106: 0 | BR106: 0 | BS106: 0 | BT106: 0 | CF106: =nonespace(T106) ->  | CS106: =(CO106*analyses!CP106)/((analyses!BL106*analyses!CK106/1000)+(analyses!CQ106*analyses!CR106)) ->  | DI106: =K106*F106/basis!$D$27 -> 0 | DJ106: =M106*F106/basis!$D$29 -> 0 | DK106: =N106*F106/basis!$D$32 -> 0 | DL106: =F106*P106/basis!$D$35 -> 0 | DS106: 0 | DT106: 0 | DU106: 0 | DV106: 0
A107: 2015-04-09 | B107: 4 | C107: 1900-01-05 | AS107: =IF(K107="","",IF(ISNA(nonespace(K107)),"",IF(K107="","",correction_DBO5(select_Methode_BSB5,K107)))) ->  | AX107: 363.7 | AZ107: =AZ106 -> 20 | BD107: 0.3 | BF107: 20 | BI107: 0 | BJ107: 0 | BK107: 0 | BL107: 0 | BQ107: 0 | BR107: 0 | BS107: 0 | BT107: 0 | CF107: =nonespace(T107) ->  | CS107: =(CO107*analyses!CP107)/((analyses!BL107*analyses!CK107/1000)+(analyses!CQ107*analyses!CR107)) ->  | DI107: =K107*F107/basis!$D$27 -> 0 | DJ107: =M107*F107/basis!$D$29 -> 0 | DK107: =N107*F107/basis!$D$32 -> 0 | DL107: =F107*P107/basis!$D$35 -> 0 | DS107: 0 | DT107: 0 | DU107: 0 | DV107: 0
A108: 2015-04-10 | B108: 4 | C108: 1900-01-06 | AS108: =IF(K108="","",IF(ISNA(nonespace(K108)),"",IF(K108="","",correction_DBO5(select_Methode_BSB5,K108)))) ->  | AX108: 363.7 | AZ108: =AZ107 -> 20 | BD108: 0.3 | BF108: 20 | BI108: 0 | BJ108: 0 | BK108: 0 | BL108: 0 | BQ108: 0 | BR108: 0 | BS108: 0 | BT108: 0 | CF108: =nonespace(T108) ->  | CS108: =(CO108*analyses!CP108)/((analyses!BL108*analyses!CK108/1000)+(analyses!CQ108*analyses!CR108)) ->  | DI108: =K108*F108/basis!$D$27 -> 0 | DJ108: =M108*F108/basis!$D$29 -> 0 | DK108: =N108*F108/basis!$D$32 -> 0 | DL108: =F108*P108/basis!$D$35 -> 0 | DS108: 0 | DT108: 0 | DU108: 0 | DV108: 0
A109: 2015-04-11 | B109: 4 | C109: 1900-01-07 | AS109: =IF(K109="","",IF(ISNA(nonespace(K109)),"",IF(K109="","",correction_DBO5(select_Methode_BSB5,K109)))) ->  | AX109: 363.7 | AZ109: =AZ108 -> 20 | BD109: 0.3 | BF109: 20 | BI109: 0 | BJ109: 0 | BK109: 0 | BL109: 0 | BQ109: 0 | BR109: 0 | BS109: 0 | BT109: 0 | CF109: =nonespace(T109) ->  | CS109: =(CO109*analyses!CP109)/((analyses!BL109*analyses!CK109/1000)+(analyses!CQ109*analyses!CR109)) ->  | DI109: =K109*F109/basis!$D$27 -> 0 | DJ109: =M109*F109/basis!$D$29 -> 0 | DK109: =N109*F109/basis!$D$32 -> 0 | DL109: =F109*P109/basis!$D$35 -> 0 | DS109: 0 | DT109: 0 | DU109: 0 | DV109: 0
A110: 2015-04-12 | B110: 4 | C110: 1900-01-01 | AS110: =IF(K110="","",IF(ISNA(nonespace(K110)),"",IF(K110="","",correction_DBO5(select_Methode_BSB5,K110)))) ->  | AX110: 363.7 | AZ110: =AZ109 -> 20 | BD110: 0.3 | BF110: 20 | BI110: 0 | BJ110: 0 | BK110: 0 | BL110: 0 | BQ110: 0 | BR110: 0 | BS110: 0 | BT110: 0 | CF110: =nonespace(T110) ->  | CS110: =(CO110*analyses!CP110)/((analyses!BL110*analyses!CK110/1000)+(analyses!CQ110*analyses!CR110)) ->  | DI110: =K110*F110/basis!$D$27 -> 0 | DJ110: =M110*F110/basis!$D$29 -> 0 | DK110: =N110*F110/basis!$D$32 -> 0 | DL110: =F110*P110/basis!$D$35 -> 0 | DS110: 0 | DT110: 0 | DU110: 0 | DV110: 0
A111: 2015-04-13 | B111: 4 | C111: 1900-01-02 | AS111: =IF(K111="","",IF(ISNA(nonespace(K111)),"",IF(K111="","",correction_DBO5(select_Methode_BSB5,K111)))) ->  | AX111: 363.7 | AZ111: =AZ110 -> 20 | BD111: 0.3 | BF111: 20 | BI111: 0 | BJ111: 0 | BK111: 0 | BL111: 0 | BQ111: 0 | BR111: 0 | BS111: 0 | BT111: 0 | CF111: =nonespace(T111) ->  | CS111: =(CO111*analyses!CP111)/((analyses!BL111*analyses!CK111/1000)+(analyses!CQ111*analyses!CR111)) ->  | DI111: =K111*F111/basis!$D$27 -> 0 | DJ111: =M111*F111/basis!$D$29 -> 0 | DK111: =N111*F111/basis!$D$32 -> 0 | DL111: =F111*P111/basis!$D$35 -> 0 | DS111: 0 | DT111: 0 | DU111: 0 | DV111: 0
A112: 2015-04-14 | B112: 4 | C112: 1900-01-03 | AS112: =IF(K112="","",IF(ISNA(nonespace(K112)),"",IF(K112="","",correction_DBO5(select_Methode_BSB5,K112)))) ->  | AX112: 363.7 | AZ112: =AZ111 -> 20 | BD112: 0.3 | BF112: 20 | BI112: 0 | BJ112: 0 | BK112: 0 | BL112: 0 | BQ112: 0 | BR112: 0 | BS112: 0 | BT112: 0 | CF112: =nonespace(T112) ->  | CS112: =(CO112*analyses!CP112)/((analyses!BL112*analyses!CK112/1000)+(analyses!CQ112*analyses!CR112)) ->  | DI112: =K112*F112/basis!$D$27 -> 0 | DJ112: =M112*F112/basis!$D$29 -> 0 | DK112: =N112*F112/basis!$D$32 -> 0 | DL112: =F112*P112/basis!$D$35 -> 0 | DS112: 0 | DT112: 0 | DU112: 0 | DV112: 0
A113: 2015-04-15 | B113: 4 | C113: 1900-01-04 | AS113: =IF(K113="","",IF(ISNA(nonespace(K113)),"",IF(K113="","",correction_DBO5(select_Methode_BSB5,K113)))) ->  | AX113: 363.7 | AZ113: =AZ112 -> 20 | BD113: 0.3 | BF113: 20 | BI113: 0 | BJ113: 0 | BK113: 0 | BL113: 0 | BQ113: 0 | BR113: 0 | BS113: 0 | BT113: 0 | CF113: =nonespace(T113) ->  | CS113: =(CO113*analyses!CP113)/((analyses!BL113*analyses!CK113/1000)+(analyses!CQ113*analyses!CR113)) ->  | DI113: =K113*F113/basis!$D$27 -> 0 | DJ113: =M113*F113/basis!$D$29 -> 0 | DK113: =N113*F113/basis!$D$32 -> 0 | DL113: =F113*P113/basis!$D$35 -> 0 | DS113: 0 | DT113: 0 | DU113: 0 | DV113: 0
A114: 2015-04-16 | B114: 4 | C114: 1900-01-05 | AS114: =IF(K114="","",IF(ISNA(nonespace(K114)),"",IF(K114="","",correction_DBO5(select_Methode_BSB5,K114)))) ->  | AX114: 363.7 | AZ114: =AZ113 -> 20 | BD114: 0.3 | BF114: 20 | BI114: 0 | BJ114: 0 | BK114: 0 | BL114: 0 | BQ114: 0 | BR114: 0 | BS114: 0 | BT114: 0 | CF114: =nonespace(T114) ->  | CS114: =(CO114*analyses!CP114)/((analyses!BL114*analyses!CK114/1000)+(analyses!CQ114*analyses!CR114)) ->  | DI114: =K114*F114/basis!$D$27 -> 0 | DJ114: =M114*F114/basis!$D$29 -> 0 | DK114: =N114*F114/basis!$D$32 -> 0 | DL114: =F114*P114/basis!$D$35 -> 0 | DS114: 0 | DT114: 0 | DU114: 0 | DV114: 0
A115: 2015-04-17 | B115: 4 | C115: 1900-01-06 | AS115: =IF(K115="","",IF(ISNA(nonespace(K115)),"",IF(K115="","",correction_DBO5(select_Methode_BSB5,K115)))) ->  | AX115: 363.7 | AZ115: =AZ114 -> 20 | BD115: 0.3 | BF115: 20 | BI115: 0 | BJ115: 0 | BK115: 0 | BL115: 0 | BQ115: 0 | BR115: 0 | BS115: 0 | BT115: 0 | CF115: =nonespace(T115) ->  | CS115: =(CO115*analyses!CP115)/((analyses!BL115*analyses!CK115/1000)+(analyses!CQ115*analyses!CR115)) ->  | DI115: =K115*F115/basis!$D$27 -> 0 | DJ115: =M115*F115/basis!$D$29 -> 0 | DK115: =N115*F115/basis!$D$32 -> 0 | DL115: =F115*P115/basis!$D$35 -> 0 | DS115: 0 | DT115: 0 | DU115: 0 | DV115: 0
A116: 2015-04-18 | B116: 4 | C116: 1900-01-07 | AS116: =IF(K116="","",IF(ISNA(nonespace(K116)),"",IF(K116="","",correction_DBO5(select_Methode_BSB5,K116)))) ->  | AX116: 363.7 | AZ116: =AZ115 -> 20 | BD116: 0.3 | BF116: 20 | BI116: 0 | BJ116: 0 | BK116: 0 | BL116: 0 | BQ116: 0 | BR116: 0 | BS116: 0 | BT116: 0 | CF116: =nonespace(T116) ->  | CS116: =(CO116*analyses!CP116)/((analyses!BL116*analyses!CK116/1000)+(analyses!CQ116*analyses!CR116)) ->  | DI116: =K116*F116/basis!$D$27 -> 0 | DJ116: =M116*F116/basis!$D$29 -> 0 | DK116: =N116*F116/basis!$D$32 -> 0 | DL116: =F116*P116/basis!$D$35 -> 0 | DS116: 0 | DT116: 0 | DU116: 0 | DV116: 0
A117: 2015-04-19 | B117: 4 | C117: 1900-01-01 | AS117: =IF(K117="","",IF(ISNA(nonespace(K117)),"",IF(K117="","",correction_DBO5(select_Methode_BSB5,K117)))) ->  | AX117: 363.7 | AZ117: =AZ116 -> 20 | BD117: 0.3 | BF117: 20 | BI117: 0 | BJ117: 0 | BK117: 0 | BL117: 0 | BQ117: 0 | BR117: 0 | BS117: 0 | BT117: 0 | CF117: =nonespace(T117) ->  | CS117: =(CO117*analyses!CP117)/((analyses!BL117*analyses!CK117/1000)+(analyses!CQ117*analyses!CR117)) ->  | DI117: =K117*F117/basis!$D$27 -> 0 | DJ117: =M117*F117/basis!$D$29 -> 0 | DK117: =N117*F117/basis!$D$32 -> 0 | DL117: =F117*P117/basis!$D$35 -> 0 | DS117: 0 | DT117: 0 | DU117: 0 | DV117: 0
A118: 2015-04-20 | B118: 4 | C118: 1900-01-02 | AS118: =IF(K118="","",IF(ISNA(nonespace(K118)),"",IF(K118="","",correction_DBO5(select_Methode_BSB5,K118)))) ->  | AX118: 363.7 | AZ118: =AZ117 -> 20 | BD118: 0.3 | BF118: 20 | BI118: 0 | BJ118: 0 | BK118: 0 | BL118: 0 | BQ118: 0 | BR118: 0 | BS118: 0 | BT118: 0 | CF118: =nonespace(T118) ->  | CS118: =(CO118*analyses!CP118)/((analyses!BL118*analyses!CK118/1000)+(analyses!CQ118*analyses!CR118)) ->  | DI118: =K118*F118/basis!$D$27 -> 0 | DJ118: =M118*F118/basis!$D$29 -> 0 | DK118: =N118*F118/basis!$D$32 -> 0 | DL118: =F118*P118/basis!$D$35 -> 0 | DS118: 0 | DT118: 0 | DU118: 0 | DV118: 0
A119: 2015-04-21 | B119: 4 | C119: 1900-01-03 | AS119: =IF(K119="","",IF(ISNA(nonespace(K119)),"",IF(K119="","",correction_DBO5(select_Methode_BSB5,K119)))) ->  | AX119: 363.7 | AZ119: =AZ118 -> 20 | BD119: 0.3 | BF119: 20 | BI119: 0 | BJ119: 0 | BK119: 0 | BL119: 0 | BQ119: 0 | BR119: 0 | BS119: 0 | BT119: 0 | CF119: =nonespace(T119) ->  | CS119: =(CO119*analyses!CP119)/((analyses!BL119*analyses!CK119/1000)+(analyses!CQ119*analyses!CR119)) ->  | DI119: =K119*F119/basis!$D$27 -> 0 | DJ119: =M119*F119/basis!$D$29 -> 0 | DK119: =N119*F119/basis!$D$32 -> 0 | DL119: =F119*P119/basis!$D$35 -> 0 | DS119: 0 | DT119: 0 | DU119: 0 | DV119: 0
A120: 2015-04-22 | B120: 4 | C120: 1900-01-04 | AS120: =IF(K120="","",IF(ISNA(nonespace(K120)),"",IF(K120="","",correction_DBO5(select_Methode_BSB5,K120)))) ->  | AX120: 363.7 | AZ120: =AZ119 -> 20 | BD120: 0.3 | BF120: 20 | BI120: 0 | BJ120: 0 | BK120: 0 | BL120: 0 | BQ120: 0 | BR120: 0 | BS120: 0 | BT120: 0 | CF120: =nonespace(T120) ->  | CS120: =(CO120*analyses!CP120)/((analyses!BL120*analyses!CK120/1000)+(analyses!CQ120*analyses!CR120)) ->  | DI120: =K120*F120/basis!$D$27 -> 0 | DJ120: =M120*F120/basis!$D$29 -> 0 | DK120: =N120*F120/basis!$D$32 -> 0 | DL120: =F120*P120/basis!$D$35 -> 0 | DS120: 0 | DT120: 0 | DU120: 0 | DV120: 0
A121: 2015-04-23 | B121: 4 | C121: 1900-01-05 | AS121: =IF(K121="","",IF(ISNA(nonespace(K121)),"",IF(K121="","",correction_DBO5(select_Methode_BSB5,K121)))) ->  | AX121: 363.7 | AZ121: =AZ120 -> 20 | BD121: 0.3 | BF121: 20 | BI121: 0 | BJ121: 0 | BK121: 0 | BL121: 0 | BQ121: 0 | BR121: 0 | BS121: 0 | BT121: 0 | CF121: =nonespace(T121) ->  | CS121: =(CO121*analyses!CP121)/((analyses!BL121*analyses!CK121/1000)+(analyses!CQ121*analyses!CR121)) ->  | DI121: =K121*F121/basis!$D$27 -> 0 | DJ121: =M121*F121/basis!$D$29 -> 0 | DK121: =N121*F121/basis!$D$32 -> 0 | DL121: =F121*P121/basis!$D$35 -> 0 | DS121: 0 | DT121: 0 | DU121: 0 | DV121: 0
A122: 2015-04-24 | B122: 4 | C122: 1900-01-06 | AS122: =IF(K122="","",IF(ISNA(nonespace(K122)),"",IF(K122="","",correction_DBO5(select_Methode_BSB5,K122)))) ->  | AX122: 363.7 | AZ122: =AZ121 -> 20 | BD122: 0.3 | BF122: 20 | BI122: 0 | BJ122: 0 | BK122: 0 | BL122: 0 | BQ122: 0 | BR122: 0 | BS122: 0 | BT122: 0 | CF122: =nonespace(T122) ->  | CS122: =(CO122*analyses!CP122)/((analyses!BL122*analyses!CK122/1000)+(analyses!CQ122*analyses!CR122)) ->  | DI122: =K122*F122/basis!$D$27 -> 0 | DJ122: =M122*F122/basis!$D$29 -> 0 | DK122: =N122*F122/basis!$D$32 -> 0 | DL122: =F122*P122/basis!$D$35 -> 0 | DS122: 0 | DT122: 0 | DU122: 0 | DV122: 0
A123: 2015-04-25 | B123: 4 | C123: 1900-01-07 | AS123: =IF(K123="","",IF(ISNA(nonespace(K123)),"",IF(K123="","",correction_DBO5(select_Methode_BSB5,K123)))) ->  | AX123: 363.7 | AZ123: =AZ122 -> 20 | BD123: 0.3 | BF123: 20 | BI123: 0 | BJ123: 0 | BK123: 0 | BL123: 0 | BQ123: 0 | BR123: 0 | BS123: 0 | BT123: 0 | CF123: =nonespace(T123) ->  | CS123: =(CO123*analyses!CP123)/((analyses!BL123*analyses!CK123/1000)+(analyses!CQ123*analyses!CR123)) ->  | DI123: =K123*F123/basis!$D$27 -> 0 | DJ123: =M123*F123/basis!$D$29 -> 0 | DK123: =N123*F123/basis!$D$32 -> 0 | DL123: =F123*P123/basis!$D$35 -> 0 | DS123: 0 | DT123: 0 | DU123: 0 | DV123: 0
A124: 2015-04-26 | B124: 4 | C124: 1900-01-01 | AS124: =IF(K124="","",IF(ISNA(nonespace(K124)),"",IF(K124="","",correction_DBO5(select_Methode_BSB5,K124)))) ->  | AX124: 363.7 | AZ124: =AZ123 -> 20 | BD124: 0.3 | BF124: 20 | BI124: 0 | BJ124: 0 | BK124: 0 | BL124: 0 | BQ124: 0 | BR124: 0 | BS124: 0 | BT124: 0 | CF124: =nonespace(T124) ->  | CS124: =(CO124*analyses!CP124)/((analyses!BL124*analyses!CK124/1000)+(analyses!CQ124*analyses!CR124)) ->  | DI124: =K124*F124/basis!$D$27 -> 0 | DJ124: =M124*F124/basis!$D$29 -> 0 | DK124: =N124*F124/basis!$D$32 -> 0 | DL124: =F124*P124/basis!$D$35 -> 0 | DS124: 0 | DT124: 0 | DU124: 0 | DV124: 0
A125: 2015-04-27 | B125: 4 | C125: 1900-01-02 | AS125: =IF(K125="","",IF(ISNA(nonespace(K125)),"",IF(K125="","",correction_DBO5(select_Methode_BSB5,K125)))) ->  | AX125: 363.7 | AZ125: =AZ124 -> 20 | BD125: 0.3 | BF125: 20 | BI125: 0 | BJ125: 0 | BK125: 0 | BL125: 0 | BQ125: 0 | BR125: 0 | BS125: 0 | BT125: 0 | CA125: =calcul_Ntot(N125,O125) ->  | CF125: =nonespace(T125) ->  | CS125: =(CO125*analyses!CP125)/((analyses!BL125*analyses!CK125/1000)+(analyses!CQ125*analyses!CR125)) ->  | DI125: =K125*F125/basis!$D$27 -> 0 | DJ125: =M125*F125/basis!$D$29 -> 0 | DK125: =N125*F125/basis!$D$32 -> 0 | DL125: =F125*P125/basis!$D$35 -> 0 | DS125: 0 | DT125: 0 | DU125: 0 | DV125: 0
A126: 2015-04-28 | B126: 4 | C126: 1900-01-03 | AS126: =IF(K126="","",IF(ISNA(nonespace(K126)),"",IF(K126="","",correction_DBO5(select_Methode_BSB5,K126)))) ->  | AX126: 363.7 | AZ126: =AZ125 -> 20 | BD126: 0.3 | BF126: 20 | BI126: 0 | BJ126: 0 | BK126: 0 | BL126: 0 | BQ126: 0 | BR126: 0 | BS126: 0 | BT126: 0 | CF126: =nonespace(T126) ->  | CS126: =(CO126*analyses!CP126)/((analyses!BL126*analyses!CK126/1000)+(analyses!CQ126*analyses!CR126)) ->  | DI126: =K126*F126/basis!$D$27 -> 0 | DJ126: =M126*F126/basis!$D$29 -> 0 | DK126: =N126*F126/basis!$D$32 -> 0 | DL126: =F126*P126/basis!$D$35 -> 0 | DS126: 0 | DT126: 0 | DU126: 0 | DV126: 0
A127: 2015-04-29 | B127: 4 | C127: 1900-01-04 | AS127: =IF(K127="","",IF(ISNA(nonespace(K127)),"",IF(K127="","",correction_DBO5(select_Methode_BSB5,K127)))) ->  | AX127: 363.7 | AZ127: =AZ126 -> 20 | BD127: 0.3 | BF127: 20 | BI127: 0 | BJ127: 0 | BK127: 0 | BL127: 0 | BQ127: 0 | BR127: 0 | BS127: 0 | BT127: 0 | CF127: =nonespace(T127) ->  | CS127: =(CO127*analyses!CP127)/((analyses!BL127*analyses!CK127/1000)+(analyses!CQ127*analyses!CR127)) ->  | DI127: =K127*F127/basis!$D$27 -> 0 | DJ127: =M127*F127/basis!$D$29 -> 0 | DK127: =N127*F127/basis!$D$32 -> 0 | DL127: =F127*P127/basis!$D$35 -> 0 | DS127: 0 | DT127: 0 | DU127: 0 | DV127: 0
A128: 2015-04-30 | B128: 4 | C128: 1900-01-05 | AS128: =IF(K128="","",IF(ISNA(nonespace(K128)),"",IF(K128="","",correction_DBO5(select_Methode_BSB5,K128)))) ->  | AV128: =H128 -> 0 | AW128: 10911 | AX128: =AW128/30 -> 363.7 | AZ128: =AZ127 -> 20 | BD128: 0.3 | BF128: 20 | BI128: 0 | BJ128: 0 | BK128: 0 | BL128: 0 | BQ128: 0 | BR128: 0 | BS128: 0 | BT128: 0 | CF128: =nonespace(T128) ->  | CS128: =(CO128*analyses!CP128)/((analyses!BL128*analyses!CK128/1000)+(analyses!CQ128*analyses!CR128)) ->  | DI128: =K128*F128/basis!$D$27 -> 0 | DJ128: =M128*F128/basis!$D$29 -> 0 | DK128: =N128*F128/basis!$D$32 -> 0 | DL128: =F128*P128/basis!$D$35 -> 0 | DS128: 0 | DT128: 0 | DU128: 0 | DV128: 0
A129: 2015-05-01 | B129: 5 | C129: 1900-01-06 | AS129: =IF(K129="","",IF(ISNA(nonespace(K129)),"",IF(K129="","",correction_DBO5(select_Methode_BSB5,K129)))) ->  | AX129: =AX130 -> 297.9032258 | AZ129: =AZ128 -> 20 | BD129: 0.3 | BF129: 20 | BI129: 0 | BJ129: 0 | BK129: 0 | BL129: 0 | BQ129: 0 | BR129: 0 | BS129: 0 | BT129: 0 | CF129: =nonespace(T129) ->  | CS129: =(CO129*analyses!CP129)/((analyses!BL129*analyses!CK129/1000)+(analyses!CQ129*analyses!CR129)) ->  | DI129: =K129*F129/basis!$D$27 -> 0 | DJ129: =M129*F129/basis!$D$29 -> 0 | DK129: =N129*F129/basis!$D$32 -> 0 | DL129: =F129*P129/basis!$D$35 -> 0 | DS129: 0 | DT129: 0 | DU129: 0 | DV129: 0
A130: 2015-05-02 | B130: 5 | C130: 1900-01-07 | AS130: =IF(K130="","",IF(ISNA(nonespace(K130)),"",IF(K130="","",correction_DBO5(select_Methode_BSB5,K130)))) ->  | AX130: 297.9032258 | AZ130: =AZ129 -> 20 | BD130: 0.3 | BF130: 20 | BI130: 0 | BJ130: 0 | BK130: 0 | BL130: 0 | BQ130: 0 | BR130: 0 | BS130: 0 | BT130: 0 | CF130: =nonespace(T130) ->  | CS130: =(CO130*analyses!CP130)/((analyses!BL130*analyses!CK130/1000)+(analyses!CQ130*analyses!CR130)) ->  | DI130: =K130*F130/basis!$D$27 -> 0 | DJ130: =M130*F130/basis!$D$29 -> 0 | DK130: =N130*F130/basis!$D$32 -> 0 | DL130: =F130*P130/basis!$D$35 -> 0 | DS130: 0 | DT130: 0 | DU130: 0 | DV130: 0
A131: 2015-05-03 | B131: 5 | C131: 1900-01-01 | AS131: =IF(K131="","",IF(ISNA(nonespace(K131)),"",IF(K131="","",correction_DBO5(select_Methode_BSB5,K131)))) ->  | AX131: 297.9032258 | AZ131: =AZ130 -> 20 | BD131: 0.3 | BF131: 20 | BI131: 0 | BJ131: 0 | BK131: 0 | BL131: 0 | BQ131: 0 | BR131: 0 | BS131: 0 | BT131: 0 | CF131: =nonespace(T131) ->  | CS131: =(CO131*analyses!CP131)/((analyses!BL131*analyses!CK131/1000)+(analyses!CQ131*analyses!CR131)) ->  | DI131: =K131*F131/basis!$D$27 -> 0 | DJ131: =M131*F131/basis!$D$29 -> 0 | DK131: =N131*F131/basis!$D$32 -> 0 | DL131: =F131*P131/basis!$D$35 -> 0 | DS131: 0 | DT131: 0 | DU131: 0 | DV131: 0
A132: 2015-05-04 | B132: 5 | C132: 1900-01-02 | AS132: =IF(K132="","",IF(ISNA(nonespace(K132)),"",IF(K132="","",correction_DBO5(select_Methode_BSB5,K132)))) ->  | AX132: 297.9032258 | AZ132: =AZ131 -> 20 | BD132: 0.3 | BF132: 20 | BI132: 0 | BJ132: 0 | BK132: 0 | BL132: 0 | BQ132: 0 | BR132: 0 | BS132: 0 | BT132: 0 | CF132: =nonespace(T132) ->  | CS132: =(CO132*analyses!CP132)/((analyses!BL132*analyses!CK132/1000)+(analyses!CQ132*analyses!CR132)) ->  | DI132: =K132*F132/basis!$D$27 -> 0 | DJ132: =M132*F132/basis!$D$29 -> 0 | DK132: =N132*F132/basis!$D$32 -> 0 | DL132: =F132*P132/basis!$D$35 -> 0 | DS132: 0 | DT132: 0 | DU132: 0 | DV132: 0
A133: 2015-05-05 | B133: 5 | C133: 1900-01-03 | AS133: =IF(K133="","",IF(ISNA(nonespace(K133)),"",IF(K133="","",correction_DBO5(select_Methode_BSB5,K133)))) ->  | AX133: 297.9032258 | AZ133: =AZ132 -> 20 | BD133: 0.3 | BF133: 20 | BI133: 0 | BJ133: 0 | BK133: 0 | BL133: 0 | BQ133: 0 | BR133: 0 | BS133: 0 | BT133: 0 | CF133: =nonespace(T133) ->  | CS133: =(CO133*analyses!CP133)/((analyses!BL133*analyses!CK133/1000)+(analyses!CQ133*analyses!CR133)) ->  | DI133: =K133*F133/basis!$D$27 -> 0 | DJ133: =M133*F133/basis!$D$29 -> 0 | DK133: =N133*F133/basis!$D$32 -> 0 | DL133: =F133*P133/basis!$D$35 -> 0 | DS133: 0 | DT133: 0 | DU133: 0 | DV133: 0
A134: 2015-05-06 | B134: 5 | C134: 1900-01-04 | AS134: =IF(K134="","",IF(ISNA(nonespace(K134)),"",IF(K134="","",correction_DBO5(select_Methode_BSB5,K134)))) ->  | AX134: 297.9032258 | AZ134: =AZ133 -> 20 | BD134: 0.3 | BF134: 20 | BI134: 0 | BJ134: 0 | BK134: 0 | BL134: 0 | BQ134: 0 | BR134: 0 | BS134: 0 | BT134: 0 | CF134: =nonespace(T134) ->  | CS134: =(CO134*analyses!CP134)/((analyses!BL134*analyses!CK134/1000)+(analyses!CQ134*analyses!CR134)) ->  | DI134: =K134*F134/basis!$D$27 -> 0 | DJ134: =M134*F134/basis!$D$29 -> 0 | DK134: =N134*F134/basis!$D$32 -> 0 | DL134: =F134*P134/basis!$D$35 -> 0 | DS134: 0 | DT134: 0 | DU134: 0 | DV134: 0
A135: 2015-05-07 | B135: 5 | C135: 1900-01-05 | AS135: =IF(K135="","",IF(ISNA(nonespace(K135)),"",IF(K135="","",correction_DBO5(select_Methode_BSB5,K135)))) ->  | AX135: 297.9032258 | AZ135: =AZ134 -> 20 | BD135: 0.3 | BF135: 20 | BI135: 0 | BJ135: 0 | BK135: 0 | BL135: 0 | BQ135: 0 | BR135: 0 | BS135: 0 | BT135: 0 | CF135: =nonespace(T135) ->  | CS135: =(CO135*analyses!CP135)/((analyses!BL135*analyses!CK135/1000)+(analyses!CQ135*analyses!CR135)) ->  | DI135: =K135*F135/basis!$D$27 -> 0 | DJ135: =M135*F135/basis!$D$29 -> 0 | DK135: =N135*F135/basis!$D$32 -> 0 | DL135: =F135*P135/basis!$D$35 -> 0 | DS135: 0 | DT135: 0 | DU135: 0 | DV135: 0
A136: 2015-05-08 | B136: 5 | C136: 1900-01-06 | AS136: =IF(K136="","",IF(ISNA(nonespace(K136)),"",IF(K136="","",correction_DBO5(select_Methode_BSB5,K136)))) ->  | AX136: 297.9032258 | AZ136: =AZ135 -> 20 | BD136: 0.3 | BF136: 20 | BI136: 0 | BJ136: 0 | BK136: 0 | BL136: 0 | BQ136: 0 | BR136: 0 | BS136: 0 | BT136: 0 | CF136: =nonespace(T136) ->  | CS136: =(CO136*analyses!CP136)/((analyses!BL136*analyses!CK136/1000)+(analyses!CQ136*analyses!CR136)) ->  | DI136: =K136*F136/basis!$D$27 -> 0 | DJ136: =M136*F136/basis!$D$29 -> 0 | DK136: =N136*F136/basis!$D$32 -> 0 | DL136: =F136*P136/basis!$D$35 -> 0 | DS136: 0 | DT136: 0 | DU136: 0 | DV136: 0
A137: 2015-05-09 | B137: 5 | C137: =WEEKDAY(A137) -> 1900-01-07 | AB137: =Volume_bassin_biologique ->  | AS137: =IF(K137="","",IF(ISNA(nonespace(K137)),"",IF(K137="","",correction_DBO5(select_Methode_BSB5,K137)))) ->  | AX137: 297.9032258 | AZ137: =AZ136 -> 20 | BD137: 0.3 | BF137: 20 | BI137: 0 | BJ137: =calcul_debit_entree(debimetre_entreeSTEP,F137,G137,H137) -> 0 | BK137: 0 | BL137: =calcul_debit_sortie(debimetre_entreeSTEP,F137,G137,H137) -> 0 | BQ137: =IF(BI137="",NA(),BI137) -> 0 | BR137: =IF(BJ137="",NA(),BJ137) -> 0 | BS137: =IF(BK137="",NA(),BK137) -> 0 | BT137: =IF(BL137="",NA(),BL137) -> 0 | BU137: =IF(BM137="",NA(),BM137) ->  | BV137: =IF(BN137="",NA(),BN137) ->  | BW137: =nonespace(AS137) ->  | CF137: =nonespace(T137) ->  | CS137: =(CO137*analyses!CP137)/((analyses!BL137*analyses!CK137/1000)+(analyses!CQ137*analyses!CR137)) ->  | DF137: =IF(OR(AS137="",AS137=0),NA(),AS137) ->  | DH137: =Ammonium_zeigen_ueber_10_Grad(CF137,BH137) ->  | DI137: =K137*F137/basis!$D$27 -> 0 | DJ137: =M137*F137/basis!$D$29 -> 0 | DK137: =N137*F137/basis!$D$32 -> 0 | DL137: =F137*P137/basis!$D$35 -> 0 | DS137: =IF(ISNA(BQ137),"",BQ137) -> 0 | DT137: =IF(ISNA(BR137),"",BR137) -> 0 | DU137: =IF(ISNA(BS137),"",BS137) -> 0 | DV137: =IF(ISNA(BT137),"",BT137) -> 0 | DW137: =IF(ISNA(BU137),"",BU137) ->  | DX137: =IF(ISNA(BV137),"",BV137) ->  | DY137: =IF(ISNA(BW137),"",BW137) ->  | DZ137: =IF(ISNA(BX137),"",BX137) ->  | EA137: =IF(ISNA(BY137),"",BY137) ->  | EB137: =IF(ISNA(BZ137),"",BZ137) ->  | EC137: =IF(ISNA(CA137),"",CA137) ->  | ED137: =IF(ISNA(CB137),"",CB137) ->  | EE137: =IF(ISNA(CC137),"",CC137) ->  | EF137: =IF(ISNA(CD137),"",CD137) ->  | EG137: =IF(ISNA(CE137),"",CE137) ->  | EH137: =IF(ISNA(CF137),"",CF137) ->  | EI137: =IF(ISNA(CG137),"",CG137) ->  | EJ137: =IF(ISNA(CH137),"",CH137) ->  | EK137: =IF(ISNA(CI137),"",CI137) ->  | EL137: =IF(ISNA(CJ137),"",CJ137) ->  | EM137: =IF(ISNA(CK137),"",CK137) ->  | EN137: =IF(ISNA(CL137),"",CL137) ->  | EO137: =IF(ISNA(CM137),"",CM137) ->  | EP137: =IF(ISNA(CN137),"",CN137) ->  | EQ137: =IF(ISNA(CO137),"",CO137) ->  | ER137: =IF(ISNA(CP137),"",CP137) ->  | ES137: =IF(ISNA(CQ137),"",CQ137) ->  | ET137: =IF(ISNA(CR137),"",CR137) ->  | EU137: =IF(ISNA(CS137),"",CS137) ->  | EV137: =IF(ISNA(CT137),"",CT137) ->  | EW137: =IF(ISNA(CU137),"",CU137) ->  | EX137: =IF(ISNA(CV137),"",CV137) ->  | EY137: =IF(ISNA(CW137),"",CW137) ->  | EZ137: =IF(ISNA(CX137),"",CX137) ->  | FA137: =IF(ISNA(CY137),"",CY137) ->  | FB137: =IF(ISNA(CZ137),"",CZ137) ->  | FC137: =IF(ISNA(DA137),"",DA137) ->  | FD137: =IF(ISNA(DB137),"",DB137) ->  | FE137: =IF(ISNA(DC137),"",DC137) ->  | FF137: =IF(ISNA(DD137),"",DD137) ->  | FG137: =IF(ISNA(DE137),"",DE137) ->  | FH137: =IF(ISNA(DF137),"",DF137) -> 
A138: =A137+1 -> 2015-05-10 | B138: =MONTH(A138) -> 5 | C138: 1900-01-01 | AH138: =IF(OR(AF138="",AG138=""),"",AF138*AG138) ->  | AS138: =IF(K138="","",IF(ISNA(nonespace(K138)),"",IF(K138="","",correction_DBO5(select_Methode_BSB5,K138)))) ->  | AT138: =IF(ISERROR(K138/AS138),"",K138/AS138) ->  | AX138: 297.9032258 | AZ138: =AZ137 -> 20 | BD138: 0.3 | BF138: 20 | BH138: =nonespace_nonNA(D138) ->  | BI138: =IF(E138="",0,E138) -> 0 | BJ138: 0 | BK138: =IF(G138="",0,G138) -> 0 | BL138: 0 | BM138: =IF(I138="","",I138) ->  | BN138: =IF(J138="","",J138) ->  | BP138: =nonespace(BH138) ->  | BQ138: 0 | BR138: 0 | BS138: 0 | BT138: 0 | BZ138: =calcul_NH4(N138,O138) ->  | CF138: =nonespace(T138) ->  | CS138: =(CO138*analyses!CP138)/((analyses!BL138*analyses!CK138/1000)+(analyses!CQ138*analyses!CR138)) ->  | DG138: =Ammonium_zeigen_unter_10_Grad(CF138,BH138) ->  | DI138: =K138*F138/basis!$D$27 -> 0 | DJ138: =M138*F138/basis!$D$29 -> 0 | DK138: =N138*F138/basis!$D$32 -> 0 | DL138: =F138*P138/basis!$D$35 -> 0 | DS138: 0 | DT138: 0 | DU138: 0 | DV138: 0
A139: 2015-05-11 | B139: 5 | C139: 1900-01-02 | AS139: =IF(K139="","",IF(ISNA(nonespace(K139)),"",IF(K139="","",correction_DBO5(select_Methode_BSB5,K139)))) ->  | AX139: 297.9032258 | AZ139: =AZ138 -> 20 | BA139: =BA138 ->  | BB139: =BB138 ->  | BC139: =BC138 ->  | BD139: =BD138 -> 0.3 | BE139: =BE138 ->  | BF139: =BF138 -> 20 | BI139: 0 | BJ139: 0 | BK139: 0 | BL139: 0 | BQ139: 0 | BR139: 0 | BS139: 0 | BT139: 0 | CF139: =nonespace(T139) ->  | CS139: =(CO139*analyses!CP139)/((analyses!BL139*analyses!CK139/1000)+(analyses!CQ139*analyses!CR139)) ->  | DI139: =K139*F139/basis!$D$27 -> 0 | DJ139: =M139*F139/basis!$D$29 -> 0 | DK139: =N139*F139/basis!$D$32 -> 0 | DL139: =F139*P139/basis!$D$35 -> 0 | DS139: 0 | DT139: 0 | DU139: 0 | DV139: 0
A140: 2015-05-12 | B140: 5 | C140: 1900-01-03 | AS140: =IF(K140="","",IF(ISNA(nonespace(K140)),"",IF(K140="","",correction_DBO5(select_Methode_BSB5,K140)))) ->  | AX140: 297.9032258 | AZ140: =AZ139 -> 20 | BD140: 0.3 | BF140: 20 | BI140: 0 | BJ140: 0 | BK140: 0 | BL140: 0 | BQ140: 0 | BR140: 0 | BS140: 0 | BT140: 0 | CF140: =nonespace(T140) ->  | CS140: =(CO140*analyses!CP140)/((analyses!BL140*analyses!CK140/1000)+(analyses!CQ140*analyses!CR140)) ->  | DI140: =K140*F140/basis!$D$27 -> 0 | DJ140: =M140*F140/basis!$D$29 -> 0 | DK140: =N140*F140/basis!$D$32 -> 0 | DL140: =F140*P140/basis!$D$35 -> 0 | DS140: 0 | DT140: 0 | DU140: 0 | DV140: 0
A141: 2015-05-13 | B141: 5 | C141: 1900-01-04 | AS141: =IF(K141="","",IF(ISNA(nonespace(K141)),"",IF(K141="","",correction_DBO5(select_Methode_BSB5,K141)))) ->  | AX141: 297.9032258 | AZ141: =AZ140 -> 20 | BD141: 0.3 | BF141: 20 | BI141: 0 | BJ141: 0 | BK141: 0 | BL141: 0 | BQ141: 0 | BR141: 0 | BS141: 0 | BT141: 0 | CF141: =nonespace(T141) ->  | CS141: =(CO141*analyses!CP141)/((analyses!BL141*analyses!CK141/1000)+(analyses!CQ141*analyses!CR141)) ->  | DI141: =K141*F141/basis!$D$27 -> 0 | DJ141: =M141*F141/basis!$D$29 -> 0 | DK141: =N141*F141/basis!$D$32 -> 0 | DL141: =F141*P141/basis!$D$35 -> 0 | DS141: 0 | DT141: 0 | DU141: 0 | DV141: 0
A142: 2015-05-14 | B142: 5 | C142: 1900-01-05 | AS142: =IF(K142="","",IF(ISNA(nonespace(K142)),"",IF(K142="","",correction_DBO5(select_Methode_BSB5,K142)))) ->  | AX142: 297.9032258 | AZ142: =AZ141 -> 20 | BD142: 0.3 | BF142: 20 | BI142: 0 | BJ142: 0 | BK142: 0 | BL142: 0 | BQ142: 0 | BR142: 0 | BS142: 0 | BT142: 0 | CF142: =nonespace(T142) ->  | CS142: =(CO142*analyses!CP142)/((analyses!BL142*analyses!CK142/1000)+(analyses!CQ142*analyses!CR142)) ->  | DI142: =K142*F142/basis!$D$27 -> 0 | DJ142: =M142*F142/basis!$D$29 -> 0 | DK142: =N142*F142/basis!$D$32 -> 0 | DL142: =F142*P142/basis!$D$35 -> 0 | DS142: 0 | DT142: 0 | DU142: 0 | DV142: 0
A143: 2015-05-15 | B143: 5 | C143: 1900-01-06 | AS143: =IF(K143="","",IF(ISNA(nonespace(K143)),"",IF(K143="","",correction_DBO5(select_Methode_BSB5,K143)))) ->  | AX143: 297.9032258 | AZ143: =AZ142 -> 20 | BD143: 0.3 | BF143: 20 | BI143: 0 | BJ143: 0 | BK143: 0 | BL143: 0 | BQ143: 0 | BR143: 0 | BS143: 0 | BT143: 0 | CF143: =nonespace(T143) ->  | CS143: =(CO143*analyses!CP143)/((analyses!BL143*analyses!CK143/1000)+(analyses!CQ143*analyses!CR143)) ->  | DI143: =K143*F143/basis!$D$27 -> 0 | DJ143: =M143*F143/basis!$D$29 -> 0 | DK143: =N143*F143/basis!$D$32 -> 0 | DL143: =F143*P143/basis!$D$35 -> 0 | DS143: 0 | DT143: 0 | DU143: 0 | DV143: 0
A144: 2015-05-16 | B144: 5 | C144: 1900-01-07 | AS144: =IF(K144="","",IF(ISNA(nonespace(K144)),"",IF(K144="","",correction_DBO5(select_Methode_BSB5,K144)))) ->  | AX144: 297.9032258 | AZ144: =AZ143 -> 20 | BD144: 0.3 | BF144: 20 | BI144: 0 | BJ144: 0 | BK144: 0 | BL144: 0 | BQ144: 0 | BR144: 0 | BS144: 0 | BT144: 0 | CF144: =nonespace(T144) ->  | CS144: =(CO144*analyses!CP144)/((analyses!BL144*analyses!CK144/1000)+(analyses!CQ144*analyses!CR144)) ->  | DI144: =K144*F144/basis!$D$27 -> 0 | DJ144: =M144*F144/basis!$D$29 -> 0 | DK144: =N144*F144/basis!$D$32 -> 0 | DL144: =F144*P144/basis!$D$35 -> 0 | DS144: 0 | DT144: 0 | DU144: 0 | DV144: 0
A145: 2015-05-17 | B145: 5 | C145: 1900-01-01 | AS145: =IF(K145="","",IF(ISNA(nonespace(K145)),"",IF(K145="","",correction_DBO5(select_Methode_BSB5,K145)))) ->  | AX145: 297.9032258 | AZ145: =AZ144 -> 20 | BD145: 0.3 | BF145: 20 | BI145: 0 | BJ145: 0 | BK145: 0 | BL145: 0 | BQ145: 0 | BR145: 0 | BS145: 0 | BT145: 0 | CF145: =nonespace(T145) ->  | CS145: =(CO145*analyses!CP145)/((analyses!BL145*analyses!CK145/1000)+(analyses!CQ145*analyses!CR145)) ->  | DI145: =K145*F145/basis!$D$27 -> 0 | DJ145: =M145*F145/basis!$D$29 -> 0 | DK145: =N145*F145/basis!$D$32 -> 0 | DL145: =F145*P145/basis!$D$35 -> 0 | DS145: 0 | DT145: 0 | DU145: 0 | DV145: 0
A146: 2015-05-18 | B146: 5 | C146: 1900-01-02 | AS146: =IF(K146="","",IF(ISNA(nonespace(K146)),"",IF(K146="","",correction_DBO5(select_Methode_BSB5,K146)))) ->  | AX146: 297.9032258 | AZ146: =AZ145 -> 20 | BD146: 0.3 | BF146: 20 | BI146: 0 | BJ146: 0 | BK146: 0 | BL146: 0 | BQ146: 0 | BR146: 0 | BS146: 0 | BT146: 0 | CF146: =nonespace(T146) ->  | CS146: =(CO146*analyses!CP146)/((analyses!BL146*analyses!CK146/1000)+(analyses!CQ146*analyses!CR146)) ->  | DI146: =K146*F146/basis!$D$27 -> 0 | DJ146: =M146*F146/basis!$D$29 -> 0 | DK146: =N146*F146/basis!$D$32 -> 0 | DL146: =F146*P146/basis!$D$35 -> 0 | DS146: 0 | DT146: 0 | DU146: 0 | DV146: 0
A147: 2015-05-19 | B147: 5 | C147: 1900-01-03 | AS147: =IF(K147="","",IF(ISNA(nonespace(K147)),"",IF(K147="","",correction_DBO5(select_Methode_BSB5,K147)))) ->  | AX147: 297.9032258 | AZ147: =AZ146 -> 20 | BD147: 0.3 | BF147: 20 | BI147: 0 | BJ147: 0 | BK147: 0 | BL147: 0 | BQ147: 0 | BR147: 0 | BS147: 0 | BT147: 0 | CF147: =nonespace(T147) ->  | CS147: =(CO147*analyses!CP147)/((analyses!BL147*analyses!CK147/1000)+(analyses!CQ147*analyses!CR147)) ->  | DI147: =K147*F147/basis!$D$27 -> 0 | DJ147: =M147*F147/basis!$D$29 -> 0 | DK147: =N147*F147/basis!$D$32 -> 0 | DL147: =F147*P147/basis!$D$35 -> 0 | DS147: 0 | DT147: 0 | DU147: 0 | DV147: 0
A148: 2015-05-20 | B148: 5 | C148: 1900-01-04 | AS148: =IF(K148="","",IF(ISNA(nonespace(K148)),"",IF(K148="","",correction_DBO5(select_Methode_BSB5,K148)))) ->  | AX148: 297.9032258 | AZ148: =AZ147 -> 20 | BD148: 0.3 | BF148: 20 | BI148: 0 | BJ148: 0 | BK148: 0 | BL148: 0 | BQ148: 0 | BR148: 0 | BS148: 0 | BT148: 0 | CF148: =nonespace(T148) ->  | CS148: =(CO148*analyses!CP148)/((analyses!BL148*analyses!CK148/1000)+(analyses!CQ148*analyses!CR148)) ->  | DI148: =K148*F148/basis!$D$27 -> 0 | DJ148: =M148*F148/basis!$D$29 -> 0 | DK148: =N148*F148/basis!$D$32 -> 0 | DL148: =F148*P148/basis!$D$35 -> 0 | DS148: 0 | DT148: 0 | DU148: 0 | DV148: 0
A149: 2015-05-21 | B149: 5 | C149: 1900-01-05 | AS149: =IF(K149="","",IF(ISNA(nonespace(K149)),"",IF(K149="","",correction_DBO5(select_Methode_BSB5,K149)))) ->  | AX149: 297.9032258 | AZ149: =AZ148 -> 20 | BD149: 0.3 | BF149: 20 | BI149: 0 | BJ149: 0 | BK149: 0 | BL149: 0 | BQ149: 0 | BR149: 0 | BS149: 0 | BT149: 0 | CF149: =nonespace(T149) ->  | CS149: =(CO149*analyses!CP149)/((analyses!BL149*analyses!CK149/1000)+(analyses!CQ149*analyses!CR149)) ->  | DI149: =K149*F149/basis!$D$27 -> 0 | DJ149: =M149*F149/basis!$D$29 -> 0 | DK149: =N149*F149/basis!$D$32 -> 0 | DL149: =F149*P149/basis!$D$35 -> 0 | DS149: 0 | DT149: 0 | DU149: 0 | DV149: 0
A150: 2015-05-22 | B150: 5 | C150: 1900-01-06 | AS150: =IF(K150="","",IF(ISNA(nonespace(K150)),"",IF(K150="","",correction_DBO5(select_Methode_BSB5,K150)))) ->  | AX150: 297.9032258 | AZ150: =AZ149 -> 20 | BD150: 0.3 | BF150: 20 | BI150: 0 | BJ150: 0 | BK150: 0 | BL150: 0 | BQ150: 0 | BR150: 0 | BS150: 0 | BT150: 0 | CF150: =nonespace(T150) ->  | CS150: =(CO150*analyses!CP150)/((analyses!BL150*analyses!CK150/1000)+(analyses!CQ150*analyses!CR150)) ->  | DI150: =K150*F150/basis!$D$27 -> 0 | DJ150: =M150*F150/basis!$D$29 -> 0 | DK150: =N150*F150/basis!$D$32 -> 0 | DL150: =F150*P150/basis!$D$35 -> 0 | DS150: 0 | DT150: 0 | DU150: 0 | DV150: 0
A151: 2015-05-23 | B151: 5 | C151: 1900-01-07 | AS151: =IF(K151="","",IF(ISNA(nonespace(K151)),"",IF(K151="","",correction_DBO5(select_Methode_BSB5,K151)))) ->  | AX151: 297.9032258 | AZ151: =AZ150 -> 20 | BD151: 0.3 | BF151: 20 | BI151: 0 | BJ151: 0 | BK151: 0 | BL151: 0 | BQ151: 0 | BR151: 0 | BS151: 0 | BT151: 0 | CF151: =nonespace(T151) ->  | CS151: =(CO151*analyses!CP151)/((analyses!BL151*analyses!CK151/1000)+(analyses!CQ151*analyses!CR151)) ->  | DI151: =K151*F151/basis!$D$27 -> 0 | DJ151: =M151*F151/basis!$D$29 -> 0 | DK151: =N151*F151/basis!$D$32 -> 0 | DL151: =F151*P151/basis!$D$35 -> 0 | DS151: 0 | DT151: 0 | DU151: 0 | DV151: 0
A152: 2015-05-24 | B152: 5 | C152: 1900-01-01 | AS152: =IF(K152="","",IF(ISNA(nonespace(K152)),"",IF(K152="","",correction_DBO5(select_Methode_BSB5,K152)))) ->  | AX152: 297.9032258 | AZ152: =AZ151 -> 20 | BD152: 0.3 | BF152: 20 | BI152: 0 | BJ152: 0 | BK152: 0 | BL152: 0 | BQ152: 0 | BR152: 0 | BS152: 0 | BT152: 0 | CF152: =nonespace(T152) ->  | CS152: =(CO152*analyses!CP152)/((analyses!BL152*analyses!CK152/1000)+(analyses!CQ152*analyses!CR152)) ->  | DI152: =K152*F152/basis!$D$27 -> 0 | DJ152: =M152*F152/basis!$D$29 -> 0 | DK152: =N152*F152/basis!$D$32 -> 0 | DL152: =F152*P152/basis!$D$35 -> 0 | DS152: 0 | DT152: 0 | DU152: 0 | DV152: 0
A153: 2015-05-25 | B153: 5 | C153: 1900-01-02 | AS153: =IF(K153="","",IF(ISNA(nonespace(K153)),"",IF(K153="","",correction_DBO5(select_Methode_BSB5,K153)))) ->  | AX153: 297.9032258 | AZ153: =AZ152 -> 20 | BD153: 0.3 | BF153: 20 | BI153: 0 | BJ153: 0 | BK153: 0 | BL153: 0 | BQ153: 0 | BR153: 0 | BS153: 0 | BT153: 0 | CF153: =nonespace(T153) ->  | CS153: =(CO153*analyses!CP153)/((analyses!BL153*analyses!CK153/1000)+(analyses!CQ153*analyses!CR153)) ->  | DI153: =K153*F153/basis!$D$27 -> 0 | DJ153: =M153*F153/basis!$D$29 -> 0 | DK153: =N153*F153/basis!$D$32 -> 0 | DL153: =F153*P153/basis!$D$35 -> 0 | DS153: 0 | DT153: 0 | DU153: 0 | DV153: 0
A154: 2015-05-26 | B154: 5 | C154: 1900-01-03 | AS154: =IF(K154="","",IF(ISNA(nonespace(K154)),"",IF(K154="","",correction_DBO5(select_Methode_BSB5,K154)))) ->  | AX154: 297.9032258 | AZ154: =AZ153 -> 20 | BD154: 0.3 | BF154: 20 | BI154: 0 | BJ154: 0 | BK154: 0 | BL154: 0 | BQ154: 0 | BR154: 0 | BS154: 0 | BT154: 0 | CF154: =nonespace(T154) ->  | CS154: =(CO154*analyses!CP154)/((analyses!BL154*analyses!CK154/1000)+(analyses!CQ154*analyses!CR154)) ->  | DI154: =K154*F154/basis!$D$27 -> 0 | DJ154: =M154*F154/basis!$D$29 -> 0 | DK154: =N154*F154/basis!$D$32 -> 0 | DL154: =F154*P154/basis!$D$35 -> 0 | DS154: 0 | DT154: 0 | DU154: 0 | DV154: 0
A155: 2015-05-27 | B155: 5 | C155: 1900-01-04 | AS155: =IF(K155="","",IF(ISNA(nonespace(K155)),"",IF(K155="","",correction_DBO5(select_Methode_BSB5,K155)))) ->  | AX155: 297.9032258 | AZ155: =AZ154 -> 20 | BD155: 0.3 | BF155: 20 | BI155: 0 | BJ155: 0 | BK155: 0 | BL155: 0 | BQ155: 0 | BR155: 0 | BS155: 0 | BT155: 0 | CF155: =nonespace(T155) ->  | CS155: =(CO155*analyses!CP155)/((analyses!BL155*analyses!CK155/1000)+(analyses!CQ155*analyses!CR155)) ->  | DI155: =K155*F155/basis!$D$27 -> 0 | DJ155: =M155*F155/basis!$D$29 -> 0 | DK155: =N155*F155/basis!$D$32 -> 0 | DL155: =F155*P155/basis!$D$35 -> 0 | DS155: 0 | DT155: 0 | DU155: 0 | DV155: 0
A156: 2015-05-28 | B156: 5 | C156: 1900-01-05 | AS156: =IF(K156="","",IF(ISNA(nonespace(K156)),"",IF(K156="","",correction_DBO5(select_Methode_BSB5,K156)))) ->  | AX156: 297.9032258 | AZ156: =AZ155 -> 20 | BD156: 0.3 | BF156: 20 | BI156: 0 | BJ156: 0 | BK156: 0 | BL156: 0 | BQ156: 0 | BR156: 0 | BS156: 0 | BT156: 0 | CF156: =nonespace(T156) ->  | CS156: =(CO156*analyses!CP156)/((analyses!BL156*analyses!CK156/1000)+(analyses!CQ156*analyses!CR156)) ->  | DI156: =K156*F156/basis!$D$27 -> 0 | DJ156: =M156*F156/basis!$D$29 -> 0 | DK156: =N156*F156/basis!$D$32 -> 0 | DL156: =F156*P156/basis!$D$35 -> 0 | DS156: 0 | DT156: 0 | DU156: 0 | DV156: 0
A157: 2015-05-29 | B157: 5 | C157: 1900-01-06 | AS157: =IF(K157="","",IF(ISNA(nonespace(K157)),"",IF(K157="","",correction_DBO5(select_Methode_BSB5,K157)))) ->  | AX157: 297.9032258 | AZ157: =AZ156 -> 20 | BD157: 0.3 | BF157: 20 | BI157: 0 | BJ157: 0 | BK157: 0 | BL157: 0 | BQ157: 0 | BR157: 0 | BS157: 0 | BT157: 0 | CF157: =nonespace(T157) ->  | CS157: =(CO157*analyses!CP157)/((analyses!BL157*analyses!CK157/1000)+(analyses!CQ157*analyses!CR157)) ->  | DI157: =K157*F157/basis!$D$27 -> 0 | DJ157: =M157*F157/basis!$D$29 -> 0 | DK157: =N157*F157/basis!$D$32 -> 0 | DL157: =F157*P157/basis!$D$35 -> 0 | DS157: 0 | DT157: 0 | DU157: 0 | DV157: 0
A158: 2015-05-30 | B158: 5 | C158: 1900-01-07 | AS158: =IF(K158="","",IF(ISNA(nonespace(K158)),"",IF(K158="","",correction_DBO5(select_Methode_BSB5,K158)))) ->  | AX158: 297.9032258 | AZ158: =AZ157 -> 20 | BD158: 0.3 | BF158: 20 | BI158: 0 | BJ158: 0 | BK158: 0 | BL158: 0 | BQ158: 0 | BR158: 0 | BS158: 0 | BT158: 0 | CF158: =nonespace(T158) ->  | CS158: =(CO158*analyses!CP158)/((analyses!BL158*analyses!CK158/1000)+(analyses!CQ158*analyses!CR158)) ->  | DI158: =K158*F158/basis!$D$27 -> 0 | DJ158: =M158*F158/basis!$D$29 -> 0 | DK158: =N158*F158/basis!$D$32 -> 0 | DL158: =F158*P158/basis!$D$35 -> 0 | DS158: 0 | DT158: 0 | DU158: 0 | DV158: 0
A159: 2015-05-31 | B159: 5 | C159: 1900-01-01 | AS159: =IF(K159="","",IF(ISNA(nonespace(K159)),"",IF(K159="","",correction_DBO5(select_Methode_BSB5,K159)))) ->  | AV159: =H159 -> 0 | AW159: 9235 | AX159: =AW159/31 -> 297.9032258 | AZ159: =AZ158 -> 20 | BD159: 0.3 | BF159: 20 | BI159: 0 | BJ159: 0 | BK159: 0 | BL159: 0 | BQ159: 0 | BR159: 0 | BS159: 0 | BT159: 0 | CF159: =nonespace(T159) ->  | CS159: =(CO159*analyses!CP159)/((analyses!BL159*analyses!CK159/1000)+(analyses!CQ159*analyses!CR159)) ->  | DI159: =K159*F159/basis!$D$27 -> 0 | DJ159: =M159*F159/basis!$D$29 -> 0 | DK159: =N159*F159/basis!$D$32 -> 0 | DL159: =F159*P159/basis!$D$35 -> 0 | DS159: 0 | DT159: 0 | DU159: 0 | DV159: 0
A160: 2015-06-01 | B160: 6 | C160: 1900-01-02 | AS160: =IF(K160="","",IF(ISNA(nonespace(K160)),"",IF(K160="","",correction_DBO5(select_Methode_BSB5,K160)))) ->  | AX160: =AX161 -> 160.5 | AZ160: =AZ159 -> 20 | BD160: 0.3 | BF160: 20 | BI160: 0 | BJ160: 0 | BK160: 0 | BL160: 0 | BQ160: 0 | BR160: 0 | BS160: 0 | BT160: 0 | CF160: =nonespace(T160) ->  | CS160: =(CO160*analyses!CP160)/((analyses!BL160*analyses!CK160/1000)+(analyses!CQ160*analyses!CR160)) ->  | DI160: =K160*F160/basis!$D$27 -> 0 | DJ160: =M160*F160/basis!$D$29 -> 0 | DK160: =N160*F160/basis!$D$32 -> 0 | DL160: =F160*P160/basis!$D$35 -> 0 | DS160: 0 | DT160: 0 | DU160: 0 | DV160: 0
A161: 2015-06-02 | B161: 6 | C161: 1900-01-03 | AS161: =IF(K161="","",IF(ISNA(nonespace(K161)),"",IF(K161="","",correction_DBO5(select_Methode_BSB5,K161)))) ->  | AX161: 160.5 | AZ161: =AZ160 -> 20 | BD161: 0.3 | BF161: 20 | BI161: 0 | BJ161: 0 | BK161: 0 | BL161: 0 | BQ161: 0 | BR161: 0 | BS161: 0 | BT161: 0 | CF161: =nonespace(T161) ->  | CS161: =(CO161*analyses!CP161)/((analyses!BL161*analyses!CK161/1000)+(analyses!CQ161*analyses!CR161)) ->  | DI161: =K161*F161/basis!$D$27 -> 0 | DJ161: =M161*F161/basis!$D$29 -> 0 | DK161: =N161*F161/basis!$D$32 -> 0 | DL161: =F161*P161/basis!$D$35 -> 0 | DS161: 0 | DT161: 0 | DU161: 0 | DV161: 0
A162: 2015-06-03 | B162: 6 | C162: 1900-01-04 | AS162: =IF(K162="","",IF(ISNA(nonespace(K162)),"",IF(K162="","",correction_DBO5(select_Methode_BSB5,K162)))) ->  | AX162: 160.5 | AZ162: =AZ161 -> 20 | BD162: 0.3 | BF162: 20 | BI162: 0 | BJ162: 0 | BK162: 0 | BL162: 0 | BQ162: 0 | BR162: 0 | BS162: 0 | BT162: 0 | CF162: =nonespace(T162) ->  | CS162: =(CO162*analyses!CP162)/((analyses!BL162*analyses!CK162/1000)+(analyses!CQ162*analyses!CR162)) ->  | DI162: =K162*F162/basis!$D$27 -> 0 | DJ162: =M162*F162/basis!$D$29 -> 0 | DK162: =N162*F162/basis!$D$32 -> 0 | DL162: =F162*P162/basis!$D$35 -> 0 | DS162: 0 | DT162: 0 | DU162: 0 | DV162: 0
A163: 2015-06-04 | B163: 6 | C163: 1900-01-05 | AS163: =IF(K163="","",IF(ISNA(nonespace(K163)),"",IF(K163="","",correction_DBO5(select_Methode_BSB5,K163)))) ->  | AX163: 160.5 | AZ163: =AZ162 -> 20 | BD163: 0.3 | BF163: 20 | BI163: 0 | BJ163: 0 | BK163: 0 | BL163: 0 | BQ163: 0 | BR163: 0 | BS163: 0 | BT163: 0 | CF163: =nonespace(T163) ->  | CS163: =(CO163*analyses!CP163)/((analyses!BL163*analyses!CK163/1000)+(analyses!CQ163*analyses!CR163)) ->  | DI163: =K163*F163/basis!$D$27 -> 0 | DJ163: =M163*F163/basis!$D$29 -> 0 | DK163: =N163*F163/basis!$D$32 -> 0 | DL163: =F163*P163/basis!$D$35 -> 0 | DS163: 0 | DT163: 0 | DU163: 0 | DV163: 0
A164: 2015-06-05 | B164: 6 | C164: 1900-01-06 | AS164: =IF(K164="","",IF(ISNA(nonespace(K164)),"",IF(K164="","",correction_DBO5(select_Methode_BSB5,K164)))) ->  | AX164: 160.5 | AZ164: =AZ163 -> 20 | BD164: 0.3 | BF164: 20 | BI164: 0 | BJ164: 0 | BK164: 0 | BL164: 0 | BQ164: 0 | BR164: 0 | BS164: 0 | BT164: 0 | CF164: =nonespace(T164) ->  | CS164: =(CO164*analyses!CP164)/((analyses!BL164*analyses!CK164/1000)+(analyses!CQ164*analyses!CR164)) ->  | DI164: =K164*F164/basis!$D$27 -> 0 | DJ164: =M164*F164/basis!$D$29 -> 0 | DK164: =N164*F164/basis!$D$32 -> 0 | DL164: =F164*P164/basis!$D$35 -> 0 | DS164: 0 | DT164: 0 | DU164: 0 | DV164: 0
A165: 2015-06-06 | B165: 6 | C165: 1900-01-07 | AS165: =IF(K165="","",IF(ISNA(nonespace(K165)),"",IF(K165="","",correction_DBO5(select_Methode_BSB5,K165)))) ->  | AX165: 160.5 | AZ165: =AZ164 -> 20 | BD165: 0.3 | BF165: 20 | BI165: 0 | BJ165: 0 | BK165: 0 | BL165: 0 | BQ165: 0 | BR165: 0 | BS165: 0 | BT165: 0 | CF165: =nonespace(T165) ->  | CS165: =(CO165*analyses!CP165)/((analyses!BL165*analyses!CK165/1000)+(analyses!CQ165*analyses!CR165)) ->  | DI165: =K165*F165/basis!$D$27 -> 0 | DJ165: =M165*F165/basis!$D$29 -> 0 | DK165: =N165*F165/basis!$D$32 -> 0 | DL165: =F165*P165/basis!$D$35 -> 0 | DS165: 0 | DT165: 0 | DU165: 0 | DV165: 0
A166: 2015-06-07 | B166: 6 | C166: 1900-01-01 | AS166: =IF(K166="","",IF(ISNA(nonespace(K166)),"",IF(K166="","",correction_DBO5(select_Methode_BSB5,K166)))) ->  | AX166: 160.5 | AZ166: =AZ165 -> 20 | BD166: 0.3 | BF166: 20 | BI166: 0 | BJ166: 0 | BK166: 0 | BL166: 0 | BQ166: 0 | BR166: 0 | BS166: 0 | BT166: 0 | BX166: =nonespace(L166) ->  | BY166: =nonespace(M166) ->  | CB166: =nonespace(P166) ->  | CC166: =nonespace(Q166) ->  | CD166: =nonespace(R166) ->  | CE166: =nonespace(S166) ->  | CF166: =nonespace(T166) ->  | CG166: =nonespace(U166) ->  | CH166: =nonespace(V166) ->  | CI166: =nonespace(W166) ->  | CJ166: =nonespace(X166) ->  | CK166: =nonespace(Y166) ->  | CL166: =nonespace(Z166) ->  | CM166: =nonespace(AA166) ->  | CN166: =CL166*CM166 ->  | CO166: =nonespace(AB166) ->  | CP166: =nonespace(AC166) ->  | CQ166: =nonespace(AD166) ->  | CR166: =nonespace(AE166) ->  | CS166: =(CO166*analyses!CP166)/((analyses!BL166*analyses!CK166/1000)+(analyses!CQ166*analyses!CR166)) ->  | CT166: =nonespace(AF166) ->  | CU166: =nonespace(AG166) ->  | CV166: =nonespace(AH166) ->  | CW166: =nonespace(AI166) ->  | CX166: =nonespace(AJ166) ->  | CY166: =nonespace(AK166) ->  | CZ166: =nonespace(AL166) ->  | DA166: =nonespace(AM166) ->  | DB166: =nonespace(AN166) ->  | DC166: =nonespace(AO166) ->  | DD166: =nonespace(AP166) ->  | DE166: =nonespace(AQ166) ->  | DI166: =K166*F166/basis!$D$27 -> 0 | DJ166: =M166*F166/basis!$D$29 -> 0 | DK166: =N166*F166/basis!$D$32 -> 0 | DL166: =F166*P166/basis!$D$35 -> 0 | DS166: 0 | DT166: 0 | DU166: 0 | DV166: 0
A167: 2015-06-08 | B167: 6 | C167: 1900-01-02 | AS167: =IF(K167="","",IF(ISNA(nonespace(K167)),"",IF(K167="","",correction_DBO5(select_Methode_BSB5,K167)))) ->  | AX167: 160.5 | AZ167: =AZ166 -> 20 | BD167: 0.3 | BF167: 20 | BI167: 0 | BJ167: 0 | BK167: 0 | BL167: 0 | BQ167: 0 | BR167: 0 | BS167: 0 | BT167: 0 | CF167: =nonespace(T167) ->  | CS167: =(CO167*analyses!CP167)/((analyses!BL167*analyses!CK167/1000)+(analyses!CQ167*analyses!CR167)) ->  | DI167: =K167*F167/basis!$D$27 -> 0 | DJ167: =M167*F167/basis!$D$29 -> 0 | DK167: =N167*F167/basis!$D$32 -> 0 | DL167: =F167*P167/basis!$D$35 -> 0 | DS167: 0 | DT167: 0 | DU167: 0 | DV167: 0
A168: 2015-06-09 | B168: 6 | C168: 1900-01-03 | AS168: =IF(K168="","",IF(ISNA(nonespace(K168)),"",IF(K168="","",correction_DBO5(select_Methode_BSB5,K168)))) ->  | AX168: 160.5 | AZ168: =AZ167 -> 20 | BD168: 0.3 | BF168: 20 | BI168: 0 | BJ168: 0 | BK168: 0 | BL168: 0 | BQ168: 0 | BR168: 0 | BS168: 0 | BT168: 0 | CF168: =nonespace(T168) ->  | CS168: =(CO168*analyses!CP168)/((analyses!BL168*analyses!CK168/1000)+(analyses!CQ168*analyses!CR168)) ->  | DI168: =K168*F168/basis!$D$27 -> 0 | DJ168: =M168*F168/basis!$D$29 -> 0 | DK168: =N168*F168/basis!$D$32 -> 0 | DL168: =F168*P168/basis!$D$35 -> 0 | DS168: 0 | DT168: 0 | DU168: 0 | DV168: 0
A169: 2015-06-10 | B169: 6 | C169: 1900-01-04 | AS169: =IF(K169="","",IF(ISNA(nonespace(K169)),"",IF(K169="","",correction_DBO5(select_Methode_BSB5,K169)))) ->  | AX169: 160.5 | AZ169: =AZ168 -> 20 | BD169: 0.3 | BF169: 20 | BI169: 0 | BJ169: 0 | BK169: 0 | BL169: 0 | BQ169: 0 | BR169: 0 | BS169: 0 | BT169: 0 | CF169: =nonespace(T169) ->  | CS169: =(CO169*analyses!CP169)/((analyses!BL169*analyses!CK169/1000)+(analyses!CQ169*analyses!CR169)) ->  | DI169: =K169*F169/basis!$D$27 -> 0 | DJ169: =M169*F169/basis!$D$29 -> 0 | DK169: =N169*F169/basis!$D$32 -> 0 | DL169: =F169*P169/basis!$D$35 -> 0 | DS169: 0 | DT169: 0 | DU169: 0 | DV169: 0
A170: 2015-06-11 | B170: 6 | C170: 1900-01-05 | AS170: =IF(K170="","",IF(ISNA(nonespace(K170)),"",IF(K170="","",correction_DBO5(select_Methode_BSB5,K170)))) ->  | AX170: 160.5 | AZ170: =AZ169 -> 20 | BD170: 0.3 | BF170: 20 | BI170: 0 | BJ170: 0 | BK170: 0 | BL170: 0 | BQ170: 0 | BR170: 0 | BS170: 0 | BT170: 0 | CF170: =nonespace(T170) ->  | CS170: =(CO170*analyses!CP170)/((analyses!BL170*analyses!CK170/1000)+(analyses!CQ170*analyses!CR170)) ->  | DI170: =K170*F170/basis!$D$27 -> 0 | DJ170: =M170*F170/basis!$D$29 -> 0 | DK170: =N170*F170/basis!$D$32 -> 0 | DL170: =F170*P170/basis!$D$35 -> 0 | DS170: 0 | DT170: 0 | DU170: 0 | DV170: 0
A171: 2015-06-12 | B171: 6 | C171: 1900-01-06 | AS171: =IF(K171="","",IF(ISNA(nonespace(K171)),"",IF(K171="","",correction_DBO5(select_Methode_BSB5,K171)))) ->  | AX171: 160.5 | AZ171: =AZ170 -> 20 | BD171: 0.3 | BF171: 20 | BI171: 0 | BJ171: 0 | BK171: 0 | BL171: 0 | BQ171: 0 | BR171: 0 | BS171: 0 | BT171: 0 | CF171: =nonespace(T171) ->  | CS171: =(CO171*analyses!CP171)/((analyses!BL171*analyses!CK171/1000)+(analyses!CQ171*analyses!CR171)) ->  | DI171: =K171*F171/basis!$D$27 -> 0 | DJ171: =M171*F171/basis!$D$29 -> 0 | DK171: =N171*F171/basis!$D$32 -> 0 | DL171: =F171*P171/basis!$D$35 -> 0 | DS171: 0 | DT171: 0 | DU171: 0 | DV171: 0
A172: 2015-06-13 | B172: 6 | C172: 1900-01-07 | AS172: =IF(K172="","",IF(ISNA(nonespace(K172)),"",IF(K172="","",correction_DBO5(select_Methode_BSB5,K172)))) ->  | AX172: 160.5 | AZ172: =AZ171 -> 20 | BD172: 0.3 | BF172: 20 | BI172: 0 | BJ172: 0 | BK172: 0 | BL172: 0 | BQ172: 0 | BR172: 0 | BS172: 0 | BT172: 0 | CF172: =nonespace(T172) ->  | CS172: =(CO172*analyses!CP172)/((analyses!BL172*analyses!CK172/1000)+(analyses!CQ172*analyses!CR172)) ->  | DI172: =K172*F172/basis!$D$27 -> 0 | DJ172: =M172*F172/basis!$D$29 -> 0 | DK172: =N172*F172/basis!$D$32 -> 0 | DL172: =F172*P172/basis!$D$35 -> 0 | DS172: 0 | DT172: 0 | DU172: 0 | DV172: 0
A173: 2015-06-14 | B173: 6 | C173: 1900-01-01 | AS173: =IF(K173="","",IF(ISNA(nonespace(K173)),"",IF(K173="","",correction_DBO5(select_Methode_BSB5,K173)))) ->  | AX173: 160.5 | AZ173: =AZ172 -> 20 | BD173: 0.3 | BF173: 20 | BI173: 0 | BJ173: 0 | BK173: 0 | BL173: 0 | BQ173: 0 | BR173: 0 | BS173: 0 | BT173: 0 | CF173: =nonespace(T173) ->  | CS173: =(CO173*analyses!CP173)/((analyses!BL173*analyses!CK173/1000)+(analyses!CQ173*analyses!CR173)) ->  | DI173: =K173*F173/basis!$D$27 -> 0 | DJ173: =M173*F173/basis!$D$29 -> 0 | DK173: =N173*F173/basis!$D$32 -> 0 | DL173: =F173*P173/basis!$D$35 -> 0 | DS173: 0 | DT173: 0 | DU173: 0 | DV173: 0
A174: 2015-06-15 | B174: 6 | C174: 1900-01-02 | AS174: =IF(K174="","",IF(ISNA(nonespace(K174)),"",IF(K174="","",correction_DBO5(select_Methode_BSB5,K174)))) ->  | AX174: 160.5 | AZ174: =AZ173 -> 20 | BD174: 0.3 | BF174: 20 | BI174: 0 | BJ174: 0 | BK174: 0 | BL174: 0 | BQ174: 0 | BR174: 0 | BS174: 0 | BT174: 0 | CF174: =nonespace(T174) ->  | CS174: =(CO174*analyses!CP174)/((analyses!BL174*analyses!CK174/1000)+(analyses!CQ174*analyses!CR174)) ->  | DI174: =K174*F174/basis!$D$27 -> 0 | DJ174: =M174*F174/basis!$D$29 -> 0 | DK174: =N174*F174/basis!$D$32 -> 0 | DL174: =F174*P174/basis!$D$35 -> 0 | DS174: 0 | DT174: 0 | DU174: 0 | DV174: 0
A175: 2015-06-16 | B175: 6 | C175: 1900-01-03 | AS175: =IF(K175="","",IF(ISNA(nonespace(K175)),"",IF(K175="","",correction_DBO5(select_Methode_BSB5,K175)))) ->  | AX175: 160.5 | AZ175: =AZ174 -> 20 | BD175: 0.3 | BF175: 20 | BI175: 0 | BJ175: 0 | BK175: 0 | BL175: 0 | BQ175: 0 | BR175: 0 | BS175: 0 | BT175: 0 | CF175: =nonespace(T175) ->  | CS175: =(CO175*analyses!CP175)/((analyses!BL175*analyses!CK175/1000)+(analyses!CQ175*analyses!CR175)) ->  | DI175: =K175*F175/basis!$D$27 -> 0 | DJ175: =M175*F175/basis!$D$29 -> 0 | DK175: =N175*F175/basis!$D$32 -> 0 | DL175: =F175*P175/basis!$D$35 -> 0 | DS175: 0 | DT175: 0 | DU175: 0 | DV175: 0
A176: 2015-06-17 | B176: 6 | C176: 1900-01-04 | AS176: =IF(K176="","",IF(ISNA(nonespace(K176)),"",IF(K176="","",correction_DBO5(select_Methode_BSB5,K176)))) ->  | AX176: 160.5 | AZ176: =AZ175 -> 20 | BD176: 0.3 | BF176: 20 | BI176: 0 | BJ176: 0 | BK176: 0 | BL176: 0 | BQ176: 0 | BR176: 0 | BS176: 0 | BT176: 0 | CF176: =nonespace(T176) ->  | CS176: =(CO176*analyses!CP176)/((analyses!BL176*analyses!CK176/1000)+(analyses!CQ176*analyses!CR176)) ->  | DI176: =K176*F176/basis!$D$27 -> 0 | DJ176: =M176*F176/basis!$D$29 -> 0 | DK176: =N176*F176/basis!$D$32 -> 0 | DL176: =F176*P176/basis!$D$35 -> 0 | DS176: 0 | DT176: 0 | DU176: 0 | DV176: 0
A177: 2015-06-18 | B177: 6 | C177: 1900-01-05 | AS177: =IF(K177="","",IF(ISNA(nonespace(K177)),"",IF(K177="","",correction_DBO5(select_Methode_BSB5,K177)))) ->  | AX177: 160.5 | AZ177: =AZ176 -> 20 | BD177: 0.3 | BF177: 20 | BI177: 0 | BJ177: 0 | BK177: 0 | BL177: 0 | BQ177: 0 | BR177: 0 | BS177: 0 | BT177: 0 | CF177: =nonespace(T177) ->  | CS177: =(CO177*analyses!CP177)/((analyses!BL177*analyses!CK177/1000)+(analyses!CQ177*analyses!CR177)) ->  | DI177: =K177*F177/basis!$D$27 -> 0 | DJ177: =M177*F177/basis!$D$29 -> 0 | DK177: =N177*F177/basis!$D$32 -> 0 | DL177: =F177*P177/basis!$D$35 -> 0 | DS177: 0 | DT177: 0 | DU177: 0 | DV177: 0
A178: 2015-06-19 | B178: 6 | C178: 1900-01-06 | AS178: =IF(K178="","",IF(ISNA(nonespace(K178)),"",IF(K178="","",correction_DBO5(select_Methode_BSB5,K178)))) ->  | AX178: 160.5 | AZ178: =AZ177 -> 20 | BD178: 0.3 | BF178: 20 | BI178: 0 | BJ178: 0 | BK178: 0 | BL178: 0 | BQ178: 0 | BR178: 0 | BS178: 0 | BT178: 0 | CF178: =nonespace(T178) ->  | CS178: =(CO178*analyses!CP178)/((analyses!BL178*analyses!CK178/1000)+(analyses!CQ178*analyses!CR178)) ->  | DI178: =K178*F178/basis!$D$27 -> 0 | DJ178: =M178*F178/basis!$D$29 -> 0 | DK178: =N178*F178/basis!$D$32 -> 0 | DL178: =F178*P178/basis!$D$35 -> 0 | DS178: 0 | DT178: 0 | DU178: 0 | DV178: 0
A179: 2015-06-20 | B179: 6 | C179: 1900-01-07 | AS179: =IF(K179="","",IF(ISNA(nonespace(K179)),"",IF(K179="","",correction_DBO5(select_Methode_BSB5,K179)))) ->  | AX179: 160.5 | AZ179: =AZ178 -> 20 | BD179: 0.3 | BF179: 20 | BI179: 0 | BJ179: 0 | BK179: 0 | BL179: 0 | BQ179: 0 | BR179: 0 | BS179: 0 | BT179: 0 | CF179: =nonespace(T179) ->  | CS179: =(CO179*analyses!CP179)/((analyses!BL179*analyses!CK179/1000)+(analyses!CQ179*analyses!CR179)) ->  | DI179: =K179*F179/basis!$D$27 -> 0 | DJ179: =M179*F179/basis!$D$29 -> 0 | DK179: =N179*F179/basis!$D$32 -> 0 | DL179: =F179*P179/basis!$D$35 -> 0 | DS179: 0 | DT179: 0 | DU179: 0 | DV179: 0
A180: 2015-06-21 | B180: 6 | C180: 1900-01-01 | AS180: =IF(K180="","",IF(ISNA(nonespace(K180)),"",IF(K180="","",correction_DBO5(select_Methode_BSB5,K180)))) ->  | AX180: 160.5 | AZ180: =AZ179 -> 20 | BD180: 0.3 | BF180: 20 | BI180: 0 | BJ180: 0 | BK180: 0 | BL180: 0 | BQ180: 0 | BR180: 0 | BS180: 0 | BT180: 0 | CF180: =nonespace(T180) ->  | CS180: =(CO180*analyses!CP180)/((analyses!BL180*analyses!CK180/1000)+(analyses!CQ180*analyses!CR180)) ->  | DI180: =K180*F180/basis!$D$27 -> 0 | DJ180: =M180*F180/basis!$D$29 -> 0 | DK180: =N180*F180/basis!$D$32 -> 0 | DL180: =F180*P180/basis!$D$35 -> 0 | DS180: 0 | DT180: 0 | DU180: 0 | DV180: 0
A181: 2015-06-22 | B181: 6 | C181: 1900-01-02 | AS181: =IF(K181="","",IF(ISNA(nonespace(K181)),"",IF(K181="","",correction_DBO5(select_Methode_BSB5,K181)))) ->  | AX181: 160.5 | AZ181: =AZ180 -> 20 | BD181: 0.3 | BF181: 20 | BI181: 0 | BJ181: 0 | BK181: 0 | BL181: 0 | BQ181: 0 | BR181: 0 | BS181: 0 | BT181: 0 | CF181: =nonespace(T181) ->  | CS181: =(CO181*analyses!CP181)/((analyses!BL181*analyses!CK181/1000)+(analyses!CQ181*analyses!CR181)) ->  | DI181: =K181*F181/basis!$D$27 -> 0 | DJ181: =M181*F181/basis!$D$29 -> 0 | DK181: =N181*F181/basis!$D$32 -> 0 | DL181: =F181*P181/basis!$D$35 -> 0 | DS181: 0 | DT181: 0 | DU181: 0 | DV181: 0
A182: 2015-06-23 | B182: 6 | C182: 1900-01-03 | AS182: =IF(K182="","",IF(ISNA(nonespace(K182)),"",IF(K182="","",correction_DBO5(select_Methode_BSB5,K182)))) ->  | AX182: 160.5 | AZ182: =AZ181 -> 20 | BD182: 0.3 | BF182: 20 | BI182: 0 | BJ182: 0 | BK182: 0 | BL182: 0 | BQ182: 0 | BR182: 0 | BS182: 0 | BT182: 0 | CF182: =nonespace(T182) ->  | CS182: =(CO182*analyses!CP182)/((analyses!BL182*analyses!CK182/1000)+(analyses!CQ182*analyses!CR182)) ->  | DI182: =K182*F182/basis!$D$27 -> 0 | DJ182: =M182*F182/basis!$D$29 -> 0 | DK182: =N182*F182/basis!$D$32 -> 0 | DL182: =F182*P182/basis!$D$35 -> 0 | DS182: 0 | DT182: 0 | DU182: 0 | DV182: 0
A183: 2015-06-24 | B183: 6 | C183: 1900-01-04 | AS183: =IF(K183="","",IF(ISNA(nonespace(K183)),"",IF(K183="","",correction_DBO5(select_Methode_BSB5,K183)))) ->  | AX183: 160.5 | AZ183: =AZ182 -> 20 | BD183: 0.3 | BF183: 20 | BI183: 0 | BJ183: 0 | BK183: 0 | BL183: 0 | BQ183: 0 | BR183: 0 | BS183: 0 | BT183: 0 | CF183: =nonespace(T183) ->  | CS183: =(CO183*analyses!CP183)/((analyses!BL183*analyses!CK183/1000)+(analyses!CQ183*analyses!CR183)) ->  | DI183: =K183*F183/basis!$D$27 -> 0 | DJ183: =M183*F183/basis!$D$29 -> 0 | DK183: =N183*F183/basis!$D$32 -> 0 | DL183: =F183*P183/basis!$D$35 -> 0 | DS183: 0 | DT183: 0 | DU183: 0 | DV183: 0
A184: 2015-06-25 | B184: 6 | C184: 1900-01-05 | AS184: =IF(K184="","",IF(ISNA(nonespace(K184)),"",IF(K184="","",correction_DBO5(select_Methode_BSB5,K184)))) ->  | AX184: 160.5 | AZ184: =AZ183 -> 20 | BD184: 0.3 | BF184: 20 | BI184: 0 | BJ184: 0 | BK184: 0 | BL184: 0 | BQ184: 0 | BR184: 0 | BS184: 0 | BT184: 0 | CF184: =nonespace(T184) ->  | CS184: =(CO184*analyses!CP184)/((analyses!BL184*analyses!CK184/1000)+(analyses!CQ184*analyses!CR184)) ->  | DI184: =K184*F184/basis!$D$27 -> 0 | DJ184: =M184*F184/basis!$D$29 -> 0 | DK184: =N184*F184/basis!$D$32 -> 0 | DL184: =F184*P184/basis!$D$35 -> 0 | DS184: 0 | DT184: 0 | DU184: 0 | DV184: 0
A185: 2015-06-26 | B185: 6 | C185: 1900-01-06 | AS185: =IF(K185="","",IF(ISNA(nonespace(K185)),"",IF(K185="","",correction_DBO5(select_Methode_BSB5,K185)))) ->  | AX185: 160.5 | AZ185: =AZ184 -> 20 | BD185: 0.3 | BF185: 20 | BI185: 0 | BJ185: 0 | BK185: 0 | BL185: 0 | BQ185: 0 | BR185: 0 | BS185: 0 | BT185: 0 | CF185: =nonespace(T185) ->  | CS185: =(CO185*analyses!CP185)/((analyses!BL185*analyses!CK185/1000)+(analyses!CQ185*analyses!CR185)) ->  | DI185: =K185*F185/basis!$D$27 -> 0 | DJ185: =M185*F185/basis!$D$29 -> 0 | DK185: =N185*F185/basis!$D$32 -> 0 | DL185: =F185*P185/basis!$D$35 -> 0 | DS185: 0 | DT185: 0 | DU185: 0 | DV185: 0
A186: 2015-06-27 | B186: 6 | C186: 1900-01-07 | AS186: =IF(K186="","",IF(ISNA(nonespace(K186)),"",IF(K186="","",correction_DBO5(select_Methode_BSB5,K186)))) ->  | AX186: 160.5 | AZ186: =AZ185 -> 20 | BD186: 0.3 | BF186: 20 | BI186: 0 | BJ186: 0 | BK186: 0 | BL186: 0 | BQ186: 0 | BR186: 0 | BS186: 0 | BT186: 0 | CF186: =nonespace(T186) ->  | CS186: =(CO186*analyses!CP186)/((analyses!BL186*analyses!CK186/1000)+(analyses!CQ186*analyses!CR186)) ->  | DI186: =K186*F186/basis!$D$27 -> 0 | DJ186: =M186*F186/basis!$D$29 -> 0 | DK186: =N186*F186/basis!$D$32 -> 0 | DL186: =F186*P186/basis!$D$35 -> 0 | DS186: 0 | DT186: 0 | DU186: 0 | DV186: 0
A187: 2015-06-28 | B187: 6 | C187: 1900-01-01 | AS187: =IF(K187="","",IF(ISNA(nonespace(K187)),"",IF(K187="","",correction_DBO5(select_Methode_BSB5,K187)))) ->  | AX187: 160.5 | AZ187: =AZ186 -> 20 | BD187: 0.3 | BF187: 20 | BI187: 0 | BJ187: 0 | BK187: 0 | BL187: 0 | BQ187: 0 | BR187: 0 | BS187: 0 | BT187: 0 | CF187: =nonespace(T187) ->  | CS187: =(CO187*analyses!CP187)/((analyses!BL187*analyses!CK187/1000)+(analyses!CQ187*analyses!CR187)) ->  | DI187: =K187*F187/basis!$D$27 -> 0 | DJ187: =M187*F187/basis!$D$29 -> 0 | DK187: =N187*F187/basis!$D$32 -> 0 | DL187: =F187*P187/basis!$D$35 -> 0 | DS187: 0 | DT187: 0 | DU187: 0 | DV187: 0
A188: 2015-06-29 | B188: 6 | C188: 1900-01-02 | AS188: =IF(K188="","",IF(ISNA(nonespace(K188)),"",IF(K188="","",correction_DBO5(select_Methode_BSB5,K188)))) ->  | AX188: 160.5 | AZ188: =AZ187 -> 20 | BD188: 0.3 | BF188: 20 | BI188: 0 | BJ188: 0 | BK188: 0 | BL188: 0 | BQ188: 0 | BR188: 0 | BS188: 0 | BT188: 0 | CF188: =nonespace(T188) ->  | CS188: =(CO188*analyses!CP188)/((analyses!BL188*analyses!CK188/1000)+(analyses!CQ188*analyses!CR188)) ->  | DI188: =K188*F188/basis!$D$27 -> 0 | DJ188: =M188*F188/basis!$D$29 -> 0 | DK188: =N188*F188/basis!$D$32 -> 0 | DL188: =F188*P188/basis!$D$35 -> 0 | DS188: 0 | DT188: 0 | DU188: 0 | DV188: 0
A189: 2015-06-30 | B189: 6 | C189: 1900-01-03 | AS189: =IF(K189="","",IF(ISNA(nonespace(K189)),"",IF(K189="","",correction_DBO5(select_Methode_BSB5,K189)))) ->  | AV189: =H189 -> 0 | AW189: 4815 | AX189: =AW189/30 -> 160.5 | AZ189: =AZ188 -> 20 | BD189: 0.3 | BF189: 20 | BI189: 0 | BJ189: 0 | BK189: 0 | BL189: 0 | BQ189: 0 | BR189: 0 | BS189: 0 | BT189: 0 | CA189: =calcul_Ntot(N189,O189) ->  | CF189: =nonespace(T189) ->  | CS189: =(CO189*analyses!CP189)/((analyses!BL189*analyses!CK189/1000)+(analyses!CQ189*analyses!CR189)) ->  | DI189: =K189*F189/basis!$D$27 -> 0 | DJ189: =M189*F189/basis!$D$29 -> 0 | DK189: =N189*F189/basis!$D$32 -> 0 | DL189: =F189*P189/basis!$D$35 -> 0 | DS189: 0 | DT189: 0 | DU189: 0 | DV189: 0
A190: 2015-07-01 | B190: 7 | C190: 1900-01-04 | AS190: =IF(K190="","",IF(ISNA(nonespace(K190)),"",IF(K190="","",correction_DBO5(select_Methode_BSB5,K190)))) ->  | AX190: =AX191 -> 340.5483871 | AZ190: =AZ189 -> 20 | BD190: 0.3 | BF190: 20 | BI190: 0 | BJ190: 0 | BK190: 0 | BL190: 0 | BQ190: 0 | BR190: 0 | BS190: 0 | BT190: 0 | CF190: =nonespace(T190) ->  | CS190: =(CO190*analyses!CP190)/((analyses!BL190*analyses!CK190/1000)+(analyses!CQ190*analyses!CR190)) ->  | DI190: =K190*F190/basis!$D$27 -> 0 | DJ190: =M190*F190/basis!$D$29 -> 0 | DK190: =N190*F190/basis!$D$32 -> 0 | DL190: =F190*P190/basis!$D$35 -> 0 | DS190: 0 | DT190: 0 | DU190: 0 | DV190: 0
A191: 2015-07-02 | B191: 7 | C191: 1900-01-05 | AS191: =IF(K191="","",IF(ISNA(nonespace(K191)),"",IF(K191="","",correction_DBO5(select_Methode_BSB5,K191)))) ->  | AX191: 340.5483871 | AZ191: =AZ190 -> 20 | BD191: 0.3 | BF191: 20 | BI191: 0 | BJ191: 0 | BK191: 0 | BL191: 0 | BQ191: 0 | BR191: 0 | BS191: 0 | BT191: 0 | CF191: =nonespace(T191) ->  | CS191: =(CO191*analyses!CP191)/((analyses!BL191*analyses!CK191/1000)+(analyses!CQ191*analyses!CR191)) ->  | DI191: =K191*F191/basis!$D$27 -> 0 | DJ191: =M191*F191/basis!$D$29 -> 0 | DK191: =N191*F191/basis!$D$32 -> 0 | DL191: =F191*P191/basis!$D$35 -> 0 | DS191: 0 | DT191: 0 | DU191: 0 | DV191: 0
A192: 2015-07-03 | B192: 7 | C192: 1900-01-06 | AS192: =IF(K192="","",IF(ISNA(nonespace(K192)),"",IF(K192="","",correction_DBO5(select_Methode_BSB5,K192)))) ->  | AX192: 340.5483871 | AZ192: =AZ191 -> 20 | BD192: 0.3 | BF192: 20 | BI192: 0 | BJ192: 0 | BK192: 0 | BL192: 0 | BQ192: 0 | BR192: 0 | BS192: 0 | BT192: 0 | CF192: =nonespace(T192) ->  | CS192: =(CO192*analyses!CP192)/((analyses!BL192*analyses!CK192/1000)+(analyses!CQ192*analyses!CR192)) ->  | DI192: =K192*F192/basis!$D$27 -> 0 | DJ192: =M192*F192/basis!$D$29 -> 0 | DK192: =N192*F192/basis!$D$32 -> 0 | DL192: =F192*P192/basis!$D$35 -> 0 | DS192: 0 | DT192: 0 | DU192: 0 | DV192: 0
A193: 2015-07-04 | B193: 7 | C193: 1900-01-07 | AS193: =IF(K193="","",IF(ISNA(nonespace(K193)),"",IF(K193="","",correction_DBO5(select_Methode_BSB5,K193)))) ->  | AX193: 340.5483871 | AZ193: =AZ192 -> 20 | BD193: 0.3 | BF193: 20 | BI193: 0 | BJ193: 0 | BK193: 0 | BL193: 0 | BQ193: 0 | BR193: 0 | BS193: 0 | BT193: 0 | CF193: =nonespace(T193) ->  | CS193: =(CO193*analyses!CP193)/((analyses!BL193*analyses!CK193/1000)+(analyses!CQ193*analyses!CR193)) ->  | DI193: =K193*F193/basis!$D$27 -> 0 | DJ193: =M193*F193/basis!$D$29 -> 0 | DK193: =N193*F193/basis!$D$32 -> 0 | DL193: =F193*P193/basis!$D$35 -> 0 | DS193: 0 | DT193: 0 | DU193: 0 | DV193: 0
A194: 2015-07-05 | B194: 7 | C194: 1900-01-01 | AS194: =IF(K194="","",IF(ISNA(nonespace(K194)),"",IF(K194="","",correction_DBO5(select_Methode_BSB5,K194)))) ->  | AX194: 340.5483871 | AZ194: =AZ193 -> 20 | BD194: 0.3 | BF194: 20 | BI194: 0 | BJ194: 0 | BK194: 0 | BL194: 0 | BQ194: 0 | BR194: 0 | BS194: 0 | BT194: 0 | CF194: =nonespace(T194) ->  | CS194: =(CO194*analyses!CP194)/((analyses!BL194*analyses!CK194/1000)+(analyses!CQ194*analyses!CR194)) ->  | DI194: =K194*F194/basis!$D$27 -> 0 | DJ194: =M194*F194/basis!$D$29 -> 0 | DK194: =N194*F194/basis!$D$32 -> 0 | DL194: =F194*P194/basis!$D$35 -> 0 | DS194: 0 | DT194: 0 | DU194: 0 | DV194: 0
A195: 2015-07-06 | B195: 7 | C195: 1900-01-02 | AS195: =IF(K195="","",IF(ISNA(nonespace(K195)),"",IF(K195="","",correction_DBO5(select_Methode_BSB5,K195)))) ->  | AX195: 340.5483871 | AZ195: =AZ194 -> 20 | BD195: 0.3 | BF195: 20 | BI195: 0 | BJ195: 0 | BK195: 0 | BL195: 0 | BQ195: 0 | BR195: 0 | BS195: 0 | BT195: 0 | CF195: =nonespace(T195) ->  | CS195: =(CO195*analyses!CP195)/((analyses!BL195*analyses!CK195/1000)+(analyses!CQ195*analyses!CR195)) ->  | DI195: =K195*F195/basis!$D$27 -> 0 | DJ195: =M195*F195/basis!$D$29 -> 0 | DK195: =N195*F195/basis!$D$32 -> 0 | DL195: =F195*P195/basis!$D$35 -> 0 | DS195: 0 | DT195: 0 | DU195: 0 | DV195: 0
A196: 2015-07-07 | B196: 7 | C196: 1900-01-03 | AS196: =IF(K196="","",IF(ISNA(nonespace(K196)),"",IF(K196="","",correction_DBO5(select_Methode_BSB5,K196)))) ->  | AX196: 340.5483871 | AZ196: =AZ195 -> 20 | BD196: 0.3 | BF196: 20 | BI196: 0 | BJ196: 0 | BK196: 0 | BL196: 0 | BQ196: 0 | BR196: 0 | BS196: 0 | BT196: 0 | CF196: =nonespace(T196) ->  | CS196: =(CO196*analyses!CP196)/((analyses!BL196*analyses!CK196/1000)+(analyses!CQ196*analyses!CR196)) ->  | DI196: =K196*F196/basis!$D$27 -> 0 | DJ196: =M196*F196/basis!$D$29 -> 0 | DK196: =N196*F196/basis!$D$32 -> 0 | DL196: =F196*P196/basis!$D$35 -> 0 | DS196: 0 | DT196: 0 | DU196: 0 | DV196: 0
A197: 2015-07-08 | B197: 7 | C197: 1900-01-04 | AS197: =IF(K197="","",IF(ISNA(nonespace(K197)),"",IF(K197="","",correction_DBO5(select_Methode_BSB5,K197)))) ->  | AX197: 340.5483871 | AZ197: =AZ196 -> 20 | BD197: 0.3 | BF197: 20 | BI197: 0 | BJ197: 0 | BK197: 0 | BL197: 0 | BQ197: 0 | BR197: 0 | BS197: 0 | BT197: 0 | CF197: =nonespace(T197) ->  | CS197: =(CO197*analyses!CP197)/((analyses!BL197*analyses!CK197/1000)+(analyses!CQ197*analyses!CR197)) ->  | DI197: =K197*F197/basis!$D$27 -> 0 | DJ197: =M197*F197/basis!$D$29 -> 0 | DK197: =N197*F197/basis!$D$32 -> 0 | DL197: =F197*P197/basis!$D$35 -> 0 | DS197: 0 | DT197: 0 | DU197: 0 | DV197: 0
A198: 2015-07-09 | B198: 7 | C198: 1900-01-05 | AS198: =IF(K198="","",IF(ISNA(nonespace(K198)),"",IF(K198="","",correction_DBO5(select_Methode_BSB5,K198)))) ->  | AX198: 340.5483871 | AZ198: =AZ197 -> 20 | BD198: 0.3 | BF198: 20 | BI198: 0 | BJ198: 0 | BK198: 0 | BL198: 0 | BQ198: 0 | BR198: 0 | BS198: 0 | BT198: 0 | CF198: =nonespace(T198) ->  | CS198: =(CO198*analyses!CP198)/((analyses!BL198*analyses!CK198/1000)+(analyses!CQ198*analyses!CR198)) ->  | DI198: =K198*F198/basis!$D$27 -> 0 | DJ198: =M198*F198/basis!$D$29 -> 0 | DK198: =N198*F198/basis!$D$32 -> 0 | DL198: =F198*P198/basis!$D$35 -> 0 | DS198: 0 | DT198: 0 | DU198: 0 | DV198: 0
A199: 2015-07-10 | B199: 7 | C199: 1900-01-06 | AS199: =IF(K199="","",IF(ISNA(nonespace(K199)),"",IF(K199="","",correction_DBO5(select_Methode_BSB5,K199)))) ->  | AX199: 340.5483871 | AZ199: =AZ198 -> 20 | BD199: 0.3 | BF199: 20 | BI199: 0 | BJ199: 0 | BK199: 0 | BL199: 0 | BQ199: 0 | BR199: 0 | BS199: 0 | BT199: 0 | CF199: =nonespace(T199) ->  | CS199: =(CO199*analyses!CP199)/((analyses!BL199*analyses!CK199/1000)+(analyses!CQ199*analyses!CR199)) ->  | DI199: =K199*F199/basis!$D$27 -> 0 | DJ199: =M199*F199/basis!$D$29 -> 0 | DK199: =N199*F199/basis!$D$32 -> 0 | DL199: =F199*P199/basis!$D$35 -> 0 | DS199: 0 | DT199: 0 | DU199: 0 | DV199: 0
A200: 2015-07-11 | B200: 7 | C200: 1900-01-07 | AS200: =IF(K200="","",IF(ISNA(nonespace(K200)),"",IF(K200="","",correction_DBO5(select_Methode_BSB5,K200)))) ->  | AX200: 340.5483871 | AZ200: =AZ199 -> 20 | BD200: 0.3 | BF200: 20 | BI200: 0 | BJ200: 0 | BK200: 0 | BL200: 0 | BQ200: 0 | BR200: 0 | BS200: 0 | BT200: 0 | CF200: =nonespace(T200) ->  | CS200: =(CO200*analyses!CP200)/((analyses!BL200*analyses!CK200/1000)+(analyses!CQ200*analyses!CR200)) ->  | DI200: =K200*F200/basis!$D$27 -> 0 | DJ200: =M200*F200/basis!$D$29 -> 0 | DK200: =N200*F200/basis!$D$32 -> 0 | DL200: =F200*P200/basis!$D$35 -> 0 | DS200: 0 | DT200: 0 | DU200: 0 | DV200: 0
... 189 more rows

Sheet boues
A1: =basis!A1 -> STEP Ausserbinn N° 6051/00
A3: =bi("Analyse des boues","Schlammanalyse") -> Analyse des boues
B4: =bi("Date du prélèvement","Datum der Probe") -> Date du prélèvement
B5: =bi("Teneur en matière sèche (%MF)","Trockensubstanz bzw. Trockenmasse (%FM)") -> Teneur en matière sèche (%MF)
B6: =bi("Teneur en matière organique (%MS)","organische Trockensubstanz (%TS)") -> Teneur en matière organique (%MS)
B7: pH
A9: =bi("Eléments fertilisants (kg/t MS)","Nährstoffe (kg/t TS)") -> Eléments fertilisants (kg/t MS)
B10: =bi("Ntot","Nges") -> Ntot
B11: NH4-N
B12: P
B13: K
B14: Mg
B15: Ca
A17: =bi("Métaux lourds (g/t MS)","Schwermetalle (g/t TS)") -> Métaux lourds (g/t MS) | D17: =bi("Valeurs limites selon ORRChim (g/t MS)","Grenzwert laut ChemRRV (g/t TS)") -> Valeurs limites selon ORRChim (g/t MS)
B18: Cd | D18: 5
B19: Co | D19: 60
B20: Cr | D20: 500
B21: Cu | D21: 600
B22: Hg | D22: 5
B23: Mo | D23: 20
B24: Ni | D24: 80
B25: Pb | D25: 500
B26: Zn | D26: 2000
B27: AOX (Cl) | D27: 500 | E27: valeur indicative

Sheet BD
A1: =basis!A1 -> STEP Ausserbinn N° 6051/00
B3: =bi("Selon base de donnée","gemäss Datenbank") -> Selon base de donnée | C3: =bi("Si correction, entrer la correction ici","Falls Korrektur bitte hier angeben") -> Si correction, entrer la correction ici | D3: Codage champs | E3: Angabe gemäss Datenbank | F3: 1 | G3: 2 | H3: 3 | I3: 4 | J3: 5 | K3: 6 | L3: 7 | M3: 8 | N3: transformation en vrai/faux ou utilisation ailleurs
A4: =bi("Nom exploitant","Name Betriebsleiter") -> Nom exploitant | B4: =E4 ->  | D4: pas nécessaire | E4: =liste!C105&" "&liste!D105 -> 
A5: =bi("Type de STEP","Typ ARA") -> Type de STEP | B5: =INDEX($F$3:$M$58,,E5) -> urbaine | D5: Type STEP | E5: =INDEX(liste!$B$3:$DJ$100,MATCH(liste!$A$105,liste!$A$3:$A$100,0),MATCH($D5,liste!$B$1:$DJ$1,0)) -> 1 | F5: =bi("urbaine","häuslich") -> urbaine | G5: =bi("industrielle","industriel") -> industrielle | H5: =bi("mixte","gemischt") -> mixte
A6: =bi("Commentaire général","Allgemeine Bemerkung") -> Commentaire général | B6: =E6 -> 0 | D6: commentaire général | E6: =INDEX(liste!$B$3:$DJ$100,MATCH(liste!$A$105,liste!$A$3:$A$100,0),MATCH($D6,liste!$B$1:$DJ$1,0)) -> 0
A8: =bi("Analyses","Analysen") -> Analyses
A9: =bi("Analyses effectuées par labo STEP de","Analysen werden durch folgendes Labor ausgeführt") -> Analyses effectuées par labo STEP de | B9: =E9 -> 0 | D9: Analyses effectuées par le labo | E9: =INDEX(liste!$B$3:$DJ$100,MATCH(liste!$A$105,liste!$A$3:$A$100,0),MATCH($D9,liste!$B$1:$DJ$1,0)) -> 0
A10: =bi("Methode d'analyse de la DBO5","Analysemethode BSB5") -> Methode d'analyse de la DBO5 | B10: =INDEX($F$3:$M$58,,E10) ->  | D10: Methode d'analyse de la DBO5 | E10: =INDEX(liste!$B$3:$DJ$100,MATCH(liste!$A$105,liste!$A$3:$A$100,0),MATCH($D10,liste!$B$1:$DJ$1,0)) -> 0 | F10: =bi("Dilution","Verdünnung") -> Dilution | G10: =bi("OxiTopC","OxiTopC") -> OxiTopC | H10: =bi("Cuvette tests Hach-Lange","Küvettentest Hach-Lange") -> Cuvette tests Hach-Lange | I10: =bi("Cuvette tests Macherey-Nagel","Küvettentest Macherey-Nagel") -> Cuvette tests Macherey-Nagel | J10: =bi("autre","andere") -> autre | N10: =E10 -> 0
A12: =bi("Echantillonage","Probenahme") -> Echantillonage
A13: =bi("Choix du débimètre utilisé pour calculs","Wahl der Durchflussmessung für Berechnungen") -> Choix du débimètre utilisé pour calculs | B13: =INDEX($F$3:$M$58,,E13) -> à l'entrée STEP | D13: Choix du débimètre utilisé pour calculs | E13: =INDEX(liste!$B$3:$DJ$100,MATCH(liste!$A$105,liste!$A$3:$A$100,0),MATCH($D13,liste!$B$1:$DJ$1,0)) -> 1 | F13: =bi("à l'entrée STEP","im Zulauf ARA") -> à l'entrée STEP | G13: =bi("à la sortie STEP","im Ablauf ARA") -> à la sortie STEP | N13: =(E13=1) -> TRUE
A14: =bi("Le préleveur de sortie mesure","Probenehmer im Ablauf misst") -> Le préleveur de sortie mesure | B14: =INDEX($F$3:$M$58,,E14) -> aucun déversement | D14: Le preleveur de sortie mesure | E14: =INDEX(liste!$B$3:$DJ$100,MATCH(liste!$A$105,liste!$A$3:$A$100,0),MATCH($D14,liste!$B$1:$DJ$1,0)) -> 1 | F14: =bi("aucun déversement","keine Bypässe") -> aucun déversement | G14: =bi("déversement entrée STEP","Bypass Zulauf ARA") -> déversement entrée STEP | H14: =bi("déversement sortie primaire","Bypass Ablauf Vorklärung") -> déversement sortie primaire | I14: =bi("déversement entrée STEP+dév. sortie primaire","Bypass Zulauf ARA+Bypass Ablauf Vorklärung") -> déversement entrée STEP+dév. sortie primaire
A15: =bi("Bypass DP sans eaux usées industrielles","Bypass VK ohne industrielles Abwasser") -> Bypass DP sans eaux usées industrielles | B15: =INDEX($F$3:$M$58,,E15) -> Non | D15: Bypass DP sans eaux usées industrielles | E15: =INDEX(liste!$B$3:$DJ$100,MATCH(liste!$A$105,liste!$A$3:$A$100,0),MATCH($D15,liste!$B$1:$DJ$1,0)) -> 1 | F15: =bi("Non","Nein") -> Non | G15: =bi("oui","ja") -> oui
A17: =bi("Prétraitement","Vorreinigung") -> Prétraitement
A18: =bi("Relevage","Hebewerk") -> Relevage | B18: =INDEX($F$3:$M$58,,E18) -> Absent | D18: Relevage | E18: =INDEX(liste!$B$3:$DJ$100,MATCH(liste!$A$105,liste!$A$3:$A$100,0),MATCH($D18,liste!$B$1:$DJ$1,0)) -> 1 | F18: =bi("Absent","Nicht vorh.") -> Absent | G18: =bi("Présent","Vorhanden") -> Présent
A19: =bi("Dégrilleur grossier","Grobrechen") -> Dégrilleur grossier | B19: Absent | D19: Dégrilleur grossier | E19: =INDEX(liste!$B$3:$DJ$100,MATCH(liste!$A$105,liste!$A$3:$A$100,0),MATCH($D19,liste!$B$1:$DJ$1,0)) -> 1 | F19: Absent | G19: Présent
A20: =bi("Dessableur","Sandfang") -> Dessableur | B20: Absent | D20: Dessableur | E20: =INDEX(liste!$B$3:$DJ$100,MATCH(liste!$A$105,liste!$A$3:$A$100,0),MATCH($D20,liste!$B$1:$DJ$1,0)) -> 1 | F20: Absent | G20: Présent
A21: =bi("Déshuileur","Fettfang") -> Déshuileur | B21: Absent | D21: Déshuileur | E21: =INDEX(liste!$B$3:$DJ$100,MATCH(liste!$A$105,liste!$A$3:$A$100,0),MATCH($D21,liste!$B$1:$DJ$1,0)) -> 1 | F21: Absent | G21: Présent
A22: =bi("Tamiseur","Feinrechen") -> Tamiseur | B22: Absent | D22: Tamiseur | E22: =INDEX(liste!$B$3:$DJ$100,MATCH(liste!$A$105,liste!$A$3:$A$100,0),MATCH($D22,liste!$B$1:$DJ$1,0)) -> 1 | F22: Absent | G22: Présent
A23: =bi("Salsnes","Salsnes") -> Salsnes | B23: Absent | D23: Salsnes | E23: =INDEX(liste!$B$3:$DJ$100,MATCH(liste!$A$105,liste!$A$3:$A$100,0),MATCH($D23,liste!$B$1:$DJ$1,0)) -> 1 | F23: Absent | G23: Présent
A24: =bi("autre","andere") -> autre | B24: Absent | D24: autre | E24: =INDEX(liste!$B$3:$DJ$100,MATCH(liste!$A$105,liste!$A$3:$A$100,0),MATCH($D24,liste!$B$1:$DJ$1,0)) -> 1 | F24: Absent | G24: Présent
A26: =bi("Traitement primaire","Vorklärung") -> Traitement primaire
A27: =bi("Décantation primaire","Vorklärung") -> Décantation primaire | B27: =INDEX($F$3:$M$58,,E27) -> absent | D27: Décantation primaire | E27: =INDEX(liste!$B$3:$DJ$100,MATCH(liste!$A$105,liste!$A$3:$A$100,0),MATCH($D27,liste!$B$1:$DJ$1,0)) -> 4 | F27: =bi("Décantation primaire classique","Klassische Vorklärung") -> Décantation primaire classique | G27: =bi("Décantation lamellaire","Lamellenklärer") -> Décantation lamellaire | H27: =bi("autre","andere") -> autre | I27: =bi("absent","nicht vorhanden") -> absent
A30: =bi("Traitement secondaire","Biologische Stufe") -> Traitement secondaire
A31: =bi("Boues activées","Belebtschlamm") -> Boues activées | B31: =INDEX($F$3:$M$58,,E31) ->  | D31: Boues activées | E31: =INDEX(liste!$B$3:$DJ$100,MATCH(liste!$A$105,liste!$A$3:$A$100,0),MATCH($D31,liste!$B$1:$DJ$1,0)) -> 0 | F31: =bi("Faible charge","Schwachlast") -> Faible charge | G31: =bi("Moyenne charge","Mittellast") -> Moyenne charge | H31: =bi("Forte charge","Hochlast") -> Forte charge | I31: =bi("Forte charge/faible charge","Hoch+Schwachlast") -> Forte charge/faible charge | J31: =bi("lit fluidisé","Wirbelbett") -> lit fluidisé | K31: =bi("autre","andere") -> autre
A32: =bi("Chenal d'oxydation","Oxidationsgraben") -> Chenal d'oxydation | B32: Absent | D32: Chenal d'oxydation | E32: =INDEX(liste!$B$3:$DJ$100,MATCH(liste!$A$105,liste!$A$3:$A$100,0),MATCH($D32,liste!$B$1:$DJ$1,0)) -> 1 | F32: =bi("Absent","Nicht vorh.") -> Absent | G32: =bi("Présent","Vorhanden") -> Présent
A33: =bi("Lit bactérien","Tropfkörper") -> Lit bactérien | B33: Absent | D33: Lit bactérien | E33: =INDEX(liste!$B$3:$DJ$100,MATCH(liste!$A$105,liste!$A$3:$A$100,0),MATCH($D33,liste!$B$1:$DJ$1,0)) -> 1 | F33: =bi("Absent","Nicht vorh.") -> Absent | G33: =bi("Présent","Vorhanden") -> Présent
A34: =bi("Biofiltre","Biofilter") -> Biofiltre | B34: Absent | D34: Biofiltre | E34: =INDEX(liste!$B$3:$DJ$100,MATCH(liste!$A$105,liste!$A$3:$A$100,0),MATCH($D34,liste!$B$1:$DJ$1,0)) -> 1 | F34: =bi("Absent","Nicht vorh.") -> Absent | G34: =bi("Présent","Vorhanden") -> Présent
A35: =bi("Disque biologique","Tauchkörper") -> Disque biologique | B35: Absent | D35: Disque biologique | E35: =INDEX(liste!$B$3:$DJ$100,MATCH(liste!$A$105,liste!$A$3:$A$100,0),MATCH($D35,liste!$B$1:$DJ$1,0)) -> 1 | F35: =bi("Absent","Nicht vorh.") -> Absent | G35: =bi("Présent","Vorhanden") -> Présent
A36: =bi("Lagunage/Phytoplancton","Wurzelraumkläranlage") -> Lagunage/Phytoplancton | B36: Absent | D36: Lagunage/Phytoplancton | E36: =INDEX(liste!$B$3:$DJ$100,MATCH(liste!$A$105,liste!$A$3:$A$100,0),MATCH($D36,liste!$B$1:$DJ$1,0)) -> 1 | F36: =bi("Absent","Nicht vorh.") -> Absent | G36: =bi("Présent","Vorhanden") -> Présent
A38: =bi("Clarification secondaire","Nachklärung") -> Clarification secondaire
A39: =bi("Classique","Klassisch") -> Classique | B39: =INDEX($F$3:$M$58,,E39) -> Absent | D39: Classique | E39: =INDEX(liste!$B$3:$DJ$100,MATCH(liste!$A$105,liste!$A$3:$A$100,0),MATCH($D39,liste!$B$1:$DJ$1,0)) -> 1 | F39: =bi("Absent","Nicht vorh.") -> Absent | G39: =bi("Présent","Vorhanden") -> Présent
A40: =bi("Filtration","Filtration") -> Filtration | B40: Absent | D40: Filtration | E40: =INDEX(liste!$B$3:$DJ$100,MATCH(liste!$A$105,liste!$A$3:$A$100,0),MATCH($D40,liste!$B$1:$DJ$1,0)) -> 1 | F40: Absent | G40: Présent
A41: =bi("Micro-tamis","Feinfilter") -> Micro-tamis | B41: Absent | D41: Micro-tamis | E41: =INDEX(liste!$B$3:$DJ$100,MATCH(liste!$A$105,liste!$A$3:$A$100,0),MATCH($D41,liste!$B$1:$DJ$1,0)) -> 1 | F41: Absent | G41: Présent
A42: =bi("Membrane","Membrane") -> Membrane | B42: Absent | D42: Membrane | E42: =INDEX(liste!$B$3:$DJ$100,MATCH(liste!$A$105,liste!$A$3:$A$100,0),MATCH($D42,liste!$B$1:$DJ$1,0)) -> 1 | F42: Absent | G42: Présent
A43: =bi("Flottation","Flottation") -> Flottation | B43: Absent | D43: Flottation | E43: =INDEX(liste!$B$3:$DJ$100,MATCH(liste!$A$105,liste!$A$3:$A$100,0),MATCH($D43,liste!$B$1:$DJ$1,0)) -> 1 | F43: Absent | G43: Présent
A44: =bi("autre","andere") -> autre | B44: Absent | D44: autre | E44: =INDEX(liste!$B$3:$DJ$100,MATCH(liste!$A$105,liste!$A$3:$A$100,0),MATCH($D44,liste!$B$1:$DJ$1,0)) -> 1 | F44: Absent | G44: Présent
A46: =bi("Traitement tertiaire","Nachbehandlung") -> Traitement tertiaire
A47: =bi("Filtration","Filtration") -> Filtration | B47: =INDEX($F$3:$M$58,,E47) -> Absent | D47: Filtration | E47: =INDEX(liste!$B$3:$DJ$100,MATCH(liste!$A$105,liste!$A$3:$A$100,0),MATCH($D47,liste!$B$1:$DJ$1,0)) -> 1 | F47: =bi("Absent","Nicht vorh.") -> Absent | G47: =bi("Présent","Vorhanden") -> Présent
A48: =bi("Ozonation","Ozonierung") -> Ozonation | B48: =INDEX($F$3:$M$58,,E48) -> Absent | D48: Ozonation | E48: =INDEX(liste!$B$3:$DJ$100,MATCH(liste!$A$105,liste!$A$3:$A$100,0),MATCH($D48,liste!$B$1:$DJ$1,0)) -> 1 | F48: =bi("Absent","Nicht vorh.") -> Absent | G48: =bi("Présent","Vorhanden") -> Présent
A49: =bi("Charbon actif","Aktivkohlefilter") -> Charbon actif | B49: =INDEX($F$3:$M$58,,E49) -> Absent | D49: Charbon actif | E49: =INDEX(liste!$B$3:$DJ$100,MATCH(liste!$A$105,liste!$A$3:$A$100,0),MATCH($D49,liste!$B$1:$DJ$1,0)) -> 1 | F49: =bi("Absent","Nicht vorh.") -> Absent | G49: =bi("Présent","Vorhanden") -> Présent
A50: =bi("autre","andere") -> autre | B50: =INDEX($F$3:$M$58,,E50) -> Absent | D50: autre | E50: =INDEX(liste!$B$3:$DJ$100,MATCH(liste!$A$105,liste!$A$3:$A$100,0),MATCH($D50,liste!$B$1:$DJ$1,0)) -> 1 | F50: =bi("Absent","Nicht vorh.") -> Absent | G50: =bi("Présent","Vorhanden") -> Présent
A52: =bi("Traitement des boues","Schlammbehandlung") -> Traitement des boues
A53: =bi("Epaississement des boues","Schlammeindickung") -> Epaississement des boues | B53: =INDEX($F$3:$M$58,,E53) ->  | D53: Epaississement des boues | E53: =INDEX(liste!$B$3:$DJ$100,MATCH(liste!$A$105,liste!$A$3:$A$100,0),MATCH($D53,liste!$B$1:$DJ$1,0)) -> 0 | F53: =bi("Epaississeur statique","Statischer Eindicker") -> Epaississeur statique | G53: =bi("Table d'égouttage","Entwässerungstisch") -> Table d'égouttage | H53: =bi("Tambour d'égouttage","Seihtrommel") -> Tambour d'égouttage | I53: =bi("Epaississeur à vis","Schneckenpresse") -> Epaississeur à vis | J53: =bi("Flottation","Flotation") -> Flottation | K53: =bi("Centrifugeuse","Zentrifuge") -> Centrifugeuse | L53: =bi("autre","andere") -> autre | M53: =bi("absent","nicht vorhanden") -> absent
A54: =bi("Stabilisation","Stabilisierung") -> Stabilisation | B54: absent | D54: Stabilisation | E54: =INDEX(liste!$B$3:$DJ$100,MATCH(liste!$A$105,liste!$A$3:$A$100,0),MATCH($D54,liste!$B$1:$DJ$1,0)) -> 5 | F54: =bi("Digestion","Faulung") -> Digestion | G54: =bi("Digestion à froid","Kalte Faulung") -> Digestion à froid | H54: =bi("Stabilisation aérée","Beluftete Stabilisierung") -> Stabilisation aérée | I54: =bi("autre","andere") -> autre | J54: =bi("absent","nicht vorhanden") -> absent
A55: =bi("Valorisation du biogaz","Verwertung Biogas") -> Valorisation du biogaz | B55: absent | D55: Valorisation du biogaz | E55: =INDEX(liste!$B$3:$DJ$100,MATCH(liste!$A$105,liste!$A$3:$A$100,0),MATCH($D55,liste!$B$1:$DJ$1,0)) -> 5 | F55: =bi("Chaudière à gaz","Heizkessel") -> Chaudière à gaz | G55: =bi("Couplage Chaleur-Force","Wärme-Kraft Kopplung") -> Couplage Chaleur-Force | H55: =bi("Réseaux gaz","Einspeisung Gas") -> Réseaux gaz | I55: =bi("Pile à combustible","Brennstoffzellen") -> Pile à combustible | J55: =bi("absent","nicht vorhanden") -> absent
A56: =bi("Déshydratation","Schlammentwässerung") -> Déshydratation | D56: Déshydratation | E56: =INDEX(liste!$B$3:$DJ$100,MATCH(liste!$A$105,liste!$A$3:$A$100,0),MATCH($D56,liste!$B$1:$DJ$1,0)) -> 0 | F56: =bi("Epaississement statique","Nacheindickung") -> Epaississement statique | G56: =bi("Tasster","Tasster") -> Tasster | H56: =bi("Presse à vis","Schneckenpresse") -> Presse à vis | I56: =bi("centrifugeuse","Zentrifuge") -> centrifugeuse | J56: =bi("Filtre à bande","Siebbandpresse") -> Filtre à bande | K56: =bi("Filtre à presse","Kammerfilterpresse") -> Filtre à presse | L56: =bi("autre","andere") -> autre | M56: =bi("absent","nicht vorhanden") -> absent
A57: =bi("Séchage","Trocknung") -> Séchage | B57: Absent | D57: Séchage | E57: =INDEX(liste!$B$3:$DJ$100,MATCH(liste!$A$105,liste!$A$3:$A$100,0),MATCH($D57,liste!$B$1:$DJ$1,0)) -> 1 | F57: =bi("Absent","Nicht vorh.") -> Absent | G57: =bi("Présent","Vorhanden") -> Présent
A58: =bi("Incinération","Verbrennung") -> Incinération | B58: Absent | D58: Incinération | E58: =INDEX(liste!$B$3:$DJ$100,MATCH(liste!$A$105,liste!$A$3:$A$100,0),MATCH($D58,liste!$B$1:$DJ$1,0)) -> 1 | F58: =bi("Absent","Nicht vorh.") -> Absent | G58: =bi("Présent","Vorhanden") -> Présent

Sheet graph0
A1: =basis!A1 -> STEP Ausserbinn N° 6051/00
A2: =bi("Résumé des graphiques","Zusammenfassende Graphiken") -> Résumé des graphiques
A3: =bi("Débits","Abwassermengen") -> Débits
A25: =bi("Concentrations de rejet","Ablaufkonzentrationen") -> Concentrations de rejet
A91: =bi("Eaux claires parasites","Fremdwasseranteil") -> Eaux claires parasites

Sheet graph1 (hidden)
A1: =basis!A1 -> STEP Ausserbinn N° 6051/00 | I1: =basis!A1 -> STEP Ausserbinn N° 6051/00 | S1: =basis!A1 -> STEP Ausserbinn N° 6051/00 | AC1: =basis!A1 -> STEP Ausserbinn N° 6051/00 | AM1: =basis!A1 -> STEP Ausserbinn N° 6051/00 | AW1: =basis!A1 -> STEP Ausserbinn N° 6051/00 | BG1: =basis!A1 -> STEP Ausserbinn N° 6051/00 | BQ1: =basis!A1 -> STEP Ausserbinn N° 6051/00 | CA1: =basis!A1 -> STEP Ausserbinn N° 6051/00 | CK1: =basis!A1 -> STEP Ausserbinn N° 6051/00
A2: =bi("Débits","Abwassermengen") -> Débits | I2: =bi("Concentration en entrée STEP","Zulaufkonzentrationen") -> Concentration en entrée STEP | N2: =bi("Evaluation de la teneur en ECP","Abschätzung Fremdwasseranteil") -> Evaluation de la teneur en ECP | S2: =bi("Eaux parasites","Fremdwasser") -> Eaux parasites | AC2: =bi("Evaluation du débit d'ECP en fonction de divers paramètres mesurées en entrée STEP","Abschätzung Fremdw.menge in Funktion der versch. gemessenen Parameter im Zulauf ARA") -> Evaluation du débit d'ECP en fonction de divers paramètres mesurées en entrée STEP | AM2: =bi("Charges entrée STEP et calcul des EH reçus","Belastungsdaten Zulauf ARA und Berechnungen EW") -> Charges entrée STEP et calcul des EH reçus | AW2: =bi("Concentration des rejets","Auslaufkonzentrationen") -> Concentration des rejets | BG2: =bi("Charges rejetées","Ablauffrachten") -> Charges rejetées | BQ2: =bi("Charges rejetées","Auslauffrachten") -> Charges rejetées | CA2: =bi("Rendement","Abbauleistungen") -> Rendement | CW2: =bi("Concentration globale en sortie avec bypass","Globle Ablaufkonzentrationen mit Bypässen") -> Concentration globale en sortie avec bypass
S3: =bi(" A) Calcul % eaux claires parasites par rapport aux concentrations en entrée, moyenne annuelle","A) Berechnung % Fremdwasseranteil im Bezug auf Zulaufkonzentrationen, Jahresmittelwert") -> A) Calcul % eaux claires parasites par rapport aux concentrations en entrée, moyenne annuelle | CA3: =bi("Taux d'épuration (moyennes) sans deversements","Abbauleistungen (Mittelwerte) ohne Bypass") -> Taux d'épuration (moyennes) sans deversements | CU3: =bi("Prod. de boues deshyd. t MS / mois","Prod. entwäss. Schlamm t TS / Monat") -> Prod. de boues deshyd. t MS / mois
S4: =bi("Part des eaux claires totales (Part des eaux claires permanentes et pluviales dans les eaux traitées tout temps confondus)","Gesamter Fremdwasseranteil (ständiger Anteil und Regenwasser, am mittleren Abwasseranfall, unabhängig von der Witterung") -> Part des eaux claires totales (Part des eaux claires permanentes et pluviales dans les eaux traitées tout temps confondus)
S5: =bi("EXEMPLE","BEISPIEL") -> EXEMPLE | T5: =bi("1 EH","1 EW")&" =" -> 1 EH = | U5: =DBO5_specifique_parEH -> 60 | V5: =bi("g DBO5 par jour","g BSB5 pro Tag") -> g DBO5 par jour | CA5: =bi("Estimation","Abschätzung") -> Estimation | CC5: =bi("Ch. spec.","Spez.Fr.") -> Ch. spec. | CD5: =bi("Entrée","Zulauf") -> Entrée | CE5: =bi("Sortie","Auslauf") -> Sortie | CF5: =bi("Rend.","Abbau") -> Rend. | CG5: =bi("Norme","Grenzw") -> Norme | CH5: =bi("Elimination","Abbau") -> Elimination
T6: =bi("1 EH","1 EW")&" =" -> 1 EH = | U6: =debit_specifique_parEH -> 170 | V6: =bi("litres eau usée entrée STEP par jour","Liter Abwasser Zulauf ARA pro Tag") -> litres eau usée entrée STEP par jour | CB6: =bi("EH","EW") -> EH | CC6: =bi("g / EH.j","g / EW.d") -> g / EH.j | CD6: =bi("kg / jour","kg / Tag") -> kg / jour | CE6: =bi("kg / jour","kg / Tag") -> kg / jour | CF6: % | CG6: mg/l | CH6: kg/d
T7: =bi("correspond à","entspricht") -> correspond à | U7: =U5*1000/U6 -> 352.9411765 | V7: =bi("mg/l DBO5","mg/l BSB5") -> mg/l DBO5 | CA7: =bi("DBO5","BSB5") -> DBO5 | CB7: =+AO57 ->  | CC7: =DBO5_specifique_parEH -> 60 | CD7: =integr!I386 ->  | CE7: =integr!BE386 ->  | CF7: =(CD7-CE7)/CD7 ->  | CG7: =basis!G27 / 100 -> 0 | CH7: =CD7-CE7 -> 
D8: ¨$ | CA8: =bi("COT/COD","CSB") -> COT/COD | CB8: =+AO57 ->  | CC8: =basis!$B$29 -> 37.5 | CD8: =integr!Y386 ->  | CE8: =integr!BU386 ->  | CF8: =(CD8-CE8)/CD8 ->  | CG8: =basis!G29/100 ->  | CH8: =CD8-CE8 -> 
S9: =bi(" Comparaison de la conc. DBO5 en entrée STEP avec la concentration de 353 mg/l DBO5:"," Vergleich der BSB5-Konz. im Zulauf der ARA mit der BSB5-Konzentration von 353 mg/l:") -> Comparaison de la conc. DBO5 en entrée STEP avec la concentration de 353 mg/l DBO5: | CA9: N tot | CC9: =basis!B30 -> 10 à 15 | CD9: =integr!AO386 ->  | CE9: =IF(ISERR(CE10),0,CE10) + IF(ISERR(CE11),0,CE11) + IF(ISERR(CE12),0,CE12) + IF(ISERR(CE13),0,CE13) -> 
T10: =bi("Concentration DBO5 analysée en entrée STEP","Analysierte BSB5-Konz. im Zulauf der ARA") -> Concentration DBO5 analysée en entrée STEP | X10: 200 | Y10: mg/l | CA10: N org | CD10: =CD9-CD11-CD12-CD13 ->  | CE10: =0.09*CE15 -> 
T11: =bi("Déficit par rapport à 353 mg/l BSB5","Defizit im Vergleich zu 353 mg/l BSB5") -> Déficit par rapport à 353 mg/l BSB5 | X11: =ROUND(1-X10/U7,2) -> 0.43 | CA11: NH4 | CB11: =AQ57 ->  | CC11: =basis!$B$32 -> 7 | CD11: =integr!AG386 ->  | CE11: =integr!CC386 ->  | CF11: =(CD9-CE11)/CD9 ->  | CG11: =IF(basis!G32="","",basis!G32/100) ->  | CH11: =CD9-CE11 ->  | CV11: =bi("Charge moyenne DBO5 kg/d","Mittlere BSB5-Frachten kg/d") -> Charge moyenne DBO5 kg/d
T12: =bi("Qmoyen","QMittel") -> Qmoyen | X12: =ROUND(Y29,0) -> 0 | Y12: m3/d | CA12: NO2 | CE12: =IF(BR55="",(CE11+CE13)*0.019,BR55) ->  | CV12: =bi("Charge moyenne COT/COD kg/d","Mittlere TOC/DOC-Frachten kg/d") -> Charge moyenne COT/COD kg/d
T13: =bi("Débit ECP en entrée STEP","Durchfluss Fremdwasser im Zulauf der ARA") -> Débit ECP en entrée STEP | X13: =ROUND(X12*X11,0) -> 0 | Y13: m3/d | CA13: NO3 | CD13: =C53*basis!B34/1000 -> 0 | CE13: =+BR56 ->  | CV13: =bi("Charge moyenne formes azotées kg/d","Mittlere N-Frachten kg/d") -> Charge moyenne formes azotées kg/d
S14: =bi("Calcul pour la STEP de ","Berechnung für ARA ")&S1&" :" -> Calcul pour la STEP de STEP Ausserbinn N° 6051/00 : | CA14: P tot | CB14: =AR57 ->  | CC14: =basis!$B$35 -> 1.9 | CD14: =integr!AW386 ->  | CE14: =integr!DA386 ->  | CF14: =(CD14-CE14)/CD14 ->  | CG14: =IF(basis!G35>0,basis!G35&"%","") -> % | CH14: =CD14-CE14 ->  | CV14: =bi("Charge moyenne phosphore kg/d","Mittlere P-Frachten kg/d") -> Charge moyenne phosphore kg/d
S15: =bi(" On fait de même avec les autres paramètres:"," Idem für die anderen Parameter:") -> On fait de même avec les autres paramètres: | CA15: MES | CE15: =integr!DI386 ->  | CV15: =bi("Boues incinérées t MS/mois","Schlamm zur Verbrenung t TS / Monat") -> Boues incinérées t MS/mois
S17: =bi("Ptot","Pges") -> Ptot | T17: =calc!AO386/100 -> 0 | CA17: N tot = NTK + NO2 + NO3 = Norg + NH4-N + NO2 + NO3 | CP17: =bi("Moyenne journalière Boues fraîches","Frischschlammanfall: Mittelwerte") -> Moyenne journalière Boues fraîches
S18: =bi("NH4","NH4") -> NH4 | T18: =calc!AI386/100 -> 0
S19: =bi("COT","TOC") -> COT | T19: =calc!AC386/100 -> 0 | CA19: NTK = Norg + NH4-N | CP19: =bi("Boues fraîches","Frischschl. nass") -> Boues fraîches | CR19: =IF(COUNT(analyses!Z9:Z373)>0,AVERAGE(analyses!Z9:Z373),"") ->  | CS19: =bi("m3/jour","m3/Tag") -> m3/jour
S20: =bi("DBO","BSB") -> DBO | T20: =calc!W386/100 -> 0 | CP20: =bi("MS","TS-Anteil") -> MS | CR20: =IF(COUNT(analyses!AA9:AA373)>0,AVERAGE(analyses!AA9:AA373),"") ->  | CS20: =bi("g MS/l","%") -> g MS/l
CP21: =bi("Production :","Frischschl. in TS") -> Production : | CR21: =IF(AND(CR19<>"",CR20<>""),CR19*CR20,"") ->  | CS21: =bi("kg MS/jour","kg TS/Tag") -> kg MS/jour
CR22: =IF(CR21<>"",CR21*0.365,"") ->  | CS22: =bi("t MS/ an","t TS/ Jahr") -> t MS/ an
CP24: =bi("Boues incinérées","Schlamm zur Verbrennung") -> Boues incinérées
CP25: =SUM(analyses!AF9:AF373) -> 0 | CQ25: =bi("t brut/an","t Roh/a") -> t brut/an
CP26: =SUM(analyses!AH9:AH373) -> 0 | CQ26: =bi("t MS/an","t TS/a") -> t MS/an
S27: =bi(" Ensuite on peut calculer les débits:"," Danach Berechnung der Durchflüsse:") -> Ensuite on peut calculer les débits: | CP27: =CP26/12 -> 0 | CQ27: =bi("t MS/mois","t TS/Monat") -> t MS/mois
S28: =bi("débit moyen journalier","Mittl. Tägl. Durchfluss") -> débit moyen journalier | Y28: m3/d | Z28: % ECP | AA28: l/s
S29: =bi("Qmoyen","QMittel") -> Qmoyen | Y29: =C53 -> 0 | AA29: =Y29/86.4 -> 0 | CP29: =bi("Production gaz","Gasproduktion") -> Production gaz
S30: =bi("ECP","Fremdw.") -> ECP | T30: =bi(" = Qmoyen * % ECP","= QMittel * % Fremdwasser") -> = Qmoyen * % ECP | Y30: =Y29*Z30 -> 0 | Z30: =SUM(IF(ISERROR(T17:T20)=FALSE,T17:T20,0))/(ROWS(T17:T20)-SUM(IF(ISERROR(T17:T20)=TRUE,1,0))) -> 0 | AA30: =Y30/86.4 -> 0 | CQ30: =analyses!CW382 -> 0 | CR30: m3/an
S31: =bi("EU théor.","Th. Abw.") -> EU théor. | T31: =bi(" = Qmoyen - ECP"," = QMittel - Fremdwasser") -> = Qmoyen - ECP | Y31: =Y29-Y30 -> 0 | AA31: =Y31/86.4 -> 0
CP32: =bi("Température bassin biologique","Abwassertemperatur") -> Température bassin biologique
S33: =bi("B) Calcul quantité d'eaux claires parasites (m3/d) par rapport au débit en entrée, moyenne annuelle","B) Berechnung Fremdwassermenge (m3/d) im Bezug auf Zulaufmenge, Jahresmittelwert") -> B) Calcul quantité d'eaux claires parasites (m3/d) par rapport au débit en entrée, moyenne annuelle | AC33: =bi("Evaluation du débit d'ECP en fonction de la moyenne des 4 paramètres mesurés en entrée STEP","Abschätzung Fremdw.menge in Funktion der mittleren 4 gemessenen Parameter im Zulauf ARA") -> Evaluation du débit d'ECP en fonction de la moyenne des 4 paramètres mesurés en entrée STEP
S34: =bi("Part des eaux claires permanentes, dans les eaux traitées par temps sec","Ständiger Fremdwasseranteil, Abwassermenge bei Trockenwetter") -> Part des eaux claires permanentes, dans les eaux traitées par temps sec | CP34: =bi("Moyenne","Mittelwert") -> Moyenne | CR34: =analyses!BH380 -> 0.03825136612 | CS34: °C
S35: =bi(" Un autre mode de calcul est de calculer le nb moyen d'EH avec la charge en entrée de la STEP."," Andere Berechnung: Berechnung der EW mit BSB-Fracht im Zulauf der ARA") -> Un autre mode de calcul est de calculer le nb moyen d'EH avec la charge en entrée de la STEP. | CP35: ="20%" & IF(Langue=1,"","-Wert") -> 20% | CR35: =PERCENTILE(analyses!BH9:BH373,0.2) -> 7 | CS35: °C
S36: =bi(" Ensuite on calcul de débit eau usée avec la valeur de 170 L / jour / EH."," Dann wird die Abwassermenge mit 170 L / Tag / EW berechnet.") -> Ensuite on calcul de débit eau usée avec la valeur de 170 L / jour / EH. | CP36: ="50%" & IF(Langue=1,"","-Wert") -> 50% | CR36: =PERCENTILE(analyses!BH9:BH373,0.5) -> 7 | CS36: °C
S37: =bi(" Pour le débit ECP, on calcule: ECP = QTS - Q eau usée."," Für die Fremdwassermenge, berechnet man: Fremdw. = QTW - Q Abwasser.") -> Pour le débit ECP, on calcule: ECP = QTS - Q eau usée. | CP37: ="80%" & IF(Langue=1,"","-Wert") -> 80% | CR37: =PERCENTILE(analyses!BH9:BH373,0.8) -> 7 | CS37: °C
S38: =bi("EH en entrée STEP d'après la charge moyenne DBO5","EW Zulauf ARA gemäss BSB-Fracht") -> EH en entrée STEP d'après la charge moyenne DBO5 | X38: =AO57 ->  | Y38: =bi("EH","EW") -> EH
S39: =bi("Débit eau usée par EH","Abwassermenge pro EW") -> Débit eau usée par EH | X39: =U6 -> 170 | Y39: =bi("l/EH/jour","L/EW/d") -> l/EH/jour
S40: =bi("Débit eau usée théorique calculé","Theoretische Abwassermenge berechnet") -> Débit eau usée théorique calculé | X40: =X38*X39/1000 ->  | Y40: m3/d | Z40: =X40/24*1000/60/60 ->  | AA40: l/s | CP40: =analyses!CS6 -> Age de boues (d)
S41: =bi("QTS","QTW") -> QTS | X41: =QTS -> 0 | Y41: m3/d | Z41: =X41/24*1000/60/60 -> 0 | AA41: l/s
S42: =S30 -> ECP | X42: =QTS-X40 ->  | Y42: m3/d | Z42: =X42/24*1000/60/60 ->  | AA42: l/s | CP42: =bi("Moyenne","Mittelw.") -> Moyenne | CR42: =AVERAGE(calc!BY$11:BY$375) ->  | CS42: d
S43: ECP | X43: =ROUND(100*X42/X41,0)/100 ->  | CP43: Max | CR43: =MAX(calc!BY$11:BY$375) -> 0 | CS43: d
AM44: =bi("Flux moyens annuels","Mittl. jährl. Zulauffrachten") -> Flux moyens annuels | AO44: =bi("yc. bypass entrée","mit Zulaufbypass") -> yc. bypass entrée | CP44: Min | CR44: =MIN(calc!BY$11:BY$375) -> 0 | CS44: d
C45: Total | AO45: =bi("DBO5","BSB5") -> DBO5 | AP45: =bi("COT","TOC") -> COT | AQ45: NH4-N | AR45: =bi("Ptot","Pges") -> Ptot | AS45: =bi("Gaz produit","Gasprod.") -> Gaz produit | AT45: =bi("B fraiches","FS") -> B fraiches | BB45: =bi("Résultats et exigences de rejet (mg/l)","Analysen und Grenzwerte (mg/l)") -> Résultats et exigences de rejet (mg/l)
A46: =bi("Q dévié entrée STEP","Q Bypass Zulauf ARA") -> Q dévié entrée STEP | C46: =calc!DG388 -> 0 | D46: m3/a | E46: =1/C47*C46 ->  | AO46: =bi("kg/j","kg/Tag") -> kg/j | AP46: =bi("kg/j","kg/Tag") -> kg/j | AQ46: =bi("kg/j","kg/Tag") -> kg/j | AR46: =bi("kg/j","kg/Tag") -> kg/j | AS46: =bi("m3/j","m3/Tag") -> m3/j | AT46: =bi("kg/j","kg/Tag") -> kg/j | BB46: =bi("","in mg/l") ->  | BC46: =bi("Moy.","Mittelwert") -> Moy. | BD46: =bi("Moy. 90%","90%- Wert") -> Moy. 90% | BE46: =bi("Exigence de rejet","Grenzwert") -> Exigence de rejet
A47: =bi("Q entrée STEP","Q Zulauf ARA") -> Q entrée STEP | C47: =calc!DS388 -> 0 | D47: m3/a | E47: 1 | AM47: =bi("Moyenne","Mittelwert") -> Moyenne | AO47: =integr!I386 ->  | AP47: =integr!Y386 ->  | AQ47: =integr!AG386 ->  | AR47: =integr!AW386 ->  | AS47: =analyses!DA380 -> 0 | AT47: =CR21 -> 
A48: =bi("Q dévié sortie primaire","Q Bypass Ablauf Vorklärung") -> Q dévié sortie primaire | C48: =calc!DZ388 -> 0 | D48: m3/a | E48: =1/C47*C48 ->  | AM48: ="50%" & IF(Langue=1," percentile","-Quantil") -> 50% percentile | AO48: =integr!I390 ->  | AP48: =integr!Y390 ->  | AQ48: =integr!AG390 ->  | AR48: =integr!AW390 ->  | AS48: =analyses!DA385 ->  | BB48: =analyses!Q6 -> DBO5 | BC48: =IF(COUNT(analyses!Q$9:Q$373)>10,AVERAGE(analyses!Q$9:Q$373),"") ->  | BD48: =IF(COUNT(analyses!Q$9:Q$373)>10,PERCENTILE(analyses!Q$9:Q$373,0.9),"") ->  | BE48: =IF(basis!F27>0,basis!F27,"") -> 20 | BQ48: =bi("Charges rejetées","Ablauffrachten") -> Charges rejetées
A49: =bi("Q sortie STEP (traitée)","Q Ablauf ARA (behandelt)") -> Q sortie STEP (traitée) | C49: =calc!EG388 -> 0 | D49: m3/a | E49: =1/C47*C49 ->  | AM49: ="85%" & IF(Langue=1," percentile","-Quantil") -> 85% percentile | AO49: =integr!I391 ->  | AP49: =integr!Y391 ->  | AQ49: =integr!AG391 ->  | AR49: =integr!AW391 ->  | AS49: =analyses!DA386 ->  | BB49: =analyses!S6 -> COD | BC49: =IF(COUNT(analyses!S$9:S$373)>10,AVERAGE(analyses!S$9:S$373),"") ->  | BD49: =IF(COUNT(analyses!S$9:S$373)>10,PERCENTILE(analyses!S$9:S$373,0.9),"") ->  | BE49: =IF(basis!F29>0,basis!F29,"") -> 
BB50: =analyses!T6 -> NH4 | BC50: =IF(COUNT(analyses!T$9:T$373)>10,AVERAGE(analyses!T$9:T$373),"") ->  | BD50: =IF(COUNT(analyses!T$9:T$373)>10,PERCENTILE(analyses!T$9:T$373,0.9),"") ->  | BE50: =IF(basis!F32>0,basis!F32,"") ->  | BR50: =bi("Moy.","Mittelw.") -> Moy. | BS50: =bi("Percentile","Quantil") -> Percentile
C51: =bi("débit moyen","Mittl. Durchfluss") -> débit moyen | D51: =bi("Centile","Quantil") -> Centile | AM51: =bi("Charge spécifique admise par EH (g/d)","spez. Belast. pro EW (g/d)") -> Charge spécifique admise par EH (g/d) | BB51: =analyses!U6 -> NO2 | BC51: =IF(COUNT(analyses!U$9:U$373)>10,AVERAGE(analyses!U$9:U$373),"") ->  | BD51: =IF(COUNT(analyses!U$9:U$373)>10,PERCENTILE(analyses!U$9:U$373,0.9),"") ->  | BE51: =IF(basis!F33>0,basis!F33,"") -> 0.3 | BQ51: kg/d | BS51: 0.5 | BT51: 0.85
D52: 0.2 | E52: 0.5 | F52: 0.85 | G52: 0.95 | AO52: =bi("DBO5","BSB5") -> DBO5 | AP52: =bi("COT","TOC") -> COT | AQ52: NH4-N | AR52: =bi("Ptot","Pges") -> Ptot | BB52: =analyses!V6 -> NO3 | BC52: =IF(COUNT(analyses!V$9:V$373)>10,AVERAGE(analyses!V$9:V$373),"") ->  | BD52: =IF(COUNT(analyses!V$9:V$373)>10,PERCENTILE(analyses!V$9:V$373,0.9),"") ->  | BE52: =IF(basis!F34>0,basis!F34,"") ->  | BQ52: =bi("DBO5","BSB5") -> DBO5 | BR52: =integr!BE386 ->  | BS52: =integr!BE390 ->  | BT52: =integr!BE391 -> 
A53: =A47 -> Q entrée STEP | C53: =analyses!BJ380 -> 0 | D53: =ROUND(calc!AX31,0) -> 0 | E53: =ROUND(calc!AX61,0) -> 0 | F53: =ROUND(calc!AX96,0) -> 0 | G53: =ROUND(calc!AX106,0) -> 0 | H53: m3/d | S53: =bi("Taux moyen calcul A) et B)","Mittelwert Berechung A) und B)") -> Taux moyen calcul A) et B) | V53: =AVERAGE(Z30,X43) ->  | AO53: =basis!$D$27 -> 60 | AP53: =basis!$D$29 -> 37.5 | AQ53: =basis!$D$32 -> 7 | AR53: =basis!$D$35 -> 1.9 | BB53: =analyses!X6 -> Ptot | BC53: =IF(COUNT(analyses!X$9:X$373)>10,AVERAGE(analyses!X$9:X$373),"") ->  | BD53: =IF(COUNT(analyses!X$9:X$373)>10,PERCENTILE(analyses!X$9:X$373,0.9),"") ->  | BE53: =IF(basis!F35>0,basis!F35,"") ->  | BQ53: =bi("COD","DOC") -> COD | BR53: =integr!BU386 ->  | BS53: =integr!BU390 ->  | BT53: =integr!BU391 -> 
A54: =bi("Q min (entrée ou sortie STEP)","Q Min (Zu- oder Ablauf ARA)") -> Q min (entrée ou sortie STEP) | D54: =calc!AY31 ->  | E54: =calc!AY61 ->  | F54: =calc!AY96 ->  | H54: L/s | BB54: =analyses!Y6 -> MES | BC54: =IF(COUNT(analyses!Y$9:Y$373)>10,AVERAGE(analyses!Y$9:Y$373),"") ->  | BD54: =IF(COUNT(analyses!Y$9:Y$373)>10,PERCENTILE(analyses!Y$9:Y$373,0.9),"") ->  | BE54: =IF(basis!F36>0,basis!F36,"") -> 20 | BQ54: NH4-N | BR54: =integr!CC386 ->  | BS54: =integr!CC390 ->  | BT54: =integr!CC391 -> 
A55: =bi("Q max (entrée ou sortie STEP)","Q Max (Zu- oder Ablauf ARA)") -> Q max (entrée ou sortie STEP) | D55: =calc!AZ31 ->  | E55: =calc!AZ61 ->  | F55: =calc!AZ96 ->  | H55: L/s | AM55: =bi("Equivalents Habitants","Einwohnerwerte") -> Equivalents Habitants | BQ55: NO2-N | BR55: =integr!CK386 ->  | BS55: =integr!CK390 ->  | BT55: =integr!CK391 -> 
AO56: =bi("DBO5","BSB5") -> DBO5 | AP56: =bi("COT","TOC") -> COT | AQ56: NH4-N | AR56: =bi("Ptot","Pges") -> Ptot | AS56: =bi("Moyenne","Mittelwerte") -> Moyenne | AT56: =bi("Gaz","Gasp.") -> Gaz | AU56: =bi("Bf","FS") -> Bf | BQ56: NO3-N | BR56: =integr!CS386 ->  | BS56: =integr!CS390 ->  | BT56: =integr!CS391 -> 
A57: =bi("QTS","QTW")&" (*)" -> QTS (*) | C57: =ROUND((D53+E53)/2,0) -> 0 | D57: m3/d | E57: =QTS/86.4 -> 0 | F57: l/s | AM57: =bi("Moyenne","Mittelwert") -> Moyenne | AO57: =IF(AO47="","",AO47*1000/AO$53) ->  | AS57: =AVERAGE(AO57:AR57) ->  | AT57: =IF(AS47="","",AS47*1000/AU$61) -> 0 | AU57: =IF(AT47<>"",AT47*1000/AV61,"") ->  | BQ57: =bi("Ptot","P ges") -> Ptot | BR57: =integr!DA386 ->  | BS57: =integr!DA390 ->  | BT57: =integr!DA391 -> 
A58: ="2"&A57 -> 2QTS (*) | C58: =D53+E53 -> 0 | D58: m3/d | E58: =_2QTS/86.4 -> 0 | F58: l/s | S58: =bi("Calcul des ECP avec limitation du débit à 60% Centile","Berechnung Fremdwasser mit Begrenzung des Zulaufs auf 60% Quantil") -> Calcul des ECP avec limitation du débit à 60% Centile | AM58: ="50%" & IF(Langue=1," percentile","-Quantil") -> 50% percentile | AS58: =AVERAGE(AO58:AR58) ->  | AT58: =IF(AS48="","",AS48*1000/AU$61) ->  | BQ58: =BB54 -> MES | BR58: =integr!DI386 ->  | BS58: =integr!DI390 ->  | BT58: =integr!DI391 -> 
B59: =bi("(*) =Moyenne des percentiles 20% et 50%, méthode VSA","(*) =Mittelwert der Quantile 20% und 50%, VSA Methode") -> (*) =Moyenne des percentiles 20% et 50%, méthode VSA | AM59: ="85%" & IF(Langue=1," percentile","-Quantil") -> 85% percentile | AS59: =AVERAGE(AO59:AR59) ->  | AT59: =IF(AS49="","",AS49*1000/AU$61) -> 
AU60: =bi("L / EH.jour","l / EW.Tag") -> L / EH.jour | AV60: =bi("L / EH.jour","l / EW.Tag") -> L / EH.jour
AU61: =basis!$D$37 -> 26 | AV61: =basis!$D$38 -> 85
T65: =bi("oui","ja") -> oui
T66: =bi("non","nein") -> non
T67: 2
T68: =(T67=1) -> FALSE

Sheet graph2 (hidden)
B1: =basis!A1 -> STEP Ausserbinn N° 6051/00 | S1: =basis!A1 -> STEP Ausserbinn N° 6051/00 | AK1: =basis!A1 -> STEP Ausserbinn N° 6051/00 | AX1: =basis!A1 -> STEP Ausserbinn N° 6051/00 | BO1: =basis!A1 -> STEP Ausserbinn N° 6051/00 | BW1: =basis!A1 -> STEP Ausserbinn N° 6051/00 | CM1: =basis!A1 -> STEP Ausserbinn N° 6051/00 | DN1: =bi("Bassin bio","Biobecken") -> Bassin bio
B2: =bi("Moyenne mensuelle - Entrée/Sortie","Monatl. Mittelwerte Zu-/Ablauf") -> Moyenne mensuelle - Entrée/Sortie | S2: =bi("Charges (moyennes mensuelles)","Mittl. monatl. Frachten") -> Charges (moyennes mensuelles) | AM2: =bi("Nombre non conformités (par année)","Anzahl Überschreitungen (pro Jahr)") -> Nombre non conformités (par année) | AX2: =bi("Rendements avec et sans déversements","Wirkungsgrad mit oder ohne Bypass") -> Rendements avec et sans déversements | BO2: =bi("Rendements avec et sans déversements","Wirkungsgrad mit oder ohne Bypass") -> Rendements avec et sans déversements | BW2: =bi("Rapports typiques","Verhältnisse") -> Rapports typiques | CE2: =bi("Rapports typiques","Verhältnisse") -> Rapports typiques | CM2: =bi("Charges et charges bypassés","Fracht inklusiv Bypasse") -> Charges et charges bypassés | CU2: =bi("Evolution de la nitrification","Entwicklung der Nitrifikation") -> Evolution de la nitrification
C3: =bi("Débit traité m3/d","behandl. Durchfluss m3/d") -> Débit traité m3/d | D3: =bi("Entrée","Zulauf") -> Entrée | J3: =bi("Sortie","Ablauf") -> Sortie | AN3: =basis!A27 -> DBO5 | AO3: =basis!A28 -> DCO | AP3: =analyses!S6 -> COD | AQ3: =basis!A32 -> NH4-N | AR3: =basis!A33 -> NO2 | AS3: =basis!A35 -> Ptot | AT3: =basis!A36 -> MES | AU3: =bi("Moyenne","Mittelw.") -> Moyenne
D4: =bi("Entrée","Zulauf")&" "&calc!C7&" kg/d" -> Entrée DBO5 kg/d | E4: =bi("Entrée","Zulauf")&" "&calc!D7&" kg/d" -> Entrée DCO kg/d | F4: =bi("Entrée","Zulauf")&" "&calc!E7&" kg/d" -> Entrée COT kg/d | G4: =bi("Entrée","Zulauf")&" "&calc!F7&" kg/d" -> Entrée NH4 kg/d | H4: =bi("Entrée","Zulauf")&" "&calc!G7&" kg/d" -> Entrée Ntot kg/d | I4: =bi("Entrée","Zulauf")&" "&calc!H7&" kg/d" -> Entrée Ptot kg/d | J4: =bi("Sortie","Ablauf")&" "&calc!I7&" kg/d" -> Sortie DBO5 kg/d | K4: =bi("Sortie","Ablauf")&" "&calc!J7&" kg/d" -> Sortie DCO kg/d | L4: =bi("Sortie","Ablauf")&" "&calc!K7&" kg/d" -> Sortie COD kg/d | M4: =bi("Sortie","Ablauf")&" "&calc!L7&" kg/d" -> Sortie NH4 kg/d | N4: =bi("Sortie","Ablauf")&" "&calc!M7&" kg/d" -> Sortie NO2 kg/d | O4: =bi("Sortie","Ablauf")&" "&calc!N7&" kg/d" -> Sortie NO3 kg/d | P4: =bi("Sortie","Ablauf")&" "&calc!O7&" kg/d" -> Sortie Ptot kg/d | Q4: =bi("Sortie","Ablauf")&" "&calc!P7&" kg/d" -> Sortie MES kg/d | AK4: =bi("Exigences","Vorgaben") -> Exigences | AL4: =bi("Conc. de rejet","Ablaufkonz.") -> Conc. de rejet | AM4: mg/l | AN4: =IF(basis!F27="","",basis!F27) -> 20 | AP4: =IF(basis!F29="","",basis!F29) ->  | AQ4: =IF(basis!F32="","",basis!F32) ->  | AR4: =IF(basis!F33="","",basis!F33) -> 0.3 | AS4: =IF(basis!F35="","",basis!F35) ->  | AT4: =IF(basis!F36="","",basis!F36) -> 20
C5: 64 | D5: 3 | E5: 4 | F5: 5 | G5: 6 | H5: 7 | I5: 8 | J5: 9 | K5: 10 | L5: 11 | M5: 12 | N5: 13 | O5: 14 | P5: 15 | Q5: 16 | AL5: =bi("Rendement","Wirkungsgrad") -> Rendement | AM5: % | AN5: =IF(basis!G27="","",basis!G27/100) -> 0 | AP5: =IF(basis!G29="","",basis!G29/100) ->  | AQ5: =IF(basis!G32="","",basis!G32/100) ->  | AS5: =IF(basis!G35="","",basis!G35/100) -> 
B6: jan | C6: =DAVERAGE(analyses!A4:BN373,C5,$B$54:$C$55) -> 0 | D6: =DAVERAGE(calc!$A$7:$P$376,D5,$B$54:$C$55) ->  | E6: =DAVERAGE(calc!$A$7:$P$376,E5,$B$54:$C$55) ->  | F6: =DAVERAGE(calc!$A$7:$P$376,F5,$B$54:$C$55) ->  | G6: =DAVERAGE(calc!$A$7:$P$376,G5,$B$54:$C$55) ->  | H6: =DAVERAGE(calc!$A$7:$P$376,H5,$B$54:$C$55) ->  | I6: =DAVERAGE(calc!$A$7:$P$376,I5,$B$54:$C$55) ->  | J6: =DAVERAGE(calc!$A$7:$P$376,J5,$B$54:$C$55) ->  | K6: =DAVERAGE(calc!$A$7:$P$376,K5,$B$54:$C$55) ->  | L6: =DAVERAGE(calc!$A$7:$P$376,L5,$B$54:$C$55) ->  | M6: =DAVERAGE(calc!$A$7:$P$376,M5,$B$54:$C$55) ->  | N6: =DAVERAGE(calc!$A$7:$P$376,N5,$B$54:$C$55) ->  | O6: =DAVERAGE(calc!$A$7:$P$376,O5,$B$54:$C$55) ->  | P6: =DAVERAGE(calc!$A$7:$P$376,P5,$B$54:$C$55) ->  | Q6: =DAVERAGE(calc!$A$7:$P$376,Q5,$B$54:$C$55) ->  | AL6: =bi("Nb.mesures","Anz. Analysen") -> Nb.mesures | AM6: =bi("nb","Anz.") -> nb | AN6: =IF(nb_ana!D7="","",nb_ana!D7) -> 0 | AP6: =IF(nb_ana!D9="","",nb_ana!D9) -> 0 | AQ6: =IF(nb_ana!D10="","",nb_ana!D10) -> 0 | AR6: =IF(nb_ana!D12="","",nb_ana!D12) -> 0 | AS6: =IF(nb_ana!D13="","",nb_ana!D13) -> 0 | AT6: =IF(nb_ana!D14="","",nb_ana!D14) -> 0
B7: fev | C7: =DAVERAGE(analyses!A4:BN373,C5,$B$56:$C$57) -> 0 | D7: =DAVERAGE(calc!$A$7:$P$376,D5,$B$56:$C$57) ->  | E7: =DAVERAGE(calc!$A$7:$P$376,E5,$B$56:$C$57) ->  | F7: =DAVERAGE(calc!$A$7:$P$376,F5,$B$56:$C$57) ->  | G7: =DAVERAGE(calc!$A$7:$P$376,G5,$B$56:$C$57) ->  | H7: =DAVERAGE(calc!$A$7:$P$376,H5,$B$56:$C$57) ->  | I7: =DAVERAGE(calc!$A$7:$P$376,I5,$B$56:$C$57) ->  | J7: =DAVERAGE(calc!$A$7:$P$376,J5,$B$56:$C$57) ->  | K7: =DAVERAGE(calc!$A$7:$P$376,K5,$B$56:$C$57) ->  | L7: =DAVERAGE(calc!$A$7:$P$376,L5,$B$56:$C$57) ->  | M7: =DAVERAGE(calc!$A$7:$P$376,M5,$B$56:$C$57) ->  | N7: =DAVERAGE(calc!$A$7:$P$376,N5,$B$56:$C$57) ->  | O7: =DAVERAGE(calc!$A$7:$P$376,O5,$B$56:$C$57) ->  | P7: =DAVERAGE(calc!$A$7:$P$376,P5,$B$56:$C$57) ->  | Q7: =DAVERAGE(calc!$A$7:$P$376,Q5,$B$56:$C$57) ->  | AK7: =bi("Exigence de rejet (sans bypass)","Ablaufkonzentrationen (ohne Bypässe)") -> Exigence de rejet (sans bypass)
B8: mars | C8: =DAVERAGE(analyses!A4:BN373,C5,$B$58:$C$59) -> 0 | D8: =DAVERAGE(calc!$A$7:$P$376,D5,$B$58:$C$59) ->  | E8: =DAVERAGE(calc!$A$7:$P$376,E5,$B$58:$C$59) ->  | F8: =DAVERAGE(calc!$A$7:$P$376,F5,$B$58:$C$59) ->  | G8: =DAVERAGE(calc!$A$7:$P$376,G5,$B$58:$C$59) ->  | H8: =DAVERAGE(calc!$A$7:$P$376,H5,$B$58:$C$59) ->  | I8: =DAVERAGE(calc!$A$7:$P$376,I5,$B$58:$C$59) ->  | J8: =DAVERAGE(calc!$A$7:$P$376,J5,$B$58:$C$59) ->  | K8: =DAVERAGE(calc!$A$7:$P$376,K5,$B$58:$C$59) ->  | L8: =DAVERAGE(calc!$A$7:$P$376,L5,$B$58:$C$59) ->  | M8: =DAVERAGE(calc!$A$7:$P$376,M5,$B$58:$C$59) ->  | N8: =DAVERAGE(calc!$A$7:$P$376,N5,$B$58:$C$59) ->  | O8: =DAVERAGE(calc!$A$7:$P$376,O5,$B$58:$C$59) ->  | P8: =DAVERAGE(calc!$A$7:$P$376,P5,$B$58:$C$59) ->  | Q8: =DAVERAGE(calc!$A$7:$P$376,Q5,$B$58:$C$59) ->  | AK8: =bi("Mesures effectuées sortie","getätigte Analysen Ablauf.") -> Mesures effectuées sortie | AM8: =bi("nb","Anz.") -> nb | AN8: =analyses!Q383 -> 0 | AP8: =analyses!S383 -> 0 | AQ8: =analyses!CF381 -> 0 | AR8: =analyses!U383 -> 0 | AS8: =analyses!X383 -> 0 | AT8: =analyses!Y383 -> 0
B9: avril | C9: =DAVERAGE(analyses!A4:BN373,C5,$B$60:$C$61) -> 0 | D9: =DAVERAGE(calc!$A$7:$P$376,D5,$B$60:$C$61) ->  | E9: =DAVERAGE(calc!$A$7:$P$376,E5,$B$60:$C$61) ->  | F9: =DAVERAGE(calc!$A$7:$P$376,F5,$B$60:$C$61) ->  | G9: =DAVERAGE(calc!$A$7:$P$376,G5,$B$60:$C$61) ->  | H9: =DAVERAGE(calc!$A$7:$P$376,H5,$B$60:$C$61) ->  | I9: =DAVERAGE(calc!$A$7:$P$376,I5,$B$60:$C$61) ->  | J9: =DAVERAGE(calc!$A$7:$P$376,J5,$B$60:$C$61) ->  | K9: =DAVERAGE(calc!$A$7:$P$376,K5,$B$60:$C$61) ->  | L9: =DAVERAGE(calc!$A$7:$P$376,L5,$B$60:$C$61) ->  | M9: =DAVERAGE(calc!$A$7:$P$376,M5,$B$60:$C$61) ->  | N9: =DAVERAGE(calc!$A$7:$P$376,N5,$B$60:$C$61) ->  | O9: =DAVERAGE(calc!$A$7:$P$376,O5,$B$60:$C$61) ->  | P9: =DAVERAGE(calc!$A$7:$P$376,P5,$B$60:$C$61) ->  | Q9: =DAVERAGE(calc!$A$7:$P$376,Q5,$B$60:$C$61) ->  | AK9: =bi("Dépassements admissibles","zulässige Überschreitungen") -> Dépassements admissibles | AM9: =bi("nb","Anz.") -> nb | AN9: =IF(basis!F27="","",SUMIF(NB_PRELEV,AN8,NB_DEPASS)) -> 0 | AP9: =IF(basis!F29="","",SUMIF(NB_PRELEV,AP8,NB_DEPASS)) ->  | AQ9: =IF(basis!F32="","",SUMIF(NB_PRELEV,AQ8,NB_DEPASS)) ->  | AR9: =IF(basis!F33="","",SUMIF(NB_PRELEV,AR8,NB_DEPASS)) -> 0 | AS9: =IF(basis!F35="","",SUMIF(NB_PRELEV,AS8,NB_DEPASS)) ->  | AT9: =IF(basis!F36="","",SUMIF(NB_PRELEV,AT8,NB_DEPASS)) -> 0
B10: mai | C10: =DAVERAGE(analyses!A4:BN373,C5,$B$62:$C$63) -> 0 | D10: =DAVERAGE(calc!$A$7:$P$376,D5,$B$62:$C$63) ->  | E10: =DAVERAGE(calc!$A$7:$P$376,E5,$B$62:$C$63) ->  | F10: =DAVERAGE(calc!$A$7:$P$376,F5,$B$62:$C$63) ->  | G10: =DAVERAGE(calc!$A$7:$P$376,G5,$B$62:$C$63) ->  | H10: =DAVERAGE(calc!$A$7:$P$376,H5,$B$62:$C$63) ->  | I10: =DAVERAGE(calc!$A$7:$P$376,I5,$B$62:$C$63) ->  | J10: =DAVERAGE(calc!$A$7:$P$376,J5,$B$62:$C$63) ->  | K10: =DAVERAGE(calc!$A$7:$P$376,K5,$B$62:$C$63) ->  | L10: =DAVERAGE(calc!$A$7:$P$376,L5,$B$62:$C$63) ->  | M10: =DAVERAGE(calc!$A$7:$P$376,M5,$B$62:$C$63) ->  | N10: =DAVERAGE(calc!$A$7:$P$376,N5,$B$62:$C$63) ->  | O10: =DAVERAGE(calc!$A$7:$P$376,O5,$B$62:$C$63) ->  | P10: =DAVERAGE(calc!$A$7:$P$376,P5,$B$62:$C$63) ->  | Q10: =DAVERAGE(calc!$A$7:$P$376,Q5,$B$62:$C$63) ->  | AK10: =bi("Nb total de dépassement","Anz. tot. Überschreitungen") -> Nb total de dépassement | AM10: =bi("nb","Anz.") -> nb | AN10: =DCOUNT(analyses!$CC$6:$CK$375,AM55,AM55:AM56) -> 0 | AP10: =DCOUNT(analyses!$CC$6:$CK$375,AO55,AO55:AO56) -> 0 | AQ10: =DCOUNT(analyses!$CC$6:$CK$375,AP55,AP55:AP56) -> 0 | AR10: =DCOUNT(analyses!$CC$6:$CK$375,AQ55,AQ55:AQ56) -> 0 | AS10: =DCOUNT(analyses!$CC$6:$CK$375,AS55,AS55:AS56) -> 0 | AT10: =DCOUNT(analyses!$CC$6:$CK$375,AT55,AT55:AT56) -> 0
B11: juin | C11: =DAVERAGE(analyses!A4:BN373,C5,$B$64:$C$65) -> 0 | D11: =DAVERAGE(calc!$A$7:$P$376,D5,$B$64:$C$65) ->  | E11: =DAVERAGE(calc!$A$7:$P$376,E5,$B$64:$C$65) ->  | F11: =DAVERAGE(calc!$A$7:$P$376,F5,$B$64:$C$65) ->  | G11: =DAVERAGE(calc!$A$7:$P$376,G5,$B$64:$C$65) ->  | H11: =DAVERAGE(calc!$A$7:$P$376,H5,$B$64:$C$65) ->  | I11: =DAVERAGE(calc!$A$7:$P$376,I5,$B$64:$C$65) ->  | J11: =DAVERAGE(calc!$A$7:$P$376,J5,$B$64:$C$65) ->  | K11: =DAVERAGE(calc!$A$7:$P$376,K5,$B$64:$C$65) ->  | L11: =DAVERAGE(calc!$A$7:$P$376,L5,$B$64:$C$65) ->  | M11: =DAVERAGE(calc!$A$7:$P$376,M5,$B$64:$C$65) ->  | N11: =DAVERAGE(calc!$A$7:$P$376,N5,$B$64:$C$65) ->  | O11: =DAVERAGE(calc!$A$7:$P$376,O5,$B$64:$C$65) ->  | P11: =DAVERAGE(calc!$A$7:$P$376,P5,$B$64:$C$65) ->  | Q11: =DAVERAGE(calc!$A$7:$P$376,Q5,$B$64:$C$65) ->  | AK11: =bi("Nb non-conforme","Anzahl unzulässige") -> Nb non-conforme | AM11: =bi("nb","Anz.") -> nb | AN11: =IF(basis!F27="","",IF(AN10-AN9<0,0,AN10-AN9)) -> 0 | AP11: =IF(basis!F29="","",IF(AP10-AP9<0,0,AP10-AP9)) ->  | AQ11: =IF(basis!F32="","",IF(AQ10-AQ9<0,0,AQ10-AQ9)) ->  | AR11: =IF(basis!F33="","",IF(AR10-AR9<0,0,AR10-AR9)) -> 0 | AS11: =IF(basis!F35="","",IF(AS10-AS9<0,0,AS10-AS9)) ->  | AT11: =IF(basis!F36="","",IF(AT10-AT9<0,0,AT10-AT9)) -> 0
B12: juil | C12: =DAVERAGE(analyses!A4:BN373,C5,$B$66:$C$67) -> 0 | D12: =DAVERAGE(calc!$A$7:$P$376,D5,$B$66:$C$67) ->  | E12: =DAVERAGE(calc!$A$7:$P$376,E5,$B$66:$C$67) ->  | F12: =DAVERAGE(calc!$A$7:$P$376,F5,$B$66:$C$67) ->  | G12: =DAVERAGE(calc!$A$7:$P$376,G5,$B$66:$C$67) ->  | H12: =DAVERAGE(calc!$A$7:$P$376,H5,$B$66:$C$67) ->  | I12: =DAVERAGE(calc!$A$7:$P$376,I5,$B$66:$C$67) ->  | J12: =DAVERAGE(calc!$A$7:$P$376,J5,$B$66:$C$67) ->  | K12: =DAVERAGE(calc!$A$7:$P$376,K5,$B$66:$C$67) ->  | L12: =DAVERAGE(calc!$A$7:$P$376,L5,$B$66:$C$67) ->  | M12: =DAVERAGE(calc!$A$7:$P$376,M5,$B$66:$C$67) ->  | N12: =DAVERAGE(calc!$A$7:$P$376,N5,$B$66:$C$67) ->  | O12: =DAVERAGE(calc!$A$7:$P$376,O5,$B$66:$C$67) ->  | P12: =DAVERAGE(calc!$A$7:$P$376,P5,$B$66:$C$67) ->  | Q12: =DAVERAGE(calc!$A$7:$P$376,Q5,$B$66:$C$67) ->  | AK12: =bi("% de non-conformité","% unzulässige") -> % de non-conformité | AM12: % | AN12: =IF(basis!F27="","pe",IF(AND(basis!F27<>"",AN8=0),1,AN11/AN8)) -> 1 | AP12: =IF(basis!F29="","pe",IF(AND(basis!F29<>"",AP8=0),1,AP11/AP8)) -> pe | AQ12: =IF(basis!F32="","pe",IF(AND(basis!F32<>"",AQ8=0),1,AQ11/AQ8)) -> pe | AR12: =IF(basis!F33="","pe",IF(AND(basis!F33<>"",AR8=0),1,AR11/AR8)) -> 1 | AS12: =IF(basis!F35="","pe",IF(AND(basis!F35<>"",AS8=0),1,AS11/AS8)) -> pe | AT12: =IF(basis!F36="","pe",IF(AND(basis!F36<>"",AT8=0),1,AT11/AT8)) -> 1 | AU12: =AVERAGE(AN12:AT12) -> 1
B13: août | C13: =DAVERAGE(analyses!A4:BN373,C5,$B$68:$C$69) -> 0 | D13: =DAVERAGE(calc!$A$7:$P$376,D5,$B$68:$C$69) ->  | E13: =DAVERAGE(calc!$A$7:$P$376,E5,$B$68:$C$69) ->  | F13: =DAVERAGE(calc!$A$7:$P$376,F5,$B$68:$C$69) ->  | G13: =DAVERAGE(calc!$A$7:$P$376,G5,$B$68:$C$69) ->  | H13: =DAVERAGE(calc!$A$7:$P$376,H5,$B$68:$C$69) ->  | I13: =DAVERAGE(calc!$A$7:$P$376,I5,$B$68:$C$69) ->  | J13: =DAVERAGE(calc!$A$7:$P$376,J5,$B$68:$C$69) ->  | K13: =DAVERAGE(calc!$A$7:$P$376,K5,$B$68:$C$69) ->  | L13: =DAVERAGE(calc!$A$7:$P$376,L5,$B$68:$C$69) ->  | M13: =DAVERAGE(calc!$A$7:$P$376,M5,$B$68:$C$69) ->  | N13: =DAVERAGE(calc!$A$7:$P$376,N5,$B$68:$C$69) ->  | O13: =DAVERAGE(calc!$A$7:$P$376,O5,$B$68:$C$69) ->  | P13: =DAVERAGE(calc!$A$7:$P$376,P5,$B$68:$C$69) ->  | Q13: =DAVERAGE(calc!$A$7:$P$376,Q5,$B$68:$C$69) ->  | AK13: =bi("Rendement sans bypass","Wirkungsgrad ohne Bypässe") -> Rendement sans bypass
B14: sept | C14: =DAVERAGE(analyses!A4:BN373,C5,$B$70:$C$71) -> 0 | D14: =DAVERAGE(calc!$A$7:$P$376,D5,$B$70:$C$71) ->  | E14: =DAVERAGE(calc!$A$7:$P$376,E5,$B$70:$C$71) ->  | F14: =DAVERAGE(calc!$A$7:$P$376,F5,$B$70:$C$71) ->  | G14: =DAVERAGE(calc!$A$7:$P$376,G5,$B$70:$C$71) ->  | H14: =DAVERAGE(calc!$A$7:$P$376,H5,$B$70:$C$71) ->  | I14: =DAVERAGE(calc!$A$7:$P$376,I5,$B$70:$C$71) ->  | J14: =DAVERAGE(calc!$A$7:$P$376,J5,$B$70:$C$71) ->  | K14: =DAVERAGE(calc!$A$7:$P$376,K5,$B$70:$C$71) ->  | L14: =DAVERAGE(calc!$A$7:$P$376,L5,$B$70:$C$71) ->  | M14: =DAVERAGE(calc!$A$7:$P$376,M5,$B$70:$C$71) ->  | N14: =DAVERAGE(calc!$A$7:$P$376,N5,$B$70:$C$71) ->  | O14: =DAVERAGE(calc!$A$7:$P$376,O5,$B$70:$C$71) ->  | P14: =DAVERAGE(calc!$A$7:$P$376,P5,$B$70:$C$71) ->  | Q14: =DAVERAGE(calc!$A$7:$P$376,Q5,$B$70:$C$71) ->  | AK14: =bi("Nb total de dépassement","Anz. tot. Überschreitungen") -> Nb total de dépassement | AM14: =bi("nb","Anz.") -> nb | AN14: =DCOUNT(calc!$EP$8:$ET$376,AM58,AM58:AM59) -> 0 | AP14: =DCOUNT(calc!$EP$8:$ET$376,AO58,AO58:AO59) -> 0 | AQ14: =IF(basis!G32="","",DCOUNT(calc!$EP$8:$ET$376,AP58,AP58:AP59)) ->  | AS14: =DCOUNT(calc!$EP$8:$ET$376,AS58,AS58:AS59) -> 0
B15: oct | C15: =DAVERAGE(analyses!A4:BN373,C5,$B$72:$C$73) -> 0 | D15: =DAVERAGE(calc!$A$7:$P$376,D5,$B$72:$C$73) ->  | E15: =DAVERAGE(calc!$A$7:$P$376,E5,$B$72:$C$73) ->  | F15: =DAVERAGE(calc!$A$7:$P$376,F5,$B$72:$C$73) ->  | G15: =DAVERAGE(calc!$A$7:$P$376,G5,$B$72:$C$73) ->  | H15: =DAVERAGE(calc!$A$7:$P$376,H5,$B$72:$C$73) ->  | I15: =DAVERAGE(calc!$A$7:$P$376,I5,$B$72:$C$73) ->  | J15: =DAVERAGE(calc!$A$7:$P$376,J5,$B$72:$C$73) ->  | K15: =DAVERAGE(calc!$A$7:$P$376,K5,$B$72:$C$73) ->  | L15: =DAVERAGE(calc!$A$7:$P$376,L5,$B$72:$C$73) ->  | M15: =DAVERAGE(calc!$A$7:$P$376,M5,$B$72:$C$73) ->  | N15: =DAVERAGE(calc!$A$7:$P$376,N5,$B$72:$C$73) ->  | O15: =DAVERAGE(calc!$A$7:$P$376,O5,$B$72:$C$73) ->  | P15: =DAVERAGE(calc!$A$7:$P$376,P5,$B$72:$C$73) ->  | Q15: =DAVERAGE(calc!$A$7:$P$376,Q5,$B$72:$C$73) ->  | AK15: =bi("Nb non-conforme","Anzahl unzulässige") -> Nb non-conforme | AM15: =bi("nb","Anz.") -> nb | AN15: =IF(basis!G27="","",IF(AN14-AN9<0,0,AN14-AN9)) -> 0 | AP15: =IF(basis!G29="","",IF(AP14-AP9<0,0,AP14-AP9)) ->  | AQ15: =IF(basis!G32="","",IF(AQ14-AQ9<0,0,AQ14-AQ9)) ->  | AS15: =IF(basis!G35="","",IF(AS14-AS9<0,0,AS14-AS9)) -> 
B16: nov | C16: =DAVERAGE(analyses!A4:BN373,C5,$B$74:$C$75) -> 0 | D16: =DAVERAGE(calc!$A$7:$P$376,D5,$B$74:$C$75) ->  | E16: =DAVERAGE(calc!$A$7:$P$376,E5,$B$74:$C$75) ->  | F16: =DAVERAGE(calc!$A$7:$P$376,F5,$B$74:$C$75) ->  | G16: =DAVERAGE(calc!$A$7:$P$376,G5,$B$74:$C$75) ->  | H16: =DAVERAGE(calc!$A$7:$P$376,H5,$B$74:$C$75) ->  | I16: =DAVERAGE(calc!$A$7:$P$376,I5,$B$74:$C$75) ->  | J16: =DAVERAGE(calc!$A$7:$P$376,J5,$B$74:$C$75) ->  | K16: =DAVERAGE(calc!$A$7:$P$376,K5,$B$74:$C$75) ->  | L16: =DAVERAGE(calc!$A$7:$P$376,L5,$B$74:$C$75) ->  | M16: =DAVERAGE(calc!$A$7:$P$376,M5,$B$74:$C$75) ->  | N16: =DAVERAGE(calc!$A$7:$P$376,N5,$B$74:$C$75) ->  | O16: =DAVERAGE(calc!$A$7:$P$376,O5,$B$74:$C$75) ->  | P16: =DAVERAGE(calc!$A$7:$P$376,P5,$B$74:$C$75) ->  | Q16: =DAVERAGE(calc!$A$7:$P$376,Q5,$B$74:$C$75) ->  | AK16: =bi("% de non-conformité","% unzulässige") -> % de non-conformité | AM16: % | AN16: =IF(basis!G27="","pe",IF(AND(basis!G27<>"",AN8=0),1,AN15/AN8)) -> 1 | AP16: =IF(basis!G29="","pe",IF(AND(basis!G29<>"",AP8=0),1,AP15/AP8)) -> pe | AQ16: =IF(basis!G32="","pe",IF(AND(basis!G32<>"",AQ8=0),1,AQ15/AQ8)) -> pe | AS16: =IF(basis!G35="","pe",IF(AND(basis!G35<>"",AS8=0),1,AS15/AS8)) -> pe | AU16: =AVERAGE(AN16:AT16) -> 1
B17: dec | C17: =DAVERAGE(analyses!A4:BN373,C5,$B$76:$C$77) -> 0 | D17: =DAVERAGE(calc!$A$7:$P$376,D5,$B$76:$C$77) ->  | E17: =DAVERAGE(calc!$A$7:$P$376,E5,$B$76:$C$77) ->  | F17: =DAVERAGE(calc!$A$7:$P$376,F5,$B$76:$C$77) ->  | G17: =DAVERAGE(calc!$A$7:$P$376,G5,$B$76:$C$77) ->  | H17: =DAVERAGE(calc!$A$7:$P$376,H5,$B$76:$C$77) ->  | I17: =DAVERAGE(calc!$A$7:$P$376,I5,$B$76:$C$77) ->  | J17: =DAVERAGE(calc!$A$7:$P$376,J5,$B$76:$C$77) ->  | K17: =DAVERAGE(calc!$A$7:$P$376,K5,$B$76:$C$77) ->  | L17: =DAVERAGE(calc!$A$7:$P$376,L5,$B$76:$C$77) ->  | M17: =DAVERAGE(calc!$A$7:$P$376,M5,$B$76:$C$77) ->  | N17: =DAVERAGE(calc!$A$7:$P$376,N5,$B$76:$C$77) ->  | O17: =DAVERAGE(calc!$A$7:$P$376,O5,$B$76:$C$77) ->  | P17: =DAVERAGE(calc!$A$7:$P$376,P5,$B$76:$C$77) ->  | Q17: =DAVERAGE(calc!$A$7:$P$376,Q5,$B$76:$C$77) ->  | AK17: =bi("Rendement avec bypass","Wirkungsgrad mit Bypässe") -> Rendement avec bypass
C18: Durchfluss | D18: =bi("Nombre d'analyses par paramètre en Entrée","Anz. Analysen Zulauf") -> Nombre d'analyses par paramètre en Entrée | J18: =bi("Nombre d'analyses par paramètres en sortie","Anzahl Analysen Ablauf") -> Nombre d'analyses par paramètres en sortie | AK18: =bi("Nb total de dépassement","Anz. tot. Überschreitungen") -> Nb total de dépassement | AM18: =bi("nb","Anz.") -> nb | AN18: =DCOUNT(calc!$EU$8:$EY$376,AM58,AM58:AM59) -> 0 | AP18: =IF(basis!G29="","",DCOUNT(calc!$EU$8:$EY$376,AO58,AO58:AO59)) ->  | AQ18: =IF(basis!G32="","",DCOUNT(calc!$EU$8:$EY$376,AP58,AP58:AP59)) ->  | AS18: =IF(basis!G35="","",DCOUNT(calc!$EU$8:$EY$376,AS58,AS58:AS59)) -> 
C19: 64 | D19: 11 | E19: 12 | F19: 13 | G19: 14 | H19: 15 | I19: 16 | J19: 17 | K19: 18 | L19: 19 | M19: 20 | N19: 21 | O19: 22 | P19: 24 | Q19: 25 | AK19: =bi("Nb non-conforme","Anzahl unzulässige") -> Nb non-conforme | AM19: =bi("nb","Anz.") -> nb | AN19: =IF(basis!G27="","",IF(AN18-AN9<0,0,AN18-AN9)) -> 0 | AP19: =IF(basis!G29="","",IF(AP18-AP9<0,0,AP18-AP9)) ->  | AQ19: =IF(basis!G32="","",IF(AQ18-AQ9<0,0,AQ18-AQ9)) ->  | AS19: =IF(basis!G35="","",IF(AS18-AS9<0,0,AS18-AS9)) -> 
B20: =B6 -> jan | C20: =DCOUNT(analyses!$A$4:$BN$373,C$19,$B$54:$C$55) -> 31 | D20: =DCOUNT(analyses!$A$4:$BN$373,D$19,$B$54:$C$55) -> 0 | E20: =DCOUNT(analyses!$A$4:$BN$373,E$19,$B$54:$C$55) -> 0 | F20: =DCOUNT(analyses!$A$4:$BN$373,F$19,$B$54:$C$55) -> 0 | G20: =DCOUNT(analyses!$A$4:$BN$373,G$19,$B$54:$C$55) -> 0 | H20: =DCOUNT(analyses!$A$4:$BN$373,H$19,$B$54:$C$55) -> 0 | I20: =DCOUNT(analyses!$A$4:$BN$373,I$19,$B$54:$C$55) -> 0 | J20: =DCOUNT(analyses!$A$4:$BN$373,J$19,$B$54:$C$55) -> 0 | K20: =DCOUNT(analyses!$A$4:$BN$373,K$19,$B$54:$C$55) -> 0 | L20: =DCOUNT(analyses!$A$4:$BN$373,L$19,$B$54:$C$55) -> 0 | M20: =DCOUNT(analyses!$A$4:$BN$373,M$19,$B$54:$C$55) -> 0 | N20: =DCOUNT(analyses!$A$4:$BN$373,N$19,$B$54:$C$55) -> 0 | O20: =DCOUNT(analyses!$A$4:$BN$373,O$19,$B$54:$C$55) -> 0 | P20: =DCOUNT(analyses!$A$4:$BN$373,P$19,$B$54:$C$55) -> 0 | Q20: =DCOUNT(analyses!$A$4:$BN$373,Q$19,$B$54:$C$55) -> 0 | AK20: =bi("% de non-conformité","% unzulässige") -> % de non-conformité | AN20: =IF(basis!G27="","pe",IF(AND(basis!G27<>"",AN8=0),1,AN19/AN8)) -> 1 | AP20: =IF(basis!G29="","pe",IF(AND(basis!G29<>"",AP8=0),1,AP19/AP8)) -> pe | AQ20: =IF(basis!G32="","pe",IF(AND(basis!G32<>"",AQ8=0),1,AQ19/AQ8)) -> pe | AS20: =IF(basis!G35="","pe",IF(AND(basis!G35<>"",AS8=0),1,AS19/AS8)) -> pe | AU20: =AVERAGE(AN20:AT20) -> 1
B21: =B7 -> fev | C21: =DCOUNT(analyses!$A$4:$BN$373,C$19,$B$56:$C$57) -> 28 | D21: =DCOUNT(analyses!$A$4:$BN$373,D$19,$B$56:$C$57) -> 0 | E21: =DCOUNT(analyses!$A$4:$BN$373,E$19,$B$56:$C$57) -> 0 | F21: =DCOUNT(analyses!$A$4:$BN$373,F$19,$B$56:$C$57) -> 0 | G21: =DCOUNT(analyses!$A$4:$BN$373,G$19,$B$56:$C$57) -> 0 | H21: =DCOUNT(analyses!$A$4:$BN$373,H$19,$B$56:$C$57) -> 0 | I21: =DCOUNT(analyses!$A$4:$BN$373,I$19,$B$56:$C$57) -> 0 | J21: =DCOUNT(analyses!$A$4:$BN$373,J$19,$B$56:$C$57) -> 0 | K21: =DCOUNT(analyses!$A$4:$BN$373,K$19,$B$56:$C$57) -> 0 | L21: =DCOUNT(analyses!$A$4:$BN$373,L$19,$B$56:$C$57) -> 0 | M21: =DCOUNT(analyses!$A$4:$BN$373,M$19,$B$56:$C$57) -> 0 | N21: =DCOUNT(analyses!$A$4:$BN$373,N$19,$B$56:$C$57) -> 0 | O21: =DCOUNT(analyses!$A$4:$BN$373,O$19,$B$56:$C$57) -> 0 | P21: =DCOUNT(analyses!$A$4:$BN$373,P$19,$B$56:$C$57) -> 0 | Q21: =DCOUNT(analyses!$A$4:$BN$373,Q$19,$B$56:$C$57) -> 0 | AK21: =bi("Exigence de rejet (avec bypass)","Ablaufkonzentrationen (mit Bypässe)") -> Exigence de rejet (avec bypass)
B22: mars | C22: =DCOUNT(analyses!$A$4:$BN$373,C$19,$B$58:$C$59) -> 31 | D22: =DCOUNT(analyses!$A$4:$BN$373,D$19,$B$58:$C$59) -> 0 | E22: =DCOUNT(analyses!$A$4:$BN$373,E$19,$B$58:$C$59) -> 0 | F22: =DCOUNT(analyses!$A$4:$BN$373,F$19,$B$58:$C$59) -> 0 | G22: =DCOUNT(analyses!$A$4:$BN$373,G$19,$B$58:$C$59) -> 0 | H22: =DCOUNT(analyses!$A$4:$BN$373,H$19,$B$58:$C$59) -> 0 | I22: =DCOUNT(analyses!$A$4:$BN$373,I$19,$B$58:$C$59) -> 0 | J22: =DCOUNT(analyses!$A$4:$BN$373,J$19,$B$58:$C$59) -> 0 | K22: =DCOUNT(analyses!$A$4:$BN$373,K$19,$B$58:$C$59) -> 0 | L22: =DCOUNT(analyses!$A$4:$BN$373,L$19,$B$58:$C$59) -> 0 | M22: =DCOUNT(analyses!$A$4:$BN$373,M$19,$B$58:$C$59) -> 0 | N22: =DCOUNT(analyses!$A$4:$BN$373,N$19,$B$58:$C$59) -> 0 | O22: =DCOUNT(analyses!$A$4:$BN$373,O$19,$B$58:$C$59) -> 0 | P22: =DCOUNT(analyses!$A$4:$BN$373,P$19,$B$58:$C$59) -> 0 | Q22: =DCOUNT(analyses!$A$4:$BN$373,Q$19,$B$58:$C$59) -> 0 | AK22: =bi("Nb total de dépassement","Anz. tot. Überschreitungen") -> Nb total de dépassement | AM22: =bi("nb","Anz.") -> nb | AN22: =DCOUNT(calc!FT8:FX376,AM55,AM55:AM56) -> 0 | AP22: =DCOUNT(calc!FT8:FX376,AO55,AO55:AO56) -> 0 | AQ22: =DCOUNT(calc!FY8:FY376,AP55,AP55:AP56) -> 0 | AS22: =DCOUNT(calc!FT8:FX376,AS55,AS55:AS56) -> 0
B23: avril | C23: =DCOUNT(analyses!$A$4:$BN$373,C$19,$B$60:$C$61) -> 30 | D23: =DCOUNT(analyses!$A$4:$BN$373,D$19,$B$60:$C$61) -> 0 | E23: =DCOUNT(analyses!$A$4:$BN$373,E$19,$B$60:$C$61) -> 0 | F23: =DCOUNT(analyses!$A$4:$BN$373,F$19,$B$60:$C$61) -> 0 | G23: =DCOUNT(analyses!$A$4:$BN$373,G$19,$B$60:$C$61) -> 0 | H23: =DCOUNT(analyses!$A$4:$BN$373,H$19,$B$60:$C$61) -> 0 | I23: =DCOUNT(analyses!$A$4:$BN$373,I$19,$B$60:$C$61) -> 0 | J23: =DCOUNT(analyses!$A$4:$BN$373,J$19,$B$60:$C$61) -> 0 | K23: =DCOUNT(analyses!$A$4:$BN$373,K$19,$B$60:$C$61) -> 0 | L23: =DCOUNT(analyses!$A$4:$BN$373,L$19,$B$60:$C$61) -> 0 | M23: =DCOUNT(analyses!$A$4:$BN$373,M$19,$B$60:$C$61) -> 0 | N23: =DCOUNT(analyses!$A$4:$BN$373,N$19,$B$60:$C$61) -> 0 | O23: =DCOUNT(analyses!$A$4:$BN$373,O$19,$B$60:$C$61) -> 0 | P23: =DCOUNT(analyses!$A$4:$BN$373,P$19,$B$60:$C$61) -> 0 | Q23: =DCOUNT(analyses!$A$4:$BN$373,Q$19,$B$60:$C$61) -> 0 | AK23: =bi("Nb non-conforme","Anzahl unzulässige") -> Nb non-conforme | AM23: =bi("nb","Anz.") -> nb | AN23: =IF(basis!F27="","",IF(AN22-AN9<0,0,AN22-AN9)) -> 0 | AP23: =IF(basis!F29="","",IF(AP22-AP9<0,0,AP22-AP9)) ->  | AQ23: =IF(basis!F32="","",IF(AQ22-AQ9<0,0,AQ22-AQ9)) ->  | AS23: =IF(basis!F35="","",IF(AS22-AS9<0,0,AS22-AS9)) -> 
B24: mai | C24: =DCOUNT(analyses!$A$4:$BN$373,C$19,$B$62:$C$63) -> 31 | D24: =DCOUNT(analyses!$A$4:$BN$373,D$19,$B$62:$C$63) -> 0 | E24: =DCOUNT(analyses!$A$4:$BN$373,E$19,$B$62:$C$63) -> 0 | F24: =DCOUNT(analyses!$A$4:$BN$373,F$19,$B$62:$C$63) -> 0 | G24: =DCOUNT(analyses!$A$4:$BN$373,G$19,$B$62:$C$63) -> 0 | H24: =DCOUNT(analyses!$A$4:$BN$373,H$19,$B$62:$C$63) -> 0 | I24: =DCOUNT(analyses!$A$4:$BN$373,I$19,$B$62:$C$63) -> 0 | J24: =DCOUNT(analyses!$A$4:$BN$373,J$19,$B$62:$C$63) -> 0 | K24: =DCOUNT(analyses!$A$4:$BN$373,K$19,$B$62:$C$63) -> 0 | L24: =DCOUNT(analyses!$A$4:$BN$373,L$19,$B$62:$C$63) -> 0 | M24: =DCOUNT(analyses!$A$4:$BN$373,M$19,$B$62:$C$63) -> 0 | N24: =DCOUNT(analyses!$A$4:$BN$373,N$19,$B$62:$C$63) -> 0 | O24: =DCOUNT(analyses!$A$4:$BN$373,O$19,$B$62:$C$63) -> 0 | P24: =DCOUNT(analyses!$A$4:$BN$373,P$19,$B$62:$C$63) -> 0 | Q24: =DCOUNT(analyses!$A$4:$BN$373,Q$19,$B$62:$C$63) -> 0 | AK24: =bi("% de non-conformité","% unzulässige") -> % de non-conformité | AM24: % | AN24: =IF(basis!F27="","pe",IF(AND(basis!F27<>"",AN8=0),1,AN23/AN8)) -> 1 | AP24: =IF(basis!F29="","pe",IF(AND(basis!F29<>"",AP8=0),1,AP23/AP8)) -> pe | AQ24: =IF(basis!F32="","pe",IF(AND(basis!F32<>"",AQ8=0),1,AQ23/AQ8)) -> pe | AS24: =IF(basis!F35="","pe",IF(AND(basis!F35<>"",AS8=0),1,AS23/AS8)) -> pe | AU24: =AVERAGE(AN24:AT24) -> 1
B25: juin | C25: =DCOUNT(analyses!$A$4:$BN$373,C$19,$B$64:$C$65) -> 30 | D25: =DCOUNT(analyses!$A$4:$BN$373,D$19,$B$64:$C$65) -> 0 | E25: =DCOUNT(analyses!$A$4:$BN$373,E$19,$B$64:$C$65) -> 0 | F25: =DCOUNT(analyses!$A$4:$BN$373,F$19,$B$64:$C$65) -> 0 | G25: =DCOUNT(analyses!$A$4:$BN$373,G$19,$B$64:$C$65) -> 0 | H25: =DCOUNT(analyses!$A$4:$BN$373,H$19,$B$64:$C$65) -> 0 | I25: =DCOUNT(analyses!$A$4:$BN$373,I$19,$B$64:$C$65) -> 0 | J25: =DCOUNT(analyses!$A$4:$BN$373,J$19,$B$64:$C$65) -> 0 | K25: =DCOUNT(analyses!$A$4:$BN$373,K$19,$B$64:$C$65) -> 0 | L25: =DCOUNT(analyses!$A$4:$BN$373,L$19,$B$64:$C$65) -> 0 | M25: =DCOUNT(analyses!$A$4:$BN$373,M$19,$B$64:$C$65) -> 0 | N25: =DCOUNT(analyses!$A$4:$BN$373,N$19,$B$64:$C$65) -> 0 | O25: =DCOUNT(analyses!$A$4:$BN$373,O$19,$B$64:$C$65) -> 0 | P25: =DCOUNT(analyses!$A$4:$BN$373,P$19,$B$64:$C$65) -> 0 | Q25: =DCOUNT(analyses!$A$4:$BN$373,Q$19,$B$64:$C$65) -> 0
B26: juil | C26: =DCOUNT(analyses!$A$4:$BN$373,C$19,$B$66:$C$67) -> 31 | D26: =DCOUNT(analyses!$A$4:$BN$373,D$19,$B$66:$C$67) -> 0 | E26: =DCOUNT(analyses!$A$4:$BN$373,E$19,$B$66:$C$67) -> 0 | F26: =DCOUNT(analyses!$A$4:$BN$373,F$19,$B$66:$C$67) -> 0 | G26: =DCOUNT(analyses!$A$4:$BN$373,G$19,$B$66:$C$67) -> 0 | H26: =DCOUNT(analyses!$A$4:$BN$373,H$19,$B$66:$C$67) -> 0 | I26: =DCOUNT(analyses!$A$4:$BN$373,I$19,$B$66:$C$67) -> 0 | J26: =DCOUNT(analyses!$A$4:$BN$373,J$19,$B$66:$C$67) -> 0 | K26: =DCOUNT(analyses!$A$4:$BN$373,K$19,$B$66:$C$67) -> 0 | L26: =DCOUNT(analyses!$A$4:$BN$373,L$19,$B$66:$C$67) -> 0 | M26: =DCOUNT(analyses!$A$4:$BN$373,M$19,$B$66:$C$67) -> 0 | N26: =DCOUNT(analyses!$A$4:$BN$373,N$19,$B$66:$C$67) -> 0 | O26: =DCOUNT(analyses!$A$4:$BN$373,O$19,$B$66:$C$67) -> 0 | P26: =DCOUNT(analyses!$A$4:$BN$373,P$19,$B$66:$C$67) -> 0 | Q26: =DCOUNT(analyses!$A$4:$BN$373,Q$19,$B$66:$C$67) -> 0 | AK26: =bi("pe=pas d'exigences","pe=keine Anforderungen") -> pe=pas d'exigences
B27: août | C27: =DCOUNT(analyses!$A$4:$BN$373,C$19,$B$68:$C$69) -> 31 | D27: =DCOUNT(analyses!$A$4:$BN$373,D$19,$B$68:$C$69) -> 0 | E27: =DCOUNT(analyses!$A$4:$BN$373,E$19,$B$68:$C$69) -> 0 | F27: =DCOUNT(analyses!$A$4:$BN$373,F$19,$B$68:$C$69) -> 0 | G27: =DCOUNT(analyses!$A$4:$BN$373,G$19,$B$68:$C$69) -> 0 | H27: =DCOUNT(analyses!$A$4:$BN$373,H$19,$B$68:$C$69) -> 0 | I27: =DCOUNT(analyses!$A$4:$BN$373,I$19,$B$68:$C$69) -> 0 | J27: =DCOUNT(analyses!$A$4:$BN$373,J$19,$B$68:$C$69) -> 0 | K27: =DCOUNT(analyses!$A$4:$BN$373,K$19,$B$68:$C$69) -> 0 | L27: =DCOUNT(analyses!$A$4:$BN$373,L$19,$B$68:$C$69) -> 0 | M27: =DCOUNT(analyses!$A$4:$BN$373,M$19,$B$68:$C$69) -> 0 | N27: =DCOUNT(analyses!$A$4:$BN$373,N$19,$B$68:$C$69) -> 0 | O27: =DCOUNT(analyses!$A$4:$BN$373,O$19,$B$68:$C$69) -> 0 | P27: =DCOUNT(analyses!$A$4:$BN$373,P$19,$B$68:$C$69) -> 0 | Q27: =DCOUNT(analyses!$A$4:$BN$373,Q$19,$B$68:$C$69) -> 0
B28: sept | C28: =DCOUNT(analyses!$A$4:$BN$373,C$19,$B$70:$C$71) -> 30 | D28: =DCOUNT(analyses!$A$4:$BN$373,D$19,$B$70:$C$71) -> 0 | E28: =DCOUNT(analyses!$A$4:$BN$373,E$19,$B$70:$C$71) -> 0 | F28: =DCOUNT(analyses!$A$4:$BN$373,F$19,$B$70:$C$71) -> 0 | G28: =DCOUNT(analyses!$A$4:$BN$373,G$19,$B$70:$C$71) -> 0 | H28: =DCOUNT(analyses!$A$4:$BN$373,H$19,$B$70:$C$71) -> 0 | I28: =DCOUNT(analyses!$A$4:$BN$373,I$19,$B$70:$C$71) -> 0 | J28: =DCOUNT(analyses!$A$4:$BN$373,J$19,$B$70:$C$71) -> 0 | K28: =DCOUNT(analyses!$A$4:$BN$373,K$19,$B$70:$C$71) -> 0 | L28: =DCOUNT(analyses!$A$4:$BN$373,L$19,$B$70:$C$71) -> 0 | M28: =DCOUNT(analyses!$A$4:$BN$373,M$19,$B$70:$C$71) -> 0 | N28: =DCOUNT(analyses!$A$4:$BN$373,N$19,$B$70:$C$71) -> 0 | O28: =DCOUNT(analyses!$A$4:$BN$373,O$19,$B$70:$C$71) -> 0 | P28: =DCOUNT(analyses!$A$4:$BN$373,P$19,$B$70:$C$71) -> 0 | Q28: =DCOUNT(analyses!$A$4:$BN$373,Q$19,$B$70:$C$71) -> 0
B29: oct | C29: =DCOUNT(analyses!$A$4:$BN$373,C$19,$B$72:$C$73) -> 31 | D29: =DCOUNT(analyses!$A$4:$BN$373,D$19,$B$72:$C$73) -> 0 | E29: =DCOUNT(analyses!$A$4:$BN$373,E$19,$B$72:$C$73) -> 0 | F29: =DCOUNT(analyses!$A$4:$BN$373,F$19,$B$72:$C$73) -> 0 | G29: =DCOUNT(analyses!$A$4:$BN$373,G$19,$B$72:$C$73) -> 0 | H29: =DCOUNT(analyses!$A$4:$BN$373,H$19,$B$72:$C$73) -> 0 | I29: =DCOUNT(analyses!$A$4:$BN$373,I$19,$B$72:$C$73) -> 0 | J29: =DCOUNT(analyses!$A$4:$BN$373,J$19,$B$72:$C$73) -> 0 | K29: =DCOUNT(analyses!$A$4:$BN$373,K$19,$B$72:$C$73) -> 0 | L29: =DCOUNT(analyses!$A$4:$BN$373,L$19,$B$72:$C$73) -> 0 | M29: =DCOUNT(analyses!$A$4:$BN$373,M$19,$B$72:$C$73) -> 0 | N29: =DCOUNT(analyses!$A$4:$BN$373,N$19,$B$72:$C$73) -> 0 | O29: =DCOUNT(analyses!$A$4:$BN$373,O$19,$B$72:$C$73) -> 0 | P29: =DCOUNT(analyses!$A$4:$BN$373,P$19,$B$72:$C$73) -> 0 | Q29: =DCOUNT(analyses!$A$4:$BN$373,Q$19,$B$72:$C$73) -> 0
B30: nov | C30: =DCOUNT(analyses!$A$4:$BN$373,C$19,$B$74:$C$75) -> 30 | D30: =DCOUNT(analyses!$A$4:$BN$373,D$19,$B$74:$C$75) -> 0 | E30: =DCOUNT(analyses!$A$4:$BN$373,E$19,$B$74:$C$75) -> 0 | F30: =DCOUNT(analyses!$A$4:$BN$373,F$19,$B$74:$C$75) -> 0 | G30: =DCOUNT(analyses!$A$4:$BN$373,G$19,$B$74:$C$75) -> 0 | H30: =DCOUNT(analyses!$A$4:$BN$373,H$19,$B$74:$C$75) -> 0 | I30: =DCOUNT(analyses!$A$4:$BN$373,I$19,$B$74:$C$75) -> 0 | J30: =DCOUNT(analyses!$A$4:$BN$373,J$19,$B$74:$C$75) -> 0 | K30: =DCOUNT(analyses!$A$4:$BN$373,K$19,$B$74:$C$75) -> 0 | L30: =DCOUNT(analyses!$A$4:$BN$373,L$19,$B$74:$C$75) -> 0 | M30: =DCOUNT(analyses!$A$4:$BN$373,M$19,$B$74:$C$75) -> 0 | N30: =DCOUNT(analyses!$A$4:$BN$373,N$19,$B$74:$C$75) -> 0 | O30: =DCOUNT(analyses!$A$4:$BN$373,O$19,$B$74:$C$75) -> 0 | P30: =DCOUNT(analyses!$A$4:$BN$373,P$19,$B$74:$C$75) -> 0 | Q30: =DCOUNT(analyses!$A$4:$BN$373,Q$19,$B$74:$C$75) -> 0
B31: dec | C31: =DCOUNT(analyses!$A$4:$BN$373,C$19,$B$76:$C$77) -> 31 | D31: =DCOUNT(analyses!$A$4:$BN$373,D$19,$B$76:$C$77) -> 0 | E31: =DCOUNT(analyses!$A$4:$BN$373,E$19,$B$76:$C$77) -> 0 | F31: =DCOUNT(analyses!$A$4:$BN$373,F$19,$B$76:$C$77) -> 0 | G31: =DCOUNT(analyses!$A$4:$BN$373,G$19,$B$76:$C$77) -> 0 | H31: =DCOUNT(analyses!$A$4:$BN$373,H$19,$B$76:$C$77) -> 0 | I31: =DCOUNT(analyses!$A$4:$BN$373,I$19,$B$76:$C$77) -> 0 | J31: =DCOUNT(analyses!$A$4:$BN$373,J$19,$B$76:$C$77) -> 0 | K31: =DCOUNT(analyses!$A$4:$BN$373,K$19,$B$76:$C$77) -> 0 | L31: =DCOUNT(analyses!$A$4:$BN$373,L$19,$B$76:$C$77) -> 0 | M31: =DCOUNT(analyses!$A$4:$BN$373,M$19,$B$76:$C$77) -> 0 | N31: =DCOUNT(analyses!$A$4:$BN$373,N$19,$B$76:$C$77) -> 0 | O31: =DCOUNT(analyses!$A$4:$BN$373,O$19,$B$76:$C$77) -> 0 | P31: =DCOUNT(analyses!$A$4:$BN$373,P$19,$B$76:$C$77) -> 0 | Q31: =DCOUNT(analyses!$A$4:$BN$373,Q$19,$B$76:$C$77) -> 0
B32: Total | C32: =SUM(C20:C31) -> 365 | D32: =SUM(D20:D31) -> 0 | E32: 0 | F32: 0 | G32: 0 | H32: 0 | I32: 0 | J32: 0 | K32: 0 | L32: 0 | M32: 0 | N32: 0 | O32: 0 | P32: 0 | Q32: 0
B33: Freq. Éxigée | C33: =nb_ana!C6 -> 0 | D33: =nb_ana!C7 -> 0 | F33: =nb_ana!C8 -> 0 | G33: =nb_ana!C10 -> 0 | H33: =nb_ana!C11 -> 0 | I33: =nb_ana!C13 -> 0 | J33: =nb_ana!D7 -> 0 | L33: =nb_ana!D9 -> 0 | M33: =nb_ana!D10 -> 0 | N33: =nb_ana!D12 -> 0 | P33: =nb_ana!D13 -> 0 | Q33: =nb_ana!D14 -> 0
C35: =bi("Rendement","Abbauleistung") -> Rendement | I35: =bi("Eliminé kg/jour","Abbau kg/d") -> Eliminé kg/jour | N35: =bi("EH","EW") -> EH
C36: =basis!A27 -> DBO5 | D36: =basis!A28 -> DCO | E36: COT/DOC | F36: =basis!A32 -> NH4-N | G36: =graph1!CA9 &" / NH4" -> N tot / NH4 | H36: =basis!A35 -> Ptot | I36: =basis!A27 -> DBO5 | J36: =basis!A28 -> DCO | K36: =basis!A29 -> COT/COD | L36: =basis!A32 -> NH4-N | M36: =basis!A35 -> Ptot | N36: =basis!A27 -> DBO5 | O36: =basis!A29 -> COT/COD | P36: =basis!A32 -> NH4-N | Q36: =basis!A35 -> Ptot
C37: % | D37: % | E37: % | F37: % | G37: % | H37: %
B38: =B6 -> jan | C38: =1-J6/D6 ->  | D38: =1-K6/E6 ->  | G38: =1-M6/H6 ->  | H38: =1-P6/I6 ->  | I38: =D6-J6 ->  | M38: =I6-P6 ->  | N38: =1000*D6/basis!B$27 ->  | O38: =1000*F6/basis!B$29 ->  | P38: =1000*G6/basis!B$32 ->  | Q38: =1000*I6/basis!B$35 -> 
B39: fev | G39: =1-M7/H7 ->  | N39: =1000*D7/basis!B$27 ->  | O39: =1000*F7/basis!B$29 ->  | P39: =1000*G7/basis!B$32 ->  | Q39: =1000*I7/basis!B$35 -> 
B40: mars | N40: =1000*D8/basis!B$27 ->  | O40: =1000*F8/basis!B$29 ->  | P40: =1000*G8/basis!B$32 ->  | Q40: =1000*I8/basis!B$35 -> 
B41: avril | N41: =1000*D9/basis!B$27 ->  | O41: =1000*F9/basis!B$29 ->  | P41: =1000*G9/basis!B$32 ->  | Q41: =1000*I9/basis!B$35 -> 
B42: mai | N42: =1000*D10/basis!B$27 ->  | O42: =1000*F10/basis!B$29 ->  | P42: =1000*G10/basis!B$32 ->  | Q42: =1000*I10/basis!B$35 -> 
B43: juin | N43: =1000*D11/basis!B$27 ->  | O43: =1000*F11/basis!B$29 ->  | P43: =1000*G11/basis!B$32 ->  | Q43: =1000*I11/basis!B$35 -> 
B44: juil | N44: =1000*D12/basis!B$27 ->  | O44: =1000*F12/basis!B$29 ->  | P44: =1000*G12/basis!B$32 ->  | Q44: =1000*I12/basis!B$35 -> 
B45: août | N45: =1000*D13/basis!B$27 ->  | O45: =1000*F13/basis!B$29 ->  | P45: =1000*G13/basis!B$32 ->  | Q45: =1000*I13/basis!B$35 -> 
B46: sept | N46: =1000*D14/basis!B$27 ->  | O46: =1000*F14/basis!B$29 ->  | P46: =1000*G14/basis!B$32 ->  | Q46: =1000*I14/basis!B$35 -> 
B47: oct | N47: =1000*D15/basis!B$27 ->  | O47: =1000*F15/basis!B$29 ->  | P47: =1000*G15/basis!B$32 ->  | Q47: =1000*I15/basis!B$35 -> 
B48: nov | N48: =1000*D16/basis!B$27 ->  | O48: =1000*F16/basis!B$29 ->  | P48: =1000*G16/basis!B$32 ->  | Q48: =1000*I16/basis!B$35 -> 
B49: dec | N49: =1000*D17/basis!B$27 ->  | O49: =1000*F17/basis!B$29 ->  | P49: =1000*G17/basis!B$32 ->  | Q49: =1000*I17/basis!B$35 -> 
A53: Kriterien
B54: Date | C54: Date | BA54: =bi("Exigence","Grenzwert") -> Exigence
B55: =">=1.1."&RIGHT(Jahr,2) -> >=1.1.15 | C55: ="<=31.1."&RIGHT(Jahr,2) -> <=31.1.15 | AL55: Critère pour concentration | AM55: =analyses!Q6:V6 -> DBO5 | AN55: DCO | AO55: COD | AP55: NH4 | AQ55: NO2 | AR55: NO3 | AS55: =analyses!X6:Y6 -> Ptot | AT55: MES | AY55: BSB | AZ55: 0 | BA55: =IF(basis!G27="",NA(),basis!G27/100) -> 0
B56: Date | C56: Date | AF56: =bi("Rendement d'élimination %","Abbauleistung %") -> Rendement d'élimination % | AM56: =">" & AN4 -> >20 | AO56: =">" & AP4 -> > | AP56: =">" & AQ4 -> > | AQ56: =">" & AR4 -> >0.3 | AS56: =">" & AS4 -> > | AT56: =">" & AT4 -> >20 | AZ56: 1 | BA56: =BA55 -> 0
B57: =">=1.2."&RIGHT(Jahr,2) -> >=1.2.15 | C57: ="<=28.2."&RIGHT(Jahr,2) -> <=28.2.15
B58: Date | C58: Date | AL58: Critère pour rendement | AM58: =calc!EP8 -> DBO5 | AO58: =calc!ER8 -> COT/DOC | AP58: =calc!ES8 -> N tot / NH4 | AS58: =calc!ET8 -> Ptot | AY58: COT,DOC | AZ58: 0 | BA58: =IF(basis!G29="",NA(),basis!G29/100) -> 
B59: =">=1.3."&RIGHT(Jahr,2) -> >=1.3.15 | C59: ="<=31.3."&RIGHT(Jahr,2) -> <=31.3.15 | AM59: ="<" & AN5 -> <0 | AO59: ="<" & AP5 -> < | AP59: ="<" & AQ5 -> < | AS59: ="<" & AS5 -> < | AZ59: 1 | BA59: =BA58 -> 
B60: Date | C60: Date
B61: =">=1.4."&RIGHT(Jahr,2) -> >=1.4.15 | C61: ="<=30.4."&RIGHT(Jahr,2) -> <=30.4.15 | AY61: Nges/NH4 | AZ61: 0 | BA61: =IF(basis!G32="",NA(),basis!G32/100) -> 
B62: Date | C62: Date | AZ62: 1 | BA62: =BA61 -> 
B63: =">=1.5."&RIGHT(Jahr,2) -> >=1.5.15 | C63: ="<=31.5."&RIGHT(Jahr,2) -> <=31.5.15
B64: Date | C64: Date | AY64: Ptot | AZ64: 0 | BA64: =IF(basis!G35="",NA(),basis!G35/100) -> 
B65: =">=1.6."&RIGHT(Jahr,2) -> >=1.6.15 | C65: ="<=30.6."&RIGHT(Jahr,2) -> <=30.6.15 | AZ65: 1 | BA65: =BA64 -> 
B66: Date | C66: Date
B67: =">=1.7."&RIGHT(Jahr,2) -> >=1.7.15 | C67: ="<=31.7."&RIGHT(Jahr,2) -> <=31.7.15
B68: Date | C68: Date
B69: =">=1.8."&RIGHT(Jahr,2) -> >=1.8.15 | C69: ="<=31.8."&RIGHT(Jahr,2) -> <=31.8.15
B70: Date | C70: Date
B71: =">=1.9."&RIGHT(Jahr,2) -> >=1.9.15 | C71: ="<=30.9."&RIGHT(Jahr,2) -> <=30.9.15
B72: Date | C72: Date
B73: =">=1.10."&RIGHT(Jahr,2) -> >=1.10.15 | C73: ="<=31.10."&RIGHT(Jahr,2) -> <=31.10.15
B74: Date | C74: Date
B75: =">=1.11."&RIGHT(Jahr,2) -> >=1.11.15 | C75: ="<=30.11."&RIGHT(Jahr,2) -> <=30.11.15
B76: Date | C76: Date
B77: =">=1.12."&RIGHT(Jahr,2) -> >=1.12.15 | C77: ="<=31.12."&RIGHT(Jahr,2) -> <=31.12.15

Sheet Autocontr. (hidden)
EB1: ARA Daten
U2: horaire pas pris en compte | BX2: ponderation entrée = | CB2: 1 | EB2: Selbstkontrolle
BE3: calcul %, limité à 100% | BX3: ponderation sortie = | CB3: 2 | DH3: non pondéré | DK3: pondéré | DN3: ancien tableau | EC3: COLONNE | EE3: formatage pour rapport
BE4: =IF(basis!S1=1,"Evaluation de l'autocontrôle","Auswertung der Selbstkontrollen") -> Evaluation de l'autocontrôle | EC4: à MASQUER
B5: pour copie | D5: nb analyses effectuées | U5: nb analyses exigées | AM5: calcul % | BE5: Pourcentage de mesures effectuées par rapport à l'exigence minimale | BX5: ponderation (n'est pas pris en compte) | CP5: calcul avec ponderation | DI5: Taux global d'analyses effectuées | DK5: Nb tot effectué / Nb tot exigé | DL5: Nb tot effectué / Nb tot exigé | DN5: Sortie STEP: Nombre de mesures effectuées par rapport à l'exigence minimale | DX5: Taux global d'analyses effectuées | DZ5: Nb tot effectué / Nb tot exigé | EE5: Prozent durchgeführter Analysen nach erforderlicher Mindestzahl | EV5: % durch-geführter tot. Analysen
BE6: 95% des analyses exigées, ou plus | BL6: 80% à 95% des analyses | BP6: Moins de 80% des analyses | EE6: 95% der erforderlichen Analysen, oder mehr | EL6: 80% bis 95% der An. | EP6: weniger als 80% der An.
A7: Nom STEP | B7: N° | C7: Capacité [ EH ] | D7: Entrée | K7: Sortie | U7: Entrée | AB7: Sortie | AM7: Entrée | AT7: Sortie | BE7: Entrée | BL7: Sortie | BX7: Entrée | CE7: Sortie | CP7: Entrée | CW7: Sortie | DH7: Nb tot effectué / Nb tot exigé | DN7: Débit | DP7: DBO5 | DR7: COT/DOC | DT7: NH4-N | DV7: Ptot | EB7: ARA Name | EC7: pour copie | ED7: Kapazität [ EW ] | EE7: Zulauf | EL7: Ablauf
D8: débit | E8: DBO5 | F8: DCO | G8: COT | H8: NH4 | I8: Ntot | J8: Ptot | K8: débit | L8: DBO5 | M8: DCO | N8: COD | O8: NH4 | P8: NO2 | Q8: NO3 | R8: PO4 | S8: Ptot | T8: MES | U8: débit | V8: DBO5 | W8: DCO | X8: COT | Y8: NH4 | Z8: Ntot | AA8: Ptot | AB8: débit | AC8: DBO5 | AD8: DCO | AE8: COD | AF8: NH4 | AG8: NO2 | AH8: NO3 | AI8: PO4 | AJ8: Ptot | AK8: MES | AM8: débit | AN8: DBO5 | AO8: DCO | AP8: COT | AQ8: NH4 | AR8: Ntot | AS8: Ptot | AT8: débit | AU8: DBO5 | AV8: DCO | AW8: COD | AX8: NH4 | AY8: NO2 | AZ8: NO3 | BA8: PO4 | BB8: Ptot | BC8: MES | BE8: débit | BF8: DBO5 | BG8: DCO | BH8: COT | BI8: NH4 | BJ8: Ntot | BK8: Ptot | BL8: débit | BM8: DBO5 | BN8: DCO | BO8: COD | BP8: NH4 | BQ8: NO2 | BR8: NO3 | BS8: PO4 | BT8: Ptot | BU8: MES | BX8: débit | BY8: DBO5 | BZ8: DCO | CA8: COT | CB8: NH4 | CC8: Ntot | CD8: Ptot | CE8: débit | CF8: DBO5 | CG8: DCO | CH8: COD | CI8: NH4 | CJ8: NO2 | CK8: NO3 | CL8: PO4 | CM8: Ptot | CN8: MES | CP8: débit | CQ8: DBO5 | CR8: DCO | CS8: COT | CT8: NH4 | CU8: Ntot | CV8: Ptot | CW8: débit | CX8: DBO5 | CY8: DCO | CZ8: COD | DA8: NH4 | DB8: NO2 | DC8: NO3 | DD8: PO4 | DE8: Ptot | DF8: MES | DN8: Exigence | DO8: Effectué | DP8: Exigence | DQ8: Effectué | DR8: Exigence | DS8: Effectué | DT8: Exigence | DU8: Effectué | DV8: Exigence | DW8: Effectué | EA8: Langue | EC8: Nr | EE8: Durchfl. | EF8: BSB5 | EG8: CSB | EH8: TOC | EI8: NH4 | EJ8: Nges | EK8: Pges | EL8: Durchfl. | EM8: BSB5 | EN8: CSB | EO8: DOC | EP8: NH4 | EQ8: NO2 | ER8: NO3 | ES8: PO4 | ET8: Ptot | EU8: MES
A9: =liste!A105 -> Ausserbinn | B9: =liste!B105 -> 6051/00 | C9: =liste!E105 -> 100 | D9: =MAX(analyses!F383,analyses!H383) -> 0 | E9: =analyses!K383 -> 0 | F9: =analyses!L383 -> 0 | G9: =analyses!M383 -> 0 | H9: =analyses!N383 -> 0 | I9: =analyses!O383 -> 0 | J9: =analyses!P383 -> 0 | K9: =D9 -> 0 | L9: =analyses!Q383 -> 0 | M9: =analyses!R383 -> 0 | N9: =analyses!S383 -> 0 | O9: =analyses!T383 -> 0 | P9: =analyses!U383 -> 0 | Q9: =analyses!V383 -> 0 | R9: =analyses!W383 -> 0 | S9: =analyses!X383 -> 0 | T9: =analyses!Y383 -> 0 | U9: =IF(liste!AF105="H",365,IF(liste!AF105="J",365,liste!AF105)) -> 0 | V9: =liste!AG105 -> 0 | W9: 0 | X9: =liste!AI105 -> 0 | Y9: =liste!AM105 -> 0 | Z9: =liste!AO105 -> 0 | AA9: =liste!AS105 -> 0 | AB9: =U9 -> 0 | AC9: =liste!AH105 -> 0 | AD9: 0 | AE9: =liste!AL105 -> 0 | AF9: =liste!AN105 -> 0 | AG9: =liste!AR105 -> 0 | AH9: 0 | AI9: 0 | AJ9: =liste!AT105 -> 0 | AK9: =liste!AV105 -> 0 | AM9: =IF(ISERROR(D9/U9),"",D9/U9) ->  | BE9: =IF(AM9="","",IF(AM9>1,1,AM9)) ->  | BX9: =IF(AM9="","",$CB$2) ->  | CE9: =IF(AT9="","",$CB$3) ->  | CP9: =IF(ISERROR(BX9*AM9),"",BX9*AM9) ->  | DH9: =DI9 ->  | DI9: =AVERAGE(BE9:BU9) ->  | DK9: =DL9 ->  | DL9: =SUM(CP9:DF9)/SUM(BX9:CN9) ->  | DN9: 365 | DO9: =analyses!F383 -> 0 | DP9: =IF($C9>=5000,52,IF($C9>=2000,24,IF($C9>=200,12,0))) -> 0 | DQ9: =analyses!Q383 -> 0 | DR9: =IF($C9>=2000,12,0) -> 0 | DS9: =analyses!S383 -> 0 | DT9: =IF($C9>50000,104,IF($C9>=5000,52,IF($C9>=2000,24,IF($C9>=200,12,0)))) -> 0 | DU9: =analyses!T383 -> 0 | DV9: =IF($C9>10000,104,IF($C9>=5000,52,IF($C9>=2000,24,IF($C9>=200,12,0)))) -> 0 | DW9: =analyses!X383 -> 0 | DX9: =(DO9+DQ9+DS9+DU9+DW9) / (DN9+DP9+DR9+DT9+DV9) -> 0 | DZ9: =(DO9+DQ9+DS9+DU9+DW9) / (DN9+DP9+DR9+DT9+DV9) -> 0 | EB9: =A9 -> Ausserbinn | EC9: =B9 -> 6051/00 | ED9: =C9 -> 100 | EE9: =BE9 ->  | EV9: =DI9 -> 

Sheet Notes tot. (hidden)
A1: Gesamtnoten | AA1: Exportation NH4 vers ArcGIS | AF1: a1 | AG1: a2 | AH1: a3 | AI1: a4 | AJ1: a5 | AK1: a6 | AL1: a7 | AM1: a8 | AN1: a9 | AP1: note | AU1: Kapazität | AV1: mittlere
D2: Capacité biologique | F2: DBO5 | J2: DCO | L2: COD / COT | P2: Ptot | T2: NH4 / Ntot | X2: Note globale G | Y2: TA | AA2: Avec exigence nitrification | AC2: sans exigence nitrification | AF2: DBO5 | AH2: DCO : Note abandonnée | AJ2: COD | AL2: Ptot | AN2: NH4 | AV2: Durchfluss | AW2: BSB5 | BA2: CSB | BC2: DOC / TOC | BG2: Pges | BK2: NH4 / Nges | BO2: G | BP2: AA
C3: STEP | D3: EH | F3: R | G3: E | H3: C | I3: E | J3: R | K3: C | L3: R | M3: E | N3: C | O3: E | P3: R | Q3: E | R3: C | S3: E | T3: R | U3: E | V3: C | W3: E | AA3: rendement | AB3: concentration | AC3: rendement | AD3: concentration | AF3: rendement | AG3: conc. | AH3: rendement | AI3: conc. | AJ3: rendement | AK3: conc. | AL3: rendement | AM3: conc. | AN3: rendement | AO3: conc. | AS3: Nr | AT3: ARA | AU3: EW | AV3: m3/Tag | AW3: W | AX3: A | AY3: K | AZ3: =AX3 -> A | BA3: W | BB3: =AY3 -> K | BC3: W | BD3: =AX3 -> A | BE3: =AY3 -> K | BF3: =BD3 -> A | BG3: W | BH3: =BD3 -> A | BI3: =BE3 -> K | BJ3: =BF3 -> A | BK3: W | BL3: =BH3 -> A | BM3: =BI3 -> K | BN3: =BJ3 -> A
C4: =liste!A105 -> Ausserbinn | D4: =liste!E105 -> 100 | F4: =IF(G4="","",calc!EU386*100) -> 0 | G4: =liste!S105 -> 0 | H4: =calc!FN386 ->  | I4: =liste!R105 -> 20 | J4: =calc!EV386*100 -> 0 | K4: =calc!FO386 ->  | L4: =IF(M4="","",calc!EW386*100) ->  | M4: =liste!U105 ->  | N4: =calc!FP386 ->  | O4: =liste!T105 ->  | P4: =IF(Q4="","",calc!EY386*100) ->  | Q4: =liste!W105 ->  | R4: =calc!FR386 ->  | S4: =liste!V105 ->  | T4: =calc!EX386*100 -> 0 | U4: =liste!Y105 ->  | V4: =calc!FQ386 ->  | W4: =liste!X105 ->  | X4: =AP4 -> 1 | Y4: =Autocontr.!DI9 ->  | AA4: =IF(AN4=0,"",AN4) ->  | AB4: =IF(AO4=0,"",AO4) ->  | AC4: =IF($U4="",IF($T4="","",$T4),"") -> 0 | AD4: =IF($W4="",IF($V4="","",$V4),"") ->  | AF4: =IF(F4="",0,IF(G4<>"",IF(F4>=(1.03*G4),1,IF(F4>=G4,2,IF(F4>(17/18*G4),3,IF(F4<(17/18*G4),4,IF(F4="","",))))),IF(F4>=95,1,IF(F4>=90,2,IF(F4>=85,3,IF(F4<85,4,IF(F4="","",))))))) -> 1 | AG4: =IF(H4="",0,IF(I4<>"",IF(H4<=(2/3*I4),1,IF(H4<=I4,2,IF(H4<=(4/3*I4),3,IF(H4>(4/3*I4),4,IF(H4="","",))))),IF(D4>=10000,IF(H4<=10,1,IF(H4<=15,2,IF(H4<=20,3,IF(H4>20,4,IF(H4="","",))))),IF(H4<=(2/3*20),1,IF(H4<=20,2,IF(H4<=(4/3*20),3,IF(H4>(4/3*20),4,IF(H4="","",)))))))) -> 0 | AH4: 0 | AI4: 0 | AJ4: =IF(L4="",0,IF(D4<2000,0,IF(M4<>"",IF(L4>=(18/17*M4),1,IF(L4>=M4,2,IF(L4>=(16/17*M4),3,IF(L4<(16/17*M4),4,)))),IF(L4>=90,1,IF(L4>=85,2,IF(L4>=80,3,IF(L4<80,4,))))))) -> 0 | AK4: =IF(N4="",0,IF(D4<2000,0,IF(O4<>"",IF(N4<=(0.6*O4),1,IF(N4<=O4,2,IF(N4<=(1.5*O4),3,IF(N4>(1.5*O4),4,)))),IF(N4<=6,1,IF(N4<=10,2,IF(N4<=15,3,IF(N4>15,4,))))))) -> 0 | AL4: =IF(OR(Q4="",Q4=0),0,IF(OR(P4="",P4=0),0,IF(P4>=(18/17*Q4),1,IF(P4>=Q4,2,IF(P4>=(16/17*Q4),3,IF(P4<(16/17*Q4),4,)))))) -> 0 | AM4: =IF(R4="",0,IF(S4="",0,IF(S4<>"",IF(R4<=(3/8*S4),1,IF(R4<=S4,2,IF(R4<=(3/2*S4),3,IF(R4>(3/2*S4),4,)))),IF(R4<=0.3,1,IF(R4<=0.8,2,IF(R4<=1.2,3,IF(R4>1.2,4,))))))) -> 0 | AN4: =IF(T4="",0,IF(U4<>"",IF(T4>=(19/18*U4),1,IF(T4>=U4,2,IF(T4>=(17/18*U4),3,IF(T4<(17/18*U4),4,)))),0)) -> 0 | AO4: =IF(W4="",0,IF(V4="",4,IF(V4<=(1/2*W4),1,IF(V4<=W4,2,IF(V4<=(3/2*W4),3,IF(V4>(3/2*W4),4,)))))) -> 0 | AP4: =IF(AND(AF4=0,AG4=0,AH4=0,AI4=0,AJ4=0,AK4=0,AL4=0,AM4=0,AN4=0,AO4=0),"Aucune donnée",SUM(AF4:AO4)/SUM((IF(AF4>0,1,0)),(IF(AG4>0,1,0)),(IF(AH4>0,1,0)),(IF(AI4>0,1,0)),(IF(AJ4>0,1,0)),(IF(AK4>0,1,0)),(IF(AL4>0,1,0)),(IF(AM4>0,1,0)),(IF(AN4>0,1,0)),(IF(AO4>0,1,0)))) -> 1 | AS4: =B4 -> 0 | AT4: =C4 -> Ausserbinn | AU4: =D4 -> 100 | AV4: =E4 -> 0 | AW4: =F4 -> 0 | AX4: =IF(G4="","",G4) -> 0 | AY4: =H4 ->  | AZ4: =IF(I4="","",I4) -> 20 | BA4: =J4 -> 0 | BB4: =K4 ->  | BC4: =L4 ->  | BD4: =IF(M4="","",M4) ->  | BE4: =N4 ->  | BF4: =IF(O4="","",O4) ->  | BG4: =P4 ->  | BH4: =IF(Q4="","",Q4) ->  | BI4: =R4 ->  | BJ4: =IF(S4="","",S4) ->  | BK4: =T4 -> 0 | BL4: =IF(U4="","",U4) ->  | BM4: =V4 ->  | BN4: =IF(W4="","",W4) ->  | BO4: =IF(X4="Aucune donnée","k. Daten",X4) -> 1 | BP4: =Y4 -> 
C6: Abréviations: R=Rendement avec bypass (%), C=Concentration (mg/l), E=Exigences, G=note Globale, TA=Taux d'Analyses effectuées par rapport au nombre d'analyses exigées | AT6: Abkürzungen: W=Wirkungsgrad mit Bypässen (%), K=Konzentrationen (mg/l), A=Anforderungen, G=Gesamtnote, AA=Anzahl total durchgeführter Analysen : total verlangte Analysen
C9: R, C: Valeurs moyenne annuelle | AT9: W, K: Berechnungen aufgrund Jahresmittelwerten der ARA
C10: TA: valeur calculée sur la base du nombre d'analyses effectuées en entrée et en sortie STEP | AT10: AA: Berechnungen aufgrund der durchgeführten Analysen im Zulauf und im Ablauf der ARA

Sheet calc (hidden)
AV1: Calcul des quantiles 0 à 100% comme base pour des diagrammes de fréquence de total et M 5 - 95 %. | BX1: =bi("Rendement d'abattement DBO5 du décanteur :","Wirkungsgrad VK (BSB5)") -> Rendement d'abattement DBO5 du décanteur :
T2: =bi("Calcul de la part d'eau parasite en % et en l/s par rapport aux concentrations d'entrée","Fremdwasserberechnung in % im Vergleich zu Zulaufkonzentrationen") -> Calcul de la part d'eau parasite en % et en l/s par rapport aux concentrations d'entrée | FY2: Seulement
DU3: =DT3*1000/1000 -> 0 | FY3: valeurs
R4: Qmin(60%) = | T4: Q(60%) = | U4: =basis!A27 -> DBO5 | W4: = | X4: =DBO5_specifique_parEH*1000/debit_specifique_parEH -> 352.9411765 | AA4: =basis!A29 -> COT/COD | AC4: = | AD4: =basis!B29*1000/debit_specifique_parEH -> 220.5882353 | AH4: =basis!A32 -> NH4-N | AI4: = | AJ4: =basis!B32*1000/debit_specifique_parEH -> 41.17647059 | AN4: =basis!A35 -> Ptot | AO4: = | AP4: =basis!B35*1000/debit_specifique_parEH -> 11.17647059 | BX4: =constanten_bypass!B33/100 -> 0 | FY4: > 10 °C
R5: =PERCENTILE(analyses!I9:'analyses'!I373,0.6) ->  | T5: =IF(graph1!T68,PERCENTILE(analyses!BL9:'analyses'!BL373,0.6),"-") -> - | BX5: =bi("Charge massique (kg DBO5/ kg MS. Jour)","Schlammbelastung (kg BSB5 / kg TS.d)") -> Charge massique (kg DBO5/ kg MS. Jour) | BY5: =bi("age de boues (j))","Schlammalter (d)") -> age de boues (j)) | DG5: =analyses!E4 -> Q dévié entrée STEP | DR5: =analyses!F4 -> Q entrée STEP | DZ5: =analyses!G4 -> Q dévié sortie primaire | EG5: =analyses!H4 -> Q sortie STEP (traité) | EP5: =bi("Rendements sans déversements (SS)","Wirkungsgrad ohne Bypässe (SS)") -> Rendements sans déversements (SS) | EU5: =bi("Rendements avec déversements (DM)","Wirkungsgrad mit Bypässen (DM)") -> Rendements avec déversements (DM) | FA5: =bi("Rapports typiques à l'entrée STEP","Verhältnisse im Zulauf ARA") -> Rapports typiques à l'entrée STEP | FF5: =bi("cap. nom.","Nennkap.") -> cap. nom. | FH5: Charge intégrale sortie avec bypass entrée STEP et bypass sortie DP | FN5: Concentration sortie calculée (y c. bypass entrée STEP et bypass sortie DP) | FT5: Concentration sortie calculée (y c. bypass entrée STEP et bypass sortie DP) | FZ5: =DG5 -> Q dévié entrée STEP | GK5: =DR5 -> Q entrée STEP | GS5: =DZ5 -> Q dévié sortie primaire | GZ5: =EG5 -> Q sortie STEP (traité) | HI5: =EP5 -> Rendements sans déversements (SS) | HN5: =EU5 -> Rendements avec déversements (DM) | HT5: =FA5 -> Rapports typiques à l'entrée STEP | HZ5: Concentration sortie calculée (y c. bypass entrée STEP et bypass sortie DP) | IF5: Tous les rendements NH4, quelle que soit la température (pour graph2 , graphique en BG28)
C6: =bi("Charges en entrée (sans calcul integral)","Zulauffrachten (ohne Integralrechnung)") -> Charges en entrée (sans calcul integral) | I6: =bi("Charges en sortie (sans integral)","Ablauffrachten (ohne Integralrechnung)") -> Charges en sortie (sans integral) | V6: =bi("déficit en DBO5 %","Defizit BSB5 %") -> déficit en DBO5 % | BA6: =bi("Charges entrée en EH","Zulauffrachten in EW") -> Charges entrée en EH | BF6: =bi("Charge sortie en percentile","Ablauffracht in Quantilen") -> Charge sortie en percentile | BO6: =bi("Charges en entrée STEP y c byp en EH","Zulauffrachten ARA in EW inkl Byp") -> Charges en entrée STEP y c byp en EH | DA6: =bi("Exigence","Grenzwerte") -> Exigence
A7: Date | C7: =bi("DBO5","BSB5") -> DBO5 | D7: =bi("DCO","CSB") -> DCO | E7: =bi("COT","TOC") -> COT | F7: NH4 | G7: =bi("Ntot","Nges") -> Ntot | H7: =bi("Ptot","Pges") -> Ptot | I7: =analyses!Q6 -> DBO5 | J7: =analyses!R6 -> DCO | K7: =analyses!S6 -> COD | L7: =analyses!T6 -> NH4 | M7: =analyses!U6 -> NO2 | N7: =analyses!V6 -> NO3 | O7: =analyses!X6 -> Ptot | P7: =analyses!Y6 -> MES | T7: Q bio (TS) | U7: =bi("DBO5","BSB5") -> DBO5 | W7: =bi("% ECP, DBO5","% Fremdwasser, BSB5") -> % ECP, DBO5 | X7: Qf(DBO5) | Y7: =bi("ECP DBO5","Fremdw. BSB5") -> ECP DBO5 | Z7: =bi("ECP (m3/d)","Fremdwasser (m3/d)")&", "&U4 -> ECP (m3/d), DBO5 | AA7: COT | AB7: f(COT) | AC7: =bi("% ECP, COT","% Fremdwasser, TOC") -> % ECP, COT | AD7: Qf(COT) | AE7: ECP(COT) | AF7: =bi("ECP (m3/d)","Fremdwasser (m3/d)")&", "&AA4 -> ECP (m3/d), COT/COD | AG7: NH4-N | AH7: f(NH4-N) | AI7: =bi("% ECP, NH4-N","% Fremdwasser, NH4-N") -> % ECP, NH4-N | AJ7: Qf(NH4-N) | AK7: ECP(NH4-N) | AL7: =bi("ECP (m3/d)","Fremdwasser (m3/d)")&", "&AH4 -> ECP (m3/d), NH4-N | AM7: Ptot | AN7: f(Ptot) | AO7: =bi("% ECP, Ptot","% Fremdwasser, Pges") -> % ECP, Ptot | AP7: Qf(Ptot) | AQ7: ECP(Ptot) | AR7: =bi("ECP (m3/d)","Fremdwasser (m3/d)")&", "&AN4 -> ECP (m3/d), Ptot | AT7: =bi("ECP (m3/d) moyenne","Fremdwasser (m3/d) Mittelwert") -> ECP (m3/d) moyenne | AX7: =bi("Débit journalier classé m3/d","Summieres Tagestotal m3/d") -> Débit journalier classé m3/d | AY7: Qmin | AZ7: Qmax | BA7: DBO5 | BC7: NH4-N | BD7: COT | BE7: Ptot | BF7: =bi("DBO5","BSB5") -> DBO5 | BG7: =bi("DCO","CSB") -> DCO | BH7: =bi("DOC","DOC") -> DOC | BI7: =bi("NH4","NH4") -> NH4 | BJ7: =bi("NO2","NO2") -> NO2 | BK7: =bi("NO3","NO3") -> NO3 | BL7: =bi("Ptot","Pges") -> Ptot | BM7: =bi("MES","GUS") -> MES | BO7: =bi("DBO5","BSB5") -> DBO5 | BP7: =bi("COTE","TOC") -> COTE | BQ7: NH4-N | BR7: =bi("Ptot","Pges") -> Ptot | BS7: =bi("DBO5","BSB5") -> DBO5 | BT7: =bi("COTE","TOC") -> COTE | BU7: NH4-N | BV7: =bi("Ptot","Pges") -> Ptot | BW7: =bi("Charge moyenne","Mittelwert") -> Charge moyenne | DA7: =basis!A27 -> DBO5 | DB7: =basis!A28 -> DCO | DC7: COT/DOC | DD7: =basis!A32 -> NH4-N | DE7: =basis!A35 -> Ptot | FS7: mise erreur
BZ8: =bi("Débit spécifique", "Abwassermenge pro EW pro Tag") & " " &BZ10 -> Débit spécifique (l/EH.j) | DG8: =bi("Valeur du débit bypassé","Uebernahme des Wertes für den Bypass") -> Valeur du débit bypassé | DH8: =bi("1ère condition pour bypass","1. Bedingung für Limitierung des Bypasses") -> 1ère condition pour bypass | DJ8: =bi("2ème condition pour bypass","2. Bedingung für Limitierung des Bypasses") -> 2ème condition pour bypass | DL8: =bi("Calcul de la charge déviée entrée STEP prise en compte","Berechnete angenomene Fracht des Bypass Zulauf ARA") -> Calcul de la charge déviée entrée STEP prise en compte | EP8: =basis!A27 -> DBO5 | EQ8: =basis!A28 -> DCO | ER8: COT/DOC | ES8: =graph2!G36 -> N tot / NH4 | ET8: =basis!A35 -> Ptot | EU8: =EP8 -> DBO5 | EV8: =EQ8 -> DCO | EW8: =ER8 -> COT/DOC | EX8: =ES8 -> N tot / NH4 | EY8: =ET8 -> Ptot | FH8: DBO5 | FI8: DCO | FJ8: TOC + DOC | FK8: NH4 | FL8: Ptot | FN8: DBO5 | FO8: DCO | FP8: TOC + DOC | FQ8: NH4 | FR8: Ptot | FS8: NH4 | FT8: =analyses!CC6 -> DBO5 | FU8: =analyses!CD6 -> DCO | FV8: =analyses!CE6 -> COD | FW8: =analyses!CF6 -> NH4 | FX8: =analyses!CJ6 -> Ptot | FY8: =FW8 -> NH4 | FZ8: =bi("Valeur du débit bypassé","Uebernahme des Wertes für den Bypass") -> Valeur du débit bypassé | GA8: =bi("1ère condition pour bypass","1. Bedingung für Limitierung des Bypasses") -> 1ère condition pour bypass | GC8: =bi("2ème condition pour bypass","2. Bedingung für Limitierung des Bypasses") -> 2ème condition pour bypass | GE8: =bi("Calcul de la charge déviée entrée STEP prise en compte","Berechnete angenomene Fracht des Bypass Zulauf ARA") -> Calcul de la charge déviée entrée STEP prise en compte | HI8: =EP8 -> DBO5 | HJ8: DCO | HK8: COT/DOC | HL8: N tot / NH4 | HM8: Ptot | HN8: DBO5 | HO8: DCO | HP8: COT/DOC | HQ8: N tot / NH4 | HR8: Ptot | HZ8: DBO5 | IA8: DCO | IB8: TOC + DOC | IC8: NH4 | ID8: Ptot | IF8: =ES8 -> N tot / NH4 | IG8: =EX8 -> N tot / NH4
DH9: =bi("Si Q entrée + bypass entrée > "&constanten_bypass!$N$29&" m3/d","Falls (Q Zulauf ARA + Bypass Zulauf ARA) > "&constanten_bypass!$N$29&" m3/d") -> Si Q entrée + bypass entrée > 17 m3/d | DI9: =bi("----> bypass limité pour que (Q entrée + Q bypass entrée) = "&constanten_bypass!$N$29&" m3/d","-----> Bypass limitiert sodass (Q Zulauf ARA + Bypass Zulauf ARA) = "&constanten_bypass!$N$29&" m3/d") -> ----> bypass limité pour que (Q entrée + Q bypass entrée) = 17 m3/d | DJ9: =bi("Si (Q entrée) > "&constanten_bypass!$N$29&" m3/d","Falls (Q Zulauf ARA) > "&constanten_bypass!$N$29&" m3/d") -> Si (Q entrée) > 17 m3/d | DK9: =bi("-----> Bypass n'est pas pris en compte (= 0 m3/d)","-----> Bypass wird nicht berücksichtigt (= 0 m3/d)") -> -----> Bypass n'est pas pris en compte (= 0 m3/d) | DL9: =bi("Charge bypass entrée STEP","Fracht Bypass Zulauf ") -> Charge bypass entrée STEP | DR9: =bi("Q entrée m3/d","Q Zulauf ARA m3/d") -> Q entrée m3/d | DS9: =bi("Q entrée, évtl. limité si > "&constanten_bypass!$N$29&" m3/d","Q Zulauf ARA, ggf. Limitiert falls > "&constanten_bypass!$N$29&" m3/d") -> Q entrée, évtl. limité si > 17 m3/d | EA9: =bi("Charge bypass sortie primaire","Fracht Bypass Ablauf Vorklärung") -> Charge bypass sortie primaire | EG9: =bi("Q sortie, évtl. limité si Q entrée > "&constanten_bypass!$N$29&" m3/d","Q Ablauf, ggf. Limitiert falls Q Zulauf ARA > "&constanten_bypass!$N$29&" m3/d") -> Q sortie, évtl. limité si Q entrée > 17 m3/d | EK9: Seulement si > 10°C | ES9: Seulement si > 10°C | EX9: Seulement si > 10°C | FH9: kg/d | FI9: kg/d | FJ9: kg/d | FK9: kg/d | FL9: kg/d | FN9: mg/l | FO9: mg/l | FP9: mg/l | FQ9: mg/l | FR9: mg/l | FS9: mg/l | FT9: mg/l | FU9: mg/l | FV9: mg/l | FW9: mg/l | FX9: mg/l | FY9: mg/l | GA9: =bi("Si Q entrée + bypass entrée > "&constanten_bypass!$N$29&" m3/d","Falls (Q Zulauf ARA + Bypass Zulauf ARA) > "&constanten_bypass!$N$29&" m3/d") -> Si Q entrée + bypass entrée > 17 m3/d | GB9: =bi("----> bypass limité pour que (Q entrée + Q bypass entrée) = "&constanten_bypass!$N$29&" m3/d","-----> Bypass limitiert sodass (Q Zulauf ARA + Bypass Zulauf ARA) = "&constanten_bypass!$N$29&" m3/d") -> ----> bypass limité pour que (Q entrée + Q bypass entrée) = 17 m3/d | GC9: =bi("Si (Q entrée) > "&constanten_bypass!$N$29&" m3/d","Falls (Q Zulauf ARA) > "&constanten_bypass!$N$29&" m3/d") -> Si (Q entrée) > 17 m3/d | GD9: =bi("-----> Bypass n'est pas pris en compte (= 0 m3/d)","-----> Bypass wird nicht berücksichtigt (= 0 m3/d)") -> -----> Bypass n'est pas pris en compte (= 0 m3/d) | GE9: =bi("Charge bypass entrée STEP","Fracht Bypass Zulauf ") -> Charge bypass entrée STEP | GK9: =bi("Q entrée m3/d","Q Zulauf ARA m3/d") -> Q entrée m3/d | GL9: =bi("Q entrée, évtl. limité si > "&constanten_bypass!$N$29&" m3/d","Q Zulauf ARA, ggf. Limitiert falls > "&constanten_bypass!$N$29&" m3/d") -> Q entrée, évtl. limité si > 17 m3/d | GT9: =bi("Charge bypass sortie primaire","Fracht Bypass Ablauf Vorklärung") -> Charge bypass sortie primaire | GZ9: =bi("Q sortie, évtl. limité si Q entrée > "&constanten_bypass!$N$29&" m3/d","Q Ablauf, ggf. Limitiert falls Q Zulauf ARA > "&constanten_bypass!$N$29&" m3/d") -> Q sortie, évtl. limité si Q entrée > 17 m3/d | HZ9: mg/l | IA9: mg/l | IB9: mg/l | IC9: mg/l | ID9: mg/l | IF9: =ES10 -> Rendements sans déversements (SS) N tot / NH4 (%) | IG9: =EX10 -> Rendements avec déversements (DM) Ntot/NH4-N (%)
C10: =bi("kg/jour","kg/d") -> kg/jour | D10: kg/jour | E10: kg/jour | F10: kg/jour | G10: kg/jour | H10: kg/jour | I10: kg/jour | J10: kg/jour | K10: kg/jour | L10: kg/jour | M10: kg/jour | N10: kg/jour | O10: kg/jour | P10: kg/jour | T10: =bi("kg/jour","kg/d") -> kg/jour | U10: mg/l | V10: % | W10: [ %] | X10: l/s | Y10: [en l/s] | Z10: % | AA10: mg/l | AB10: % | AC10: [ en %] | AD10: l/s | AE10: [en l/s] | AG10: mg/l | AH10: % | AI10: [ en %] | AJ10: l/s | AK10: [en l/s] | AM10: mg/l | AO10: [ en %] | AP10: l/s | AQ10: [en l/s] | AX10: m3/d | AY10: l/s | AZ10: l/s | BA10: =bi("EH","EW") -> EH | BC10: =bi("EH","EW") -> EH | BD10: =bi("EH","EW") -> EH | BE10: =bi("EH","EW") -> EH | BF10: =$BF$6&" "&BF7&" kg/d" -> Charge sortie en percentile DBO5 kg/d | BG10: Charge sortie en percentile DCO kg/d | BH10: Charge sortie en percentile DOC kg/d | BI10: Charge sortie en percentile NH4 kg/d | BJ10: Charge sortie en percentile NO2 kg/d | BK10: Charge sortie en percentile NO3 kg/d | BL10: Charge sortie en percentile Ptot kg/d | BM10: Charge sortie en percentile MES kg/d | BZ10: =bi("(l/EH.j)","(l/EW.d)") -> (l/EH.j) | DA10: % | DB10: % | DC10: % | DD10: % | DE10: % | DG10: Q m3/d | DI10: =bi("Nouvelle valeur calculée pour bypass","Neu berechneter Wert für Bypass") -> Nouvelle valeur calculée pour bypass | DK10: =bi("Nouvelle valeur calculée pour bypass, prise en compte dans calculs","Neu berechneter Wert für Bypass. Diese Kolonne wird in Berechnungen übernommen.") -> Nouvelle valeur calculée pour bypass, prise en compte dans calculs | DL10: =bi("DBO5 kg/d","BSB kg/d") -> DBO5 kg/d | DM10: =bi("DCO kg/d","CSB kg/d") -> DCO kg/d | DN10: =bi("TOC kg/d","TOC kg/d") -> TOC kg/d | DO10: =bi("NH4 kg/d","NH4 kg/d") -> NH4 kg/d | DP10: =bi("Ntot kg/d","Ntot kg/d") -> Ntot kg/d | DQ10: =bi("Ptot kg/d","Ptot kg/d") -> Ptot kg/d | DR10: Q m3/d | DS10: Q m3/d | DT10: =bi("Charge DBO5 entrée kg/d","Zulauffracht BSB5 kg/d") -> Charge DBO5 entrée kg/d | DU10: =bi("Charge DCO entrée kg/d","Zulauffracht CSB kg/d") -> Charge DCO entrée kg/d | DV10: =bi("Charge TOC entrée kg/d","Zulauffracht TOC kg/d") -> Charge TOC entrée kg/d | DW10: =bi("Charge NH4-N entrée kg/d","Zulauffracht NH4-N kg/d") -> Charge NH4-N entrée kg/d | DX10: =bi("Charge Ntot entrée kg/d","Zulauffracht Ntot kg/d") -> Charge Ntot entrée kg/d | DY10: =bi("Charge Ptot entrée kg/d","Zulauffracht Pges kg/d") -> Charge Ptot entrée kg/d | DZ10: Q m3/d | EA10: =DL10 -> DBO5 kg/d | EB10: DCO kg/d | EC10: TOC kg/d | ED10: NH4 kg/d | EE10: Ntot kg/d | EF10: Ptot kg/d | EG10: Q m3/d | EH10: =bi("Charge DBO5 sortie kg/d","Ablauffracht BSB kg/d") -> Charge DBO5 sortie kg/d | EI10: =bi("Charge DCO sortie kg/d","Ablauffracht CSB kg/d") -> Charge DCO sortie kg/d | EJ10: =bi("Charge DOC sortie kg/d","Ablauffracht DOC kg/d") -> Charge DOC sortie kg/d | EK10: =bi("Charge NH4-N sortie kg/d","Ablauffracht NH4-N kg/d") -> Charge NH4-N sortie kg/d | EL10: =bi("Charge NO2 sortie kg/d","Ablauffracht NO2 kg/d") -> Charge NO2 sortie kg/d | EM10: =bi("Charge NO3 sortie kg/d","Ablauffracht NO3 kg/d") -> Charge NO3 sortie kg/d | EN10: =bi("Charge MES sortie kg/d","Ablauffracht GUS kg/d") -> Charge MES sortie kg/d | EO10: =bi("Charge Ptot sortie kg/d","Ablauffracht Pges kg/d") -> Charge Ptot sortie kg/d | EP10: =EP5&IF(Langue=1," DBO5 (%)"," BSB (%)") -> Rendements sans déversements (SS) DBO5 (%) | EQ10: =EP5&IF(Langue=1," DCO (%)"," CSB (%)") -> Rendements sans déversements (SS) DCO (%) | ER10: =EP5&" COT/DOC (%)" -> Rendements sans déversements (SS) COT/DOC (%) | ES10: =$EP5& " " & ES8 &" (%)" -> Rendements sans déversements (SS) N tot / NH4 (%) | ET10: =$EP5& " " & ET8 &" (%)" -> Rendements sans déversements (SS) Ptot (%) | EU10: =EU5&IF(Langue=1," DBO5 (%)"," BSB (%)") -> Rendements avec déversements (DM) DBO5 (%) | EV10: =EU5&IF(Langue=1," DCO (%)"," CSB (%)") -> Rendements avec déversements (DM) DCO (%) | EW10: =EU5&" COT/DOC (%)" -> Rendements avec déversements (DM) COT/DOC (%) | EX10: =EU5&" Ntot/NH4-N (%)" -> Rendements avec déversements (DM) Ntot/NH4-N (%) | EY10: =EU5&" Ptot (%)" -> Rendements avec déversements (DM) Ptot (%) | EZ10: =bi("DBO5/TOC","BSB5/TOC") -> DBO5/TOC | FA10: =bi("DCO/DBO5","CSB/BSB5") -> DCO/DBO5 | FB10: =bi("NH4-N/Ntot","NH4-N/Nges") -> NH4-N/Ntot | FC10: =bi("Ntot/TOC","Nges/TOC") -> Ntot/TOC | FD10: =bi("Ptot/TOC","Pges/TOC") -> Ptot/TOC | FE10: =bi("DCO/TOC","CSB/TOC") -> DCO/TOC | FZ10: Q m3/d | GB10: =bi("Nouvelle valeur calculée pour bypass","Neu berechneter Wert für Bypass") -> Nouvelle valeur calculée pour bypass | GD10: =bi("Nouvelle valeur calculée pour bypass, prise en compte dans calculs","Neu berechneter Wert für Bypass. Diese Kolonne wird in Berechnungen übernommen.") -> Nouvelle valeur calculée pour bypass, prise en compte dans calculs | GE10: =bi("DBO5 kg/d","BSB kg/d") -> DBO5 kg/d | GF10: =bi("DCO kg/d","CSB kg/d") -> DCO kg/d | GG10: =bi("TOC kg/d","TOC kg/d") -> TOC kg/d | GH10: =bi("NH4 kg/d","NH4 kg/d") -> NH4 kg/d | GI10: =bi("Ntot kg/d","Ntot kg/d") -> Ntot kg/d | GJ10: =bi("Ptot kg/d","Ptot kg/d") -> Ptot kg/d | GK10: Q m3/d | GL10: Q m3/d | GM10: =bi("Charge DBO5 entrée kg/d","Zulauffracht BSB5 kg/d") -> Charge DBO5 entrée kg/d | GN10: =bi("Charge DCO entrée kg/d","Zulauffracht CSB kg/d") -> Charge DCO entrée kg/d | GO10: =bi("Charge TOC entrée kg/d","Zulauffracht TOC kg/d") -> Charge TOC entrée kg/d | GP10: =bi("Charge NH4-N entrée kg/d","Zulauffracht NH4-N kg/d") -> Charge NH4-N entrée kg/d | GQ10: =bi("Charge Ntot entrée kg/d","Zulauffracht Ntot kg/d") -> Charge Ntot entrée kg/d | GR10: =bi("Charge Ptot entrée kg/d","Zulauffracht Pges kg/d") -> Charge Ptot entrée kg/d | GS10: Q m3/d | GT10: =GE10 -> DBO5 kg/d | GU10: DCO kg/d | GV10: TOC kg/d | GW10: NH4 kg/d | GX10: Ntot kg/d | GY10: Ptot kg/d | GZ10: Q m3/d | HA10: =bi("Charge DBO5 sortie kg/d","Ablauffracht BSB kg/d") -> Charge DBO5 sortie kg/d | HB10: =bi("Charge DCO sortie kg/d","Ablauffracht CSB kg/d") -> Charge DCO sortie kg/d | HC10: =bi("Charge DOC sortie kg/d","Ablauffracht DOC kg/d") -> Charge DOC sortie kg/d | HD10: =bi("Charge NH4-N sortie kg/d","Ablauffracht NH4-N kg/d") -> Charge NH4-N sortie kg/d | HE10: =bi("Charge NO2 sortie kg/d","Ablauffracht NO2 kg/d") -> Charge NO2 sortie kg/d | HF10: =bi("Charge NO3 sortie kg/d","Ablauffracht NO3 kg/d") -> Charge NO3 sortie kg/d | HG10: =bi("Charge MES sortie kg/d","Ablauffracht GUS kg/d") -> Charge MES sortie kg/d | HH10: =bi("Charge Ptot sortie kg/d","Ablauffracht Pges kg/d") -> Charge Ptot sortie kg/d | HI10: =HI5&IF(Langue=1," DBO5 (%)"," BSB (%)") -> Rendements sans déversements (SS) DBO5 (%) | HJ10: =HI5&IF(Langue=1," DCO (%)"," CSB (%)") -> Rendements sans déversements (SS) DCO (%) | HK10: =HI5&" COT/DOC (%)" -> Rendements sans déversements (SS) COT/DOC (%) | HL10: =$EP5& " " & HL8 &" (%)" -> Rendements sans déversements (SS) N tot / NH4 (%) | HM10: =$EP5& " " & HM8 &" (%)" -> Rendements sans déversements (SS) Ptot (%) | HN10: =HN5&IF(Langue=1," DBO5 (%)"," BSB (%)") -> Rendements avec déversements (DM) DBO5 (%) | HO10: =HN5&IF(Langue=1," DCO (%)"," CSB (%)") -> Rendements avec déversements (DM) DCO (%) | HP10: =HN5&" COT/DOC (%)" -> Rendements avec déversements (DM) COT/DOC (%) | HQ10: =HN5&" Ntot/NH4-N (%)" -> Rendements avec déversements (DM) Ntot/NH4-N (%) | HR10: =HN5&" Ptot (%)" -> Rendements avec déversements (DM) Ptot (%) | HS10: =bi("DBO5/TOC","BSB5/TOC") -> DBO5/TOC | HT10: =bi("DCO/DBO5","CSB/BSB5") -> DCO/DBO5 | HU10: =bi("NH4-N/Ntot","NH4-N/Nges") -> NH4-N/Ntot | HV10: =bi("Ntot/TOC","Nges/TOC") -> Ntot/TOC | HW10: =bi("Ptot/TOC","Pges/TOC") -> Ptot/TOC | HX10: =bi("DCO/TOC","CSB/TOC") -> DCO/TOC
A11: =analyses!A9 -> 2015-01-01 | C11: =IF(ISERROR(analyses!BJ9*analyses!AS9/1000),"",analyses!BJ9*analyses!AS9/1000) ->  | D11: =IF(ISERROR(analyses!$BJ9*analyses!BX9/1000),"",analyses!$BJ9*analyses!BX9/1000) ->  | E11: =IF(ISERROR(analyses!$BJ9*analyses!BY9/1000),"",analyses!$BJ9*analyses!BY9/1000) ->  | F11: =IF(ISERROR(analyses!$BJ9*analyses!BZ9/1000),"",analyses!$BJ9*analyses!BZ9/1000) ->  | G11: =IF(ISERROR(analyses!$BJ9*analyses!CA9/1000),"",analyses!$BJ9*analyses!CA9/1000) ->  | H11: =IF(ISERROR(analyses!$BJ9*analyses!CB9/1000),"",analyses!$BJ9*analyses!CB9/1000) ->  | I11: =IF(ISERROR(analyses!$BL9*analyses!CC9/1000),"",analyses!$BL9*analyses!CC9/1000) ->  | J11: =IF(ISERROR(analyses!$BL9*analyses!CD9/1000),"",analyses!$BL9*analyses!CD9/1000) ->  | K11: =IF(ISERROR(analyses!$BL9*analyses!CE9/1000),"",analyses!$BL9*analyses!CE9/1000) ->  | L11: =IF(ISERROR(analyses!$BL9*analyses!CF9/1000),"",analyses!$BL9*analyses!CF9/1000) ->  | M11: =IF(ISERROR(analyses!$BL9*analyses!CG9/1000),"",analyses!$BL9*analyses!CG9/1000) ->  | N11: =IF(ISERROR(analyses!$BL9*analyses!CH9/1000),"",analyses!$BL9*analyses!CH9/1000) ->  | O11: =IF(ISERROR(analyses!$BL9*analyses!CJ9/1000),"",analyses!$BL9*analyses!CJ9/1000) ->  | P11: =IF(ISERROR(analyses!$BL9*analyses!CK9/1000),"",analyses!$BL9*analyses!CK9/1000) ->  | R11: =IF(analyses!I9<$R$5,analyses!I9,0) ->  | T11: =IF(analyses!BL9<$T$5,analyses!BL9,0) -> 0 | U11: =IF(AND(T11>0,analyses!AS9>0),analyses!AS9,"") ->  | V11: =IF(U11="","",(1-analyses!AS9/$X$4)*100) ->  | W11: =IF(OR(V11="",V11<0),NA(),V11) ->  | X11: =IF(V11="","",V11*T11/8640) ->  | Y11: =X11 ->  | Z11: =IF(((100-100/$X$4*analyses!BW9)/100*QTS)<0,NA(),((100-100/$X$4*analyses!BW9)/100*QTS)) ->  | AA11: =IF(AND(T11>0,analyses!M9>0),analyses!M9,"") ->  | AB11: =IF(AA11="","",(1-analyses!M9/$AD$4)*100) ->  | AC11: =IF(OR(AB11="",AB11<0),NA(),AB11) ->  | AD11: =IF(AB11="","",AB11*T11/8640) ->  | AE11: =AD11 ->  | AF11: =IF(((100-100/$AD$4*analyses!BY9)/100*QTS)<0,NA(),(((100-100/$AD$4*analyses!BY9)/100*QTS))) ->  | AG11: =IF(AND(T11>0,analyses!N9>0),analyses!N9,"") ->  | AH11: =IF(AG11="","",(1-analyses!N9/$AJ$4)*100) ->  | AI11: =IF(OR(AH11<0,AH11=""),NA(),AH11) ->  | AJ11: =IF(AH11="","",AH11*T11/8640) ->  | AK11: =AJ11 ->  | AL11: =IF(((100-100/$AJ$4*analyses!BZ9)/100*QTS)<0,NA(),((100-100/$AJ$4*analyses!BZ9)/100*QTS)) ->  | AM11: =IF(AND(T11>0,analyses!P9>0),analyses!P9,"") ->  | AN11: =IF(AM11="","",(1-analyses!P9/$AP$4)*100) ->  | AO11: =IF(OR(AN11<0,AN11=""),NA(),AN11) ->  | AP11: =IF(AN11="","",AN11*T11/8640) ->  | AQ11: =AP11 ->  | AR11: =IF(((100-100/$AP$4*analyses!CB9)/100*QTS)<0,NA(),((100-100/$AP$4*analyses!CB9)/100*QTS)) ->  | AT11: =AVERAGE(Z11,AF11,AL11,AR11) ->  | AV11: 0 | AW11: 0 | AX11: =PERCENTILE(analyses!BJ$9:BJ$373,$AV11) -> 0 | AY11: =PERCENTILE(analyses!BM$9:BM$373,$AV11) ->  | AZ11: =PERCENTILE(analyses!BN$9:BN$373,$AV11) ->  | BA11: =IF(ISERROR(analyses!DY9*analyses!$DT9/1000/(basis!$D$27/1000)),NA(),analyses!DY9*analyses!$DT9/1000/(basis!$D$27/1000)) ->  | BC11: =IF(ISERROR(analyses!EB9*analyses!$DT9/1000/(basis!$D$32/1000)),NA(),analyses!EB9*analyses!$DT9/1000/(basis!$D$32/1000)) ->  | BD11: =IF(ISERROR(analyses!EA9*analyses!$DT9/1000/(basis!$D$29/1000)),NA(),analyses!EA9*analyses!$DT9/1000/(basis!$D$27/1000)) ->  | BE11: =IF(ISERROR(analyses!ED9*analyses!$DT9/1000/(basis!$D$35/1000)),NA(),analyses!ED9*analyses!$DT9/1000/(basis!$D$35/1000)) ->  | BF11: =PERCENTILE(I$11:I$375,$AV11) ->  | BG11: =PERCENTILE(J$11:J$375,$AV11) ->  | BH11: =PERCENTILE(K$11:K$375,$AV11) ->  | BI11: =PERCENTILE(L$11:L$375,$AV11) ->  | BJ11: =PERCENTILE(M$11:M$375,$AV11) ->  | BK11: =PERCENTILE(N$11:N$375,$AV11) ->  | BL11: =PERCENTILE(O$11:O$375,$AV11) ->  | BM11: =PERCENTILE(P$11:P$375,$AV11) ->  | BO11: =integr!I11*1000/basis!$D$27 -> 0 | BP11: =integr!Y11*1000/basis!$D$29 -> 0 | BQ11: =integr!AG11*1000/basis!$D$32 -> 0 | BR11: =integr!AW11*1000/basis!$D$35 -> 0 | BS11: =IF(ISERROR(BO11),"",BO11) -> 0 | BT11: =IF(ISERROR(BP11),"",BP11) -> 0 | BU11: =IF(ISERROR(BQ11),"",BQ11) -> 0 | BV11: =IF(ISERROR(BR11),"",BR11) -> 0 | BW11: =AVERAGE(BS11:BV11) -> 0 | BX11: =IF(AND(calc!C11<>"",analyses!CP9<>0),calc!C11 * (1-$BX$4) / (analyses!CO9*analyses!CP9),"") ->  | BY11: =IF(AND(analyses!AC9<>0,analyses!AD9<>0,analyses!AE9<>0,analyses!H9<>0,analyses!Y9<>0),(analyses!AB9*analyses!AC9)/((analyses!H9*analyses!Y9/1000)+(analyses!AD9*analyses!AE9)),"") ->  | BZ11: =DS11/BO11*1000 ->  | DA11: =IF(basis!G27<>"",basis!G27*0.01,"") -> 0 | DC11: =IF(basis!G29<>"",basis!G29*0.01,"") ->  | DD11: =IF(basis!G32<>"",basis!G32*0.01,"") ->  | DE11: =IF(basis!G35<>"",basis!G35*0.01,"") ->  | DG11: =IF(analyses!BI9="",0,analyses!BI9) -> 0 | DH11: =IF(DS11+DG11>constanten_bypass!$N$29,IF(Langue=1,"limitation du bypass","Bypass ist limitiert"),IF(Langue=1,"pas de limitation","keine Begrenzung")) -> pas de limitation | DI11: =IF(DG11="","",IF(DS11+DG11>constanten_bypass!$N$29,DG11-(DS11+DG11-constanten_bypass!$N$29),DG11)) -> 0 | DJ11: =IF(DS11>constanten_bypass!$N$29,IF(Langue=1,"limitation de Q entrée","Q Zulauf ist limitiert"),IF(Langue=1,"pas de limitation de Q entrée","Keine Q Zulauf Begrenzung")) -> pas de limitation de Q entrée | DK11: =IF(DS11>constanten_bypass!$N$29,0,DI11) -> 0 | DL11: =IF(DK11="",0,$DK11*analyses!DF9/1000) ->  | DM11: =IF(DK11="",0,$DK11*analyses!BX9/1000) ->  | DN11: =IF(DK11="",0,$DK11*analyses!BY9/1000) ->  | DO11: =IF(DK11="",0,$DK11*analyses!BZ9/1000) ->  | DP11: =IF(DK11="",0,$DK11*analyses!CA9/1000) ->  | DQ11: =IF(DK11="",0,$DK11*analyses!CB9/1000) ->  | DR11: =analyses!BJ9 -> 0 | DS11: =IF(analyses!BJ9>constanten_bypass!$N$29,constanten_bypass!$N$29,analyses!BJ9) -> 0 | DT11: =$DS11*analyses!DF9/1000 ->  | DU11: =$DS11*analyses!BX9/1000 ->  | DV11: =$DS11*analyses!BY9/1000 ->  | DW11: =$DS11*analyses!BZ9/1000 ->  | DX11: =$DS11*analyses!CA9/1000 ->  | DY11: =$DS11*analyses!CB9/1000 ->  | DZ11: =IF(analyses!BJ9<=capacité_hydraulique,analyses!BK9,IF(analyses!BL9>capacité_hydraulique,0,(capacité_hydraulique-analyses!BL9))) -> 0 | EA11: =$DZ11*(analyses!DF9*(1-constanten_bypass!$B$33/100))/1000 ->  | EB11: =$DZ11*(analyses!BX9*(1-constanten_bypass!$B$34/100))/1000 ->  | EC11: =$DZ11*(analyses!BY9*(1-constanten_bypass!$B$35/100))/1000 ->  | ED11: =$DZ11*(analyses!BZ9*(1-constanten_bypass!$B$37/100))/1000 ->  | EE11: =$DZ11*(analyses!CA9 *(1-constanten_bypass!$B$36/100))/1000 ->  | EF11: =$DZ11*(analyses!CB9*(1-constanten_bypass!$B$38/100))/1000 ->  | EG11: =IF(analyses!BJ9>constanten_bypass!$N$29,constanten_bypass!$N$29 - DZ11,analyses!BL9) -> 0 | EH11: =IF($EG11="",NA(),$EG11)*analyses!CC9/1000 ->  | EI11: =IF($EG11="",NA(),$EG11)*analyses!CD9/1000 ->  | EJ11: =IF($EG11="",NA(),$EG11)*analyses!CE9/1000 ->  | EK11: =IF($EG11="",NA(),$EG11)*IF(analyses!DH9="",NA(),analyses!DH9)/1000 ->  | EL11: =IF($EG11="",NA(),$EG11)*analyses!CG9/1000 ->  | EM11: =IF($EG11="",NA(),$EG11)*analyses!CH9/1000 ->  | EN11: =IF($EG11="",NA(),$EG11)*analyses!CK9/1000 ->  | EO11: =IF($EG11="",NA(),$EG11)*analyses!CJ9/1000 ->  | EP11: =1-analyses!CC9/analyses!BW9 ->  | EQ11: =1-analyses!CD9/analyses!BX9 ->  | ER11: =1-analyses!CE9/analyses!BY9 ->  | ES11: =IF(analyses!$BP9<=10,NA(),1-analyses!CF9/analyses!CA9) ->  | ET11: =1-analyses!CJ9/analyses!CB9 ->  | EU11: =IF(OR(ISNA(DL11),ISNA(DT11),ISNA(EA11),ISNA(EH11)),NA(),calcul_rendement_avec_bypass(DL11,DT11,EA11,EH11)) ->  | EV11: =IF(OR(ISNA(DM11),ISNA(DU11),ISNA(EB11),ISNA(EI11)),NA(),calcul_rendement_avec_bypass(DM11,DU11,EB11,EI11)) ->  | EW11: =IF(OR(ISNA(DN11),ISNA(DV11),ISNA(EC11),ISNA(EJ11)),NA(),calcul_rendement_avec_bypass(DN11,DV11,EC11,EJ11)) ->  | EX11: =IF(OR(ISNA(DP11),ISNA(DX11),ISNA(ED11),ISNA(EK11),analyses!BH9<=10),NA(),calcul_rendement_avec_bypass(DP11,DX11,ED11,EK11)) ->  | EY11: =IF(OR(ISNA(DQ11),ISNA(DY11),ISNA(EF11),ISNA(EO11)),NA(),calcul_rendement_avec_bypass(DQ11,DY11,EF11,EO11)) ->  | EZ11: =analyses!BW9/analyses!BY9 ->  | FA11: =analyses!BX9/analyses!BW9 ->  | FB11: =analyses!BZ9/analyses!CA9 ->  | FC11: =analyses!CA9/analyses!BY9 ->  | FD11: =IF(analyses!CB9/analyses!BY9=0,NA(),analyses!CB9/analyses!BY9) ->  | FE11: =IF(analyses!BX9/analyses!BY9=0,NA(),analyses!BX9/analyses!BY9) ->  | FF11: =capacité_biologique -> 100 | FH11: =faire_somme(EH11,EA11,DL11) ->  | FI11: =faire_somme(EI11,EB11,DM11) ->  | FJ11: =faire_somme(EJ11,EC11,DN11) ->  | FK11: =faire_somme(EK11,ED11,DO11) ->  | FL11: =faire_somme(EO11,EF11,DQ11) ->  | FN11: =IF(ISERROR(FH11*1000/(calc!$DK11+calc!$DZ11+calc!$EG11)),"",FH11*1000/(calc!$DK11+calc!$DZ11+calc!$EG11)) ->  | FO11: =IF(ISERROR(FI11*1000/(calc!$DK11+calc!$DZ11+calc!$EG11)),"",FI11*1000/(calc!$DK11+calc!$DZ11+calc!$EG11)) ->  | FP11: =IF(ISERROR(FJ11*1000/(calc!$DK11+calc!$DZ11+calc!$EG11)),"",FJ11*1000/(calc!$DK11+calc!$DZ11+calc!$EG11)) ->  | FQ11: =IF(ISERROR(FK11*1000/(calc!$DK11+calc!$DZ11+calc!$EG11)),"",FK11*1000/(calc!$DK11+calc!$DZ11+calc!$EG11)) ->  | FR11: =IF(ISERROR(FL11*1000/(calc!$DK11+calc!$DZ11+calc!$EG11)),"",FL11*1000/(calc!$DK11+calc!$DZ11+calc!$EG11)) ->  | FS11: =IF(FQ11="",NA(),FQ11) ->  | FT11: =IF(ISNA(FN11),"",FN11) ->  | FU11: =IF(ISNA(FO11),"",FO11) ->  | FV11: =IF(ISNA(FP11),"",FP11) ->  | FW11: =IF(ISNA(FQ11),"",FQ11) ->  | FX11: =IF(ISNA(FR11),"",FR11) ->  | FY11: =IF(Ammonium_zeigen_ueber_10_Grad(FW11,analyses!BH9)="",NA(),Ammonium_zeigen_ueber_10_Grad(FW11,analyses!BH9)) ->  | FZ11: =IF(DG11=0,"",DG11) ->  | GA11: =DH11 -> pas de limitation | GB11: =IF(DI11=0,"",DI11) ->  | GC11: =DJ11 -> pas de limitation de Q entrée | GD11: =IF(DK11=0,"",DK11) ->  | GE11: =IF(ISERROR(DL11),"",DL11) ->  | GK11: 0 | GL11: 0 | GS11: 0 | GZ11: 0 | HZ11: =IF(FN11="","",FN11) ->  | IA11: =IF(FO11=0,"",FO11) ->  | IB11: =IF(FP11=0,"",FP11) ->  | IC11: =IF(FQ11=0,"",FQ11) ->  | ID11: =IF(FR11=0,"",FR11) ->  | IF11: =(1-analyses!CF9/analyses!CA9) ->  | IG11: =IF(OR(ISNA(DP11),ISNA(DX11),ISNA(ED11),ISNA(EK11)),NA(),calcul_rendement_avec_bypass(DP11,DX11,ED11,EK11)) -> 
A12: =analyses!A10 -> 2015-01-02 | C12: =IF(ISERROR(analyses!BJ10*analyses!AS10/1000),"",analyses!BJ10*analyses!AS10/1000) ->  | D12: =IF(ISERROR(analyses!$BJ10*analyses!BX10/1000),"",analyses!$BJ10*analyses!BX10/1000) ->  | E12: =IF(ISERROR(analyses!$BJ10*analyses!BY10/1000),"",analyses!$BJ10*analyses!BY10/1000) ->  | F12: =IF(ISERROR(analyses!$BJ10*analyses!BZ10/1000),"",analyses!$BJ10*analyses!BZ10/1000) ->  | G12: =IF(ISERROR(analyses!$BJ10*analyses!CA10/1000),"",analyses!$BJ10*analyses!CA10/1000) ->  | H12: =IF(ISERROR(analyses!$BJ10*analyses!CB10/1000),"",analyses!$BJ10*analyses!CB10/1000) ->  | I12: =IF(ISERROR(analyses!$BL10*analyses!CC10/1000),"",analyses!$BL10*analyses!CC10/1000) ->  | J12: =IF(ISERROR(analyses!$BL10*analyses!CD10/1000),"",analyses!$BL10*analyses!CD10/1000) ->  | K12: =IF(ISERROR(analyses!$BL10*analyses!CE10/1000),"",analyses!$BL10*analyses!CE10/1000) ->  | L12: =IF(ISERROR(analyses!$BL10*analyses!CF10/1000),"",analyses!$BL10*analyses!CF10/1000) ->  | M12: =IF(ISERROR(analyses!$BL10*analyses!CG10/1000),"",analyses!$BL10*analyses!CG10/1000) ->  | N12: =IF(ISERROR(analyses!$BL10*analyses!CH10/1000),"",analyses!$BL10*analyses!CH10/1000) ->  | O12: =IF(ISERROR(analyses!$BL10*analyses!CJ10/1000),"",analyses!$BL10*analyses!CJ10/1000) ->  | P12: =IF(ISERROR(analyses!$BL10*analyses!CK10/1000),"",analyses!$BL10*analyses!CK10/1000) ->  | R12: =IF(analyses!I10<$R$5,analyses!I10,0) ->  | T12: =IF(analyses!BL10<$T$5,analyses!BL10,0) -> 0 | U12: =IF(AND(T12>0,analyses!AS10>0),analyses!AS10,"") ->  | V12: =IF(U12="","",(1-analyses!AS10/$X$4)*100) ->  | Y12: =X12 ->  | Z12: =IF(((100-100/$X$4*analyses!BW10)/100*QTS)<0,NA(),((100-100/$X$4*analyses!BW10)/100*QTS)) ->  | AA12: =IF(AND(T12>0,analyses!M10>0),analyses!M10,"") ->  | AB12: =IF(AA12="","",(1-analyses!M10/$AD$4)*100) ->  | AF12: =IF(((100-100/$AD$4*analyses!BY10)/100*QTS)<0,NA(),(((100-100/$AD$4*analyses!BY10)/100*QTS))) ->  | AG12: =IF(AND(T12>0,analyses!N10>0),analyses!N10,"") ->  | AH12: =IF(AG12="","",(1-analyses!N10/$AJ$4)*100) ->  | AL12: =IF(((100-100/$AJ$4*analyses!BZ10)/100*QTS)<0,NA(),((100-100/$AJ$4*analyses!BZ10)/100*QTS)) ->  | AM12: =IF(AND(T12>0,analyses!P10>0),analyses!P10,"") ->  | AN12: =IF(AM12="","",(1-analyses!P10/$AP$4)*100) ->  | AR12: =IF(((100-100/$AP$4*analyses!CB10)/100*QTS)<0,NA(),((100-100/$AP$4*analyses!CB10)/100*QTS)) ->  | AV12: =AW12/100 -> 0.01 | AW12: 1 | AX12: =PERCENTILE(analyses!BJ$9:BJ$373,$AV12) -> 0 | AY12: =PERCENTILE(analyses!BM$9:BM$373,$AV12) ->  | AZ12: =PERCENTILE(analyses!BN$9:BN$373,$AV12) ->  | BA12: =IF(ISERROR(analyses!DY10*analyses!$DT10/1000/(basis!$D$27/1000)),NA(),analyses!DY10*analyses!$DT10/1000/(basis!$D$27/1000)) ->  | BC12: =IF(ISERROR(analyses!EB10*analyses!$DT10/1000/(basis!$D$32/1000)),NA(),analyses!EB10*analyses!$DT10/1000/(basis!$D$32/1000)) ->  | BD12: =IF(ISERROR(analyses!EA10*analyses!$DT10/1000/(basis!$D$29/1000)),NA(),analyses!EA10*analyses!$DT10/1000/(basis!$D$27/1000)) ->  | BE12: =IF(ISERROR(analyses!ED10*analyses!$DT10/1000/(basis!$D$35/1000)),NA(),analyses!ED10*analyses!$DT10/1000/(basis!$D$35/1000)) ->  | BO12: =integr!I12*1000/basis!$D$27 -> 0 | BP12: =integr!Y12*1000/basis!$D$29 -> 0 | BQ12: =integr!AG12*1000/basis!$D$32 -> 0 | BR12: =integr!AW12*1000/basis!$D$35 -> 0 | BS12: =IF(ISERROR(BO12),"",BO12) -> 0 | BT12: =IF(ISERROR(BP12),"",BP12) -> 0 | BU12: =IF(ISERROR(BQ12),"",BQ12) -> 0 | BV12: =IF(ISERROR(BR12),"",BR12) -> 0 | BW12: =AVERAGE(BS12:BV12) -> 0 | BX12: =IF(AND(calc!C12<>"",analyses!CP10<>0),calc!C12 * (1-$BX$4) / (analyses!CO10*analyses!CP10),"") ->  | BY12: =IF(AND(analyses!AC10<>0,analyses!AD10<>0,analyses!AE10<>0,analyses!H10<>0,analyses!Y10<>0),(analyses!AB10*analyses!AC10)/((analyses!H10*analyses!Y10/1000)+(analyses!AD10*analyses!AE10)),"") ->  | BZ12: =DS12/BO12*1000 ->  | DA12: =DA11 -> 0 | DC12: =DC11 ->  | DD12: =DD11 ->  | DE12: =DE11 ->  | DG12: =IF(analyses!BI10="",0,analyses!BI10) -> 0 | DH12: =IF(DS12+DG12>constanten_bypass!$N$29,IF(Langue=1,"limitation du bypass","Bypass ist limitiert"),IF(Langue=1,"pas de limitation","keine Begrenzung")) -> pas de limitation | DI12: =IF(DG12="","",IF(DS12+DG12>constanten_bypass!$N$29,DG12-(DS12+DG12-constanten_bypass!$N$29),DG12)) -> 0 | DJ12: =IF(DS12>constanten_bypass!$N$29,IF(Langue=1,"limitation de Q entrée","Q Zulauf ist limitiert"),IF(Langue=1,"pas de limitation de Q entrée","Keine Q Zulauf Begrenzung")) -> pas de limitation de Q entrée | DK12: =IF(DS12>constanten_bypass!$N$29,0,DI12) -> 0 | DL12: =IF(DK12="",0,$DK12*analyses!DF10/1000) ->  | DM12: =IF(DK12="",0,$DK12*analyses!BX10/1000) ->  | DN12: =IF(DK12="",0,$DK12*analyses!BY10/1000) ->  | DO12: =IF(DK12="",0,$DK12*analyses!BZ10/1000) ->  | DP12: =IF(DK12="",0,$DK12*analyses!CA10/1000) ->  | DQ12: =IF(DK12="",0,$DK12*analyses!CB10/1000) ->  | DR12: =analyses!BJ10 -> 0 | DS12: =IF(analyses!BJ10>constanten_bypass!$N$29,constanten_bypass!$N$29,analyses!BJ10) -> 0 | DT12: =$DS12*analyses!DF10/1000 ->  | DU12: =$DS12*analyses!BX10/1000 ->  | DV12: =$DS12*analyses!BY10/1000 ->  | DW12: =$DS12*analyses!BZ10/1000 ->  | DX12: =$DS12*analyses!CA10/1000 ->  | DY12: =$DS12*analyses!CB10/1000 ->  | DZ12: =IF(analyses!BJ10<=capacité_hydraulique,analyses!BK10,IF(analyses!BL10>capacité_hydraulique,0,(capacité_hydraulique-analyses!BL10))) -> 0 | EA12: =$DZ12*(analyses!DF10*(1-constanten_bypass!$B$33/100))/1000 ->  | EB12: =$DZ12*(analyses!BX10*(1-constanten_bypass!$B$34/100))/1000 ->  | EC12: =$DZ12*(analyses!BY10*(1-constanten_bypass!$B$35/100))/1000 ->  | ED12: =$DZ12*(analyses!BZ10*(1-constanten_bypass!$B$37/100))/1000 ->  | EE12: =$DZ12*(analyses!CA10 *(1-constanten_bypass!$B$36/100))/1000 ->  | EF12: =$DZ12*(analyses!CB10*(1-constanten_bypass!$B$38/100))/1000 ->  | EG12: =IF(analyses!BJ10>constanten_bypass!$N$29,constanten_bypass!$N$29 - DZ12,analyses!BL10) -> 0 | EH12: =IF($EG12="",NA(),$EG12)*analyses!CC10/1000 ->  | EI12: =IF($EG12="",NA(),$EG12)*analyses!CD10/1000 ->  | EJ12: =IF($EG12="",NA(),$EG12)*analyses!CE10/1000 ->  | EK12: =IF($EG12="",NA(),$EG12)*IF(analyses!DH10="",NA(),analyses!DH10)/1000 ->  | EL12: =IF($EG12="",NA(),$EG12)*analyses!CG10/1000 ->  | EM12: =IF($EG12="",NA(),$EG12)*analyses!CH10/1000 ->  | EN12: =IF($EG12="",NA(),$EG12)*analyses!CK10/1000 ->  | EO12: =IF($EG12="",NA(),$EG12)*analyses!CJ10/1000 ->  | EP12: =1-analyses!CC10/analyses!BW10 ->  | EQ12: =1-analyses!CD10/analyses!BX10 ->  | ER12: =1-analyses!CE10/analyses!BY10 ->  | ES12: =IF(analyses!$BP10<=10,NA(),1-analyses!CF10/analyses!CA10) ->  | ET12: =1-analyses!CJ10/analyses!CB10 ->  | EU12: =IF(OR(ISNA(DL12),ISNA(DT12),ISNA(EA12),ISNA(EH12)),NA(),calcul_rendement_avec_bypass(DL12,DT12,EA12,EH12)) ->  | EV12: =IF(OR(ISNA(DM12),ISNA(DU12),ISNA(EB12),ISNA(EI12)),NA(),calcul_rendement_avec_bypass(DM12,DU12,EB12,EI12)) ->  | EW12: =IF(OR(ISNA(DN12),ISNA(DV12),ISNA(EC12),ISNA(EJ12)),NA(),calcul_rendement_avec_bypass(DN12,DV12,EC12,EJ12)) ->  | EX12: =IF(OR(ISNA(DP12),ISNA(DX12),ISNA(ED12),ISNA(EK12),analyses!BH10<=10),NA(),calcul_rendement_avec_bypass(DP12,DX12,ED12,EK12)) ->  | EY12: =IF(OR(ISNA(DQ12),ISNA(DY12),ISNA(EF12),ISNA(EO12)),NA(),calcul_rendement_avec_bypass(DQ12,DY12,EF12,EO12)) ->  | EZ12: =analyses!BW10/analyses!BY10 ->  | FA12: =analyses!BX10/analyses!BW10 ->  | FB12: =analyses!BZ10/analyses!CA10 ->  | FC12: =analyses!CA10/analyses!BY10 ->  | FD12: =IF(analyses!CB10/analyses!BY10=0,NA(),analyses!CB10/analyses!BY10) ->  | FE12: =IF(analyses!BX10/analyses!BY10=0,NA(),analyses!BX10/analyses!BY10) ->  | FF12: =FF11 -> 100 | FH12: =faire_somme(EH12,EA12,DL12) ->  | FI12: =faire_somme(EI12,EB12,DM12) ->  | FJ12: =faire_somme(EJ12,EC12,DN12) ->  | FK12: =faire_somme(EK12,ED12,DO12) ->  | FL12: =faire_somme(EO12,EF12,DQ12) ->  | FN12: =IF(ISERROR(FH12*1000/(calc!$DK12+calc!$DZ12+calc!$EG12)),"",FH12*1000/(calc!$DK12+calc!$DZ12+calc!$EG12)) ->  | FO12: =IF(ISERROR(FI12*1000/(calc!$DK12+calc!$DZ12+calc!$EG12)),"",FI12*1000/(calc!$DK12+calc!$DZ12+calc!$EG12)) ->  | FP12: =IF(ISERROR(FJ12*1000/(calc!$DK12+calc!$DZ12+calc!$EG12)),"",FJ12*1000/(calc!$DK12+calc!$DZ12+calc!$EG12)) ->  | FQ12: =IF(ISERROR(FK12*1000/(calc!$DK12+calc!$DZ12+calc!$EG12)),"",FK12*1000/(calc!$DK12+calc!$DZ12+calc!$EG12)) ->  | FR12: =IF(ISERROR(FL12*1000/(calc!$DK12+calc!$DZ12+calc!$EG12)),"",FL12*1000/(calc!$DK12+calc!$DZ12+calc!$EG12)) ->  | FS12: =IF(FQ12="",NA(),FQ12) ->  | FT12: =IF(ISNA(FN12),"",FN12) ->  | FY12: =IF(Ammonium_zeigen_ueber_10_Grad(FW12,analyses!BH10)="",NA(),Ammonium_zeigen_ueber_10_Grad(FW12,analyses!BH10)) ->  | FZ12: =IF(DG12=0,"",DG12) ->  | GA12: =DH12 -> pas de limitation | GB12: =IF(DI12=0,"",DI12) ->  | GC12: =DJ12 -> pas de limitation de Q entrée | GD12: =IF(DK12=0,"",DK12) ->  | GE12: =IF(ISERROR(DL12),"",DL12) ->  | GF12: =IF(ISERROR(DM12),"",DM12) ->  | GG12: =IF(ISERROR(DN12),"",DN12) ->  | GH12: =IF(ISERROR(DO12),"",DO12) ->  | GI12: =IF(ISERROR(DP12),"",DP12) ->  | GJ12: =IF(ISERROR(DQ12),"",DQ12) ->  | GK12: =IF(ISERROR(DR12),"",DR12) -> 0 | GL12: =IF(ISERROR(DS12),"",DS12) -> 0 | GM12: =IF(ISERROR(DT12),"",DT12) ->  | GN12: =IF(ISERROR(DU12),"",DU12) ->  | GO12: =IF(ISERROR(DV12),"",DV12) ->  | GP12: =IF(ISERROR(DW12),"",DW12) ->  | GQ12: =IF(ISERROR(DX12),"",DX12) ->  | GR12: =IF(ISERROR(DY12),"",DY12) ->  | GS12: =IF(ISERROR(DZ12),"",DZ12) -> 0 | GT12: =IF(ISERROR(EA12),"",EA12) ->  | GU12: =IF(ISERROR(EB12),"",EB12) ->  | GV12: =IF(ISERROR(EC12),"",EC12) ->  | GW12: =IF(ISERROR(ED12),"",ED12) ->  | GX12: =IF(ISERROR(EE12),"",EE12) ->  | GY12: =IF(ISERROR(EF12),"",EF12) ->  | GZ12: =IF(ISERROR(EG12),"",EG12) -> 0 | HA12: =IF(ISERROR(EH12),"",EH12) ->  | HB12: =IF(ISERROR(EI12),"",EI12) ->  | HC12: =IF(ISERROR(EJ12),"",EJ12) ->  | HD12: =IF(ISERROR(EK12),"",EK12) ->  | HE12: =IF(ISERROR(EL12),"",EL12) ->  | HF12: =IF(ISERROR(EM12),"",EM12) ->  | HG12: =IF(ISERROR(EN12),"",EN12) ->  | HH12: =IF(ISERROR(EO12),"",EO12) ->  | HI12: =IF(ISERROR(EP12),"",EP12) ->  | HJ12: =IF(ISERROR(EQ12),"",EQ12) ->  | HK12: =IF(ISERROR(ER12),"",ER12) ->  | HL12: =IF(ISERROR(ES12),"",ES12) ->  | HM12: =IF(ISERROR(ET12),"",ET12) ->  | HN12: =IF(ISERROR(EU12),"",EU12) ->  | HO12: =IF(ISERROR(EV12),"",EV12) ->  | HP12: =IF(ISERROR(EW12),"",EW12) ->  | HQ12: =IF(ISERROR(EX12),"",EX12) ->  | HR12: =IF(ISERROR(EY12),"",EY12) ->  | HS12: =IF(ISERROR(EZ12),"",EZ12) ->  | HT12: =IF(ISERROR(FA12),"",FA12) ->  | HU12: =IF(ISERROR(FB12),"",FB12) ->  | HV12: =IF(ISERROR(FC12),"",FC12) ->  | HW12: =IF(ISERROR(FD12),"",FD12) ->  | HX12: =IF(ISERROR(FE12),"",FE12) ->  | HZ12: =IF(FN12=0,"",FN12) ->  | IA12: =IF(FO12=0,"",FO12) ->  | IB12: =IF(FP12=0,"",FP12) ->  | IC12: =IF(FQ12=0,"",FQ12) ->  | ID12: =IF(FR12=0,"",FR12) ->  | IF12: =(1-analyses!CF10/analyses!CA10) ->  | IG12: =IF(OR(ISNA(DP12),ISNA(DX12),ISNA(ED12),ISNA(EK12)),NA(),calcul_rendement_avec_bypass(DP12,DX12,ED12,EK12)) -> 
